Workbook

Sheet Impressum
C1: Impressum
C9: PLANUNGSTOOL
C10: &
C11: TRAININGSTAGEBUCH
E14: Conception / réalisation
F16: Louis Heyer
F17: Bundesamt für Sport / Trainingswissenschaft
F18: louis.heyer@baspo.admin.ch
F19: 032 327 64 99 / 079 507 58 25

Sheet Anleitung
B2: Anleitung TTB 2018
B4: Gewicht | D4: Immer vor den Frühstück, mind. 1x/Wo
B6: Regeneration | D6: Wie erholt fühle ich mich in der Früh?
C7: 1 | D7: … gar nicht erholt
C8: 2 | D8: … wenig erholt
C9: 3 | D9: … erholt
C10: 4 | D10: … fit
C11: 5 | D11: … Top fit
B13: Schlafqualität | D13: Hier musst du deine Schlafqualität beurteilen. Du schreibst unter "Montag" die Qualität deinem Schlaf in der Nacht von Sonntag bis Montag.
C15: 1 | D15: … katastrophe, gar nicht geschlafen
C16: 2 | D16: … unruhig geschlafen, oft aufgewacht
C17: 3 | D17: … geschlafen, unruhig
C18: 4 | D18: … gut geschlafen
C19: 5 | D19: … sehr gut geschlafen
B21: Schlafqualität | D21: Anzahl der Stunden die du geschlafen hast.
B23: Verletzung /Erkrankung | D23: Wenn du wegen einer Verletzung/ Erkrankung nicht "normal" trainieren konntest oder pausieren musstest trag folgende Zahlen ein.
C26: keine Einschränkungen
C27: 0 | D27: ich kann normal trainieren
C29: Einschränkungen wegen Schmerzen
C30: 1 | D30: Finger
C31: 2 | D31: Schulter
C32: 3 | D32: Rücken
C33: 4 | D33: Knie
C34: 5 | D34: Sprunggelenk
C35: 6 | D35: Andere
C37: Ausfall wegen Verletzung
C38: 11 | D38: Finger
C39: 12 | D39: Schulter
C40: 13 | D40: Rücken
C41: 14 | D41: Knie
C42: 15 | D42: Sprunggelenk
C43: 16 | D43: Andere
C45: Ausfall wegen Krankheit
C46: 21 | D46: Krankheit
B48: Trainingsbeschreibung | D48: Hier sollst du eintragen was der Trainingsinhalt war (z.B. Service/ Annahme oder auch Langhanteltraining)
B51: Dauer | D51: Hier sollst du erst die Dauer deines Trainings/Wettkampfs in Minuten angeben. Warm-up und cool-down gehören zum Training
B54: RPE | D54: RPE = Rate of Perceived Exertion
D56: Vorgehen Trainingsbeurteilung mittels Fosterskala:
D57: Durchführung der Beurteilung möglichst 15-30 Min. nach jeder Trainingseinheit.
D59: Beschreibe Deine Anstrengung bzw. Dein Belastungsgefühl für die ganze
D60: Trainings- oder Wettkampfeinheit nach dem Motto:
D62: Wenn du an das Training zurück denkst, wie anstrengend ist dasTraining heute gewesen?
D65: Trage die entsprechende Zahl in Deinem Protokollblatt ein.
D67: Wenn du mehrere Trainings- oder Wettkampfeinheiten pro Tag absolvierst, mach für jede Einheite eine solche Bewertung und schreibe sie dann unter Training 1, Training 2, etc ein.
E71: Foster's Skala
E73: "Wenn du an das Training zurück denkst, wie anstrengend ist das Training heute gewesen?"
J76: RPE
E77: Wie in Ruhe | J77: 0
E78: Sehr locker | J78: 1
E79: Locker | J79: 2
J80: 3
E81: Etwas hart | J81: 4
E82: Hart | J82: 5
J83: 6
E84: Sehr hart | J84: 7
J85: 8
E86: Extrem hart | J86: 9
E87: Wie mein härtestes Training überhaupt | J87: 10
B89: Reflexion | D89: Hier sollst du das Training/ den Wettkampf reflektieren - Was nehme ich mit fürs nächste Training/ nächsten Wettkampf?
B92: Anzahl der Spiele | D92: Gib an wieviele Spiele du an diesem Tag gespielt hast. Benutze den folgenden Schlüssel
C94: 1 | D94: … 3 und mehr Sätze
C95: 0.5 | D95: … weniger als 3 Sätze
B97: Anzahl der Sätze | D97: Gib an wieviele Sätzen du an diesem Tag tatsächlich gespielt hast. Benutze den folgenden Schlüssel
C99: 1 | D99: … gestartet & durchgespielt
C100: 0.5 | D100: … ein-/ ausgewechselt, viel gespielt
C101: 0.1 | D101: … ein-/ ausgewechselt, Kurzeinsatz
B103: Zufriedenheit J | D103: Wie Zufrieden bist du mit dir selber in dieser Einheit gewesen? Hast du deine Ziele erreicht?
C105: 1 | D105: … nicht zufrieden
C106: 2 | D106: … eher nicht zufrieden
C107: 3 | D107: … neutral
C108: 4 | D108: … zufrieden
C109: 5 | D109: … sehr zufrieden!
B111: Regenerationsmassnahme | D111: Welche Regenerationsmassnahme hast du angewendet nach deiner Einheit?

Sheet Overview
E1: Overview
C2: Name Vorname : | D2: Vorname Nachname | M2: Jahr : | N2: 2017/2018 | X2: Beginn Trainingsjahr : | Y2: 2017-08-01
H4: =CONCATENATE("Overview"," ",D2) -> Overview Vorname Nachname
Y5: Gewünschte Analyse : | AB5: Von Trainingswoche : | AC5: 1 | AG5: bis Trainingswoche : | AH5: 52
B7: Semaine | C7: Semaine | H7: b1 | I7: b2 | J7: b3 | K7: b4 | L7: b5 | M7: b6 | N7: b7 | O7: b8 | P7: b9 | Q7: b10 | R7: b11 | S7: b12
B8: =CONCATENATE(">","=",AC5) -> >=1 | C8: =CONCATENATE("<","=",AH5) -> <=52 | H8: b1 | I8: b2 | J8: b3 | K8: b4 | L8: b5 | M8: b6 | N8: b7 | O8: b8 | P8: b9 | Q8: b10 | R8: b11 | S8: b12
B10: Trainings- woche | C10: Kalenderwoche | H10: ='31'!$AF31 -> Trainingstage | I10: ='31'!$AF33 -> Trainingseinheiten | J10: ='31'!$AF35 -> Trainingsstunden | K10: ='31'!$AF37 -> Training Load | L10: ='31'!$AF39 -> Monotonie | M10: ='31'!$AF41 -> Trainingsanstrengung | N10: ='31'!$AF43 -> Anzahl der Spiele | O10: ='31'!$AF45 -> gespielte Sätze | P10: ='31'!$AF47 -> J | Q10: ='31'!$AF49 -> Einschränkungen wegen Schmerzen | R10: ='31'!$AF51 -> Ausfall wegen Verletzung | S10: ='31'!$AF53 -> Ausfall wegen Krankheit | AA10: Athlet
AA12: Total | AB12: MW/Woche
Y13: Trainingstage | AA13: =H70 -> 0 | AB13: =AA13/$H$71 -> 
Y14: Trainingseinheiten | AA14: =I70 -> 0 | AB14: =AA14/$I$71 -> 
Y15: Trainingsstunden | AA15: =J70 -> 0 | AB15: =AA15/$J$71 -> 
Y16: Training Load | AA16: =K70 -> 0 | AB16: =AA16/$K$71 -> 
Y17: Monotonie | AA17: =L70 -> 0 | AB17: =AA17/$L$71 -> 
B18: 1 | C18: =Y2 -> 2017-08-01 | D18: - | E18: =C18+6 -> 2017-08-07 | F18: =INT(MOD(INT((C18-2)/7)+0.6,52+5/28))+1 -> 31 | H18: =TRANSPOSE($C99:$BB109) ->  | Q18: 0 | R18: 0 | S18: =TRANSPOSE(C110:BB110) -> 0 | Y18: Trainingsanstrengung | AA18: =M70 -> 0 | AB18: =AA18/$M$71 -> 
B19: 2 | C19: =C18+7 -> 2017-08-08 | D19: - | E19: =C19+6 -> 2017-08-14 | F19: =INT(MOD(INT((C19-2)/7)+0.6,52+5/28))+1 -> 32 | Q19: 0 | R19: 0 | S19: 0 | Y19: ='31'!AF43 -> Anzahl der Spiele | AA19: =N70 -> 0 | AB19: =AA19/$N$71 -> 
B20: 3 | C20: =C19+7 -> 2017-08-15 | D20: - | E20: 2017-08-21 | F20: 33 | Q20: 0 | R20: 0 | S20: 0 | Y20: ='31'!AF45 -> gespielte Sätze | AA20: =O70 -> 0 | AB20: =AA20/$O$71 -> 
B21: 4 | C21: 2017-08-22 | D21: - | E21: 2017-08-28 | F21: 34 | Q21: 0 | R21: 0 | S21: 0 | Y21: ='31'!AF47 -> J | AA21: =P70 -> 0 | AB21: =AA21/$P$71 -> 
B22: 5 | C22: 2017-08-29 | D22: - | E22: 2017-09-04 | F22: 35 | Q22: 0 | R22: 0 | S22: 0 | Y22: =Q10 -> Einschränkungen wegen Schmerzen | AA22: =Q70 -> 0 | AB22: =AA22/$Q$71 -> 0
B23: 6 | C23: 2017-09-05 | D23: - | E23: 2017-09-11 | F23: 36 | Q23: 0 | R23: 0 | S23: 0 | Y23: =R10 -> Ausfall wegen Verletzung | AA23: =R70 -> 0 | AB23: =AA23/$R$71 -> 0
B24: 7 | C24: 2017-09-12 | D24: - | E24: 2017-09-18 | F24: 37 | Q24: 0 | R24: 0 | S24: 0 | Y24: =S10 -> Ausfall wegen Krankheit | AA24: =S70 -> 0 | AB24: =AA24/(AH5-AC5+1) -> 0
B25: 8 | C25: 2017-09-19 | D25: - | E25: 2017-09-25 | F25: 38 | Q25: 0 | R25: 0 | S25: 0
B26: 9 | C26: 2017-09-26 | D26: - | E26: 2017-10-02 | F26: 39 | Q26: 0 | R26: 0 | S26: 0
B27: 10 | C27: 2017-10-03 | D27: - | E27: 2017-10-09 | F27: 40 | Q27: 0 | R27: 0 | S27: 0
B28: 11 | C28: 2017-10-10 | D28: - | E28: 2017-10-16 | F28: 41 | Q28: 0 | R28: 0 | S28: 0
B29: 12 | C29: 2017-10-17 | D29: - | E29: 2017-10-23 | F29: 42 | Q29: 0 | R29: 0 | S29: 0
B30: 13 | C30: 2017-10-24 | D30: - | E30: 2017-10-30 | F30: 43 | Q30: 0 | R30: 0 | S30: 0
B31: 14 | C31: 2017-10-31 | D31: - | E31: 2017-11-06 | F31: 44 | Q31: 0 | R31: 0 | S31: 0
B32: 15 | C32: 2017-11-07 | D32: - | E32: 2017-11-13 | F32: 45 | Q32: 0 | R32: 0 | S32: 0
B33: 16 | C33: 2017-11-14 | D33: - | E33: 2017-11-20 | F33: 46 | Q33: 0 | R33: 0 | S33: 0
B34: 17 | C34: 2017-11-21 | D34: - | E34: 2017-11-27 | F34: 47 | Q34: 0 | R34: 0 | S34: 0
B35: 18 | C35: 2017-11-28 | D35: - | E35: 2017-12-04 | F35: 48 | Q35: 0 | R35: 0 | S35: 0
B36: 19 | C36: 2017-12-05 | D36: - | E36: 2017-12-11 | F36: 49 | Q36: 0 | R36: 0 | S36: 0
B37: 20 | C37: 2017-12-12 | D37: - | E37: 2017-12-18 | F37: 50 | Q37: 0 | R37: 0 | S37: 0
B38: 21 | C38: 2017-12-19 | D38: - | E38: 2017-12-25 | F38: 51 | Q38: 0 | R38: 0 | S38: 0
B39: 22 | C39: 2017-12-26 | D39: - | E39: 2018-01-01 | F39: 52 | Q39: 0 | R39: 0 | S39: 0
B40: 23 | C40: 2018-01-02 | D40: - | E40: 2018-01-08 | F40: 1 | Q40: 0 | R40: 0 | S40: 0
B41: 24 | C41: 2018-01-09 | D41: - | E41: 2018-01-15 | F41: 2 | Q41: 0 | R41: 0 | S41: 0
B42: 25 | C42: 2018-01-16 | D42: - | E42: 2018-01-22 | F42: 3 | Q42: 0 | R42: 0 | S42: 0
B43: 26 | C43: 2018-01-23 | D43: - | E43: 2018-01-29 | F43: 4 | Q43: 0 | R43: 0 | S43: 0
B44: 27 | C44: 2018-01-30 | D44: - | E44: 2018-02-05 | F44: 5 | Q44: 0 | R44: 0 | S44: 0
B45: 28 | C45: 2018-02-06 | D45: - | E45: 2018-02-12 | F45: 6 | Q45: 0 | R45: 0 | S45: 0
B46: 29 | C46: 2018-02-13 | D46: - | E46: 2018-02-19 | F46: 7 | Q46: 0 | R46: 0 | S46: 0
B47: 30 | C47: 2018-02-20 | D47: - | E47: 2018-02-26 | F47: 8 | Q47: 0 | R47: 0 | S47: 0
B48: 31 | C48: 2018-02-27 | D48: - | E48: 2018-03-05 | F48: 9 | Q48: 0 | R48: 0 | S48: 0
B49: 32 | C49: 2018-03-06 | D49: - | E49: 2018-03-12 | F49: 10 | Q49: 0 | R49: 0 | S49: 0
B50: 33 | C50: 2018-03-13 | D50: - | E50: 2018-03-19 | F50: 11 | Q50: 0 | R50: 0 | S50: 0
B51: 34 | C51: 2018-03-20 | D51: - | E51: 2018-03-26 | F51: 12 | Q51: 0 | R51: 0 | S51: 0
B52: 35 | C52: 2018-03-27 | D52: - | E52: 2018-04-02 | F52: 13 | Q52: 0 | R52: 0 | S52: 0
B53: 36 | C53: 2018-04-03 | D53: - | E53: 2018-04-09 | F53: 14 | Q53: 0 | R53: 0 | S53: 0
B54: 37 | C54: 2018-04-10 | D54: - | E54: 2018-04-16 | F54: 15 | Q54: 0 | R54: 0 | S54: 0
B55: 38 | C55: 2018-04-17 | D55: - | E55: 2018-04-23 | F55: 16 | Q55: 0 | R55: 0 | S55: 0
B56: 39 | C56: 2018-04-24 | D56: - | E56: 2018-04-30 | F56: 17 | Q56: 0 | R56: 0 | S56: 0
B57: 40 | C57: 2018-05-01 | D57: - | E57: 2018-05-07 | F57: 18 | Q57: 0 | R57: 0 | S57: 0
B58: 41 | C58: 2018-05-08 | D58: - | E58: 2018-05-14 | F58: 19 | Q58: 0 | R58: 0 | S58: 0
B59: 42 | C59: 2018-05-15 | D59: - | E59: 2018-05-21 | F59: 20 | Q59: 0 | R59: 0 | S59: 0
B60: 43 | C60: 2018-05-22 | D60: - | E60: 2018-05-28 | F60: 21 | Q60: 0 | R60: 0 | S60: 0
B61: 44 | C61: 2018-05-29 | D61: - | E61: 2018-06-04 | F61: 22 | Q61: 0 | R61: 0 | S61: 0
B62: 45 | C62: 2018-06-05 | D62: - | E62: 2018-06-11 | F62: 23 | Q62: 0 | R62: 0 | S62: 0
B63: 46 | C63: 2018-06-12 | D63: - | E63: 2018-06-18 | F63: 24 | Q63: 0 | R63: 0 | S63: 0
B64: 47 | C64: 2018-06-19 | D64: - | E64: 2018-06-25 | F64: 25 | Q64: 0 | R64: 0 | S64: 0
B65: 48 | C65: 2018-06-26 | D65: - | E65: 2018-07-02 | F65: 26 | Q65: 0 | R65: 0 | S65: 0
B66: 49 | C66: 2018-07-03 | D66: - | E66: 2018-07-09 | F66: 27 | Q66: 0 | R66: 0 | S66: 0
B67: 50 | C67: 2018-07-10 | D67: - | E67: 2018-07-16 | F67: 28 | Q67: 0 | R67: 0 | S67: 0
B68: 51 | C68: 2018-07-17 | D68: - | E68: 2018-07-23 | F68: 29 | Q68: 0 | R68: 0 | S68: 0
B69: 52 | C69: 2018-07-24 | D69: - | E69: 2018-07-30 | F69: 30 | Q69: 0 | R69: 0 | S69: 0
H70: =DSUM($B$7:H69,H8,$B$7:$C$8) -> 0 | I70: =DSUM($B$7:I69,I8,$B$7:$C$8) -> 0 | J70: =DSUM($B$7:J69,J8,$B$7:$C$8) -> 0 | K70: =DSUM($B$7:K69,K8,$B$7:$C$8) -> 0 | L70: =DSUM($B$7:L69,L8,$B$7:$C$8) -> 0 | M70: =DSUM($B$7:M69,M8,$B$7:$C$8) -> 0 | N70: =DSUM($B$7:N69,N8,$B$7:$C$8) -> 0 | O70: =DSUM($B$7:O69,O8,$B$7:$C$8) -> 0 | P70: =DSUM($B$7:P69,P8,$B$7:$C$8) -> 0 | Q70: =DSUM($B$7:Q69,Q8,$B$7:$C$8) -> 0 | R70: =DSUM($B$7:R69,R8,$B$7:$C$8) -> 0 | S70: =DSUM($B$7:S69,S8,$B$7:$C$8) -> 0
H71: =DCOUNT($B$7:H69,H8,$B$7:$C$8) -> 0 | I71: =DCOUNT($B$7:I69,I8,$B$7:$C$8) -> 0 | J71: =DCOUNT($B$7:J69,J8,$B$7:$C$8) -> 0 | K71: =DCOUNT($B$7:K69,K8,$B$7:$C$8) -> 0 | L71: =DCOUNT($B$7:L69,L8,$B$7:$C$8) -> 0 | M71: =DCOUNT($B$7:M69,M8,$B$7:$C$8) -> 0 | N71: =DCOUNT($B$7:N69,N8,$B$7:$C$8) -> 0 | O71: =DCOUNT($B$7:O69,O8,$B$7:$C$8) -> 0 | P71: =DCOUNT($B$7:P69,P8,$B$7:$C$8) -> 0 | Q71: =DCOUNT($B$7:Q69,Q8,$B$7:$C$8) -> 52 | R71: =DCOUNT($B$7:R69,R8,$B$7:$C$8) -> 52 | S71: =DCOUNT($B$7:S69,S8,$B$7:$C$8) -> 52
B98: Überblick | C98: =#REF! ->  | D98: =#REF! ->  | E98: =#REF! ->  | F98: =#REF! ->  | G98: =#REF! ->  | H98: =#REF! ->  | I98: =#REF! ->  | J98: =#REF! ->  | K98: =#REF! ->  | L98: =#REF! ->  | M98: =#REF! ->  | N98: =#REF! ->  | O98: =#REF! ->  | P98: =#REF! ->  | Q98: =#REF! ->  | R98: =#REF! ->  | S98: =#REF! ->  | T98: =#REF! ->  | U98: =#REF! ->  | V98: =#REF! ->  | W98: =#REF! ->  | X98: =#REF! ->  | Y98: =#REF! ->  | Z98: =#REF! ->  | AA98: =#REF! ->  | AB98: =#REF! ->  | AC98: =#REF! ->  | AD98: =#REF! ->  | AE98: =#REF! ->  | AF98: =#REF! ->  | AG98: =#REF! ->  | AH98: =#REF! ->  | AI98: =#REF! ->  | AJ98: =#REF! ->  | AK98: =#REF! ->  | AL98: =#REF! ->  | AM98: =#REF! ->  | AN98: =#REF! ->  | AO98: =#REF! ->  | AP98: =#REF! ->  | AQ98: =#REF! ->  | AR98: =#REF! ->  | AS98: =#REF! ->  | AT98: =#REF! ->  | AU98: =#REF! ->  | AV98: =#REF! ->  | AW98: =#REF! ->  | AX98: =#REF! ->  | AY98: =#REF! ->  | AZ98: =#REF! ->  | BA98: =#REF! ->  | BB98: =#REF! -> 
B99: Trainingstagen | C99: ='31'!$AH31 ->  | D99: ='32'!$AH31 ->  | E99: ='33'!$AH31 ->  | F99: ='34'!$AH31 ->  | G99: ='35'!$AH31 ->  | H99: ='36'!$AH31 ->  | I99: ='37'!$AH31 ->  | J99: ='38'!$AH31 ->  | K99: ='39'!$AH31 ->  | L99: ='40'!$AH31 ->  | M99: ='41'!$AH31 ->  | N99: ='42'!$AH31 ->  | O99: ='43'!$AH31 ->  | P99: ='44'!$AH31 ->  | Q99: ='45'!$AH31 ->  | R99: ='46'!$AH31 ->  | S99: ='47'!$AH31 ->  | T99: ='48'!$AH31 ->  | U99: ='49'!$AH31 ->  | V99: ='50'!$AH31 ->  | W99: ='51'!$AH31 ->  | X99: ='52'!$AH31 ->  | Y99: ='1'!$AH31 ->  | Z99: ='2'!$AH31 ->  | AA99: ='3'!$AH31 ->  | AB99: ='4'!$AH31 ->  | AC99: ='5'!$AH31 ->  | AD99: ='6'!$AH31 ->  | AE99: ='7'!$AH31 ->  | AF99: ='8'!$AH31 ->  | AG99: ='9'!$AH31 ->  | AH99: ='10'!$AH31 ->  | AI99: ='11'!$AH31 ->  | AJ99: ='12'!$AH31 ->  | AK99: ='13'!$AH31 ->  | AL99: ='14'!$AH31 ->  | AM99: ='15'!$AH31 ->  | AN99: ='16'!$AH31 ->  | AO99: ='17'!$AH31 ->  | AP99: ='18'!$AH31 ->  | AQ99: ='19'!$AH31 ->  | AR99: ='20'!$AH31 ->  | AS99: ='21'!$AH31 ->  | AT99: ='22'!$AH31 ->  | AU99: ='23'!$AH31 ->  | AV99: ='24'!$AH31 ->  | AW99: ='25'!$AH31 ->  | AX99: ='26'!$AH31 ->  | AY99: ='27'!$AH31 ->  | AZ99: ='28'!$AH31 ->  | BA99: ='29'!$AH31 ->  | BB99: ='30'!$AH31 -> 
B100: Trainingseinheiten | C100: ='31'!$AH33 ->  | D100: ='32'!$AH33 ->  | E100: ='33'!$AH33 ->  | F100: ='34'!$AH33 ->  | G100: ='35'!$AH33 ->  | H100: ='36'!$AH33 ->  | I100: ='37'!$AH33 ->  | J100: ='38'!$AH33 ->  | K100: ='39'!$AH33 ->  | L100: ='40'!$AH33 ->  | M100: ='41'!$AH33 ->  | N100: ='42'!$AH33 ->  | O100: ='43'!$AH33 ->  | P100: ='44'!$AH33 ->  | Q100: ='45'!$AH33 ->  | R100: ='46'!$AH33 ->  | S100: ='47'!$AH33 ->  | T100: ='48'!$AH33 ->  | U100: ='49'!$AH33 ->  | V100: ='50'!$AH33 ->  | W100: ='51'!$AH33 ->  | X100: ='52'!$AH33 ->  | Y100: ='1'!$AH33 ->  | Z100: ='2'!$AH33 ->  | AA100: ='3'!$AH33 ->  | AB100: ='4'!$AH33 ->  | AC100: ='5'!$AH33 ->  | AD100: ='6'!$AH33 ->  | AE100: ='7'!$AH33 ->  | AF100: ='8'!$AH33 ->  | AG100: ='9'!$AH33 ->  | AH100: ='10'!$AH33 ->  | AI100: ='11'!$AH33 ->  | AJ100: ='12'!$AH33 ->  | AK100: ='13'!$AH33 ->  | AL100: ='14'!$AH33 ->  | AM100: ='15'!$AH33 ->  | AN100: ='16'!$AH33 ->  | AO100: ='17'!$AH33 ->  | AP100: ='18'!$AH33 ->  | AQ100: ='19'!$AH33 ->  | AR100: ='20'!$AH33 ->  | AS100: ='21'!$AH33 ->  | AT100: ='22'!$AH33 ->  | AU100: ='23'!$AH33 ->  | AV100: ='24'!$AH33 ->  | AW100: ='25'!$AH33 ->  | AX100: ='26'!$AH33 ->  | AY100: ='27'!$AH33 ->  | AZ100: ='28'!$AH33 ->  | BA100: ='29'!$AH33 ->  | BB100: ='30'!$AH33 -> 
B101: Trainingsstunden | C101: ='31'!$AH35 ->  | D101: ='32'!$AH35 ->  | E101: ='33'!$AH35 ->  | F101: ='34'!$AH35 ->  | G101: ='35'!$AH35 ->  | H101: ='36'!$AH35 ->  | I101: ='37'!$AH35 ->  | J101: ='38'!$AH35 ->  | K101: ='39'!$AH35 ->  | L101: ='40'!$AH35 ->  | M101: ='41'!$AH35 ->  | N101: ='42'!$AH35 ->  | O101: ='43'!$AH35 ->  | P101: ='44'!$AH35 ->  | Q101: ='45'!$AH35 ->  | R101: ='46'!$AH35 ->  | S101: ='47'!$AH35 ->  | T101: ='48'!$AH35 ->  | U101: ='49'!$AH35 ->  | V101: ='50'!$AH35 ->  | W101: ='51'!$AH35 ->  | X101: ='52'!$AH35 ->  | Y101: ='1'!$AH35 ->  | Z101: ='2'!$AH35 ->  | AA101: ='3'!$AH35 ->  | AB101: ='4'!$AH35 ->  | AC101: ='5'!$AH35 ->  | AD101: ='6'!$AH35 ->  | AE101: ='7'!$AH35 ->  | AF101: ='8'!$AH35 ->  | AG101: ='9'!$AH35 ->  | AH101: ='10'!$AH35 ->  | AI101: ='11'!$AH35 ->  | AJ101: ='12'!$AH35 ->  | AK101: ='13'!$AH35 ->  | AL101: ='14'!$AH35 ->  | AM101: ='15'!$AH35 ->  | AN101: ='16'!$AH35 ->  | AO101: ='17'!$AH35 ->  | AP101: ='18'!$AH35 ->  | AQ101: ='19'!$AH35 ->  | AR101: ='20'!$AH35 ->  | AS101: ='21'!$AH35 ->  | AT101: ='22'!$AH35 ->  | AU101: ='23'!$AH35 ->  | AV101: ='24'!$AH35 ->  | AW101: ='25'!$AH35 ->  | AX101: ='26'!$AH35 ->  | AY101: ='27'!$AH35 ->  | AZ101: ='28'!$AH35 ->  | BA101: ='29'!$AH35 ->  | BB101: ='30'!$AH35 -> 
B102: Training Load | C102: ='31'!$AH37 ->  | D102: ='32'!$AH37 ->  | E102: ='33'!$AH37 ->  | F102: ='34'!$AH37 ->  | G102: ='35'!$AH37 ->  | H102: ='36'!$AH37 ->  | I102: ='37'!$AH37 ->  | J102: ='38'!$AH37 ->  | K102: ='39'!$AH37 ->  | L102: ='40'!$AH37 ->  | M102: ='41'!$AH37 ->  | N102: ='42'!$AH37 ->  | O102: ='43'!$AH37 ->  | P102: ='44'!$AH37 ->  | Q102: ='45'!$AH37 ->  | R102: ='46'!$AH37 ->  | S102: ='47'!$AH37 ->  | T102: ='48'!$AH37 ->  | U102: ='49'!$AH37 ->  | V102: ='50'!$AH37 ->  | W102: ='51'!$AH37 ->  | X102: ='52'!$AH37 ->  | Y102: ='1'!$AH37 ->  | Z102: ='2'!$AH37 ->  | AA102: ='3'!$AH37 ->  | AB102: ='4'!$AH37 ->  | AC102: ='5'!$AH37 ->  | AD102: ='6'!$AH37 ->  | AE102: ='7'!$AH37 ->  | AF102: ='8'!$AH37 ->  | AG102: ='9'!$AH37 ->  | AH102: ='10'!$AH37 ->  | AI102: ='11'!$AH37 ->  | AJ102: ='12'!$AH37 ->  | AK102: ='13'!$AH37 ->  | AL102: ='14'!$AH37 ->  | AM102: ='15'!$AH37 ->  | AN102: ='16'!$AH37 ->  | AO102: ='17'!$AH37 ->  | AP102: ='18'!$AH37 ->  | AQ102: ='19'!$AH37 ->  | AR102: ='20'!$AH37 ->  | AS102: ='21'!$AH37 ->  | AT102: ='22'!$AH37 ->  | AU102: ='23'!$AH37 ->  | AV102: ='24'!$AH37 ->  | AW102: ='25'!$AH37 ->  | AX102: ='26'!$AH37 ->  | AY102: ='27'!$AH37 ->  | AZ102: ='28'!$AH37 ->  | BA102: ='29'!$AH37 ->  | BB102: ='30'!$AH37 -> 
B103: Monotonie | C103: ='31'!$AH39 ->  | D103: ='32'!$AH39 ->  | E103: ='33'!$AH39 ->  | F103: ='34'!$AH39 ->  | G103: ='35'!$AH39 ->  | H103: ='36'!$AH39 ->  | I103: ='37'!$AH39 ->  | J103: ='38'!$AH39 ->  | K103: ='39'!$AH39 ->  | L103: ='40'!$AH39 ->  | M103: ='41'!$AH39 ->  | N103: ='42'!$AH39 ->  | O103: ='43'!$AH39 ->  | P103: ='44'!$AH39 ->  | Q103: ='45'!$AH39 ->  | R103: ='46'!$AH39 ->  | S103: ='47'!$AH39 ->  | T103: ='48'!$AH39 ->  | U103: ='49'!$AH39 ->  | V103: ='50'!$AH39 ->  | W103: ='51'!$AH39 ->  | X103: ='52'!$AH39 ->  | Y103: ='1'!$AH39 ->  | Z103: ='2'!$AH39 ->  | AA103: ='3'!$AH39 ->  | AB103: ='4'!$AH39 ->  | AC103: ='5'!$AH39 ->  | AD103: ='6'!$AH39 ->  | AE103: ='7'!$AH39 ->  | AF103: ='8'!$AH39 ->  | AG103: ='9'!$AH39 ->  | AH103: ='10'!$AH39 ->  | AI103: ='11'!$AH39 ->  | AJ103: ='12'!$AH39 ->  | AK103: ='13'!$AH39 ->  | AL103: ='14'!$AH39 ->  | AM103: ='15'!$AH39 ->  | AN103: ='16'!$AH39 ->  | AO103: ='17'!$AH39 ->  | AP103: ='18'!$AH39 ->  | AQ103: ='19'!$AH39 ->  | AR103: ='20'!$AH39 ->  | AS103: ='21'!$AH39 ->  | AT103: ='22'!$AH39 ->  | AU103: ='23'!$AH39 ->  | AV103: ='24'!$AH39 ->  | AW103: ='25'!$AH39 ->  | AX103: ='26'!$AH39 ->  | AY103: ='27'!$AH39 ->  | AZ103: ='28'!$AH39 ->  | BA103: ='29'!$AH39 ->  | BB103: ='30'!$AH39 -> 
B104: Trainingsanstrengung | C104: ='31'!$AH41 ->  | D104: ='32'!$AH41 ->  | E104: ='33'!$AH41 ->  | F104: ='34'!$AH41 ->  | G104: ='35'!$AH41 ->  | H104: ='36'!$AH41 ->  | I104: ='37'!$AH41 ->  | J104: ='38'!$AH41 ->  | K104: ='39'!$AH41 ->  | L104: ='40'!$AH41 ->  | M104: ='41'!$AH41 ->  | N104: ='42'!$AH41 ->  | O104: ='43'!$AH41 ->  | P104: ='44'!$AH41 ->  | Q104: ='45'!$AH41 ->  | R104: ='46'!$AH41 ->  | S104: ='47'!$AH41 ->  | T104: ='48'!$AH41 ->  | U104: ='49'!$AH41 ->  | V104: ='50'!$AH41 ->  | W104: ='51'!$AH41 ->  | X104: ='52'!$AH41 ->  | Y104: ='1'!$AH41 ->  | Z104: ='2'!$AH41 ->  | AA104: ='3'!$AH41 ->  | AB104: ='4'!$AH41 ->  | AC104: ='5'!$AH41 ->  | AD104: ='6'!$AH41 ->  | AE104: ='7'!$AH41 ->  | AF104: ='8'!$AH41 ->  | AG104: ='9'!$AH41 ->  | AH104: ='10'!$AH41 ->  | AI104: ='11'!$AH41 ->  | AJ104: ='12'!$AH41 ->  | AK104: ='13'!$AH41 ->  | AL104: ='14'!$AH41 ->  | AM104: ='15'!$AH41 ->  | AN104: ='16'!$AH41 ->  | AO104: ='17'!$AH41 ->  | AP104: ='18'!$AH41 ->  | AQ104: ='19'!$AH41 ->  | AR104: ='20'!$AH41 ->  | AS104: ='21'!$AH41 ->  | AT104: ='22'!$AH41 ->  | AU104: ='23'!$AH41 ->  | AV104: ='24'!$AH41 ->  | AW104: ='25'!$AH41 ->  | AX104: ='26'!$AH41 ->  | AY104: ='27'!$AH41 ->  | AZ104: ='28'!$AH41 ->  | BA104: ='29'!$AH41 ->  | BB104: ='30'!$AH41 -> 
B105: Swim Km | C105: ='31'!$AH43 ->  | D105: ='32'!$AH43 ->  | E105: ='33'!$AH43 ->  | F105: ='34'!$AH43 ->  | G105: ='35'!$AH43 ->  | H105: ='36'!$AH43 ->  | I105: ='37'!$AH43 ->  | J105: ='38'!$AH43 ->  | K105: ='39'!$AH43 ->  | L105: ='40'!$AH43 ->  | M105: ='41'!$AH43 ->  | N105: ='42'!$AH43 ->  | O105: ='43'!$AH43 ->  | P105: ='44'!$AH43 ->  | Q105: ='45'!$AH43 ->  | R105: ='46'!$AH43 ->  | S105: ='47'!$AH43 ->  | T105: ='48'!$AH43 ->  | U105: ='49'!$AH43 ->  | V105: ='50'!$AH43 ->  | W105: ='51'!$AH43 ->  | X105: ='52'!$AH43 ->  | Y105: ='1'!$AH43 ->  | Z105: ='2'!$AH43 ->  | AA105: ='3'!$AH43 ->  | AB105: ='4'!$AH43 ->  | AC105: ='5'!$AH43 ->  | AD105: ='6'!$AH43 ->  | AE105: ='7'!$AH43 ->  | AF105: ='8'!$AH43 ->  | AG105: ='9'!$AH43 ->  | AH105: ='10'!$AH43 ->  | AI105: ='11'!$AH43 ->  | AJ105: ='12'!$AH43 ->  | AK105: ='13'!$AH43 ->  | AL105: ='14'!$AH43 ->  | AM105: ='15'!$AH43 ->  | AN105: ='16'!$AH43 ->  | AO105: ='17'!$AH43 ->  | AP105: ='18'!$AH43 ->  | AQ105: ='19'!$AH43 ->  | AR105: ='20'!$AH43 ->  | AS105: ='21'!$AH43 ->  | AT105: ='22'!$AH43 ->  | AU105: ='23'!$AH43 ->  | AV105: ='24'!$AH43 ->  | AW105: ='25'!$AH43 ->  | AX105: ='26'!$AH43 ->  | AY105: ='27'!$AH43 ->  | AZ105: ='28'!$AH43 ->  | BA105: ='29'!$AH43 ->  | BB105: ='30'!$AH43 -> 
B106: Rad Km | C106: ='31'!$AH45 ->  | D106: ='32'!$AH45 ->  | E106: ='33'!$AH45 ->  | F106: ='34'!$AH45 ->  | G106: ='35'!$AH45 ->  | H106: ='36'!$AH45 ->  | I106: ='37'!$AH45 ->  | J106: ='38'!$AH45 ->  | K106: ='39'!$AH45 ->  | L106: ='40'!$AH45 ->  | M106: ='41'!$AH45 ->  | N106: ='42'!$AH45 ->  | O106: ='43'!$AH45 ->  | P106: ='44'!$AH45 ->  | Q106: ='45'!$AH45 ->  | R106: ='46'!$AH45 ->  | S106: ='47'!$AH45 ->  | T106: ='48'!$AH45 ->  | U106: ='49'!$AH45 ->  | V106: ='50'!$AH45 ->  | W106: ='51'!$AH45 ->  | X106: ='52'!$AH45 ->  | Y106: ='1'!$AH45 ->  | Z106: ='2'!$AH45 ->  | AA106: ='3'!$AH45 ->  | AB106: ='4'!$AH45 ->  | AC106: ='5'!$AH45 ->  | AD106: ='6'!$AH45 ->  | AE106: ='7'!$AH45 ->  | AF106: ='8'!$AH45 ->  | AG106: ='9'!$AH45 ->  | AH106: ='10'!$AH45 ->  | AI106: ='11'!$AH45 ->  | AJ106: ='12'!$AH45 ->  | AK106: ='13'!$AH45 ->  | AL106: ='14'!$AH45 ->  | AM106: ='15'!$AH45 ->  | AN106: ='16'!$AH45 ->  | AO106: ='17'!$AH45 ->  | AP106: ='18'!$AH45 ->  | AQ106: ='19'!$AH45 ->  | AR106: ='20'!$AH45 ->  | AS106: ='21'!$AH45 ->  | AT106: ='22'!$AH45 ->  | AU106: ='23'!$AH45 ->  | AV106: ='24'!$AH45 ->  | AW106: ='25'!$AH45 ->  | AX106: ='26'!$AH45 ->  | AY106: ='27'!$AH45 ->  | AZ106: ='28'!$AH45 ->  | BA106: ='29'!$AH45 ->  | BB106: ='30'!$AH45 -> 
B107: Lauf Km | C107: ='31'!$AH47 ->  | D107: ='32'!$AH47 ->  | E107: ='33'!$AH47 ->  | F107: ='34'!$AH47 ->  | G107: ='35'!$AH47 ->  | H107: ='36'!$AH47 ->  | I107: ='37'!$AH47 ->  | J107: ='38'!$AH47 ->  | K107: ='39'!$AH47 ->  | L107: ='40'!$AH47 ->  | M107: ='41'!$AH47 ->  | N107: ='42'!$AH47 ->  | O107: ='43'!$AH47 ->  | P107: ='44'!$AH47 ->  | Q107: ='45'!$AH47 ->  | R107: ='46'!$AH47 ->  | S107: ='47'!$AH47 ->  | T107: ='48'!$AH47 ->  | U107: ='49'!$AH47 ->  | V107: ='50'!$AH47 ->  | W107: ='51'!$AH47 ->  | X107: ='52'!$AH47 ->  | Y107: ='1'!$AH47 ->  | Z107: ='2'!$AH47 ->  | AA107: ='3'!$AH47 ->  | AB107: ='4'!$AH47 ->  | AC107: ='5'!$AH47 ->  | AD107: ='6'!$AH47 ->  | AE107: ='7'!$AH47 ->  | AF107: ='8'!$AH47 ->  | AG107: ='9'!$AH47 ->  | AH107: ='10'!$AH47 ->  | AI107: ='11'!$AH47 ->  | AJ107: ='12'!$AH47 ->  | AK107: ='13'!$AH47 ->  | AL107: ='14'!$AH47 ->  | AM107: ='15'!$AH47 ->  | AN107: ='16'!$AH47 ->  | AO107: ='17'!$AH47 ->  | AP107: ='18'!$AH47 ->  | AQ107: ='19'!$AH47 ->  | AR107: ='20'!$AH47 ->  | AS107: ='21'!$AH47 ->  | AT107: ='22'!$AH47 ->  | AU107: ='23'!$AH47 ->  | AV107: ='24'!$AH47 ->  | AW107: ='25'!$AH47 ->  | AX107: ='26'!$AH47 ->  | AY107: ='27'!$AH47 ->  | AZ107: ='28'!$AH47 ->  | BA107: ='29'!$AH47 ->  | BB107: ='30'!$AH47 -> 
B108: Mental Training | C108: ='31'!$AH49 -> 0 | D108: ='32'!$AH49 -> 0 | E108: ='33'!$AH49 -> 0 | F108: ='34'!$AH49 -> 0 | G108: ='35'!$AH49 -> 0 | H108: ='36'!$AH49 -> 0 | I108: ='37'!$AH49 -> 0 | J108: ='38'!$AH49 -> 0 | K108: ='39'!$AH49 -> 0 | L108: ='40'!$AH49 -> 0 | M108: ='41'!$AH49 -> 0 | N108: ='42'!$AH49 -> 0 | O108: ='43'!$AH49 -> 0 | P108: ='44'!$AH49 -> 0 | Q108: ='45'!$AH49 -> 0 | R108: ='46'!$AH49 -> 0 | S108: ='47'!$AH49 -> 0 | T108: ='48'!$AH49 -> 0 | U108: ='49'!$AH49 -> 0 | V108: ='50'!$AH49 -> 0 | W108: ='51'!$AH49 -> 0 | X108: ='52'!$AH49 -> 0 | Y108: ='1'!$AH49 -> 0 | Z108: ='2'!$AH49 -> 0 | AA108: ='3'!$AH49 -> 0 | AB108: ='4'!$AH49 -> 0 | AC108: ='5'!$AH49 -> 0 | AD108: ='6'!$AH49 -> 0 | AE108: ='7'!$AH49 -> 0 | AF108: ='8'!$AH49 -> 0 | AG108: ='9'!$AH49 -> 0 | AH108: ='10'!$AH49 -> 0 | AI108: ='11'!$AH49 -> 0 | AJ108: ='12'!$AH49 -> 0 | AK108: ='13'!$AH49 -> 0 | AL108: ='14'!$AH49 -> 0 | AM108: ='15'!$AH49 -> 0 | AN108: ='16'!$AH49 -> 0 | AO108: ='17'!$AH49 -> 0 | AP108: ='18'!$AH49 -> 0 | AQ108: ='19'!$AH49 -> 0 | AR108: ='20'!$AH49 -> 0 | AS108: ='21'!$AH49 -> 0 | AT108: ='22'!$AH49 -> 0 | AU108: ='23'!$AH49 -> 0 | AV108: ='24'!$AH49 -> 0 | AW108: ='25'!$AH49 -> 0 | AX108: ='26'!$AH49 -> 0 | AY108: ='27'!$AH49 -> 0 | AZ108: ='28'!$AH49 -> 0 | BA108: ='29'!$AH49 -> 0 | BB108: ='30'!$AH49 -> 0
B109: Regenration | C109: ='31'!$AH51 -> 0 | D109: ='32'!$AH51 -> 0 | E109: ='33'!$AH51 -> 0 | F109: ='34'!$AH51 -> 0 | G109: ='35'!$AH51 -> 0 | H109: ='36'!$AH51 -> 0 | I109: ='37'!$AH51 -> 0 | J109: ='38'!$AH51 -> 0 | K109: ='39'!$AH51 -> 0 | L109: ='40'!$AH51 -> 0 | M109: ='41'!$AH51 -> 0 | N109: ='42'!$AH51 -> 0 | O109: ='43'!$AH51 -> 0 | P109: ='44'!$AH51 -> 0 | Q109: ='45'!$AH51 -> 0 | R109: ='46'!$AH51 -> 0 | S109: ='47'!$AH51 -> 0 | T109: ='48'!$AH51 -> 0 | U109: ='49'!$AH51 -> 0 | V109: ='50'!$AH51 -> 0 | W109: ='51'!$AH51 -> 0 | X109: ='52'!$AH51 -> 0 | Y109: ='1'!$AH51 -> 0 | Z109: ='2'!$AH51 -> 0 | AA109: ='3'!$AH51 -> 0 | AB109: ='4'!$AH51 -> 0 | AC109: ='5'!$AH51 -> 0 | AD109: ='6'!$AH51 -> 0 | AE109: ='7'!$AH51 -> 0 | AF109: ='8'!$AH51 -> 0 | AG109: ='9'!$AH51 -> 0 | AH109: ='10'!$AH51 -> 0 | AI109: ='11'!$AH51 -> 0 | AJ109: ='12'!$AH51 -> 0 | AK109: ='13'!$AH51 -> 0 | AL109: ='14'!$AH51 -> 0 | AM109: ='15'!$AH51 -> 0 | AN109: ='16'!$AH51 -> 0 | AO109: ='17'!$AH51 -> 0 | AP109: ='18'!$AH51 -> 0 | AQ109: ='19'!$AH51 -> 0 | AR109: ='20'!$AH51 -> 0 | AS109: ='21'!$AH51 -> 0 | AT109: ='22'!$AH51 -> 0 | AU109: ='23'!$AH51 -> 0 | AV109: ='24'!$AH51 -> 0 | AW109: ='25'!$AH51 -> 0 | AX109: ='26'!$AH51 -> 0 | AY109: ='27'!$AH51 -> 0 | AZ109: ='28'!$AH51 -> 0 | BA109: ='29'!$AH51 -> 0 | BB109: ='30'!$AH51 -> 0
B110: Verletzung/Erkrankung | C110: ='31'!AH53 -> 0 | D110: ='32'!$AH53 -> 0 | E110: ='33'!$AH53 -> 0 | F110: ='34'!$AH53 -> 0 | G110: ='35'!$AH53 -> 0 | H110: ='36'!$AH53 -> 0 | I110: ='37'!$AH53 -> 0 | J110: ='38'!$AH53 -> 0 | K110: ='39'!$AH53 -> 0 | L110: ='40'!$AH53 -> 0 | M110: ='41'!$AH53 -> 0 | N110: ='42'!$AH53 -> 0 | O110: ='43'!$AH53 -> 0 | P110: ='44'!$AH53 -> 0 | Q110: ='45'!$AH53 -> 0 | R110: ='46'!$AH53 -> 0 | S110: ='47'!$AH53 -> 0 | T110: ='48'!$AH53 -> 0 | U110: ='49'!$AH53 -> 0 | V110: ='50'!$AH53 -> 0 | W110: ='51'!$AH53 -> 0 | X110: ='52'!$AH53 -> 0 | Y110: ='1'!$AH53 -> 0 | Z110: ='2'!$AH53 -> 0 | AA110: ='3'!$AH53 -> 0 | AB110: ='4'!$AH53 -> 0 | AC110: ='5'!$AH53 -> 0 | AD110: ='6'!$AH53 -> 0 | AE110: ='7'!$AH53 -> 0 | AF110: ='8'!$AH53 -> 0 | AG110: ='9'!$AH53 -> 0 | AH110: ='10'!$AH53 -> 0 | AI110: ='11'!$AH53 -> 0 | AJ110: ='12'!$AH53 -> 0 | AK110: ='13'!$AH53 -> 0 | AL110: ='14'!$AH53 -> 0 | AM110: ='15'!$AH53 -> 0 | AN110: ='16'!$AH53 -> 0 | AO110: ='17'!$AH53 -> 0 | AP110: ='18'!$AH53 -> 0 | AQ110: ='19'!$AH53 -> 0 | AR110: ='20'!$AH53 -> 0 | AS110: ='21'!$AH53 -> 0 | AT110: ='22'!$AH53 -> 0 | AU110: ='23'!$AH53 -> 0 | AV110: ='24'!$AH53 -> 0 | AW110: ='25'!$AH53 -> 0 | AX110: ='26'!$AH53 -> 0 | AY110: ='27'!$AH53 -> 0 | AZ110: ='28'!$AH53 -> 0 | BA110: ='29'!$AH53 -> 0 | BB110: ='30'!$AH53 -> 0
T120: =U120 ->  | U120: =IF(V120=0,"",V120) -> 

Sheet Beanspruchungverteilung
D1: Beanspruchungverteilung
E3: =F47 -> Balltraining-Club | I3: =I47 -> Balltraining-TS/ Nati | M3: =L47 -> iso. Krafttraining | Q3: =O47 -> iso. Fitnesstraining | U3: =R47 -> Wettkampf | Y3: =U47 -> Anderes Training | AD3: =D1 -> Beanspruchungverteilung | AM3: =CONCATENATE(Overview!D2," ",Overview!N2) -> Vorname Nachname 2017/2018
E5: Zone | H5: Total | I5: Zone | L5: Total | M5: Zone | P5: Total | Q5: Zone | T5: Total | U5: Zone | X5: Total | Y5: Zone | AB5: Total
E6: 1 | F6: 2 | G6: 3 | I6: 1 | J6: 2 | K6: 3 | M6: 1 | N6: 2 | O6: 3 | Q6: 1 | R6: 2 | S6: 3 | U6: 1 | V6: 2 | W6: 3 | Y6: 1 | Z6: 2 | AA6: 3
AE7: Gewünschte Analyse : | AK7: Von Trainingswoche : | AO7: 1 | AQ7: bis Trainingswoche : | AU7: 52
D8: Trainingseinheiten | E8: =F101 -> 0 | F8: =G101 -> 0 | G8: =H101 -> 0 | H8: =SUM(E8:G8) -> 0 | I8: =I101 -> 0 | J8: =J101 -> 0 | K8: =K101 -> 0 | L8: =SUM(I8:K8) -> 0 | M8: =L101 -> 0 | N8: =M101 -> 0 | O8: =N101 -> 0 | P8: =SUM(M8:O8) -> 0 | Q8: =O101 -> 0 | R8: =P101 -> 0 | S8: =Q101 -> 0 | T8: =SUM(Q8:S8) -> 0 | U8: =R101 -> 0 | V8: =S101 -> 0 | W8: =T101 -> 0 | X8: =SUM(U8:W8) -> 0 | Y8: =U101 -> 0 | Z8: =V101 -> 0 | AA8: =W101 -> 0 | AB8: =SUM(Y8:AA8) -> 0
D10: Trainingsstunden | E10: =AA101 -> 0 | F10: =AB101 -> 0 | G10: =AC101 -> 0 | H10: =SUM(E10:G10) -> 0 | I10: =AD101 -> 0 | J10: =AE101 -> 0 | K10: =AF101 -> 0 | L10: =SUM(I10:K10) -> 0 | M10: =AG101 -> 0 | N10: =AH101 -> 0 | O10: =AI101 -> 0 | P10: =SUM(M10:O10) -> 0 | Q10: =AJ101 -> 0 | R10: =AK101 -> 0 | S10: =AL101 -> 0 | T10: =SUM(Q10:S10) -> 0 | U10: =AM101 -> 0 | V10: =AN101 -> 0 | W10: =AO101 -> 0 | X10: =SUM(U10:W10) -> 0 | Y10: =AP101 -> 0 | Z10: =AQ101 -> 0 | AA10: =AR101 -> 0 | AB10: =SUM(Y10:AA10) -> 0
AO15: RPE | AR15: Zone | AT15: RPE
AO17: 1-4 | AR17: I | AT17: 1-3
AO18: 5-6 | AR18: II | AT18: 4-5
AO19: 7-10 | AR19: III | AT19: 6-10
AT21: x
C44: Intensitätverteilung | F44: Trainingseinheiten | AA44: Trainingsstunden
A45: Semaine | B45: Semaine | F45: b1 | G45: b2 | H45: b3 | I45: r1 | J45: r2 | K45: r3 | L45: c1 | M45: c2 | N45: c3 | O45: s1 | P45: s2 | Q45: s3 | R45: f1 | S45: f2 | T45: f3 | U45: d1 | V45: d2 | W45: d3 | AA45: b1 | AB45: b2 | AC45: b3 | AD45: r1 | AE45: r2 | AF45: r3 | AG45: c1 | AH45: c2 | AI45: c3 | AJ45: s1 | AK45: s2 | AL45: s3 | AM45: f1 | AN45: f2 | AO45: f3 | AP45: d1 | AQ45: d2 | AR45: d3 | AS45: Semaine | AT45: Semaine
A46: =CONCATENATE(">","=",AO7) -> >=1 | B46: =CONCATENATE("<","=",AU7) -> <=52 | F46: b1 | G46: b2 | H46: b3 | I46: r1 | J46: r2 | K46: r3 | L46: c1 | M46: c2 | N46: c3 | O46: s1 | P46: s2 | Q46: s3 | R46: f1 | S46: f2 | T46: f3 | U46: d1 | V46: d2 | W46: d3 | AA46: b1 | AB46: b2 | AC46: b3 | AD46: r1 | AE46: r2 | AF46: r3 | AG46: c1 | AH46: c2 | AI46: c3 | AJ46: s1 | AK46: s2 | AL46: s3 | AM46: f1 | AN46: f2 | AO46: f3 | AP46: d1 | AQ46: d2 | AR46: d3 | AS46: =CONCATENATE(">","=",AO7) -> >=1 | AT46: =CONCATENATE("<","=",AU7) -> <=52
F47: ='31'!M2 -> Balltraining-Club | I47: ='31'!P2 -> Balltraining-TS/ Nati | L47: ='31'!S2 -> iso. Krafttraining | O47: ='31'!V2 -> iso. Fitnesstraining | R47: ='31'!Y2 -> Wettkampf | U47: ='31'!AB2 -> Anderes Training | AA47: =F47 -> Balltraining-Club | AD47: =I47 -> Balltraining-TS/ Nati | AG47: =L47 -> iso. Krafttraining | AJ47: =O47 -> iso. Fitnesstraining | AM47: =R47 -> Wettkampf | AP47: =U47 -> Anderes Training
A48: Trainings- woche | B48: Kalenderwoche | F48: I | G48: II | H48: III | I48: I | J48: II | K48: III | L48: I | M48: II | N48: III | O48: I | P48: II | Q48: III | R48: I | S48: II | T48: III | U48: I | V48: II | W48: III | AA48: I | AB48: II | AC48: III | AD48: I | AE48: II | AF48: III | AG48: I | AH48: II | AI48: III | AJ48: I | AK48: II | AL48: III | AM48: I | AN48: II | AO48: III | AP48: I | AQ48: II | AR48: III | AS48: =A48 -> Trainings- woche | AT48: =B48 -> Kalenderwoche
A49: 1 | B49: =Overview!C18 -> 2017-08-01 | C49: - | D49: =B49+6 -> 2017-08-07 | E49: =Overview!F18 -> 31 | F49: ='31'!M$27 -> 0 | G49: ='31'!N$27 -> 0 | H49: ='31'!O$27 -> 0 | I49: ='31'!P$27 -> 0 | J49: ='31'!Q$27 -> 0 | K49: ='31'!R$27 -> 0 | L49: ='31'!S$27 -> 0 | M49: ='31'!T$27 -> 0 | N49: ='31'!U$27 -> 0 | O49: ='31'!V$27 -> 0 | P49: ='31'!W$27 -> 0 | Q49: ='31'!X$27 -> 0 | R49: ='31'!Y$27 -> 0 | S49: ='31'!Z$27 -> 0 | T49: ='31'!AA$27 -> 0 | U49: ='31'!AB$27 -> 0 | V49: ='31'!AC$27 -> 0 | W49: ='31'!AD$27 -> 0 | AA49: ='31'!M$28 -> 0 | AB49: ='31'!N$28 -> 0 | AC49: ='31'!O$28 -> 0 | AD49: ='31'!P$28 -> 0 | AE49: ='31'!Q$28 -> 0 | AF49: ='31'!R$28 -> 0 | AG49: ='31'!S$28 -> 0 | AH49: ='31'!T$28 -> 0 | AI49: ='31'!U$28 -> 0 | AJ49: ='31'!V$28 -> 0 | AK49: ='31'!W$28 -> 0 | AL49: ='31'!X$28 -> 0 | AM49: ='31'!Y$28 -> 0 | AN49: ='31'!Z$28 -> 0 | AO49: ='31'!AA$28 -> 0 | AP49: ='31'!AB$28 -> 0 | AQ49: ='31'!AC$28 -> 0 | AR49: ='31'!AD$28 -> 0 | AS49: 1 | AT49: 2017-08-01 | AU49: =C49 -> - | AV49: =D49 -> 2017-08-07 | AW49: =E49 -> 31
A50: 2 | B50: =B49+7 -> 2017-08-08 | C50: - | D50: =D49+7 -> 2017-08-14 | E50: =Overview!F19 -> 32 | F50: ='32'!M$27 -> 0 | G50: ='32'!N$27 -> 0 | H50: ='32'!O$27 -> 0 | I50: ='32'!P$27 -> 0 | J50: ='32'!Q$27 -> 0 | K50: ='32'!R$27 -> 0 | L50: ='32'!S$27 -> 0 | M50: ='32'!T$27 -> 0 | N50: ='32'!U$27 -> 0 | O50: ='32'!V$27 -> 0 | P50: ='32'!W$27 -> 0 | Q50: ='32'!X$27 -> 0 | R50: ='32'!Y$27 -> 0 | S50: ='32'!Z$27 -> 0 | T50: ='32'!AA$27 -> 0 | U50: ='32'!AB$27 -> 0 | V50: ='32'!AC$27 -> 0 | W50: ='32'!AD$27 -> 0 | AA50: ='32'!M$28 -> 0 | AB50: ='32'!N$28 -> 0 | AC50: ='32'!O$28 -> 0 | AD50: ='32'!P$28 -> 0 | AE50: ='32'!Q$28 -> 0 | AF50: ='32'!R$28 -> 0 | AG50: ='32'!S$28 -> 0 | AH50: ='32'!T$28 -> 0 | AI50: ='32'!U$28 -> 0 | AJ50: ='32'!V$28 -> 0 | AK50: ='32'!W$28 -> 0 | AL50: ='32'!X$28 -> 0 | AM50: ='32'!Y$28 -> 0 | AN50: ='32'!Z$28 -> 0 | AO50: ='32'!AA$28 -> 0 | AP50: ='32'!AB$28 -> 0 | AQ50: ='32'!AC$28 -> 0 | AR50: ='32'!AD$28 -> 0 | AS50: 2 | AT50: 2017-08-08 | AU50: - | AV50: 2017-08-14 | AW50: 32
A51: 3 | B51: =B50+7 -> 2017-08-15 | C51: - | D51: =D50+7 -> 2017-08-21 | E51: =Overview!F20 -> 33 | F51: ='33'!M$27 -> 0 | G51: ='33'!N$27 -> 0 | H51: ='33'!O$27 -> 0 | I51: ='33'!P$27 -> 0 | J51: ='33'!Q$27 -> 0 | K51: ='33'!R$27 -> 0 | L51: ='33'!S$27 -> 0 | M51: ='33'!T$27 -> 0 | N51: ='33'!U$27 -> 0 | O51: ='33'!V$27 -> 0 | P51: ='33'!W$27 -> 0 | Q51: ='33'!X$27 -> 0 | R51: ='33'!Y$27 -> 0 | S51: ='33'!Z$27 -> 0 | T51: ='33'!AA$27 -> 0 | U51: ='33'!AB$27 -> 0 | V51: ='33'!AC$27 -> 0 | W51: ='33'!AD$27 -> 0 | AA51: ='33'!M$28 -> 0 | AB51: ='33'!N$28 -> 0 | AC51: ='33'!O$28 -> 0 | AD51: ='33'!P$28 -> 0 | AE51: ='33'!Q$28 -> 0 | AF51: ='33'!R$28 -> 0 | AG51: ='33'!S$28 -> 0 | AH51: ='33'!T$28 -> 0 | AI51: ='33'!U$28 -> 0 | AJ51: ='33'!V$28 -> 0 | AK51: ='33'!W$28 -> 0 | AL51: ='33'!X$28 -> 0 | AM51: ='33'!Y$28 -> 0 | AN51: ='33'!Z$28 -> 0 | AO51: ='33'!AA$28 -> 0 | AP51: ='33'!AB$28 -> 0 | AQ51: ='33'!AC$28 -> 0 | AR51: ='33'!AD$28 -> 0 | AS51: 3 | AT51: 2017-08-15 | AU51: - | AV51: 2017-08-21 | AW51: 33
A52: 4 | B52: =B51+7 -> 2017-08-22 | C52: - | D52: =D51+7 -> 2017-08-28 | E52: =Overview!F21 -> 34 | F52: ='34'!M$27 -> 0 | G52: ='34'!N$27 -> 0 | H52: ='34'!O$27 -> 0 | I52: ='34'!P$27 -> 0 | J52: ='34'!Q$27 -> 0 | K52: ='34'!R$27 -> 0 | L52: ='34'!S$27 -> 0 | M52: ='34'!T$27 -> 0 | N52: ='34'!U$27 -> 0 | O52: ='34'!V$27 -> 0 | P52: ='34'!W$27 -> 0 | Q52: ='34'!X$27 -> 0 | R52: ='34'!Y$27 -> 0 | S52: ='34'!Z$27 -> 0 | T52: ='34'!AA$27 -> 0 | U52: ='34'!AB$27 -> 0 | V52: ='34'!AC$27 -> 0 | W52: ='34'!AD$27 -> 0 | AA52: ='34'!M$28 -> 0 | AB52: ='34'!N$28 -> 0 | AC52: ='34'!O$28 -> 0 | AD52: ='34'!P$28 -> 0 | AE52: ='34'!Q$28 -> 0 | AF52: ='34'!R$28 -> 0 | AG52: ='34'!S$28 -> 0 | AH52: ='34'!T$28 -> 0 | AI52: ='34'!U$28 -> 0 | AJ52: ='34'!V$28 -> 0 | AK52: ='34'!W$28 -> 0 | AL52: ='34'!X$28 -> 0 | AM52: ='34'!Y$28 -> 0 | AN52: ='34'!Z$28 -> 0 | AO52: ='34'!AA$28 -> 0 | AP52: ='34'!AB$28 -> 0 | AQ52: ='34'!AC$28 -> 0 | AR52: ='34'!AD$28 -> 0 | AS52: 4 | AT52: 2017-08-22 | AU52: - | AV52: 2017-08-28 | AW52: 34
A53: 5 | B53: =B52+7 -> 2017-08-29 | C53: - | D53: =D52+7 -> 2017-09-04 | E53: =Overview!F22 -> 35 | F53: ='35'!M$27 -> 0 | G53: ='35'!N$27 -> 0 | H53: ='35'!O$27 -> 0 | I53: ='35'!P$27 -> 0 | J53: ='35'!Q$27 -> 0 | K53: ='35'!R$27 -> 0 | L53: ='35'!S$27 -> 0 | M53: ='35'!T$27 -> 0 | N53: ='35'!U$27 -> 0 | O53: ='35'!V$27 -> 0 | P53: ='35'!W$27 -> 0 | Q53: ='35'!X$27 -> 0 | R53: ='35'!Y$27 -> 0 | S53: ='35'!Z$27 -> 0 | T53: ='35'!AA$27 -> 0 | U53: ='35'!AB$27 -> 0 | V53: ='35'!AC$27 -> 0 | W53: ='35'!AD$27 -> 0 | AA53: ='35'!M$28 -> 0 | AB53: ='35'!N$28 -> 0 | AC53: ='35'!O$28 -> 0 | AD53: ='35'!P$28 -> 0 | AE53: ='35'!Q$28 -> 0 | AF53: ='35'!R$28 -> 0 | AG53: ='35'!S$28 -> 0 | AH53: ='35'!T$28 -> 0 | AI53: ='35'!U$28 -> 0 | AJ53: ='35'!V$28 -> 0 | AK53: ='35'!W$28 -> 0 | AL53: ='35'!X$28 -> 0 | AM53: ='35'!Y$28 -> 0 | AN53: ='35'!Z$28 -> 0 | AO53: ='35'!AA$28 -> 0 | AP53: ='35'!AB$28 -> 0 | AQ53: ='35'!AC$28 -> 0 | AR53: ='35'!AD$28 -> 0 | AS53: 5 | AT53: 2017-08-29 | AU53: - | AV53: 2017-09-04 | AW53: 35
A54: 6 | B54: =B53+7 -> 2017-09-05 | C54: - | D54: =D53+7 -> 2017-09-11 | E54: =Overview!F23 -> 36 | F54: ='36'!M$27 -> 0 | G54: ='36'!N$27 -> 0 | H54: ='36'!O$27 -> 0 | I54: ='36'!P$27 -> 0 | J54: ='36'!Q$27 -> 0 | K54: ='36'!R$27 -> 0 | L54: ='36'!S$27 -> 0 | M54: ='36'!T$27 -> 0 | N54: ='36'!U$27 -> 0 | O54: ='36'!V$27 -> 0 | P54: ='36'!W$27 -> 0 | Q54: ='36'!X$27 -> 0 | R54: ='36'!Y$27 -> 0 | S54: ='36'!Z$27 -> 0 | T54: ='36'!AA$27 -> 0 | U54: ='36'!AB$27 -> 0 | V54: ='36'!AC$27 -> 0 | W54: ='36'!AD$27 -> 0 | AA54: ='36'!M$28 -> 0 | AB54: ='36'!N$28 -> 0 | AC54: ='36'!O$28 -> 0 | AD54: ='36'!P$28 -> 0 | AE54: ='36'!Q$28 -> 0 | AF54: ='36'!R$28 -> 0 | AG54: ='36'!S$28 -> 0 | AH54: ='36'!T$28 -> 0 | AI54: ='36'!U$28 -> 0 | AJ54: ='36'!V$28 -> 0 | AK54: ='36'!W$28 -> 0 | AL54: ='36'!X$28 -> 0 | AM54: ='36'!Y$28 -> 0 | AN54: ='36'!Z$28 -> 0 | AO54: ='36'!AA$28 -> 0 | AP54: ='36'!AB$28 -> 0 | AQ54: ='36'!AC$28 -> 0 | AR54: ='36'!AD$28 -> 0 | AS54: 6 | AT54: 2017-09-05 | AU54: - | AV54: 2017-09-11 | AW54: 36
A55: 7 | B55: 2017-09-12 | C55: - | D55: 2017-09-18 | E55: =Overview!F24 -> 37 | F55: ='37'!M$27 -> 0 | G55: ='37'!N$27 -> 0 | H55: ='37'!O$27 -> 0 | I55: ='37'!P$27 -> 0 | J55: ='37'!Q$27 -> 0 | K55: ='37'!R$27 -> 0 | L55: ='37'!S$27 -> 0 | M55: ='37'!T$27 -> 0 | N55: ='37'!U$27 -> 0 | O55: ='37'!V$27 -> 0 | P55: ='37'!W$27 -> 0 | Q55: ='37'!X$27 -> 0 | R55: ='37'!Y$27 -> 0 | S55: ='37'!Z$27 -> 0 | T55: ='37'!AA$27 -> 0 | U55: ='37'!AB$27 -> 0 | V55: ='37'!AC$27 -> 0 | W55: ='37'!AD$27 -> 0 | AA55: ='37'!M$28 -> 0 | AB55: ='37'!N$28 -> 0 | AC55: ='37'!O$28 -> 0 | AD55: ='37'!P$28 -> 0 | AE55: ='37'!Q$28 -> 0 | AF55: ='37'!R$28 -> 0 | AG55: ='37'!S$28 -> 0 | AH55: ='37'!T$28 -> 0 | AI55: ='37'!U$28 -> 0 | AJ55: ='37'!V$28 -> 0 | AK55: ='37'!W$28 -> 0 | AL55: ='37'!X$28 -> 0 | AM55: ='37'!Y$28 -> 0 | AN55: ='37'!Z$28 -> 0 | AO55: ='37'!AA$28 -> 0 | AP55: ='37'!AB$28 -> 0 | AQ55: ='37'!AC$28 -> 0 | AR55: ='37'!AD$28 -> 0 | AS55: 7 | AT55: 2017-09-12 | AU55: - | AV55: 2017-09-18 | AW55: 37
A56: 8 | B56: 2017-09-19 | C56: - | D56: 2017-09-25 | E56: =Overview!F25 -> 38 | F56: ='38'!M$27 -> 0 | G56: ='38'!N$27 -> 0 | H56: ='38'!O$27 -> 0 | I56: ='38'!P$27 -> 0 | J56: ='38'!Q$27 -> 0 | K56: ='38'!R$27 -> 0 | L56: ='38'!S$27 -> 0 | M56: ='38'!T$27 -> 0 | N56: ='38'!U$27 -> 0 | O56: ='38'!V$27 -> 0 | P56: ='38'!W$27 -> 0 | Q56: ='38'!X$27 -> 0 | R56: ='38'!Y$27 -> 0 | S56: ='38'!Z$27 -> 0 | T56: ='38'!AA$27 -> 0 | U56: ='38'!AB$27 -> 0 | V56: ='38'!AC$27 -> 0 | W56: ='38'!AD$27 -> 0 | AA56: ='38'!M$28 -> 0 | AB56: ='38'!N$28 -> 0 | AC56: ='38'!O$28 -> 0 | AD56: ='38'!P$28 -> 0 | AE56: ='38'!Q$28 -> 0 | AF56: ='38'!R$28 -> 0 | AG56: ='38'!S$28 -> 0 | AH56: ='38'!T$28 -> 0 | AI56: ='38'!U$28 -> 0 | AJ56: ='38'!V$28 -> 0 | AK56: ='38'!W$28 -> 0 | AL56: ='38'!X$28 -> 0 | AM56: ='38'!Y$28 -> 0 | AN56: ='38'!Z$28 -> 0 | AO56: ='38'!AA$28 -> 0 | AP56: ='38'!AB$28 -> 0 | AQ56: ='38'!AC$28 -> 0 | AR56: ='38'!AD$28 -> 0 | AS56: 8 | AT56: 2017-09-19 | AU56: - | AV56: 2017-09-25 | AW56: 38
A57: 9 | B57: 2017-09-26 | C57: - | D57: 2017-10-02 | E57: =Overview!F26 -> 39 | F57: ='39'!M$27 -> 0 | G57: ='39'!N$27 -> 0 | H57: ='39'!O$27 -> 0 | I57: ='39'!P$27 -> 0 | J57: ='39'!Q$27 -> 0 | K57: ='39'!R$27 -> 0 | L57: ='39'!S$27 -> 0 | M57: ='39'!T$27 -> 0 | N57: ='39'!U$27 -> 0 | O57: ='39'!V$27 -> 0 | P57: ='39'!W$27 -> 0 | Q57: ='39'!X$27 -> 0 | R57: ='39'!Y$27 -> 0 | S57: ='39'!Z$27 -> 0 | T57: ='39'!AA$27 -> 0 | U57: ='39'!AB$27 -> 0 | V57: ='39'!AC$27 -> 0 | W57: ='39'!AD$27 -> 0 | AA57: ='39'!M$28 -> 0 | AB57: ='39'!N$28 -> 0 | AC57: ='39'!O$28 -> 0 | AD57: ='39'!P$28 -> 0 | AE57: ='39'!Q$28 -> 0 | AF57: ='39'!R$28 -> 0 | AG57: ='39'!S$28 -> 0 | AH57: ='39'!T$28 -> 0 | AI57: ='39'!U$28 -> 0 | AJ57: ='39'!V$28 -> 0 | AK57: ='39'!W$28 -> 0 | AL57: ='39'!X$28 -> 0 | AM57: ='39'!Y$28 -> 0 | AN57: ='39'!Z$28 -> 0 | AO57: ='39'!AA$28 -> 0 | AP57: ='39'!AB$28 -> 0 | AQ57: ='39'!AC$28 -> 0 | AR57: ='39'!AD$28 -> 0 | AS57: 9 | AT57: 2017-09-26 | AU57: - | AV57: 2017-10-02 | AW57: 39
A58: 10 | B58: 2017-10-03 | C58: - | D58: 2017-10-09 | E58: =Overview!F27 -> 40 | F58: ='40'!M$27 -> 0 | G58: ='40'!N$27 -> 0 | H58: ='40'!O$27 -> 0 | I58: ='40'!P$27 -> 0 | J58: ='40'!Q$27 -> 0 | K58: ='40'!R$27 -> 0 | L58: ='40'!S$27 -> 0 | M58: ='40'!T$27 -> 0 | N58: ='40'!U$27 -> 0 | O58: ='40'!V$27 -> 0 | P58: ='40'!W$27 -> 0 | Q58: ='40'!X$27 -> 0 | R58: ='40'!Y$27 -> 0 | S58: ='40'!Z$27 -> 0 | T58: ='40'!AA$27 -> 0 | U58: ='40'!AB$27 -> 0 | V58: ='40'!AC$27 -> 0 | W58: ='40'!AD$27 -> 0 | AA58: ='40'!M$28 -> 0 | AB58: ='40'!N$28 -> 0 | AC58: ='40'!O$28 -> 0 | AD58: ='40'!P$28 -> 0 | AE58: ='40'!Q$28 -> 0 | AF58: ='40'!R$28 -> 0 | AG58: ='40'!S$28 -> 0 | AH58: ='40'!T$28 -> 0 | AI58: ='40'!U$28 -> 0 | AJ58: ='40'!V$28 -> 0 | AK58: ='40'!W$28 -> 0 | AL58: ='40'!X$28 -> 0 | AM58: ='40'!Y$28 -> 0 | AN58: ='40'!Z$28 -> 0 | AO58: ='40'!AA$28 -> 0 | AP58: ='40'!AB$28 -> 0 | AQ58: ='40'!AC$28 -> 0 | AR58: ='40'!AD$28 -> 0 | AS58: 10 | AT58: 2017-10-03 | AU58: - | AV58: 2017-10-09 | AW58: 40
A59: 11 | B59: 2017-10-10 | C59: - | D59: 2017-10-16 | E59: =Overview!F28 -> 41 | F59: ='41'!M$27 -> 0 | G59: ='41'!N$27 -> 0 | H59: ='41'!O$27 -> 0 | I59: ='41'!P$27 -> 0 | J59: ='41'!Q$27 -> 0 | K59: ='41'!R$27 -> 0 | L59: ='41'!S$27 -> 0 | M59: ='41'!T$27 -> 0 | N59: ='41'!U$27 -> 0 | O59: ='41'!V$27 -> 0 | P59: ='41'!W$27 -> 0 | Q59: ='41'!X$27 -> 0 | R59: ='41'!Y$27 -> 0 | S59: ='41'!Z$27 -> 0 | T59: ='41'!AA$27 -> 0 | U59: ='41'!AB$27 -> 0 | V59: ='41'!AC$27 -> 0 | W59: ='41'!AD$27 -> 0 | AA59: ='41'!M$28 -> 0 | AB59: ='41'!N$28 -> 0 | AC59: ='41'!O$28 -> 0 | AD59: ='41'!P$28 -> 0 | AE59: ='41'!Q$28 -> 0 | AF59: ='41'!R$28 -> 0 | AG59: ='41'!S$28 -> 0 | AH59: ='41'!T$28 -> 0 | AI59: ='41'!U$28 -> 0 | AJ59: ='41'!V$28 -> 0 | AK59: ='41'!W$28 -> 0 | AL59: ='41'!X$28 -> 0 | AM59: ='41'!Y$28 -> 0 | AN59: ='41'!Z$28 -> 0 | AO59: ='41'!AA$28 -> 0 | AP59: ='41'!AB$28 -> 0 | AQ59: ='41'!AC$28 -> 0 | AR59: ='41'!AD$28 -> 0 | AS59: 11 | AT59: 2017-10-10 | AU59: - | AV59: 2017-10-16 | AW59: 41
A60: 12 | B60: 2017-10-17 | C60: - | D60: 2017-10-23 | E60: =Overview!F29 -> 42 | F60: ='42'!M$27 -> 0 | G60: ='42'!N$27 -> 0 | H60: ='42'!O$27 -> 0 | I60: ='42'!P$27 -> 0 | J60: ='42'!Q$27 -> 0 | K60: ='42'!R$27 -> 0 | L60: ='42'!S$27 -> 0 | M60: ='42'!T$27 -> 0 | N60: ='42'!U$27 -> 0 | O60: ='42'!V$27 -> 0 | P60: ='42'!W$27 -> 0 | Q60: ='42'!X$27 -> 0 | R60: ='42'!Y$27 -> 0 | S60: ='42'!Z$27 -> 0 | T60: ='42'!AA$27 -> 0 | U60: ='42'!AB$27 -> 0 | V60: ='42'!AC$27 -> 0 | W60: ='42'!AD$27 -> 0 | AA60: ='42'!M$28 -> 0 | AB60: ='42'!N$28 -> 0 | AC60: ='42'!O$28 -> 0 | AD60: ='42'!P$28 -> 0 | AE60: ='42'!Q$28 -> 0 | AF60: ='42'!R$28 -> 0 | AG60: ='42'!S$28 -> 0 | AH60: ='42'!T$28 -> 0 | AI60: ='42'!U$28 -> 0 | AJ60: ='42'!V$28 -> 0 | AK60: ='42'!W$28 -> 0 | AL60: ='42'!X$28 -> 0 | AM60: ='42'!Y$28 -> 0 | AN60: ='42'!Z$28 -> 0 | AO60: ='42'!AA$28 -> 0 | AP60: ='42'!AB$28 -> 0 | AQ60: ='42'!AC$28 -> 0 | AR60: ='42'!AD$28 -> 0 | AS60: 12 | AT60: 2017-10-17 | AU60: - | AV60: 2017-10-23 | AW60: 42
A61: 13 | B61: 2017-10-24 | C61: - | D61: 2017-10-30 | E61: =Overview!F30 -> 43 | F61: ='43'!M$27 -> 0 | G61: ='43'!N$27 -> 0 | H61: ='43'!O$27 -> 0 | I61: ='43'!P$27 -> 0 | J61: ='43'!Q$27 -> 0 | K61: ='43'!R$27 -> 0 | L61: ='43'!S$27 -> 0 | M61: ='43'!T$27 -> 0 | N61: ='43'!U$27 -> 0 | O61: ='43'!V$27 -> 0 | P61: ='43'!W$27 -> 0 | Q61: ='43'!X$27 -> 0 | R61: ='43'!Y$27 -> 0 | S61: ='43'!Z$27 -> 0 | T61: ='43'!AA$27 -> 0 | U61: ='43'!AB$27 -> 0 | V61: ='43'!AC$27 -> 0 | W61: ='43'!AD$27 -> 0 | AA61: ='43'!M$28 -> 0 | AB61: ='43'!N$28 -> 0 | AC61: ='43'!O$28 -> 0 | AD61: ='43'!P$28 -> 0 | AE61: ='43'!Q$28 -> 0 | AF61: ='43'!R$28 -> 0 | AG61: ='43'!S$28 -> 0 | AH61: ='43'!T$28 -> 0 | AI61: ='43'!U$28 -> 0 | AJ61: ='43'!V$28 -> 0 | AK61: ='43'!W$28 -> 0 | AL61: ='43'!X$28 -> 0 | AM61: ='43'!Y$28 -> 0 | AN61: ='43'!Z$28 -> 0 | AO61: ='43'!AA$28 -> 0 | AP61: ='43'!AB$28 -> 0 | AQ61: ='43'!AC$28 -> 0 | AR61: ='43'!AD$28 -> 0 | AS61: 13 | AT61: 2017-10-24 | AU61: - | AV61: 2017-10-30 | AW61: 43
A62: 14 | B62: 2017-10-31 | C62: - | D62: 2017-11-06 | E62: =Overview!F31 -> 44 | F62: ='44'!M$27 -> 0 | G62: ='44'!N$27 -> 0 | H62: ='44'!O$27 -> 0 | I62: ='44'!P$27 -> 0 | J62: ='44'!Q$27 -> 0 | K62: ='44'!R$27 -> 0 | L62: ='44'!S$27 -> 0 | M62: ='44'!T$27 -> 0 | N62: ='44'!U$27 -> 0 | O62: ='44'!V$27 -> 0 | P62: ='44'!W$27 -> 0 | Q62: ='44'!X$27 -> 0 | R62: ='44'!Y$27 -> 0 | S62: ='44'!Z$27 -> 0 | T62: ='44'!AA$27 -> 0 | U62: ='44'!AB$27 -> 0 | V62: ='44'!AC$27 -> 0 | W62: ='44'!AD$27 -> 0 | AA62: ='44'!M$28 -> 0 | AB62: ='44'!N$28 -> 0 | AC62: ='44'!O$28 -> 0 | AD62: ='44'!P$28 -> 0 | AE62: ='44'!Q$28 -> 0 | AF62: ='44'!R$28 -> 0 | AG62: ='44'!S$28 -> 0 | AH62: ='44'!T$28 -> 0 | AI62: ='44'!U$28 -> 0 | AJ62: ='44'!V$28 -> 0 | AK62: ='44'!W$28 -> 0 | AL62: ='44'!X$28 -> 0 | AM62: ='44'!Y$28 -> 0 | AN62: ='44'!Z$28 -> 0 | AO62: ='44'!AA$28 -> 0 | AP62: ='44'!AB$28 -> 0 | AQ62: ='44'!AC$28 -> 0 | AR62: ='44'!AD$28 -> 0 | AS62: 14 | AT62: 2017-10-31 | AU62: - | AV62: 2017-11-06 | AW62: 44
A63: 15 | B63: 2017-11-07 | C63: - | D63: 2017-11-13 | E63: =Overview!F32 -> 45 | F63: ='45'!M$27 -> 0 | G63: ='45'!N$27 -> 0 | H63: ='45'!O$27 -> 0 | I63: ='45'!P$27 -> 0 | J63: ='45'!Q$27 -> 0 | K63: ='45'!R$27 -> 0 | L63: ='45'!S$27 -> 0 | M63: ='45'!T$27 -> 0 | N63: ='45'!U$27 -> 0 | O63: ='45'!V$27 -> 0 | P63: ='45'!W$27 -> 0 | Q63: ='45'!X$27 -> 0 | R63: ='45'!Y$27 -> 0 | S63: ='45'!Z$27 -> 0 | T63: ='45'!AA$27 -> 0 | U63: ='45'!AB$27 -> 0 | V63: ='45'!AC$27 -> 0 | W63: ='45'!AD$27 -> 0 | AA63: ='45'!M$28 -> 0 | AB63: ='45'!N$28 -> 0 | AC63: ='45'!O$28 -> 0 | AD63: ='45'!P$28 -> 0 | AE63: ='45'!Q$28 -> 0 | AF63: ='45'!R$28 -> 0 | AG63: ='45'!S$28 -> 0 | AH63: ='45'!T$28 -> 0 | AI63: ='45'!U$28 -> 0 | AJ63: ='45'!V$28 -> 0 | AK63: ='45'!W$28 -> 0 | AL63: ='45'!X$28 -> 0 | AM63: ='45'!Y$28 -> 0 | AN63: ='45'!Z$28 -> 0 | AO63: ='45'!AA$28 -> 0 | AP63: ='45'!AB$28 -> 0 | AQ63: ='45'!AC$28 -> 0 | AR63: ='45'!AD$28 -> 0 | AS63: 15 | AT63: 2017-11-07 | AU63: - | AV63: 2017-11-13 | AW63: 45
A64: 16 | B64: 2017-11-14 | C64: - | D64: 2017-11-20 | E64: =Overview!F33 -> 46 | F64: ='46'!M$27 -> 0 | G64: ='46'!N$27 -> 0 | H64: ='46'!O$27 -> 0 | I64: ='46'!P$27 -> 0 | J64: ='46'!Q$27 -> 0 | K64: ='46'!R$27 -> 0 | L64: ='46'!S$27 -> 0 | M64: ='46'!T$27 -> 0 | N64: ='46'!U$27 -> 0 | O64: ='46'!V$27 -> 0 | P64: ='46'!W$27 -> 0 | Q64: ='46'!X$27 -> 0 | R64: ='46'!Y$27 -> 0 | S64: ='46'!Z$27 -> 0 | T64: ='46'!AA$27 -> 0 | U64: ='46'!AB$27 -> 0 | V64: ='46'!AC$27 -> 0 | W64: ='46'!AD$27 -> 0 | AA64: ='46'!M$28 -> 0 | AB64: ='46'!N$28 -> 0 | AC64: ='46'!O$28 -> 0 | AD64: ='46'!P$28 -> 0 | AE64: ='46'!Q$28 -> 0 | AF64: ='46'!R$28 -> 0 | AG64: ='46'!S$28 -> 0 | AH64: ='46'!T$28 -> 0 | AI64: ='46'!U$28 -> 0 | AJ64: ='46'!V$28 -> 0 | AK64: ='46'!W$28 -> 0 | AL64: ='46'!X$28 -> 0 | AM64: ='46'!Y$28 -> 0 | AN64: ='46'!Z$28 -> 0 | AO64: ='46'!AA$28 -> 0 | AP64: ='46'!AB$28 -> 0 | AQ64: ='46'!AC$28 -> 0 | AR64: ='46'!AD$28 -> 0 | AS64: 16 | AT64: 2017-11-14 | AU64: - | AV64: 2017-11-20 | AW64: 46
A65: 17 | B65: 2017-11-21 | C65: - | D65: 2017-11-27 | E65: =Overview!F34 -> 47 | F65: ='47'!M$27 -> 0 | G65: ='47'!N$27 -> 0 | H65: ='47'!O$27 -> 0 | I65: ='47'!P$27 -> 0 | J65: ='47'!Q$27 -> 0 | K65: ='47'!R$27 -> 0 | L65: ='47'!S$27 -> 0 | M65: ='47'!T$27 -> 0 | N65: ='47'!U$27 -> 0 | O65: ='47'!V$27 -> 0 | P65: ='47'!W$27 -> 0 | Q65: ='47'!X$27 -> 0 | R65: ='47'!Y$27 -> 0 | S65: ='47'!Z$27 -> 0 | T65: ='47'!AA$27 -> 0 | U65: ='47'!AB$27 -> 0 | V65: ='47'!AC$27 -> 0 | W65: ='47'!AD$27 -> 0 | AA65: ='47'!M$28 -> 0 | AB65: ='47'!N$28 -> 0 | AC65: ='47'!O$28 -> 0 | AD65: ='47'!P$28 -> 0 | AE65: ='47'!Q$28 -> 0 | AF65: ='47'!R$28 -> 0 | AG65: ='47'!S$28 -> 0 | AH65: ='47'!T$28 -> 0 | AI65: ='47'!U$28 -> 0 | AJ65: ='47'!V$28 -> 0 | AK65: ='47'!W$28 -> 0 | AL65: ='47'!X$28 -> 0 | AM65: ='47'!Y$28 -> 0 | AN65: ='47'!Z$28 -> 0 | AO65: ='47'!AA$28 -> 0 | AP65: ='47'!AB$28 -> 0 | AQ65: ='47'!AC$28 -> 0 | AR65: ='47'!AD$28 -> 0 | AS65: 17 | AT65: 2017-11-21 | AU65: - | AV65: 2017-11-27 | AW65: 47
A66: 18 | B66: 2017-11-28 | C66: - | D66: 2017-12-04 | E66: =Overview!F35 -> 48 | F66: ='48'!M$27 -> 0 | G66: ='48'!N$27 -> 0 | H66: ='48'!O$27 -> 0 | I66: ='48'!P$27 -> 0 | J66: ='48'!Q$27 -> 0 | K66: ='48'!R$27 -> 0 | L66: ='48'!S$27 -> 0 | M66: ='48'!T$27 -> 0 | N66: ='48'!U$27 -> 0 | O66: ='48'!V$27 -> 0 | P66: ='48'!W$27 -> 0 | Q66: ='48'!X$27 -> 0 | R66: ='48'!Y$27 -> 0 | S66: ='48'!Z$27 -> 0 | T66: ='48'!AA$27 -> 0 | U66: ='48'!AB$27 -> 0 | V66: ='48'!AC$27 -> 0 | W66: ='48'!AD$27 -> 0 | AA66: ='48'!M$28 -> 0 | AB66: ='48'!N$28 -> 0 | AC66: ='48'!O$28 -> 0 | AD66: ='48'!P$28 -> 0 | AE66: ='48'!Q$28 -> 0 | AF66: ='48'!R$28 -> 0 | AG66: ='48'!S$28 -> 0 | AH66: ='48'!T$28 -> 0 | AI66: ='48'!U$28 -> 0 | AJ66: ='48'!V$28 -> 0 | AK66: ='48'!W$28 -> 0 | AL66: ='48'!X$28 -> 0 | AM66: ='48'!Y$28 -> 0 | AN66: ='48'!Z$28 -> 0 | AO66: ='48'!AA$28 -> 0 | AP66: ='48'!AB$28 -> 0 | AQ66: ='48'!AC$28 -> 0 | AR66: ='48'!AD$28 -> 0 | AS66: 18 | AT66: 2017-11-28 | AU66: - | AV66: 2017-12-04 | AW66: 48
A67: 19 | B67: 2017-12-05 | C67: - | D67: 2017-12-11 | E67: =Overview!F36 -> 49 | F67: ='49'!M$27 -> 0 | G67: ='49'!N$27 -> 0 | H67: ='49'!O$27 -> 0 | I67: ='49'!P$27 -> 0 | J67: ='49'!Q$27 -> 0 | K67: ='49'!R$27 -> 0 | L67: ='49'!S$27 -> 0 | M67: ='49'!T$27 -> 0 | N67: ='49'!U$27 -> 0 | O67: ='49'!V$27 -> 0 | P67: ='49'!W$27 -> 0 | Q67: ='49'!X$27 -> 0 | R67: ='49'!Y$27 -> 0 | S67: ='49'!Z$27 -> 0 | T67: ='49'!AA$27 -> 0 | U67: ='49'!AB$27 -> 0 | V67: ='49'!AC$27 -> 0 | W67: ='49'!AD$27 -> 0 | AA67: ='49'!M$28 -> 0 | AB67: ='49'!N$28 -> 0 | AC67: ='49'!O$28 -> 0 | AD67: ='49'!P$28 -> 0 | AE67: ='49'!Q$28 -> 0 | AF67: ='49'!R$28 -> 0 | AG67: ='49'!S$28 -> 0 | AH67: ='49'!T$28 -> 0 | AI67: ='49'!U$28 -> 0 | AJ67: ='49'!V$28 -> 0 | AK67: ='49'!W$28 -> 0 | AL67: ='49'!X$28 -> 0 | AM67: ='49'!Y$28 -> 0 | AN67: ='49'!Z$28 -> 0 | AO67: ='49'!AA$28 -> 0 | AP67: ='49'!AB$28 -> 0 | AQ67: ='49'!AC$28 -> 0 | AR67: ='49'!AD$28 -> 0 | AS67: 19 | AT67: 2017-12-05 | AU67: - | AV67: 2017-12-11 | AW67: 49
A68: 20 | B68: 2017-12-12 | C68: - | D68: 2017-12-18 | E68: =Overview!F37 -> 50 | F68: ='50'!M$27 -> 0 | G68: ='50'!N$27 -> 0 | H68: ='50'!O$27 -> 0 | I68: ='50'!P$27 -> 0 | J68: ='50'!Q$27 -> 0 | K68: ='50'!R$27 -> 0 | L68: ='50'!S$27 -> 0 | M68: ='50'!T$27 -> 0 | N68: ='50'!U$27 -> 0 | O68: ='50'!V$27 -> 0 | P68: ='50'!W$27 -> 0 | Q68: ='50'!X$27 -> 0 | R68: ='50'!Y$27 -> 0 | S68: ='50'!Z$27 -> 0 | T68: ='50'!AA$27 -> 0 | U68: ='50'!AB$27 -> 0 | V68: ='50'!AC$27 -> 0 | W68: ='50'!AD$27 -> 0 | AA68: ='50'!M$28 -> 0 | AB68: ='50'!N$28 -> 0 | AC68: ='50'!O$28 -> 0 | AD68: ='50'!P$28 -> 0 | AE68: ='50'!Q$28 -> 0 | AF68: ='50'!R$28 -> 0 | AG68: ='50'!S$28 -> 0 | AH68: ='50'!T$28 -> 0 | AI68: ='50'!U$28 -> 0 | AJ68: ='50'!V$28 -> 0 | AK68: ='50'!W$28 -> 0 | AL68: ='50'!X$28 -> 0 | AM68: ='50'!Y$28 -> 0 | AN68: ='50'!Z$28 -> 0 | AO68: ='50'!AA$28 -> 0 | AP68: ='50'!AB$28 -> 0 | AQ68: ='50'!AC$28 -> 0 | AR68: ='50'!AD$28 -> 0 | AS68: 20 | AT68: 2017-12-12 | AU68: - | AV68: 2017-12-18 | AW68: 50
A69: 21 | B69: 2017-12-19 | C69: - | D69: 2017-12-25 | E69: =Overview!F38 -> 51 | F69: ='51'!M$27 -> 0 | G69: ='51'!N$27 -> 0 | H69: ='51'!O$27 -> 0 | I69: ='51'!P$27 -> 0 | J69: ='51'!Q$27 -> 0 | K69: ='51'!R$27 -> 0 | L69: ='51'!S$27 -> 0 | M69: ='51'!T$27 -> 0 | N69: ='51'!U$27 -> 0 | O69: ='51'!V$27 -> 0 | P69: ='51'!W$27 -> 0 | Q69: ='51'!X$27 -> 0 | R69: ='51'!Y$27 -> 0 | S69: ='51'!Z$27 -> 0 | T69: ='51'!AA$27 -> 0 | U69: ='51'!AB$27 -> 0 | V69: ='51'!AC$27 -> 0 | W69: ='51'!AD$27 -> 0 | AA69: ='51'!M$28 -> 0 | AB69: ='51'!N$28 -> 0 | AC69: ='51'!O$28 -> 0 | AD69: ='51'!P$28 -> 0 | AE69: ='51'!Q$28 -> 0 | AF69: ='51'!R$28 -> 0 | AG69: ='51'!S$28 -> 0 | AH69: ='51'!T$28 -> 0 | AI69: ='51'!U$28 -> 0 | AJ69: ='51'!V$28 -> 0 | AK69: ='51'!W$28 -> 0 | AL69: ='51'!X$28 -> 0 | AM69: ='51'!Y$28 -> 0 | AN69: ='51'!Z$28 -> 0 | AO69: ='51'!AA$28 -> 0 | AP69: ='51'!AB$28 -> 0 | AQ69: ='51'!AC$28 -> 0 | AR69: ='51'!AD$28 -> 0 | AS69: 21 | AT69: 2017-12-19 | AU69: - | AV69: 2017-12-25 | AW69: 51
A70: 22 | B70: 2017-12-26 | C70: - | D70: 2018-01-01 | E70: =Overview!F39 -> 52 | F70: ='52'!M$27 -> 0 | G70: ='52'!N$27 -> 0 | H70: ='52'!O$27 -> 0 | I70: ='52'!P$27 -> 0 | J70: ='52'!Q$27 -> 0 | K70: ='52'!R$27 -> 0 | L70: ='52'!S$27 -> 0 | M70: ='52'!T$27 -> 0 | N70: ='52'!U$27 -> 0 | O70: ='52'!V$27 -> 0 | P70: ='52'!W$27 -> 0 | Q70: ='52'!X$27 -> 0 | R70: ='52'!Y$27 -> 0 | S70: ='52'!Z$27 -> 0 | T70: ='52'!AA$27 -> 0 | U70: ='52'!AB$27 -> 0 | V70: ='52'!AC$27 -> 0 | W70: ='52'!AD$27 -> 0 | AA70: ='52'!M$28 -> 0 | AB70: ='52'!N$28 -> 0 | AC70: ='52'!O$28 -> 0 | AD70: ='52'!P$28 -> 0 | AE70: ='52'!Q$28 -> 0 | AF70: ='52'!R$28 -> 0 | AG70: ='52'!S$28 -> 0 | AH70: ='52'!T$28 -> 0 | AI70: ='52'!U$28 -> 0 | AJ70: ='52'!V$28 -> 0 | AK70: ='52'!W$28 -> 0 | AL70: ='52'!X$28 -> 0 | AM70: ='52'!Y$28 -> 0 | AN70: ='52'!Z$28 -> 0 | AO70: ='52'!AA$28 -> 0 | AP70: ='52'!AB$28 -> 0 | AQ70: ='52'!AC$28 -> 0 | AR70: ='52'!AD$28 -> 0 | AS70: 22 | AT70: 2017-12-26 | AU70: - | AV70: 2018-01-01 | AW70: 52
A71: 23 | B71: 2018-01-02 | C71: - | D71: 2018-01-08 | E71: =Overview!F40 -> 1 | F71: ='1'!M$27 -> 0 | G71: ='1'!N$27 -> 0 | H71: ='1'!O$27 -> 0 | I71: ='1'!P$27 -> 0 | J71: ='1'!Q$27 -> 0 | K71: ='1'!R$27 -> 0 | L71: ='1'!S$27 -> 0 | M71: ='1'!T$27 -> 0 | N71: ='1'!U$27 -> 0 | O71: ='1'!V$27 -> 0 | P71: ='1'!W$27 -> 0 | Q71: ='1'!X$27 -> 0 | R71: ='1'!Y$27 -> 0 | S71: ='1'!Z$27 -> 0 | T71: ='1'!AA$27 -> 0 | U71: ='1'!AB$27 -> 0 | V71: ='1'!AC$27 -> 0 | W71: ='1'!AD$27 -> 0 | AA71: ='1'!M$28 -> 0 | AB71: ='1'!N$28 -> 0 | AC71: ='1'!O$28 -> 0 | AD71: ='1'!P$28 -> 0 | AE71: ='1'!Q$28 -> 0 | AF71: ='1'!R$28 -> 0 | AG71: ='1'!S$28 -> 0 | AH71: ='1'!T$28 -> 0 | AI71: ='1'!U$28 -> 0 | AJ71: ='1'!V$28 -> 0 | AK71: ='1'!W$28 -> 0 | AL71: ='1'!X$28 -> 0 | AM71: ='1'!Y$28 -> 0 | AN71: ='1'!Z$28 -> 0 | AO71: ='1'!AA$28 -> 0 | AP71: ='1'!AB$28 -> 0 | AQ71: ='1'!AC$28 -> 0 | AR71: ='1'!AD$28 -> 0 | AS71: 23 | AT71: 2018-01-02 | AU71: - | AV71: 2018-01-08 | AW71: 1
A72: 24 | B72: 2018-01-09 | C72: - | D72: 2018-01-15 | E72: =Overview!F41 -> 2 | F72: ='2'!M$27 -> 0 | G72: ='2'!N$27 -> 0 | H72: ='2'!O$27 -> 0 | I72: ='2'!P$27 -> 0 | J72: ='2'!Q$27 -> 0 | K72: ='2'!R$27 -> 0 | L72: ='2'!S$27 -> 0 | M72: ='2'!T$27 -> 0 | N72: ='2'!U$27 -> 0 | O72: ='2'!V$27 -> 0 | P72: ='2'!W$27 -> 0 | Q72: ='2'!X$27 -> 0 | R72: ='2'!Y$27 -> 0 | S72: ='2'!Z$27 -> 0 | T72: ='2'!AA$27 -> 0 | U72: ='2'!AB$27 -> 0 | V72: ='2'!AC$27 -> 0 | W72: ='2'!AD$27 -> 0 | AA72: ='2'!M$28 -> 0 | AB72: ='2'!N$28 -> 0 | AC72: ='2'!O$28 -> 0 | AD72: ='2'!P$28 -> 0 | AE72: ='2'!Q$28 -> 0 | AF72: ='2'!R$28 -> 0 | AG72: ='2'!S$28 -> 0 | AH72: ='2'!T$28 -> 0 | AI72: ='2'!U$28 -> 0 | AJ72: ='2'!V$28 -> 0 | AK72: ='2'!W$28 -> 0 | AL72: ='2'!X$28 -> 0 | AM72: ='2'!Y$28 -> 0 | AN72: ='2'!Z$28 -> 0 | AO72: ='2'!AA$28 -> 0 | AP72: ='2'!AB$28 -> 0 | AQ72: ='2'!AC$28 -> 0 | AR72: ='2'!AD$28 -> 0 | AS72: 24 | AT72: 2018-01-09 | AU72: - | AV72: 2018-01-15 | AW72: 2
A73: 25 | B73: 2018-01-16 | C73: - | D73: 2018-01-22 | E73: =Overview!F42 -> 3 | F73: ='3'!M$27 -> 0 | G73: ='3'!N$27 -> 0 | H73: ='3'!O$27 -> 0 | I73: ='3'!P$27 -> 0 | J73: ='3'!Q$27 -> 0 | K73: ='3'!R$27 -> 0 | L73: ='3'!S$27 -> 0 | M73: ='3'!T$27 -> 0 | N73: ='3'!U$27 -> 0 | O73: ='3'!V$27 -> 0 | P73: ='3'!W$27 -> 0 | Q73: ='3'!X$27 -> 0 | R73: ='3'!Y$27 -> 0 | S73: ='3'!Z$27 -> 0 | T73: ='3'!AA$27 -> 0 | U73: ='3'!AB$27 -> 0 | V73: ='3'!AC$27 -> 0 | W73: ='3'!AD$27 -> 0 | AA73: ='3'!M$28 -> 0 | AB73: ='3'!N$28 -> 0 | AC73: ='3'!O$28 -> 0 | AD73: ='3'!P$28 -> 0 | AE73: ='3'!Q$28 -> 0 | AF73: ='3'!R$28 -> 0 | AG73: ='3'!S$28 -> 0 | AH73: ='3'!T$28 -> 0 | AI73: ='3'!U$28 -> 0 | AJ73: ='3'!V$28 -> 0 | AK73: ='3'!W$28 -> 0 | AL73: ='3'!X$28 -> 0 | AM73: ='3'!Y$28 -> 0 | AN73: ='3'!Z$28 -> 0 | AO73: ='3'!AA$28 -> 0 | AP73: ='3'!AB$28 -> 0 | AQ73: ='3'!AC$28 -> 0 | AR73: ='3'!AD$28 -> 0 | AS73: 25 | AT73: 2018-01-16 | AU73: - | AV73: 2018-01-22 | AW73: 3
A74: 26 | B74: 2018-01-23 | C74: - | D74: 2018-01-29 | E74: =Overview!F43 -> 4 | F74: ='4'!M$27 -> 0 | G74: ='4'!N$27 -> 0 | H74: ='4'!O$27 -> 0 | I74: ='4'!P$27 -> 0 | J74: ='4'!Q$27 -> 0 | K74: ='4'!R$27 -> 0 | L74: ='4'!S$27 -> 0 | M74: ='4'!T$27 -> 0 | N74: ='4'!U$27 -> 0 | O74: ='4'!V$27 -> 0 | P74: ='4'!W$27 -> 0 | Q74: ='4'!X$27 -> 0 | R74: ='4'!Y$27 -> 0 | S74: ='4'!Z$27 -> 0 | T74: ='4'!AA$27 -> 0 | U74: ='4'!AB$27 -> 0 | V74: ='4'!AC$27 -> 0 | W74: ='4'!AD$27 -> 0 | AA74: ='4'!M$28 -> 0 | AB74: ='4'!N$28 -> 0 | AC74: ='4'!O$28 -> 0 | AD74: ='4'!P$28 -> 0 | AE74: ='4'!Q$28 -> 0 | AF74: ='4'!R$28 -> 0 | AG74: ='4'!S$28 -> 0 | AH74: ='4'!T$28 -> 0 | AI74: ='4'!U$28 -> 0 | AJ74: ='4'!V$28 -> 0 | AK74: ='4'!W$28 -> 0 | AL74: ='4'!X$28 -> 0 | AM74: ='4'!Y$28 -> 0 | AN74: ='4'!Z$28 -> 0 | AO74: ='4'!AA$28 -> 0 | AP74: ='4'!AB$28 -> 0 | AQ74: ='4'!AC$28 -> 0 | AR74: ='4'!AD$28 -> 0 | AS74: 26 | AT74: 2018-01-23 | AU74: - | AV74: 2018-01-29 | AW74: 4
A75: 27 | B75: 2018-01-30 | C75: - | D75: 2018-02-05 | E75: =Overview!F44 -> 5 | F75: ='5'!M$27 -> 0 | G75: ='5'!N$27 -> 0 | H75: ='5'!O$27 -> 0 | I75: ='5'!P$27 -> 0 | J75: ='5'!Q$27 -> 0 | K75: ='5'!R$27 -> 0 | L75: ='5'!S$27 -> 0 | M75: ='5'!T$27 -> 0 | N75: ='5'!U$27 -> 0 | O75: ='5'!V$27 -> 0 | P75: ='5'!W$27 -> 0 | Q75: ='5'!X$27 -> 0 | R75: ='5'!Y$27 -> 0 | S75: ='5'!Z$27 -> 0 | T75: ='5'!AA$27 -> 0 | U75: ='5'!AB$27 -> 0 | V75: ='5'!AC$27 -> 0 | W75: ='5'!AD$27 -> 0 | AA75: ='5'!M$28 -> 0 | AB75: ='5'!N$28 -> 0 | AC75: ='5'!O$28 -> 0 | AD75: ='5'!P$28 -> 0 | AE75: ='5'!Q$28 -> 0 | AF75: ='5'!R$28 -> 0 | AG75: ='5'!S$28 -> 0 | AH75: ='5'!T$28 -> 0 | AI75: ='5'!U$28 -> 0 | AJ75: ='5'!V$28 -> 0 | AK75: ='5'!W$28 -> 0 | AL75: ='5'!X$28 -> 0 | AM75: ='5'!Y$28 -> 0 | AN75: ='5'!Z$28 -> 0 | AO75: ='5'!AA$28 -> 0 | AP75: ='5'!AB$28 -> 0 | AQ75: ='5'!AC$28 -> 0 | AR75: ='5'!AD$28 -> 0 | AS75: 27 | AT75: 2018-01-30 | AU75: - | AV75: 2018-02-05 | AW75: 5
A76: 28 | B76: 2018-02-06 | C76: - | D76: 2018-02-12 | E76: =Overview!F45 -> 6 | F76: ='6'!M$27 -> 0 | G76: ='6'!N$27 -> 0 | H76: ='6'!O$27 -> 0 | I76: ='6'!P$27 -> 0 | J76: ='6'!Q$27 -> 0 | K76: ='6'!R$27 -> 0 | L76: ='6'!S$27 -> 0 | M76: ='6'!T$27 -> 0 | N76: ='6'!U$27 -> 0 | O76: ='6'!V$27 -> 0 | P76: ='6'!W$27 -> 0 | Q76: ='6'!X$27 -> 0 | R76: ='6'!Y$27 -> 0 | S76: ='6'!Z$27 -> 0 | T76: ='6'!AA$27 -> 0 | U76: ='6'!AB$27 -> 0 | V76: ='6'!AC$27 -> 0 | W76: ='6'!AD$27 -> 0 | AA76: ='6'!M$28 -> 0 | AB76: ='6'!N$28 -> 0 | AC76: ='6'!O$28 -> 0 | AD76: ='6'!P$28 -> 0 | AE76: ='6'!Q$28 -> 0 | AF76: ='6'!R$28 -> 0 | AG76: ='6'!S$28 -> 0 | AH76: ='6'!T$28 -> 0 | AI76: ='6'!U$28 -> 0 | AJ76: ='6'!V$28 -> 0 | AK76: ='6'!W$28 -> 0 | AL76: ='6'!X$28 -> 0 | AM76: ='6'!Y$28 -> 0 | AN76: ='6'!Z$28 -> 0 | AO76: ='6'!AA$28 -> 0 | AP76: ='6'!AB$28 -> 0 | AQ76: ='6'!AC$28 -> 0 | AR76: ='6'!AD$28 -> 0 | AS76: 28 | AT76: 2018-02-06 | AU76: - | AV76: 2018-02-12 | AW76: 6
A77: 29 | B77: 2018-02-13 | C77: - | D77: 2018-02-19 | E77: =Overview!F46 -> 7 | F77: ='7'!M$27 -> 0 | G77: ='7'!N$27 -> 0 | H77: ='7'!O$27 -> 0 | I77: ='7'!P$27 -> 0 | J77: ='7'!Q$27 -> 0 | K77: ='7'!R$27 -> 0 | L77: ='7'!S$27 -> 0 | M77: ='7'!T$27 -> 0 | N77: ='7'!U$27 -> 0 | O77: ='7'!V$27 -> 0 | P77: ='7'!W$27 -> 0 | Q77: ='7'!X$27 -> 0 | R77: ='7'!Y$27 -> 0 | S77: ='7'!Z$27 -> 0 | T77: ='7'!AA$27 -> 0 | U77: ='7'!AB$27 -> 0 | V77: ='7'!AC$27 -> 0 | W77: ='7'!AD$27 -> 0 | AA77: ='7'!M$28 -> 0 | AB77: ='7'!N$28 -> 0 | AC77: ='7'!O$28 -> 0 | AD77: ='7'!P$28 -> 0 | AE77: ='7'!Q$28 -> 0 | AF77: ='7'!R$28 -> 0 | AG77: ='7'!S$28 -> 0 | AH77: ='7'!T$28 -> 0 | AI77: ='7'!U$28 -> 0 | AJ77: ='7'!V$28 -> 0 | AK77: ='7'!W$28 -> 0 | AL77: ='7'!X$28 -> 0 | AM77: ='7'!Y$28 -> 0 | AN77: ='7'!Z$28 -> 0 | AO77: ='7'!AA$28 -> 0 | AP77: ='7'!AB$28 -> 0 | AQ77: ='7'!AC$28 -> 0 | AR77: ='7'!AD$28 -> 0 | AS77: 29 | AT77: 2018-02-13 | AU77: - | AV77: 2018-02-19 | AW77: 7
A78: 30 | B78: 2018-02-20 | C78: - | D78: 2018-02-26 | E78: =Overview!F47 -> 8 | F78: ='8'!M$27 -> 0 | G78: ='8'!N$27 -> 0 | H78: ='8'!O$27 -> 0 | I78: ='8'!P$27 -> 0 | J78: ='8'!Q$27 -> 0 | K78: ='8'!R$27 -> 0 | L78: ='8'!S$27 -> 0 | M78: ='8'!T$27 -> 0 | N78: ='8'!U$27 -> 0 | O78: ='8'!V$27 -> 0 | P78: ='8'!W$27 -> 0 | Q78: ='8'!X$27 -> 0 | R78: ='8'!Y$27 -> 0 | S78: ='8'!Z$27 -> 0 | T78: ='8'!AA$27 -> 0 | U78: ='8'!AB$27 -> 0 | V78: ='8'!AC$27 -> 0 | W78: ='8'!AD$27 -> 0 | AA78: ='8'!M$28 -> 0 | AB78: ='8'!N$28 -> 0 | AC78: ='8'!O$28 -> 0 | AD78: ='8'!P$28 -> 0 | AE78: ='8'!Q$28 -> 0 | AF78: ='8'!R$28 -> 0 | AG78: ='8'!S$28 -> 0 | AH78: ='8'!T$28 -> 0 | AI78: ='8'!U$28 -> 0 | AJ78: ='8'!V$28 -> 0 | AK78: ='8'!W$28 -> 0 | AL78: ='8'!X$28 -> 0 | AM78: ='8'!Y$28 -> 0 | AN78: ='8'!Z$28 -> 0 | AO78: ='8'!AA$28 -> 0 | AP78: ='8'!AB$28 -> 0 | AQ78: ='8'!AC$28 -> 0 | AR78: ='8'!AD$28 -> 0 | AS78: 30 | AT78: 2018-02-20 | AU78: - | AV78: 2018-02-26 | AW78: 8
A79: 31 | B79: 2018-02-27 | C79: - | D79: 2018-03-05 | E79: =Overview!F48 -> 9 | F79: ='9'!M$27 -> 0 | G79: ='9'!N$27 -> 0 | H79: ='9'!O$27 -> 0 | I79: ='9'!P$27 -> 0 | J79: ='9'!Q$27 -> 0 | K79: ='9'!R$27 -> 0 | L79: ='9'!S$27 -> 0 | M79: ='9'!T$27 -> 0 | N79: ='9'!U$27 -> 0 | O79: ='9'!V$27 -> 0 | P79: ='9'!W$27 -> 0 | Q79: ='9'!X$27 -> 0 | R79: ='9'!Y$27 -> 0 | S79: ='9'!Z$27 -> 0 | T79: ='9'!AA$27 -> 0 | U79: ='9'!AB$27 -> 0 | V79: ='9'!AC$27 -> 0 | W79: ='9'!AD$27 -> 0 | AA79: ='9'!M$28 -> 0 | AB79: ='9'!N$28 -> 0 | AC79: ='9'!O$28 -> 0 | AD79: ='9'!P$28 -> 0 | AE79: ='9'!Q$28 -> 0 | AF79: ='9'!R$28 -> 0 | AG79: ='9'!S$28 -> 0 | AH79: ='9'!T$28 -> 0 | AI79: ='9'!U$28 -> 0 | AJ79: ='9'!V$28 -> 0 | AK79: ='9'!W$28 -> 0 | AL79: ='9'!X$28 -> 0 | AM79: ='9'!Y$28 -> 0 | AN79: ='9'!Z$28 -> 0 | AO79: ='9'!AA$28 -> 0 | AP79: ='9'!AB$28 -> 0 | AQ79: ='9'!AC$28 -> 0 | AR79: ='9'!AD$28 -> 0 | AS79: 31 | AT79: 2018-02-27 | AU79: - | AV79: 2018-03-05 | AW79: 9
A80: 32 | B80: 2018-03-06 | C80: - | D80: 2018-03-12 | E80: =Overview!F49 -> 10 | F80: ='10'!M$27 -> 0 | G80: ='10'!N$27 -> 0 | H80: ='10'!O$27 -> 0 | I80: ='10'!P$27 -> 0 | J80: ='10'!Q$27 -> 0 | K80: ='10'!R$27 -> 0 | L80: ='10'!S$27 -> 0 | M80: ='10'!T$27 -> 0 | N80: ='10'!U$27 -> 0 | O80: ='10'!V$27 -> 0 | P80: ='10'!W$27 -> 0 | Q80: ='10'!X$27 -> 0 | R80: ='10'!Y$27 -> 0 | S80: ='10'!Z$27 -> 0 | T80: ='10'!AA$27 -> 0 | U80: ='10'!AB$27 -> 0 | V80: ='10'!AC$27 -> 0 | W80: ='10'!AD$27 -> 0 | AA80: ='10'!M$28 -> 0 | AB80: ='10'!N$28 -> 0 | AC80: ='10'!O$28 -> 0 | AD80: ='10'!P$28 -> 0 | AE80: ='10'!Q$28 -> 0 | AF80: ='10'!R$28 -> 0 | AG80: ='10'!S$28 -> 0 | AH80: ='10'!T$28 -> 0 | AI80: ='10'!U$28 -> 0 | AJ80: ='10'!V$28 -> 0 | AK80: ='10'!W$28 -> 0 | AL80: ='10'!X$28 -> 0 | AM80: ='10'!Y$28 -> 0 | AN80: ='10'!Z$28 -> 0 | AO80: ='10'!AA$28 -> 0 | AP80: ='10'!AB$28 -> 0 | AQ80: ='10'!AC$28 -> 0 | AR80: ='10'!AD$28 -> 0 | AS80: 32 | AT80: =B80 -> 2018-03-06 | AU80: =C80 -> - | AV80: =D80 -> 2018-03-12 | AW80: =E80 -> 10
A81: 33 | B81: 2018-03-13 | C81: - | D81: 2018-03-19 | E81: =Overview!F50 -> 11 | F81: ='11'!M$27 -> 0 | G81: ='11'!N$27 -> 0 | H81: ='11'!O$27 -> 0 | I81: ='11'!P$27 -> 0 | J81: ='11'!Q$27 -> 0 | K81: ='11'!R$27 -> 0 | L81: ='11'!S$27 -> 0 | M81: ='11'!T$27 -> 0 | N81: ='11'!U$27 -> 0 | O81: ='11'!V$27 -> 0 | P81: ='11'!W$27 -> 0 | Q81: ='11'!X$27 -> 0 | R81: ='11'!Y$27 -> 0 | S81: ='11'!Z$27 -> 0 | T81: ='11'!AA$27 -> 0 | U81: ='11'!AB$27 -> 0 | V81: ='11'!AC$27 -> 0 | W81: ='11'!AD$27 -> 0 | AA81: ='11'!M$28 -> 0 | AB81: ='11'!N$28 -> 0 | AC81: ='11'!O$28 -> 0 | AD81: ='11'!P$28 -> 0 | AE81: ='11'!Q$28 -> 0 | AF81: ='11'!R$28 -> 0 | AG81: ='11'!S$28 -> 0 | AH81: ='11'!T$28 -> 0 | AI81: ='11'!U$28 -> 0 | AJ81: ='11'!V$28 -> 0 | AK81: ='11'!W$28 -> 0 | AL81: ='11'!X$28 -> 0 | AM81: ='11'!Y$28 -> 0 | AN81: ='11'!Z$28 -> 0 | AO81: ='11'!AA$28 -> 0 | AP81: ='11'!AB$28 -> 0 | AQ81: ='11'!AC$28 -> 0 | AR81: ='11'!AD$28 -> 0 | AS81: 33 | AT81: 2018-03-13 | AU81: - | AV81: 2018-03-19 | AW81: 11
A82: 34 | B82: 2018-03-20 | C82: - | D82: 2018-03-26 | E82: =Overview!F51 -> 12 | F82: ='12'!M$27 -> 0 | G82: ='12'!N$27 -> 0 | H82: ='12'!O$27 -> 0 | I82: ='12'!P$27 -> 0 | J82: ='12'!Q$27 -> 0 | K82: ='12'!R$27 -> 0 | L82: ='12'!S$27 -> 0 | M82: ='12'!T$27 -> 0 | N82: ='12'!U$27 -> 0 | O82: ='12'!V$27 -> 0 | P82: ='12'!W$27 -> 0 | Q82: ='12'!X$27 -> 0 | R82: ='12'!Y$27 -> 0 | S82: ='12'!Z$27 -> 0 | T82: ='12'!AA$27 -> 0 | U82: ='12'!AB$27 -> 0 | V82: ='12'!AC$27 -> 0 | W82: ='12'!AD$27 -> 0 | AA82: ='12'!M$28 -> 0 | AB82: ='12'!N$28 -> 0 | AC82: ='12'!O$28 -> 0 | AD82: ='12'!P$28 -> 0 | AE82: ='12'!Q$28 -> 0 | AF82: ='12'!R$28 -> 0 | AG82: ='12'!S$28 -> 0 | AH82: ='12'!T$28 -> 0 | AI82: ='12'!U$28 -> 0 | AJ82: ='12'!V$28 -> 0 | AK82: ='12'!W$28 -> 0 | AL82: ='12'!X$28 -> 0 | AM82: ='12'!Y$28 -> 0 | AN82: ='12'!Z$28 -> 0 | AO82: ='12'!AA$28 -> 0 | AP82: ='12'!AB$28 -> 0 | AQ82: ='12'!AC$28 -> 0 | AR82: ='12'!AD$28 -> 0 | AS82: 34 | AT82: 2018-03-20 | AU82: - | AV82: 2018-03-26 | AW82: 12
A83: 35 | B83: 2018-03-27 | C83: - | D83: 2018-04-02 | E83: =Overview!F52 -> 13 | F83: ='13'!M$27 -> 0 | G83: ='13'!N$27 -> 0 | H83: ='13'!O$27 -> 0 | I83: ='13'!P$27 -> 0 | J83: ='13'!Q$27 -> 0 | K83: ='13'!R$27 -> 0 | L83: ='13'!S$27 -> 0 | M83: ='13'!T$27 -> 0 | N83: ='13'!U$27 -> 0 | O83: ='13'!V$27 -> 0 | P83: ='13'!W$27 -> 0 | Q83: ='13'!X$27 -> 0 | R83: ='13'!Y$27 -> 0 | S83: ='13'!Z$27 -> 0 | T83: ='13'!AA$27 -> 0 | U83: ='13'!AB$27 -> 0 | V83: ='13'!AC$27 -> 0 | W83: ='13'!AD$27 -> 0 | AA83: ='13'!M$28 -> 0 | AB83: ='13'!N$28 -> 0 | AC83: ='13'!O$28 -> 0 | AD83: ='13'!P$28 -> 0 | AE83: ='13'!Q$28 -> 0 | AF83: ='13'!R$28 -> 0 | AG83: ='13'!S$28 -> 0 | AH83: ='13'!T$28 -> 0 | AI83: ='13'!U$28 -> 0 | AJ83: ='13'!V$28 -> 0 | AK83: ='13'!W$28 -> 0 | AL83: ='13'!X$28 -> 0 | AM83: ='13'!Y$28 -> 0 | AN83: ='13'!Z$28 -> 0 | AO83: ='13'!AA$28 -> 0 | AP83: ='13'!AB$28 -> 0 | AQ83: ='13'!AC$28 -> 0 | AR83: ='13'!AD$28 -> 0 | AS83: 35 | AT83: 2018-03-27 | AU83: - | AV83: 2018-04-02 | AW83: 13
A84: 36 | B84: 2018-04-03 | C84: - | D84: 2018-04-09 | E84: =Overview!F53 -> 14 | F84: ='14'!M$27 -> 0 | G84: ='14'!N$27 -> 0 | H84: ='14'!O$27 -> 0 | I84: ='14'!P$27 -> 0 | J84: ='14'!Q$27 -> 0 | K84: ='14'!R$27 -> 0 | L84: ='14'!S$27 -> 0 | M84: ='14'!T$27 -> 0 | N84: ='14'!U$27 -> 0 | O84: ='14'!V$27 -> 0 | P84: ='14'!W$27 -> 0 | Q84: ='14'!X$27 -> 0 | R84: ='14'!Y$27 -> 0 | S84: ='14'!Z$27 -> 0 | T84: ='14'!AA$27 -> 0 | U84: ='14'!AB$27 -> 0 | V84: ='14'!AC$27 -> 0 | W84: ='14'!AD$27 -> 0 | AA84: ='14'!M$28 -> 0 | AB84: ='14'!N$28 -> 0 | AC84: ='14'!O$28 -> 0 | AD84: ='14'!P$28 -> 0 | AE84: ='14'!Q$28 -> 0 | AF84: ='14'!R$28 -> 0 | AG84: ='14'!S$28 -> 0 | AH84: ='14'!T$28 -> 0 | AI84: ='14'!U$28 -> 0 | AJ84: ='14'!V$28 -> 0 | AK84: ='14'!W$28 -> 0 | AL84: ='14'!X$28 -> 0 | AM84: ='14'!Y$28 -> 0 | AN84: ='14'!Z$28 -> 0 | AO84: ='14'!AA$28 -> 0 | AP84: ='14'!AB$28 -> 0 | AQ84: ='14'!AC$28 -> 0 | AR84: ='14'!AD$28 -> 0 | AS84: 36 | AT84: 2018-04-03 | AU84: - | AV84: 2018-04-09 | AW84: 14
A85: 37 | B85: 2018-04-10 | C85: - | D85: 2018-04-16 | E85: =Overview!F54 -> 15 | F85: ='15'!M$27 -> 0 | G85: ='15'!N$27 -> 0 | H85: ='15'!O$27 -> 0 | I85: ='15'!P$27 -> 0 | J85: ='15'!Q$27 -> 0 | K85: ='15'!R$27 -> 0 | L85: ='15'!S$27 -> 0 | M85: ='15'!T$27 -> 0 | N85: ='15'!U$27 -> 0 | O85: ='15'!V$27 -> 0 | P85: ='15'!W$27 -> 0 | Q85: ='15'!X$27 -> 0 | R85: ='15'!Y$27 -> 0 | S85: ='15'!Z$27 -> 0 | T85: ='15'!AA$27 -> 0 | U85: ='15'!AB$27 -> 0 | V85: ='15'!AC$27 -> 0 | W85: ='15'!AD$27 -> 0 | AA85: ='15'!M$28 -> 0 | AB85: ='15'!N$28 -> 0 | AC85: ='15'!O$28 -> 0 | AD85: ='15'!P$28 -> 0 | AE85: ='15'!Q$28 -> 0 | AF85: ='15'!R$28 -> 0 | AG85: ='15'!S$28 -> 0 | AH85: ='15'!T$28 -> 0 | AI85: ='15'!U$28 -> 0 | AJ85: ='15'!V$28 -> 0 | AK85: ='15'!W$28 -> 0 | AL85: ='15'!X$28 -> 0 | AM85: ='15'!Y$28 -> 0 | AN85: ='15'!Z$28 -> 0 | AO85: ='15'!AA$28 -> 0 | AP85: ='15'!AB$28 -> 0 | AQ85: ='15'!AC$28 -> 0 | AR85: ='15'!AD$28 -> 0 | AS85: 37 | AT85: 2018-04-10 | AU85: - | AV85: 2018-04-16 | AW85: 15
A86: 38 | B86: 2018-04-17 | C86: - | D86: 2018-04-23 | E86: =Overview!F55 -> 16 | F86: ='16'!M$27 -> 0 | G86: ='16'!N$27 -> 0 | H86: ='16'!O$27 -> 0 | I86: ='16'!P$27 -> 0 | J86: ='16'!Q$27 -> 0 | K86: ='16'!R$27 -> 0 | L86: ='16'!S$27 -> 0 | M86: ='16'!T$27 -> 0 | N86: ='16'!U$27 -> 0 | O86: ='16'!V$27 -> 0 | P86: ='16'!W$27 -> 0 | Q86: ='16'!X$27 -> 0 | R86: ='16'!Y$27 -> 0 | S86: ='16'!Z$27 -> 0 | T86: ='16'!AA$27 -> 0 | U86: ='16'!AB$27 -> 0 | V86: ='16'!AC$27 -> 0 | W86: ='16'!AD$27 -> 0 | AA86: ='16'!M$28 -> 0 | AB86: ='16'!N$28 -> 0 | AC86: ='16'!O$28 -> 0 | AD86: ='16'!P$28 -> 0 | AE86: ='16'!Q$28 -> 0 | AF86: ='16'!R$28 -> 0 | AG86: ='16'!S$28 -> 0 | AH86: ='16'!T$28 -> 0 | AI86: ='16'!U$28 -> 0 | AJ86: ='16'!V$28 -> 0 | AK86: ='16'!W$28 -> 0 | AL86: ='16'!X$28 -> 0 | AM86: ='16'!Y$28 -> 0 | AN86: ='16'!Z$28 -> 0 | AO86: ='16'!AA$28 -> 0 | AP86: ='16'!AB$28 -> 0 | AQ86: ='16'!AC$28 -> 0 | AR86: ='16'!AD$28 -> 0 | AS86: 38 | AT86: 2018-04-17 | AU86: - | AV86: 2018-04-23 | AW86: 16
A87: 39 | B87: 2018-04-24 | C87: - | D87: 2018-04-30 | E87: =Overview!F56 -> 17 | F87: ='17'!M$27 -> 0 | G87: ='17'!N$27 -> 0 | H87: ='17'!O$27 -> 0 | I87: ='17'!P$27 -> 0 | J87: ='17'!Q$27 -> 0 | K87: ='17'!R$27 -> 0 | L87: ='17'!S$27 -> 0 | M87: ='17'!T$27 -> 0 | N87: ='17'!U$27 -> 0 | O87: ='17'!V$27 -> 0 | P87: ='17'!W$27 -> 0 | Q87: ='17'!X$27 -> 0 | R87: ='17'!Y$27 -> 0 | S87: ='17'!Z$27 -> 0 | T87: ='17'!AA$27 -> 0 | U87: ='17'!AB$27 -> 0 | V87: ='17'!AC$27 -> 0 | W87: ='17'!AD$27 -> 0 | AA87: ='17'!M$28 -> 0 | AB87: ='17'!N$28 -> 0 | AC87: ='17'!O$28 -> 0 | AD87: ='17'!P$28 -> 0 | AE87: ='17'!Q$28 -> 0 | AF87: ='17'!R$28 -> 0 | AG87: ='17'!S$28 -> 0 | AH87: ='17'!T$28 -> 0 | AI87: ='17'!U$28 -> 0 | AJ87: ='17'!V$28 -> 0 | AK87: ='17'!W$28 -> 0 | AL87: ='17'!X$28 -> 0 | AM87: ='17'!Y$28 -> 0 | AN87: ='17'!Z$28 -> 0 | AO87: ='17'!AA$28 -> 0 | AP87: ='17'!AB$28 -> 0 | AQ87: ='17'!AC$28 -> 0 | AR87: ='17'!AD$28 -> 0 | AS87: 39 | AT87: 2018-04-24 | AU87: - | AV87: 2018-04-30 | AW87: 17
A88: 40 | B88: 2018-05-01 | C88: - | D88: 2018-05-07 | E88: =Overview!F57 -> 18 | F88: ='18'!M$27 -> 0 | G88: ='18'!N$27 -> 0 | H88: ='18'!O$27 -> 0 | I88: ='18'!P$27 -> 0 | J88: ='18'!Q$27 -> 0 | K88: ='18'!R$27 -> 0 | L88: ='18'!S$27 -> 0 | M88: ='18'!T$27 -> 0 | N88: ='18'!U$27 -> 0 | O88: ='18'!V$27 -> 0 | P88: ='18'!W$27 -> 0 | Q88: ='18'!X$27 -> 0 | R88: ='18'!Y$27 -> 0 | S88: ='18'!Z$27 -> 0 | T88: ='18'!AA$27 -> 0 | U88: ='18'!AB$27 -> 0 | V88: ='18'!AC$27 -> 0 | W88: ='18'!AD$27 -> 0 | AA88: ='18'!M$28 -> 0 | AB88: ='18'!N$28 -> 0 | AC88: ='18'!O$28 -> 0 | AD88: ='18'!P$28 -> 0 | AE88: ='18'!Q$28 -> 0 | AF88: ='18'!R$28 -> 0 | AG88: ='18'!S$28 -> 0 | AH88: ='18'!T$28 -> 0 | AI88: ='18'!U$28 -> 0 | AJ88: ='18'!V$28 -> 0 | AK88: ='18'!W$28 -> 0 | AL88: ='18'!X$28 -> 0 | AM88: ='18'!Y$28 -> 0 | AN88: ='18'!Z$28 -> 0 | AO88: ='18'!AA$28 -> 0 | AP88: ='18'!AB$28 -> 0 | AQ88: ='18'!AC$28 -> 0 | AR88: ='18'!AD$28 -> 0 | AS88: 40 | AT88: 2018-05-01 | AU88: - | AV88: 2018-05-07 | AW88: 18
A89: 41 | B89: 2018-05-08 | C89: - | D89: 2018-05-14 | E89: =Overview!F58 -> 19 | F89: ='19'!M$27 -> 0 | G89: ='19'!N$27 -> 0 | H89: ='19'!O$27 -> 0 | I89: ='19'!P$27 -> 0 | J89: ='19'!Q$27 -> 0 | K89: ='19'!R$27 -> 0 | L89: ='19'!S$27 -> 0 | M89: ='19'!T$27 -> 0 | N89: ='19'!U$27 -> 0 | O89: ='19'!V$27 -> 0 | P89: ='19'!W$27 -> 0 | Q89: ='19'!X$27 -> 0 | R89: ='19'!Y$27 -> 0 | S89: ='19'!Z$27 -> 0 | T89: ='19'!AA$27 -> 0 | U89: ='19'!AB$27 -> 0 | V89: ='19'!AC$27 -> 0 | W89: ='19'!AD$27 -> 0 | AA89: ='19'!M$28 -> 0 | AB89: ='19'!N$28 -> 0 | AC89: ='19'!O$28 -> 0 | AD89: ='19'!P$28 -> 0 | AE89: ='19'!Q$28 -> 0 | AF89: ='19'!R$28 -> 0 | AG89: ='19'!S$28 -> 0 | AH89: ='19'!T$28 -> 0 | AI89: ='19'!U$28 -> 0 | AJ89: ='19'!V$28 -> 0 | AK89: ='19'!W$28 -> 0 | AL89: ='19'!X$28 -> 0 | AM89: ='19'!Y$28 -> 0 | AN89: ='19'!Z$28 -> 0 | AO89: ='19'!AA$28 -> 0 | AP89: ='19'!AB$28 -> 0 | AQ89: ='19'!AC$28 -> 0 | AR89: ='19'!AD$28 -> 0 | AS89: 41 | AT89: 2018-05-08 | AU89: - | AV89: 2018-05-14 | AW89: 19
A90: 42 | B90: 2018-05-15 | C90: - | D90: 2018-05-21 | E90: =Overview!F59 -> 20 | F90: ='20'!M$27 -> 0 | G90: ='20'!N$27 -> 0 | H90: ='20'!O$27 -> 0 | I90: ='20'!P$27 -> 0 | J90: ='20'!Q$27 -> 0 | K90: ='20'!R$27 -> 0 | L90: ='20'!S$27 -> 0 | M90: ='20'!T$27 -> 0 | N90: ='20'!U$27 -> 0 | O90: ='20'!V$27 -> 0 | P90: ='20'!W$27 -> 0 | Q90: ='20'!X$27 -> 0 | R90: ='20'!Y$27 -> 0 | S90: ='20'!Z$27 -> 0 | T90: ='20'!AA$27 -> 0 | U90: ='20'!AB$27 -> 0 | V90: ='20'!AC$27 -> 0 | W90: ='20'!AD$27 -> 0 | AA90: ='20'!M$28 -> 0 | AB90: ='20'!N$28 -> 0 | AC90: ='20'!O$28 -> 0 | AD90: ='20'!P$28 -> 0 | AE90: ='20'!Q$28 -> 0 | AF90: ='20'!R$28 -> 0 | AG90: ='20'!S$28 -> 0 | AH90: ='20'!T$28 -> 0 | AI90: ='20'!U$28 -> 0 | AJ90: ='20'!V$28 -> 0 | AK90: ='20'!W$28 -> 0 | AL90: ='20'!X$28 -> 0 | AM90: ='20'!Y$28 -> 0 | AN90: ='20'!Z$28 -> 0 | AO90: ='20'!AA$28 -> 0 | AP90: ='20'!AB$28 -> 0 | AQ90: ='20'!AC$28 -> 0 | AR90: ='20'!AD$28 -> 0 | AS90: 42 | AT90: 2018-05-15 | AU90: - | AV90: 2018-05-21 | AW90: 20
A91: 43 | B91: 2018-05-22 | C91: - | D91: 2018-05-28 | E91: =Overview!F60 -> 21 | F91: ='21'!M$27 -> 0 | G91: ='21'!N$27 -> 0 | H91: ='21'!O$27 -> 0 | I91: ='21'!P$27 -> 0 | J91: ='21'!Q$27 -> 0 | K91: ='21'!R$27 -> 0 | L91: ='21'!S$27 -> 0 | M91: ='21'!T$27 -> 0 | N91: ='21'!U$27 -> 0 | O91: ='21'!V$27 -> 0 | P91: ='21'!W$27 -> 0 | Q91: ='21'!X$27 -> 0 | R91: ='21'!Y$27 -> 0 | S91: ='21'!Z$27 -> 0 | T91: ='21'!AA$27 -> 0 | U91: ='21'!AB$27 -> 0 | V91: ='21'!AC$27 -> 0 | W91: ='21'!AD$27 -> 0 | AA91: ='21'!M$28 -> 0 | AB91: ='21'!N$28 -> 0 | AC91: ='21'!O$28 -> 0 | AD91: ='21'!P$28 -> 0 | AE91: ='21'!Q$28 -> 0 | AF91: ='21'!R$28 -> 0 | AG91: ='21'!S$28 -> 0 | AH91: ='21'!T$28 -> 0 | AI91: ='21'!U$28 -> 0 | AJ91: ='21'!V$28 -> 0 | AK91: ='21'!W$28 -> 0 | AL91: ='21'!X$28 -> 0 | AM91: ='21'!Y$28 -> 0 | AN91: ='21'!Z$28 -> 0 | AO91: ='21'!AA$28 -> 0 | AP91: ='21'!AB$28 -> 0 | AQ91: ='21'!AC$28 -> 0 | AR91: ='21'!AD$28 -> 0 | AS91: 43 | AT91: 2018-05-22 | AU91: - | AV91: 2018-05-28 | AW91: 21
A92: 44 | B92: 2018-05-29 | C92: - | D92: 2018-06-04 | E92: =Overview!F61 -> 22 | F92: ='22'!M$27 -> 0 | G92: ='22'!N$27 -> 0 | H92: ='22'!O$27 -> 0 | I92: ='22'!P$27 -> 0 | J92: ='22'!Q$27 -> 0 | K92: ='22'!R$27 -> 0 | L92: ='22'!S$27 -> 0 | M92: ='22'!T$27 -> 0 | N92: ='22'!U$27 -> 0 | O92: ='22'!V$27 -> 0 | P92: ='22'!W$27 -> 0 | Q92: ='22'!X$27 -> 0 | R92: ='22'!Y$27 -> 0 | S92: ='22'!Z$27 -> 0 | T92: ='22'!AA$27 -> 0 | U92: ='22'!AB$27 -> 0 | V92: ='22'!AC$27 -> 0 | W92: ='22'!AD$27 -> 0 | AA92: ='22'!M$28 -> 0 | AB92: ='22'!N$28 -> 0 | AC92: ='22'!O$28 -> 0 | AD92: ='22'!P$28 -> 0 | AE92: ='22'!Q$28 -> 0 | AF92: ='22'!R$28 -> 0 | AG92: ='22'!S$28 -> 0 | AH92: ='22'!T$28 -> 0 | AI92: ='22'!U$28 -> 0 | AJ92: ='22'!V$28 -> 0 | AK92: ='22'!W$28 -> 0 | AL92: ='22'!X$28 -> 0 | AM92: ='22'!Y$28 -> 0 | AN92: ='22'!Z$28 -> 0 | AO92: ='22'!AA$28 -> 0 | AP92: ='22'!AB$28 -> 0 | AQ92: ='22'!AC$28 -> 0 | AR92: ='22'!AD$28 -> 0 | AS92: 44 | AT92: 2018-05-29 | AU92: - | AV92: 2018-06-04 | AW92: 22
A93: 45 | B93: 2018-06-05 | C93: - | D93: 2018-06-11 | E93: =Overview!F62 -> 23 | F93: ='23'!M$27 -> 0 | G93: ='23'!N$27 -> 0 | H93: ='23'!O$27 -> 0 | I93: ='23'!P$27 -> 0 | J93: ='23'!Q$27 -> 0 | K93: ='23'!R$27 -> 0 | L93: ='23'!S$27 -> 0 | M93: ='23'!T$27 -> 0 | N93: ='23'!U$27 -> 0 | O93: ='23'!V$27 -> 0 | P93: ='23'!W$27 -> 0 | Q93: ='23'!X$27 -> 0 | R93: ='23'!Y$27 -> 0 | S93: ='23'!Z$27 -> 0 | T93: ='23'!AA$27 -> 0 | U93: ='23'!AB$27 -> 0 | V93: ='23'!AC$27 -> 0 | W93: ='23'!AD$27 -> 0 | AA93: ='23'!M$28 -> 0 | AB93: ='23'!N$28 -> 0 | AC93: ='23'!O$28 -> 0 | AD93: ='23'!P$28 -> 0 | AE93: ='23'!Q$28 -> 0 | AF93: ='23'!R$28 -> 0 | AG93: ='23'!S$28 -> 0 | AH93: ='23'!T$28 -> 0 | AI93: ='23'!U$28 -> 0 | AJ93: ='23'!V$28 -> 0 | AK93: ='23'!W$28 -> 0 | AL93: ='23'!X$28 -> 0 | AM93: ='23'!Y$28 -> 0 | AN93: ='23'!Z$28 -> 0 | AO93: ='23'!AA$28 -> 0 | AP93: ='23'!AB$28 -> 0 | AQ93: ='23'!AC$28 -> 0 | AR93: ='23'!AD$28 -> 0 | AS93: 45 | AT93: 2018-06-05 | AU93: - | AV93: 2018-06-11 | AW93: 23
A94: 46 | B94: 2018-06-12 | C94: - | D94: 2018-06-18 | E94: =Overview!F63 -> 24 | F94: ='24'!M$27 -> 0 | G94: ='24'!N$27 -> 0 | H94: ='24'!O$27 -> 0 | I94: ='24'!P$27 -> 0 | J94: ='24'!Q$27 -> 0 | K94: ='24'!R$27 -> 0 | L94: ='24'!S$27 -> 0 | M94: ='24'!T$27 -> 0 | N94: ='24'!U$27 -> 0 | O94: ='24'!V$27 -> 0 | P94: ='24'!W$27 -> 0 | Q94: ='24'!X$27 -> 0 | R94: ='24'!Y$27 -> 0 | S94: ='24'!Z$27 -> 0 | T94: ='24'!AA$27 -> 0 | U94: ='24'!AB$27 -> 0 | V94: ='24'!AC$27 -> 0 | W94: ='24'!AD$27 -> 0 | AA94: ='24'!M$28 -> 0 | AB94: ='24'!N$28 -> 0 | AC94: ='24'!O$28 -> 0 | AD94: ='24'!P$28 -> 0 | AE94: ='24'!Q$28 -> 0 | AF94: ='24'!R$28 -> 0 | AG94: ='24'!S$28 -> 0 | AH94: ='24'!T$28 -> 0 | AI94: ='24'!U$28 -> 0 | AJ94: ='24'!V$28 -> 0 | AK94: ='24'!W$28 -> 0 | AL94: ='24'!X$28 -> 0 | AM94: ='24'!Y$28 -> 0 | AN94: ='24'!Z$28 -> 0 | AO94: ='24'!AA$28 -> 0 | AP94: ='24'!AB$28 -> 0 | AQ94: ='24'!AC$28 -> 0 | AR94: ='24'!AD$28 -> 0 | AS94: 46 | AT94: 2018-06-12 | AU94: - | AV94: 2018-06-18 | AW94: 24
A95: 47 | B95: 2018-06-19 | C95: - | D95: 2018-06-25 | E95: =Overview!F64 -> 25 | F95: ='25'!M$27 -> 0 | G95: ='25'!N$27 -> 0 | H95: ='25'!O$27 -> 0 | I95: ='25'!P$27 -> 0 | J95: ='25'!Q$27 -> 0 | K95: ='25'!R$27 -> 0 | L95: ='25'!S$27 -> 0 | M95: ='25'!T$27 -> 0 | N95: ='25'!U$27 -> 0 | O95: ='25'!V$27 -> 0 | P95: ='25'!W$27 -> 0 | Q95: ='25'!X$27 -> 0 | R95: ='25'!Y$27 -> 0 | S95: ='25'!Z$27 -> 0 | T95: ='25'!AA$27 -> 0 | U95: ='25'!AB$27 -> 0 | V95: ='25'!AC$27 -> 0 | W95: ='25'!AD$27 -> 0 | AA95: ='25'!M$28 -> 0 | AB95: ='25'!N$28 -> 0 | AC95: ='25'!O$28 -> 0 | AD95: ='25'!P$28 -> 0 | AE95: ='25'!Q$28 -> 0 | AF95: ='25'!R$28 -> 0 | AG95: ='25'!S$28 -> 0 | AH95: ='25'!T$28 -> 0 | AI95: ='25'!U$28 -> 0 | AJ95: ='25'!V$28 -> 0 | AK95: ='25'!W$28 -> 0 | AL95: ='25'!X$28 -> 0 | AM95: ='25'!Y$28 -> 0 | AN95: ='25'!Z$28 -> 0 | AO95: ='25'!AA$28 -> 0 | AP95: ='25'!AB$28 -> 0 | AQ95: ='25'!AC$28 -> 0 | AR95: ='25'!AD$28 -> 0 | AS95: 47 | AT95: 2018-06-19 | AU95: - | AV95: 2018-06-25 | AW95: 25
A96: 48 | B96: 2018-06-26 | C96: - | D96: 2018-07-02 | E96: =Overview!F65 -> 26 | F96: ='26'!M$27 -> 0 | G96: ='26'!N$27 -> 0 | H96: ='26'!O$27 -> 0 | I96: ='26'!P$27 -> 0 | J96: ='26'!Q$27 -> 0 | K96: ='26'!R$27 -> 0 | L96: ='26'!S$27 -> 0 | M96: ='26'!T$27 -> 0 | N96: ='26'!U$27 -> 0 | O96: ='26'!V$27 -> 0 | P96: ='26'!W$27 -> 0 | Q96: ='26'!X$27 -> 0 | R96: ='26'!Y$27 -> 0 | S96: ='26'!Z$27 -> 0 | T96: ='26'!AA$27 -> 0 | U96: ='26'!AB$27 -> 0 | V96: ='26'!AC$27 -> 0 | W96: ='26'!AD$27 -> 0 | AA96: ='26'!M$28 -> 0 | AB96: ='26'!N$28 -> 0 | AC96: ='26'!O$28 -> 0 | AD96: ='26'!P$28 -> 0 | AE96: ='26'!Q$28 -> 0 | AF96: ='26'!R$28 -> 0 | AG96: ='26'!S$28 -> 0 | AH96: ='26'!T$28 -> 0 | AI96: ='26'!U$28 -> 0 | AJ96: ='26'!V$28 -> 0 | AK96: ='26'!W$28 -> 0 | AL96: ='26'!X$28 -> 0 | AM96: ='26'!Y$28 -> 0 | AN96: ='26'!Z$28 -> 0 | AO96: ='26'!AA$28 -> 0 | AP96: ='26'!AB$28 -> 0 | AQ96: ='26'!AC$28 -> 0 | AR96: ='26'!AD$28 -> 0 | AS96: 48 | AT96: 2018-06-26 | AU96: - | AV96: 2018-07-02 | AW96: 26
A97: 49 | B97: 2018-07-03 | C97: - | D97: 2018-07-09 | E97: =Overview!F66 -> 27 | F97: ='27'!M$27 -> 0 | G97: ='27'!N$27 -> 0 | H97: ='27'!O$27 -> 0 | I97: ='27'!P$27 -> 0 | J97: ='27'!Q$27 -> 0 | K97: ='27'!R$27 -> 0 | L97: ='27'!S$27 -> 0 | M97: ='27'!T$27 -> 0 | N97: ='27'!U$27 -> 0 | O97: ='27'!V$27 -> 0 | P97: ='27'!W$27 -> 0 | Q97: ='27'!X$27 -> 0 | R97: ='27'!Y$27 -> 0 | S97: ='27'!Z$27 -> 0 | T97: ='27'!AA$27 -> 0 | U97: ='27'!AB$27 -> 0 | V97: ='27'!AC$27 -> 0 | W97: ='27'!AD$27 -> 0 | AA97: ='27'!M$28 -> 0 | AB97: ='27'!N$28 -> 0 | AC97: ='27'!O$28 -> 0 | AD97: ='27'!P$28 -> 0 | AE97: ='27'!Q$28 -> 0 | AF97: ='27'!R$28 -> 0 | AG97: ='27'!S$28 -> 0 | AH97: ='27'!T$28 -> 0 | AI97: ='27'!U$28 -> 0 | AJ97: ='27'!V$28 -> 0 | AK97: ='27'!W$28 -> 0 | AL97: ='27'!X$28 -> 0 | AM97: ='27'!Y$28 -> 0 | AN97: ='27'!Z$28 -> 0 | AO97: ='27'!AA$28 -> 0 | AP97: ='27'!AB$28 -> 0 | AQ97: ='27'!AC$28 -> 0 | AR97: ='27'!AD$28 -> 0 | AS97: 49 | AT97: 2018-07-03 | AU97: - | AV97: 2018-07-09 | AW97: 27
A98: 50 | B98: 2018-07-10 | C98: - | D98: 2018-07-16 | E98: =Overview!F67 -> 28 | F98: ='28'!M$27 -> 0 | G98: ='28'!N$27 -> 0 | H98: ='28'!O$27 -> 0 | I98: ='28'!P$27 -> 0 | J98: ='28'!Q$27 -> 0 | K98: ='28'!R$27 -> 0 | L98: ='28'!S$27 -> 0 | M98: ='28'!T$27 -> 0 | N98: ='28'!U$27 -> 0 | O98: ='28'!V$27 -> 0 | P98: ='28'!W$27 -> 0 | Q98: ='28'!X$27 -> 0 | R98: ='28'!Y$27 -> 0 | S98: ='28'!Z$27 -> 0 | T98: ='28'!AA$27 -> 0 | U98: ='28'!AB$27 -> 0 | V98: ='28'!AC$27 -> 0 | W98: ='28'!AD$27 -> 0 | AA98: ='28'!M$28 -> 0 | AB98: ='28'!N$28 -> 0 | AC98: ='28'!O$28 -> 0 | AD98: ='28'!P$28 -> 0 | AE98: ='28'!Q$28 -> 0 | AF98: ='28'!R$28 -> 0 | AG98: ='28'!S$28 -> 0 | AH98: ='28'!T$28 -> 0 | AI98: ='28'!U$28 -> 0 | AJ98: ='28'!V$28 -> 0 | AK98: ='28'!W$28 -> 0 | AL98: ='28'!X$28 -> 0 | AM98: ='28'!Y$28 -> 0 | AN98: ='28'!Z$28 -> 0 | AO98: ='28'!AA$28 -> 0 | AP98: ='28'!AB$28 -> 0 | AQ98: ='28'!AC$28 -> 0 | AR98: ='28'!AD$28 -> 0 | AS98: 50 | AT98: 2018-07-10 | AU98: - | AV98: 2018-07-16 | AW98: 28
A99: 51 | B99: 2018-07-17 | C99: - | D99: 2018-07-23 | E99: =Overview!F68 -> 29 | F99: ='29'!M$27 -> 0 | G99: ='29'!N$27 -> 0 | H99: ='29'!O$27 -> 0 | I99: ='29'!P$27 -> 0 | J99: ='29'!Q$27 -> 0 | K99: ='29'!R$27 -> 0 | L99: ='29'!S$27 -> 0 | M99: ='29'!T$27 -> 0 | N99: ='29'!U$27 -> 0 | O99: ='29'!V$27 -> 0 | P99: ='29'!W$27 -> 0 | Q99: ='29'!X$27 -> 0 | R99: ='29'!Y$27 -> 0 | S99: ='29'!Z$27 -> 0 | T99: ='29'!AA$27 -> 0 | U99: ='29'!AB$27 -> 0 | V99: ='29'!AC$27 -> 0 | W99: ='29'!AD$27 -> 0 | AA99: ='29'!M$28 -> 0 | AB99: ='29'!N$28 -> 0 | AC99: ='29'!O$28 -> 0 | AD99: ='29'!P$28 -> 0 | AE99: ='29'!Q$28 -> 0 | AF99: ='29'!R$28 -> 0 | AG99: ='29'!S$28 -> 0 | AH99: ='29'!T$28 -> 0 | AI99: ='29'!U$28 -> 0 | AJ99: ='29'!V$28 -> 0 | AK99: ='29'!W$28 -> 0 | AL99: ='29'!X$28 -> 0 | AM99: ='29'!Y$28 -> 0 | AN99: ='29'!Z$28 -> 0 | AO99: ='29'!AA$28 -> 0 | AP99: ='29'!AB$28 -> 0 | AQ99: ='29'!AC$28 -> 0 | AR99: ='29'!AD$28 -> 0 | AS99: 51 | AT99: 2018-07-17 | AU99: - | AV99: 2018-07-23 | AW99: 29
A100: 52 | B100: 2018-07-24 | C100: - | D100: 2018-07-30 | E100: =Overview!F69 -> 30 | F100: ='30'!M$27 -> 0 | G100: ='30'!N$27 -> 0 | H100: ='30'!O$27 -> 0 | I100: ='30'!P$27 -> 0 | J100: ='30'!Q$27 -> 0 | K100: ='30'!R$27 -> 0 | L100: ='30'!S$27 -> 0 | M100: ='30'!T$27 -> 0 | N100: ='30'!U$27 -> 0 | O100: ='30'!V$27 -> 0 | P100: ='30'!W$27 -> 0 | Q100: ='30'!X$27 -> 0 | R100: ='30'!Y$27 -> 0 | S100: ='30'!Z$27 -> 0 | T100: ='30'!AA$27 -> 0 | U100: ='30'!AB$27 -> 0 | V100: ='30'!AC$27 -> 0 | W100: ='30'!AD$27 -> 0 | AA100: ='30'!M$28 -> 0 | AB100: ='30'!N$28 -> 0 | AC100: ='30'!O$28 -> 0 | AD100: ='30'!P$28 -> 0 | AE100: ='30'!Q$28 -> 0 | AF100: ='30'!R$28 -> 0 | AG100: ='30'!S$28 -> 0 | AH100: ='30'!T$28 -> 0 | AI100: ='30'!U$28 -> 0 | AJ100: ='30'!V$28 -> 0 | AK100: ='30'!W$28 -> 0 | AL100: ='30'!X$28 -> 0 | AM100: ='30'!Y$28 -> 0 | AN100: ='30'!Z$28 -> 0 | AO100: ='30'!AA$28 -> 0 | AP100: ='30'!AB$28 -> 0 | AQ100: ='30'!AC$28 -> 0 | AR100: ='30'!AD$28 -> 0 | AS100: 52 | AT100: 2018-07-24 | AU100: - | AV100: 2018-07-30 | AW100: 30
E101: Total Trainingseinheiten | F101: =DSUM($A$45:H100,F46,$A$45:$B$46) -> 0 | G101: =DSUM($A$45:I100,G46,$A$45:$B$46) -> 0 | H101: =DSUM($A$45:J100,H46,$A$45:$B$46) -> 0 | I101: =DSUM($A$45:K100,I46,$A$45:$B$46) -> 0 | J101: =DSUM($A$45:L100,J46,$A$45:$B$46) -> 0 | K101: =DSUM($A$45:M100,K46,$A$45:$B$46) -> 0 | L101: =DSUM($A$45:N100,L46,$A$45:$B$46) -> 0 | M101: =DSUM($A$45:O100,M46,$A$45:$B$46) -> 0 | N101: =DSUM($A$45:P100,N46,$A$45:$B$46) -> 0 | O101: =DSUM($A$45:Q100,O46,$A$45:$B$46) -> 0 | P101: =DSUM($A$45:R100,P46,$A$45:$B$46) -> 0 | Q101: =DSUM($A$45:S100,Q46,$A$45:$B$46) -> 0 | R101: =DSUM($A$45:T100,R46,$A$45:$B$46) -> 0 | S101: =DSUM($A$45:U100,S46,$A$45:$B$46) -> 0 | T101: =DSUM($A$45:V100,T46,$A$45:$B$46) -> 0 | U101: =DSUM($A$45:W100,U46,$A$45:$B$46) -> 0 | V101: =DSUM($A$45:X100,V46,$A$45:$B$46) -> 0 | W101: =DSUM($A$45:Z100,W46,$A$45:$B$46) -> 0 | Z101: Total Trainingsstunden | AA101: =DSUM($AA$45:AT100,AA46,$AS$45:$AT$46)/60 -> 0 | AB101: =DSUM($AA$45:AU100,AB46,$AS$45:$AT$46)/60 -> 0 | AC101: =DSUM($AA$45:AV100,AC46,$AS$45:$AT$46)/60 -> 0 | AD101: =DSUM($AA$45:AW100,AD46,$AS$45:$AT$46)/60 -> 0 | AE101: =DSUM($AA$45:AW100,AE46,$AS$45:$AT$46)/60 -> 0 | AF101: =DSUM($AA$45:AW100,AF46,$AS$45:$AT$46)/60 -> 0 | AG101: =DSUM($AA$45:AW100,AG46,$AS$45:$AT$46)/60 -> 0 | AH101: =DSUM($AA$45:AW100,AH46,$AS$45:$AT$46)/60 -> 0 | AI101: =DSUM($AA$45:AW100,AI46,$AS$45:$AT$46)/60 -> 0 | AJ101: =DSUM($AA$45:AW100,AJ46,$AS$45:$AT$46)/60 -> 0 | AK101: =DSUM($AA$45:AW100,AK46,$AS$45:$AT$46)/60 -> 0 | AL101: =DSUM($AA$45:AW100,AL46,$AS$45:$AT$46)/60 -> 0 | AM101: =DSUM($AA$45:AW100,AM46,$AS$45:$AT$46)/60 -> 0 | AN101: =DSUM($AA$45:AW100,AN46,$AS$45:$AT$46)/60 -> 0 | AO101: =DSUM($AA$45:AW100,AO46,$AS$45:$AT$46)/60 -> 0 | AP101: =DSUM($AA$45:AW100,AP46,$AS$45:$AT$46)/60 -> 0 | AQ101: =DSUM($AA$45:AW100,AQ46,$AS$45:$AT$46)/60 -> 0 | AR101: =DSUM($AA$45:AW100,AR46,$AS$45:$AT$46)/60 -> 0
E102: % des Sportartes | F102: =SUM(F101:H101)/(SUM($F$101:$W$101)) ->  | I102: =SUM(I101:K101)/(SUM($F$101:$W$101)) ->  | L102: =SUM(L101:N101)/(SUM($F$101:$W$101)) ->  | O102: =SUM(O101:Q101)/(SUM($F$101:$W$101)) ->  | R102: =SUM(R101:T101)/(SUM($F$101:$W$101)) ->  | U102: =SUM(U101:W101)/(SUM($F$101:$W$101)) ->  | Z102: % des Sportartes | AA102: =SUM(AA101:AC101)/(SUM($AA$101:$AR$101)) ->  | AD102: =SUM(AD101:AF101)/(SUM($AA$101:$AR$101)) ->  | AG102: =SUM(AG101:AI101)/(SUM($AA$101:$AR$101)) ->  | AJ102: =SUM(AJ101:AL101)/(SUM($AA$101:$AR$101)) ->  | AM102: =SUM(AM101:AO101)/(SUM($AA$101:$AR$101)) ->  | AP102: =SUM(AP101:AR101)/(SUM($AA$101:$AR$101)) -> 
E103: Intensitätsverteilung (Total) | F103: =SUM(F101,I101,L101,O101,R101,U101)/SUM($F$101:$W$101) ->  | G103: =SUM(G101,J101,M101,P101,S101,V101)/SUM($F$101:$W$101) ->  | H103: =SUM(H101,K101,N101,Q101,T101,W101)/SUM($F$101:$W$101) ->  | Z103: Intensitätsverteilung (Total) | AA103: =SUM(AA101,AD101,AG101,AJ101,AM101,AP101)/SUM($AA$101:$AR$101) ->  | AB103: =SUM(AB101,AE101,AH101,AK101,AN101,AQ101)/SUM($AA$101:$AR$101) ->  | AC103: =SUM(AC101,AF101,AI101,AL101,AO101,AR101)/SUM($AA$101:$AR$101) -> 
E104: Intensitätsverteilung (pro Sportart) | F104: =F101/SUM($F$101:$H$101) ->  | G104: =G101/SUM($F$101:$H$101) ->  | H104: =H101/SUM($F$101:$H$101) ->  | I104: =I101/SUM($I$101:$K$101) ->  | J104: =J101/SUM($I$101:$K$101) ->  | K104: =K101/SUM($I$101:$K$101) ->  | L104: =L101/SUM($L$101:$N$101) ->  | M104: =M101/SUM($L$101:$N$101) ->  | N104: =N101/SUM($L$101:$N$101) ->  | O104: =O101/SUM($O$101:$Q$101) ->  | P104: =P101/SUM($O$101:$Q$101) ->  | Q104: =Q101/SUM($O$101:$Q$101) ->  | R104: =R101/SUM($R$101:$T$101) ->  | S104: =S101/SUM($R$101:$T$101) ->  | T104: =T101/SUM($R$101:$T$101) ->  | U104: =U101/SUM($U$101:$W$101) ->  | V104: =V101/SUM($U$101:$W$101) ->  | W104: =W101/SUM($U$101:$W$101) ->  | Z104: Intensitätsverteilung | AA104: =AA101/SUM($AA$101:$AC$101) ->  | AB104: =AB101/SUM($AA$101:$AC$101) ->  | AC104: =AC101/SUM($AA$101:$AC$101) ->  | AD104: =AD101/SUM($AD$101:$AF$101) ->  | AE104: =AE101/SUM($AD$101:$AF$101) ->  | AF104: =AF101/SUM($AD$101:$AF$101) ->  | AG104: =AG101/SUM($AG$101:$AI$101) ->  | AH104: =AH101/SUM($AG$101:$AI$101) ->  | AI104: =AI101/SUM($AG$101:$AI$101) ->  | AJ104: =AJ101/SUM($AJ$101:$AL$101) ->  | AK104: =AK101/SUM($AJ$101:$AL$101) ->  | AL104: =AL101/SUM($AJ$101:$AL$101) ->  | AM104: =AM101/SUM($AM$101:$AO$101) ->  | AN104: =AN101/SUM($AM$101:$AO$101) ->  | AO104: =AO101/SUM($AM$101:$AO$101) ->  | AP104: =AP101/SUM($AP$101:$AR$101) ->  | AQ104: =AQ101/SUM($AP$101:$AR$101) ->  | AR104: =AR101/SUM($AP$101:$AR$101) -> 
E170: Total | F170: =F47 -> Balltraining-Club | G170: =I47 -> Balltraining-TS/ Nati | H170: =L47 -> iso. Krafttraining | I170: =O47 -> iso. Fitnesstraining | J170: =R47 -> Wettkampf | K170: =U47 -> Anderes Training

Sheet Regeneration-Schlaf-Gewicht
D1: Gewicht-Motiv-Schlaf
B2: Athlet : | C2: =Overview!D2 -> Vorname Nachname | G2: Jahr : | H2: =Overview!N2 -> 2017/2018
A4: Kalender-woche | B4: Datum | E4: Gewicht | F4: gefühlte Regeneration | G4: Schlafqualität | H4: Schlafdauer | I4: Schlaf-abweichung
E5: Kg | F5: 1-5 | G5: 1-5 | H5: Std | I5: Std
A6: =Overview!F18 -> 31 | B6: =Overview!C18 -> 2017-08-01 | C6: =Overview!D18 -> - | D6: =Overview!E18 -> 2017-08-07 | E6: =IF('31'!D$26="","",'31'!D$26) -> 0 | F6: =IF('31'!E$26="","",'31'!E$26) -> 0 | G6: =IF('31'!F$26="","",'31'!F$26) -> 0 | H6: =IF('31'!G$26="","",'31'!G$26) -> 0 | I6: =IF('31'!G$27="","",'31'!G$27) -> 0 | AO6: =IF(E6="",#N/A,E6) -> 0 | AP6: =IF(F6="",#N/A,F6) -> 0 | AQ6: =IF(G6="",#N/A,G6) -> 0 | AR6: =IF(H6="",#N/A,H6) -> 0 | AS6: =IF(I6="",#N/A,I6) -> 0
A7: =Overview!F19 -> 32 | B7: =Overview!C19 -> 2017-08-08 | C7: =Overview!D19 -> - | D7: =Overview!E19 -> 2017-08-14 | E7: =IF('32'!D$26="","",'32'!D$26) -> 0 | F7: =IF('32'!E$26="","",'32'!E$26) -> 0 | G7: =IF('32'!F$26="","",'32'!F$26) -> 0 | H7: =IF('32'!G$26="","",'32'!G$26) -> 0 | I7: =IF('32'!G$27="","",'32'!G$27) -> 0 | AO7: =IF(E7="",#N/A,E7) -> 0 | AP7: =IF(F7="",#N/A,F7) -> 0 | AQ7: =IF(G7="",#N/A,G7) -> 0 | AR7: =IF(H7="",#N/A,H7) -> 0 | AS7: =IF(I7="",#N/A,I7) -> 0
A8: =Overview!F20 -> 33 | B8: =Overview!C20 -> 2017-08-15 | C8: =Overview!D20 -> - | D8: =Overview!E20 -> 2017-08-21 | E8: =IF('33'!D$26="","",'33'!D$26) -> 0 | F8: =IF('33'!E$26="","",'33'!E$26) -> 0 | G8: =IF('33'!F$26="","",'33'!F$26) -> 0 | H8: =IF('33'!G$26="","",'33'!G$26) -> 0 | I8: =IF('33'!G$27="","",'33'!G$27) -> 0 | AO8: 0 | AP8: 0 | AQ8: 0 | AR8: 0 | AS8: 0
A9: =Overview!F21 -> 34 | B9: =Overview!C21 -> 2017-08-22 | C9: =Overview!D21 -> - | D9: =Overview!E21 -> 2017-08-28 | E9: =IF('34'!D$26="","",'34'!D$26) -> 0 | F9: =IF('34'!E$26="","",'34'!E$26) -> 0 | G9: =IF('34'!F$26="","",'34'!F$26) -> 0 | H9: =IF('34'!G$26="","",'34'!G$26) -> 0 | I9: =IF('34'!G$27="","",'34'!G$27) -> 0 | AO9: 0 | AP9: 0 | AQ9: 0 | AR9: 0 | AS9: 0
A10: =Overview!F22 -> 35 | B10: =Overview!C22 -> 2017-08-29 | C10: =Overview!D22 -> - | D10: =Overview!E22 -> 2017-09-04 | E10: =IF('35'!D$26="","",'35'!D$26) -> 0 | F10: =IF('35'!E$26="","",'35'!E$26) -> 0 | G10: =IF('35'!F$26="","",'35'!F$26) -> 0 | H10: =IF('35'!G$26="","",'35'!G$26) -> 0 | I10: =IF('35'!G$27="","",'35'!G$27) -> 0 | AO10: 0 | AP10: 0 | AQ10: 0 | AR10: 0 | AS10: 0
A11: =Overview!F23 -> 36 | B11: =Overview!C23 -> 2017-09-05 | C11: =Overview!D23 -> - | D11: =Overview!E23 -> 2017-09-11 | E11: =IF('36'!D$26="","",'36'!D$26) -> 0 | F11: =IF('36'!E$26="","",'36'!E$26) -> 0 | G11: =IF('36'!F$26="","",'36'!F$26) -> 0 | H11: =IF('36'!G$26="","",'36'!G$26) -> 0 | I11: =IF('36'!G$27="","",'36'!G$27) -> 0 | AO11: 0 | AP11: 0 | AQ11: 0 | AR11: 0 | AS11: 0
A12: =Overview!F24 -> 37 | B12: =Overview!C24 -> 2017-09-12 | C12: =Overview!D24 -> - | D12: =Overview!E24 -> 2017-09-18 | E12: =IF('37'!D$26="","",'37'!D$26) -> 0 | F12: =IF('37'!E$26="","",'37'!E$26) -> 0 | G12: =IF('37'!F$26="","",'37'!F$26) -> 0 | H12: =IF('37'!G$26="","",'37'!G$26) -> 0 | I12: =IF('37'!G$27="","",'37'!G$27) -> 0 | AO12: 0 | AP12: 0 | AQ12: 0 | AR12: 0 | AS12: 0
A13: =Overview!F25 -> 38 | B13: =Overview!C25 -> 2017-09-19 | C13: =Overview!D25 -> - | D13: =Overview!E25 -> 2017-09-25 | E13: =IF('38'!D$26="","",'38'!D$26) -> 0 | F13: =IF('38'!E$26="","",'38'!E$26) -> 0 | G13: =IF('38'!F$26="","",'38'!F$26) -> 0 | H13: =IF('38'!G$26="","",'38'!G$26) -> 0 | I13: =IF('38'!G$27="","",'38'!G$27) -> 0 | AO13: 0 | AP13: 0 | AQ13: 0 | AR13: 0 | AS13: 0
A14: =Overview!F26 -> 39 | B14: =Overview!C26 -> 2017-09-26 | C14: =Overview!D26 -> - | D14: =Overview!E26 -> 2017-10-02 | E14: =IF('39'!D$26="","",'39'!D$26) -> 0 | F14: =IF('39'!E$26="","",'39'!E$26) -> 0 | G14: =IF('39'!F$26="","",'39'!F$26) -> 0 | H14: =IF('39'!G$26="","",'39'!G$26) -> 0 | I14: =IF('39'!G$27="","",'39'!G$27) -> 0 | AO14: 0 | AP14: 0 | AQ14: 0 | AR14: 0 | AS14: 0
A15: =Overview!F27 -> 40 | B15: =Overview!C27 -> 2017-10-03 | C15: =Overview!D27 -> - | D15: =Overview!E27 -> 2017-10-09 | E15: =IF('40'!D$26="","",'40'!D$26) -> 0 | F15: =IF('40'!E$26="","",'40'!E$26) -> 0 | G15: =IF('40'!F$26="","",'40'!F$26) -> 0 | H15: =IF('40'!G$26="","",'40'!G$26) -> 0 | I15: =IF('40'!G$27="","",'40'!G$27) -> 0 | AO15: 0 | AP15: 0 | AQ15: 0 | AR15: 0 | AS15: 0
A16: =Overview!F28 -> 41 | B16: =Overview!C28 -> 2017-10-10 | C16: =Overview!D28 -> - | D16: =Overview!E28 -> 2017-10-16 | E16: =IF('41'!D$26="","",'41'!D$26) -> 0 | F16: =IF('41'!E$26="","",'41'!E$26) -> 0 | G16: =IF('41'!F$26="","",'41'!F$26) -> 0 | H16: =IF('41'!G$26="","",'41'!G$26) -> 0 | I16: =IF('41'!G$27="","",'41'!G$27) -> 0 | AO16: 0 | AP16: 0 | AQ16: 0 | AR16: 0 | AS16: 0
A17: =Overview!F29 -> 42 | B17: =Overview!C29 -> 2017-10-17 | C17: =Overview!D29 -> - | D17: =Overview!E29 -> 2017-10-23 | E17: =IF('42'!D$26="","",'42'!D$26) -> 0 | F17: =IF('42'!E$26="","",'42'!E$26) -> 0 | G17: =IF('42'!F$26="","",'42'!F$26) -> 0 | H17: =IF('42'!G$26="","",'42'!G$26) -> 0 | I17: =IF('42'!G$27="","",'42'!G$27) -> 0 | AO17: 0 | AP17: 0 | AQ17: 0 | AR17: 0 | AS17: 0
A18: =Overview!F30 -> 43 | B18: =Overview!C30 -> 2017-10-24 | C18: =Overview!D30 -> - | D18: =Overview!E30 -> 2017-10-30 | E18: =IF('43'!D$26="","",'43'!D$26) -> 0 | F18: =IF('43'!E$26="","",'43'!E$26) -> 0 | G18: =IF('43'!F$26="","",'43'!F$26) -> 0 | H18: =IF('43'!G$26="","",'43'!G$26) -> 0 | I18: =IF('43'!G$27="","",'43'!G$27) -> 0 | AO18: 0 | AP18: 0 | AQ18: 0 | AR18: 0 | AS18: 0
A19: =Overview!F31 -> 44 | B19: =Overview!C31 -> 2017-10-31 | C19: =Overview!D31 -> - | D19: =Overview!E31 -> 2017-11-06 | E19: =IF('44'!D$26="","",'44'!D$26) -> 0 | F19: =IF('44'!E$26="","",'44'!E$26) -> 0 | G19: =IF('44'!F$26="","",'44'!F$26) -> 0 | H19: =IF('44'!G$26="","",'44'!G$26) -> 0 | I19: =IF('44'!G$27="","",'44'!G$27) -> 0 | AO19: 0 | AP19: 0 | AQ19: 0 | AR19: 0 | AS19: 0
A20: =Overview!F32 -> 45 | B20: =Overview!C32 -> 2017-11-07 | C20: =Overview!D32 -> - | D20: =Overview!E32 -> 2017-11-13 | E20: =IF('45'!D$26="","",'45'!D$26) -> 0 | F20: =IF('45'!E$26="","",'45'!E$26) -> 0 | G20: =IF('45'!F$26="","",'45'!F$26) -> 0 | H20: =IF('45'!G$26="","",'45'!G$26) -> 0 | I20: =IF('45'!G$27="","",'45'!G$27) -> 0 | AO20: 0 | AP20: 0 | AQ20: 0 | AR20: 0 | AS20: 0
A21: =Overview!F33 -> 46 | B21: =Overview!C33 -> 2017-11-14 | C21: =Overview!D33 -> - | D21: =Overview!E33 -> 2017-11-20 | E21: =IF('46'!D$26="","",'46'!D$26) -> 0 | F21: =IF('46'!E$26="","",'46'!E$26) -> 0 | G21: =IF('46'!F$26="","",'46'!F$26) -> 0 | H21: =IF('46'!G$26="","",'46'!G$26) -> 0 | I21: =IF('46'!G$27="","",'46'!G$27) -> 0 | AO21: 0 | AP21: 0 | AQ21: 0 | AR21: 0 | AS21: 0
A22: =Overview!F34 -> 47 | B22: =Overview!C34 -> 2017-11-21 | C22: =Overview!D34 -> - | D22: =Overview!E34 -> 2017-11-27 | E22: =IF('47'!D$26="","",'47'!D$26) -> 0 | F22: =IF('47'!E$26="","",'47'!E$26) -> 0 | G22: =IF('47'!F$26="","",'47'!F$26) -> 0 | H22: =IF('47'!G$26="","",'47'!G$26) -> 0 | I22: =IF('47'!G$27="","",'47'!G$27) -> 0 | AO22: 0 | AP22: =IF(F22="",#N/A,F22) -> 0 | AQ22: =IF(G22="",#N/A,G22) -> 0 | AR22: =IF(H22="",#N/A,H22) -> 0 | AS22: 0
A23: =Overview!F35 -> 48 | B23: =Overview!C35 -> 2017-11-28 | C23: =Overview!D35 -> - | D23: =Overview!E35 -> 2017-12-04 | E23: =IF('48'!D$26="","",'48'!D$26) -> 0 | F23: =IF('48'!E$26="","",'48'!E$26) -> 0 | G23: =IF('48'!F$26="","",'48'!F$26) -> 0 | H23: =IF('48'!G$26="","",'48'!G$26) -> 0 | I23: =IF('48'!G$27="","",'48'!G$27) -> 0 | AO23: 0 | AP23: 0 | AQ23: 0 | AR23: 0 | AS23: 0
A24: =Overview!F36 -> 49 | B24: =Overview!C36 -> 2017-12-05 | C24: =Overview!D36 -> - | D24: =Overview!E36 -> 2017-12-11 | E24: =IF('49'!D$26="","",'49'!D$26) -> 0 | F24: =IF('49'!E$26="","",'49'!E$26) -> 0 | G24: =IF('49'!F$26="","",'49'!F$26) -> 0 | H24: =IF('49'!G$26="","",'49'!G$26) -> 0 | I24: =IF('49'!G$27="","",'49'!G$27) -> 0 | AO24: 0 | AP24: 0 | AQ24: 0 | AR24: 0 | AS24: 0
A25: =Overview!F37 -> 50 | B25: =Overview!C37 -> 2017-12-12 | C25: =Overview!D37 -> - | D25: =Overview!E37 -> 2017-12-18 | E25: =IF('50'!D$26="","",'50'!D$26) -> 0 | F25: =IF('50'!E$26="","",'50'!E$26) -> 0 | G25: =IF('50'!F$26="","",'50'!F$26) -> 0 | H25: =IF('50'!G$26="","",'50'!G$26) -> 0 | I25: =IF('50'!G$27="","",'50'!G$27) -> 0 | AO25: 0 | AP25: 0 | AQ25: 0 | AR25: 0 | AS25: 0
A26: =Overview!F38 -> 51 | B26: =Overview!C38 -> 2017-12-19 | C26: =Overview!D38 -> - | D26: =Overview!E38 -> 2017-12-25 | E26: =IF('51'!D$26="","",'51'!D$26) -> 0 | F26: =IF('51'!E$26="","",'51'!E$26) -> 0 | G26: =IF('51'!F$26="","",'51'!F$26) -> 0 | H26: =IF('51'!G$26="","",'51'!G$26) -> 0 | I26: =IF('51'!G$27="","",'51'!G$27) -> 0 | AO26: 0 | AP26: 0 | AQ26: 0 | AR26: 0 | AS26: 0
A27: =Overview!F39 -> 52 | B27: =Overview!C39 -> 2017-12-26 | C27: =Overview!D39 -> - | D27: =Overview!E39 -> 2018-01-01 | E27: =IF('52'!D$26="","",'52'!D$26) -> 0 | F27: =IF('52'!E$26="","",'52'!E$26) -> 0 | G27: =IF('52'!F$26="","",'52'!F$26) -> 0 | H27: =IF('52'!G$26="","",'52'!G$26) -> 0 | I27: =IF('52'!G$27="","",'52'!G$27) -> 0 | AO27: 0 | AP27: 0 | AQ27: 0 | AR27: 0 | AS27: 0
A28: =Overview!F40 -> 1 | B28: =Overview!C40 -> 2018-01-02 | C28: =Overview!D40 -> - | D28: =Overview!E40 -> 2018-01-08 | E28: =IF('1'!D$26="","",'1'!D$26) -> 0 | F28: =IF('1'!E$26="","",'1'!E$26) -> 0 | G28: =IF('1'!F$26="","",'1'!F$26) -> 0 | H28: =IF('1'!G$26="","",'1'!G$26) -> 0 | I28: =IF('1'!G$27="","",'1'!G$27) -> 0 | AO28: 0 | AP28: 0 | AQ28: 0 | AR28: 0 | AS28: 0
A29: =Overview!F41 -> 2 | B29: =Overview!C41 -> 2018-01-09 | C29: =Overview!D41 -> - | D29: =Overview!E41 -> 2018-01-15 | E29: =IF('2'!D$26="","",'2'!D$26) -> 0 | F29: =IF('2'!E$26="","",'2'!E$26) -> 0 | G29: =IF('2'!F$26="","",'2'!F$26) -> 0 | H29: =IF('2'!G$26="","",'2'!G$26) -> 0 | I29: =IF('2'!G$27="","",'2'!G$27) -> 0 | AO29: 0 | AP29: 0 | AQ29: 0 | AR29: 0 | AS29: 0
A30: =Overview!F42 -> 3 | B30: =Overview!C42 -> 2018-01-16 | C30: =Overview!D42 -> - | D30: =Overview!E42 -> 2018-01-22 | E30: =IF('3'!D$26="","",'3'!D$26) -> 0 | F30: =IF('3'!E$26="","",'3'!E$26) -> 0 | G30: =IF('3'!F$26="","",'3'!F$26) -> 0 | H30: =IF('3'!G$26="","",'3'!G$26) -> 0 | I30: =IF('3'!G$27="","",'3'!G$27) -> 0 | AO30: 0 | AP30: 0 | AQ30: 0 | AR30: 0 | AS30: 0
A31: =Overview!F43 -> 4 | B31: =Overview!C43 -> 2018-01-23 | C31: =Overview!D43 -> - | D31: =Overview!E43 -> 2018-01-29 | E31: =IF('4'!D$26="","",'4'!D$26) -> 0 | F31: =IF('4'!E$26="","",'4'!E$26) -> 0 | G31: =IF('4'!F$26="","",'4'!F$26) -> 0 | H31: =IF('4'!G$26="","",'4'!G$26) -> 0 | I31: =IF('4'!G$27="","",'4'!G$27) -> 0 | AO31: 0 | AP31: 0 | AQ31: 0 | AR31: 0 | AS31: 0
A32: =Overview!F44 -> 5 | B32: =Overview!C44 -> 2018-01-30 | C32: =Overview!D44 -> - | D32: =Overview!E44 -> 2018-02-05 | E32: =IF('5'!D$26="","",'5'!D$26) -> 0 | F32: =IF('5'!E$26="","",'5'!E$26) -> 0 | G32: =IF('5'!F$26="","",'5'!F$26) -> 0 | H32: =IF('5'!G$26="","",'5'!G$26) -> 0 | I32: =IF('5'!G$27="","",'5'!G$27) -> 0 | AO32: 0 | AP32: 0 | AQ32: 0 | AR32: 0 | AS32: 0
A33: =Overview!F45 -> 6 | B33: =Overview!C45 -> 2018-02-06 | C33: =Overview!D45 -> - | D33: =Overview!E45 -> 2018-02-12 | E33: =IF('6'!D$26="","",'6'!D$26) -> 0 | F33: =IF('6'!E$26="","",'6'!E$26) -> 0 | G33: =IF('6'!F$26="","",'6'!F$26) -> 0 | H33: =IF('6'!G$26="","",'6'!G$26) -> 0 | I33: =IF('6'!G$27="","",'6'!G$27) -> 0 | AO33: 0 | AP33: 0 | AQ33: 0 | AR33: 0 | AS33: 0
A34: =Overview!F46 -> 7 | B34: =Overview!C46 -> 2018-02-13 | C34: =Overview!D46 -> - | D34: =Overview!E46 -> 2018-02-19 | E34: =IF('7'!D$26="","",'7'!D$26) -> 0 | F34: =IF('7'!E$26="","",'7'!E$26) -> 0 | G34: =IF('7'!F$26="","",'7'!F$26) -> 0 | H34: =IF('7'!G$26="","",'7'!G$26) -> 0 | I34: =IF('7'!G$27="","",'7'!G$27) -> 0 | AO34: 0 | AP34: 0 | AQ34: 0 | AR34: 0 | AS34: 0
A35: =Overview!F47 -> 8 | B35: =Overview!C47 -> 2018-02-20 | C35: =Overview!D47 -> - | D35: =Overview!E47 -> 2018-02-26 | E35: =IF('8'!D$26="","",'8'!D$26) -> 0 | F35: =IF('8'!E$26="","",'8'!E$26) -> 0 | G35: =IF('8'!F$26="","",'8'!F$26) -> 0 | H35: =IF('8'!G$26="","",'8'!G$26) -> 0 | I35: =IF('8'!G$27="","",'8'!G$27) -> 0 | AO35: 0 | AP35: 0 | AQ35: 0 | AR35: 0 | AS35: 0
A36: =Overview!F48 -> 9 | B36: =Overview!C48 -> 2018-02-27 | C36: =Overview!D48 -> - | D36: =Overview!E48 -> 2018-03-05 | E36: =IF('9'!D$26="","",'9'!D$26) -> 0 | F36: =IF('9'!E$26="","",'9'!E$26) -> 0 | G36: =IF('9'!F$26="","",'9'!F$26) -> 0 | H36: =IF('9'!G$26="","",'9'!G$26) -> 0 | I36: =IF('9'!G$27="","",'9'!G$27) -> 0 | AO36: 0 | AP36: 0 | AQ36: 0 | AR36: 0 | AS36: 0
A37: =Overview!F49 -> 10 | B37: =Overview!C49 -> 2018-03-06 | C37: =Overview!D49 -> - | D37: =Overview!E49 -> 2018-03-12 | E37: =IF('10'!D$26="","",'10'!D$26) -> 0 | F37: =IF('10'!E$26="","",'10'!E$26) -> 0 | G37: =IF('10'!F$26="","",'10'!F$26) -> 0 | H37: =IF('10'!G$26="","",'10'!G$26) -> 0 | I37: =IF('10'!G$27="","",'10'!G$27) -> 0 | AO37: 0 | AP37: 0 | AQ37: 0 | AR37: 0 | AS37: 0
A38: =Overview!F50 -> 11 | B38: =Overview!C50 -> 2018-03-13 | C38: =Overview!D50 -> - | D38: =Overview!E50 -> 2018-03-19 | E38: =IF('11'!D$26="","",'11'!D$26) -> 0 | F38: =IF('11'!E$26="","",'11'!E$26) -> 0 | G38: =IF('11'!F$26="","",'11'!F$26) -> 0 | H38: =IF('11'!G$26="","",'11'!G$26) -> 0 | I38: =IF('11'!G$27="","",'11'!G$27) -> 0 | AO38: =IF(E38="",#N/A,E38) -> 0 | AP38: =IF(F38="",#N/A,F38) -> 0 | AQ38: =IF(G38="",#N/A,G38) -> 0 | AR38: 0 | AS38: 0
A39: =Overview!F51 -> 12 | B39: =Overview!C51 -> 2018-03-20 | C39: =Overview!D51 -> - | D39: =Overview!E51 -> 2018-03-26 | E39: =IF('12'!D$26="","",'12'!D$26) -> 0 | F39: =IF('12'!E$26="","",'12'!E$26) -> 0 | G39: =IF('12'!F$26="","",'12'!F$26) -> 0 | H39: =IF('12'!G$26="","",'12'!G$26) -> 0 | I39: =IF('12'!G$27="","",'12'!G$27) -> 0 | AO39: 0 | AP39: 0 | AQ39: 0 | AR39: 0 | AS39: 0
A40: =Overview!F52 -> 13 | B40: =Overview!C52 -> 2018-03-27 | C40: =Overview!D52 -> - | D40: =Overview!E52 -> 2018-04-02 | E40: =IF('13'!D$26="","",'13'!D$26) -> 0 | F40: =IF('13'!E$26="","",'13'!E$26) -> 0 | G40: =IF('13'!F$26="","",'13'!F$26) -> 0 | H40: =IF('13'!G$26="","",'13'!G$26) -> 0 | I40: =IF('13'!G$27="","",'13'!G$27) -> 0 | AO40: 0 | AP40: 0 | AQ40: 0 | AR40: 0 | AS40: 0
A41: =Overview!F53 -> 14 | B41: =Overview!C53 -> 2018-04-03 | C41: =Overview!D53 -> - | D41: =Overview!E53 -> 2018-04-09 | E41: =IF('14'!D$26="","",'14'!D$26) -> 0 | F41: =IF('14'!E$26="","",'14'!E$26) -> 0 | G41: =IF('14'!F$26="","",'14'!F$26) -> 0 | H41: =IF('14'!G$26="","",'14'!G$26) -> 0 | I41: =IF('14'!G$27="","",'14'!G$27) -> 0 | AO41: 0 | AP41: 0 | AQ41: 0 | AR41: 0 | AS41: 0
A42: =Overview!F54 -> 15 | B42: =Overview!C54 -> 2018-04-10 | C42: =Overview!D54 -> - | D42: =Overview!E54 -> 2018-04-16 | E42: =IF('15'!D$26="","",'15'!D$26) -> 0 | F42: =IF('15'!E$26="","",'15'!E$26) -> 0 | G42: =IF('15'!F$26="","",'15'!F$26) -> 0 | H42: =IF('15'!G$26="","",'15'!G$26) -> 0 | I42: =IF('15'!G$27="","",'15'!G$27) -> 0 | AO42: 0 | AP42: 0 | AQ42: 0 | AR42: 0 | AS42: 0
A43: =Overview!F55 -> 16 | B43: =Overview!C55 -> 2018-04-17 | C43: =Overview!D55 -> - | D43: =Overview!E55 -> 2018-04-23 | E43: =IF('16'!D$26="","",'16'!D$26) -> 0 | F43: =IF('16'!E$26="","",'16'!E$26) -> 0 | G43: =IF('16'!F$26="","",'16'!F$26) -> 0 | H43: =IF('16'!G$26="","",'16'!G$26) -> 0 | I43: =IF('16'!G$27="","",'16'!G$27) -> 0 | AO43: 0 | AP43: 0 | AQ43: 0 | AR43: 0 | AS43: 0
A44: =Overview!F56 -> 17 | B44: =Overview!C56 -> 2018-04-24 | C44: =Overview!D56 -> - | D44: =Overview!E56 -> 2018-04-30 | E44: =IF('17'!D$26="","",'17'!D$26) -> 0 | F44: =IF('17'!E$26="","",'17'!E$26) -> 0 | G44: =IF('17'!F$26="","",'17'!F$26) -> 0 | H44: =IF('17'!G$26="","",'17'!G$26) -> 0 | I44: =IF('17'!G$27="","",'17'!G$27) -> 0 | AO44: 0 | AP44: 0 | AQ44: 0 | AR44: 0 | AS44: 0
A45: =Overview!F57 -> 18 | B45: =Overview!C57 -> 2018-05-01 | C45: =Overview!D57 -> - | D45: =Overview!E57 -> 2018-05-07 | E45: =IF('18'!D$26="","",'18'!D$26) -> 0 | F45: =IF('18'!E$26="","",'18'!E$26) -> 0 | G45: =IF('18'!F$26="","",'18'!F$26) -> 0 | H45: =IF('18'!G$26="","",'18'!G$26) -> 0 | I45: =IF('18'!G$27="","",'18'!G$27) -> 0 | AO45: 0 | AP45: 0 | AQ45: 0 | AR45: 0 | AS45: 0
A46: =Overview!F58 -> 19 | B46: =Overview!C58 -> 2018-05-08 | C46: =Overview!D58 -> - | D46: =Overview!E58 -> 2018-05-14 | E46: =IF('19'!D$26="","",'19'!D$26) -> 0 | F46: =IF('19'!E$26="","",'19'!E$26) -> 0 | G46: =IF('19'!F$26="","",'19'!F$26) -> 0 | H46: =IF('19'!G$26="","",'19'!G$26) -> 0 | I46: =IF('19'!G$27="","",'19'!G$27) -> 0 | AO46: 0 | AP46: 0 | AQ46: 0 | AR46: 0 | AS46: 0
A47: =Overview!F59 -> 20 | B47: =Overview!C59 -> 2018-05-15 | C47: =Overview!D59 -> - | D47: =Overview!E59 -> 2018-05-21 | E47: =IF('20'!D$26="","",'20'!D$26) -> 0 | F47: =IF('20'!E$26="","",'20'!E$26) -> 0 | G47: =IF('20'!F$26="","",'20'!F$26) -> 0 | H47: =IF('20'!G$26="","",'20'!G$26) -> 0 | I47: =IF('20'!G$27="","",'20'!G$27) -> 0 | AO47: 0 | AP47: 0 | AQ47: 0 | AR47: 0 | AS47: 0
A48: =Overview!F60 -> 21 | B48: =Overview!C60 -> 2018-05-22 | C48: =Overview!D60 -> - | D48: =Overview!E60 -> 2018-05-28 | E48: =IF('21'!D$26="","",'21'!D$26) -> 0 | F48: =IF('21'!E$26="","",'21'!E$26) -> 0 | G48: =IF('21'!F$26="","",'21'!F$26) -> 0 | H48: =IF('21'!G$26="","",'21'!G$26) -> 0 | I48: =IF('21'!G$27="","",'21'!G$27) -> 0 | AO48: 0 | AP48: 0 | AQ48: 0 | AR48: 0 | AS48: 0
A49: =Overview!F61 -> 22 | B49: =Overview!C61 -> 2018-05-29 | C49: =Overview!D61 -> - | D49: =Overview!E61 -> 2018-06-04 | E49: =IF('22'!D$26="","",'22'!D$26) -> 0 | F49: =IF('22'!E$26="","",'22'!E$26) -> 0 | G49: =IF('22'!F$26="","",'22'!F$26) -> 0 | H49: =IF('22'!G$26="","",'22'!G$26) -> 0 | I49: =IF('22'!G$27="","",'22'!G$27) -> 0 | AO49: 0 | AP49: 0 | AQ49: 0 | AR49: 0 | AS49: 0
A50: =Overview!F62 -> 23 | B50: =Overview!C62 -> 2018-06-05 | C50: =Overview!D62 -> - | D50: =Overview!E62 -> 2018-06-11 | E50: =IF('23'!D$26="","",'23'!D$26) -> 0 | F50: =IF('23'!E$26="","",'23'!E$26) -> 0 | G50: =IF('23'!F$26="","",'23'!F$26) -> 0 | H50: =IF('23'!G$26="","",'23'!G$26) -> 0 | I50: =IF('23'!G$27="","",'23'!G$27) -> 0 | AO50: 0 | AP50: 0 | AQ50: 0 | AR50: 0 | AS50: 0
A51: =Overview!F63 -> 24 | B51: =Overview!C63 -> 2018-06-12 | C51: =Overview!D63 -> - | D51: =Overview!E63 -> 2018-06-18 | E51: =IF('24'!D$26="","",'24'!D$26) -> 0 | F51: =IF('24'!E$26="","",'24'!E$26) -> 0 | G51: =IF('24'!F$26="","",'24'!F$26) -> 0 | H51: =IF('24'!G$26="","",'24'!G$26) -> 0 | I51: =IF('24'!G$27="","",'24'!G$27) -> 0 | AO51: 0 | AP51: 0 | AQ51: 0 | AR51: 0 | AS51: 0
A52: =Overview!F64 -> 25 | B52: =Overview!C64 -> 2018-06-19 | C52: =Overview!D64 -> - | D52: =Overview!E64 -> 2018-06-25 | E52: =IF('25'!D$26="","",'25'!D$26) -> 0 | F52: =IF('25'!E$26="","",'25'!E$26) -> 0 | G52: =IF('25'!F$26="","",'25'!F$26) -> 0 | H52: =IF('25'!G$26="","",'25'!G$26) -> 0 | I52: =IF('25'!G$27="","",'25'!G$27) -> 0 | AO52: 0 | AP52: 0 | AQ52: 0 | AR52: 0 | AS52: 0
A53: =Overview!F65 -> 26 | B53: =Overview!C65 -> 2018-06-26 | C53: =Overview!D65 -> - | D53: =Overview!E65 -> 2018-07-02 | E53: =IF('26'!D$26="","",'26'!D$26) -> 0 | F53: =IF('26'!E$26="","",'26'!E$26) -> 0 | G53: =IF('26'!F$26="","",'26'!F$26) -> 0 | H53: =IF('26'!G$26="","",'26'!G$26) -> 0 | I53: =IF('26'!G$27="","",'26'!G$27) -> 0 | AO53: 0 | AP53: 0 | AQ53: 0 | AR53: 0 | AS53: 0
A54: =Overview!F66 -> 27 | B54: =Overview!C66 -> 2018-07-03 | C54: =Overview!D66 -> - | D54: =Overview!E66 -> 2018-07-09 | E54: =IF('27'!D$26="","",'27'!D$26) -> 0 | F54: =IF('27'!E$26="","",'27'!E$26) -> 0 | G54: =IF('27'!F$26="","",'27'!F$26) -> 0 | H54: =IF('27'!G$26="","",'27'!G$26) -> 0 | I54: =IF('27'!G$27="","",'27'!G$27) -> 0 | AO54: 0 | AP54: 0 | AQ54: 0 | AR54: 0 | AS54: 0
A55: =Overview!F67 -> 28 | B55: =Overview!C67 -> 2018-07-10 | C55: =Overview!D67 -> - | D55: =Overview!E67 -> 2018-07-16 | E55: =IF('28'!D$26="","",'28'!D$26) -> 0 | F55: =IF('28'!E$26="","",'28'!E$26) -> 0 | G55: =IF('28'!F$26="","",'28'!F$26) -> 0 | H55: =IF('28'!G$26="","",'28'!G$26) -> 0 | I55: =IF('28'!G$27="","",'28'!G$27) -> 0 | AO55: 0 | AP55: 0 | AQ55: 0 | AR55: 0 | AS55: 0
A56: =Overview!F68 -> 29 | B56: =Overview!C68 -> 2018-07-17 | C56: =Overview!D68 -> - | D56: =Overview!E68 -> 2018-07-23 | E56: =IF('29'!D$26="","",'29'!D$26) -> 0 | F56: =IF('29'!E$26="","",'29'!E$26) -> 0 | G56: =IF('29'!F$26="","",'29'!F$26) -> 0 | H56: =IF('29'!G$26="","",'29'!G$26) -> 0 | I56: =IF('29'!G$27="","",'29'!G$27) -> 0 | AO56: 0 | AP56: 0 | AQ56: 0 | AR56: 0 | AS56: 0
A57: =Overview!F69 -> 30 | B57: =Overview!C69 -> 2018-07-24 | C57: =Overview!D69 -> - | D57: =Overview!E69 -> 2018-07-30 | E57: =IF('30'!D$26="","",'30'!D$26) -> 0 | F57: =IF('30'!E$26="","",'30'!E$26) -> 0 | G57: =IF('30'!F$26="","",'30'!F$26) -> 0 | H57: =IF('30'!G$26="","",'30'!G$26) -> 0 | I57: =IF('30'!G$27="","",'30'!G$27) -> 0 | AO57: 0 | AP57: 0 | AQ57: 0 | AR57: 0 | AS57: 0

Sheet Verletzung-Krankheit
A1: Anamnese
B3: Beginn (Beginn des Ausfalls) | C3: Ende (Wiedereinstieg ins Training, 100% Fit) | D3: War das bedingt durch …. | E3: Welches Körperteil war primär betroffen? | F3: Wie bist du behandelt worden? | G3: Was war die Diagnose? | H3: Wieviele Trainings versäumt? | I3: Wieviele Trainings eingeschränkt trainiert?
A4: 1
A5: 2
A6: 3
A7: 4
A8: 5
A9: 6
A10: 7
A11: 8
A12: 9
A13: 10
A15: Ausfall/ Einschränkung wegen Krankheit
B17: Beginn (Beginn des Ausfalls) | C17: Ende (Wiedereinstieg ins Training, 100% Fit) | D17: Wie bist du behandelt worden? | E17: Was ist die Diagnose? | F17: Warst du zu diesem Zeitpunkt besonders gestresst? | G17: Wieviele Trainings versäumt? | H17: Wieviele Trainings eingeschränkt trainiert?
A18: 1
A19: 2
A20: 3
A21: 4
A22: 5
A24: Ausfall/ Einschränkung wegen Unfall
B26: Beginn (Beginn des Ausfalls) | C26: In welcher Phase ist der Unfall passiert? | D26: Zu welchem Zeitpunkt ist der Unfall passiert? | E26: Wie ist der Unfall passiert? | F26: Wo ist der Unfall passiert? | G26: Welches Körperteil ist primär betroffen? | H26: Hattest du dort bereits eine Verletzung? | I26: Wie bist du behandelt worden? | J26: Was war die Diagnose? | K26: Wieviele Trainings versäumt? | L26: Wieviele Trainings eingeschränkt trainiert?
A27: 1
A28: 2
A29: 3
A30: 4
A31: 5
A33: Ausfall/ Einschränkung wegen starken Schmerzen
B35: Beginn (Beginn des Ausfalls) | C35: Wann sind die Beschwerden das ertsemal aufgetreten? | D35: Zu welchem Zeitpunkt sind die Beschwerden aufgetreten? | E35: Welches Körperteil ist primär betroffen? | F35: Hattest du dort bereits eine Verletzung? | G35: Wie bist du behandelt worden? | H35: Was war die Diagnose? | I35: Wieviele Trainings versäumt? | J35: Wieviele Trainings eingeschränkt trainiert?
A36: 1
A37: 2
A38: 3
A39: 4
A40: 5
A42: Daten laut TTB
B44: Trainingstage | E44: Trainingstage ohne Einschränkung
B45: =BC62 -> 0 | C45: Anzahl | E45: =BC62 -> 0 | F45: Anzahl
B47: Trainingstage mit Einschränkung | E47: Tag mit Trainingsausfall - Verletzung | H47: Tag mit Trainingsausfall - Krankheit | L47: Anzahl Tage
B48: =BC63 -> 0 | C48: Finger | D48: =B48/$E$45 ->  | E48: =BC68 -> 0 | F48: Finger | G48: =E48/$E$45 ->  | H48: =BF74 -> 0 | I48: Krankheit | J48: =H48/$E$45 ->  | K48: =E44 -> Trainingstage ohne Einschränkung | L48: =E45 -> 0
B49: =BC64 -> 0 | C49: Schulter | E49: 0 | F49: Schulter | K49: =B47 -> Trainingstage mit Einschränkung | L49: =SUM(B48:B53) -> 0
B50: 0 | C50: Rücken | E50: 0 | F50: Rücken | K50: =E47 -> Tag mit Trainingsausfall - Verletzung | L50: =SUM(E48:E53) -> 0
B51: 0 | C51: Knie | E51: 0 | F51: Knie | K51: =H47 -> Tag mit Trainingsausfall - Krankheit | L51: =H48 -> 0
B52: 0 | C52: Sprunggelenk | E52: 0 | F52: Sprunggelenk
B53: 0 | C53: Andere | E53: 0 | F53: Andere
C61: 1 | D61: 2 | E61: 3 | F61: 4 | G61: 5 | H61: 6 | I61: 7 | J61: 8 | K61: 9 | L61: 10 | M61: 11 | N61: 12 | O61: 13 | P61: 14 | Q61: 15 | R61: 16 | S61: 17 | T61: 18 | U61: 19 | V61: 20 | W61: 21 | X61: 22 | Y61: 23 | Z61: 24 | AA61: 25 | AB61: 26 | AC61: 27 | AD61: 28 | AE61: 29 | AF61: 30 | AG61: 31 | AH61: 32 | AI61: 33 | AJ61: 34 | AK61: 35 | AL61: 36 | AM61: 37 | AN61: 38 | AO61: 39 | AP61: 40 | AQ61: 41 | AR61: 42 | AS61: 43 | AT61: 44 | AU61: 45 | AV61: 46 | AW61: 47 | AX61: 48 | AY61: 49 | AZ61: 50 | BA61: 51 | BB61: 52 | BC61: Summe
A62: 0 | B62: 31 | C62: =INDIRECT(CONCATENATE("'",C$61,"'!AH",$B62)) ->  | D62: =INDIRECT(CONCATENATE("'",D$61,"'!AH",$B62)) ->  | BC62: =SUM(C62:BB62) -> 0
A63: 1 | B63: 37 | C63: =INDIRECT(CONCATENATE("'",C$61,"'!AJ",$B63)) -> 0 | D63: =INDIRECT(CONCATENATE("'",D$61,"'!AJ",$B63)) -> 0 | E63: =INDIRECT(CONCATENATE("'",E$61,"'!AJ",$B63)) -> 0 | F63: 0 | G63: 0 | H63: 0 | I63: 0 | J63: 0 | K63: 0 | L63: 0 | M63: 0 | N63: 0 | O63: 0 | P63: 0 | Q63: 0 | R63: 0 | S63: 0 | T63: =INDIRECT(CONCATENATE("'",T$61,"'!AJ",$B63)) -> 0 | U63: 0 | V63: 0 | W63: 0 | X63: 0 | Y63: 0 | Z63: 0 | AA63: 0 | AB63: 0 | AC63: 0 | AD63: 0 | AE63: 0 | AF63: 0 | AG63: 0 | AH63: 0 | AI63: 0 | AJ63: =INDIRECT(CONCATENATE("'",AJ$61,"'!AJ",$B63)) -> 0 | AK63: 0 | AL63: 0 | AM63: 0 | AN63: 0 | AO63: 0 | AP63: 0 | AQ63: 0 | AR63: 0 | AS63: 0 | AT63: 0 | AU63: 0 | AV63: 0 | AW63: 0 | AX63: 0 | AY63: 0 | AZ63: =INDIRECT(CONCATENATE("'",AZ$61,"'!AJ",$B63)) -> 0 | BA63: 0 | BB63: 0 | BC63: 0
A64: 2 | B64: 38 | C64: 0 | D64: 0 | E64: 0 | F64: 0 | G64: 0 | H64: 0 | I64: 0 | J64: 0 | K64: 0 | L64: 0 | M64: 0 | N64: 0 | O64: 0 | P64: 0 | Q64: 0 | R64: 0 | S64: 0 | T64: 0 | U64: 0 | V64: 0 | W64: 0 | X64: 0 | Y64: 0 | Z64: 0 | AA64: 0 | AB64: 0 | AC64: 0 | AD64: 0 | AE64: 0 | AF64: 0 | AG64: 0 | AH64: 0 | AI64: 0 | AJ64: 0 | AK64: 0 | AL64: 0 | AM64: 0 | AN64: 0 | AO64: 0 | AP64: 0 | AQ64: 0 | AR64: 0 | AS64: 0 | AT64: 0 | AU64: 0 | AV64: 0 | AW64: 0 | AX64: 0 | AY64: 0 | AZ64: 0 | BA64: 0 | BB64: 0 | BC64: 0
A65: 3 | B65: 39 | C65: 0 | D65: 0 | E65: 0 | F65: 0 | G65: 0 | H65: 0 | I65: 0 | J65: 0 | K65: 0 | L65: 0 | M65: 0 | N65: 0 | O65: 0 | P65: 0 | Q65: 0 | R65: 0 | S65: 0 | T65: 0 | U65: 0 | V65: 0 | W65: 0 | X65: 0 | Y65: 0 | Z65: 0 | AA65: 0 | AB65: 0 | AC65: 0 | AD65: 0 | AE65: 0 | AF65: 0 | AG65: 0 | AH65: 0 | AI65: 0 | AJ65: 0 | AK65: 0 | AL65: 0 | AM65: 0 | AN65: 0 | AO65: 0 | AP65: 0 | AQ65: 0 | AR65: 0 | AS65: 0 | AT65: 0 | AU65: 0 | AV65: 0 | AW65: 0 | AX65: 0 | AY65: 0 | AZ65: 0 | BA65: 0 | BB65: 0 | BC65: 0
A66: 5 | B66: 40 | C66: 0 | D66: 0 | E66: 0 | F66: 0 | G66: 0 | H66: 0 | I66: 0 | J66: 0 | K66: 0 | L66: 0 | M66: 0 | N66: 0 | O66: 0 | P66: 0 | Q66: 0 | R66: 0 | S66: 0 | T66: 0 | U66: 0 | V66: 0 | W66: 0 | X66: 0 | Y66: 0 | Z66: 0 | AA66: 0 | AB66: 0 | AC66: 0 | AD66: 0 | AE66: 0 | AF66: 0 | AG66: 0 | AH66: 0 | AI66: 0 | AJ66: 0 | AK66: 0 | AL66: 0 | AM66: 0 | AN66: 0 | AO66: 0 | AP66: 0 | AQ66: 0 | AR66: 0 | AS66: 0 | AT66: 0 | AU66: 0 | AV66: 0 | AW66: 0 | AX66: 0 | AY66: 0 | AZ66: 0 | BA66: 0 | BB66: 0 | BC66: 0
A67: 6 | B67: 41 | C67: 0 | D67: 0 | E67: 0 | F67: 0 | G67: 0 | H67: 0 | I67: 0 | J67: 0 | K67: 0 | L67: 0 | M67: 0 | N67: 0 | O67: 0 | P67: 0 | Q67: 0 | R67: 0 | S67: 0 | T67: 0 | U67: 0 | V67: 0 | W67: 0 | X67: 0 | Y67: 0 | Z67: 0 | AA67: 0 | AB67: 0 | AC67: 0 | AD67: 0 | AE67: 0 | AF67: 0 | AG67: 0 | AH67: 0 | AI67: 0 | AJ67: 0 | AK67: 0 | AL67: 0 | AM67: 0 | AN67: 0 | AO67: 0 | AP67: 0 | AQ67: 0 | AR67: 0 | AS67: 0 | AT67: 0 | AU67: 0 | AV67: 0 | AW67: 0 | AX67: 0 | AY67: 0 | AZ67: 0 | BA67: 0 | BB67: 0 | BC67: 0
A68: 11 | B68: 45 | C68: 0 | D68: 0 | E68: 0 | F68: 0 | G68: 0 | H68: 0 | I68: 0 | J68: 0 | K68: 0 | L68: 0 | M68: 0 | N68: 0 | O68: 0 | P68: 0 | Q68: 0 | R68: 0 | S68: 0 | T68: 0 | U68: 0 | V68: 0 | W68: 0 | X68: 0 | Y68: 0 | Z68: 0 | AA68: 0 | AB68: 0 | AC68: 0 | AD68: 0 | AE68: 0 | AF68: 0 | AG68: 0 | AH68: 0 | AI68: 0 | AJ68: 0 | AK68: 0 | AL68: 0 | AM68: 0 | AN68: 0 | AO68: 0 | AP68: 0 | AQ68: 0 | AR68: 0 | AS68: 0 | AT68: 0 | AU68: 0 | AV68: 0 | AW68: 0 | AX68: 0 | AY68: 0 | AZ68: 0 | BA68: 0 | BB68: 0 | BC68: 0
A69: 12 | B69: 46 | C69: 0 | D69: 0 | E69: 0 | F69: 0 | G69: 0 | H69: 0 | I69: 0 | J69: 0 | K69: 0 | L69: 0 | M69: 0 | N69: 0 | O69: 0 | P69: 0 | Q69: 0 | R69: 0 | S69: 0 | T69: 0 | U69: 0 | V69: 0 | W69: 0 | X69: 0 | Y69: 0 | Z69: 0 | AA69: 0 | AB69: 0 | AC69: 0 | AD69: 0 | AE69: 0 | AF69: 0 | AG69: 0 | AH69: 0 | AI69: 0 | AJ69: 0 | AK69: 0 | AL69: 0 | AM69: 0 | AN69: 0 | AO69: 0 | AP69: 0 | AQ69: 0 | AR69: 0 | AS69: 0 | AT69: 0 | AU69: 0 | AV69: 0 | AW69: 0 | AX69: 0 | AY69: 0 | AZ69: 0 | BA69: 0 | BB69: 0 | BC69: 0
A70: 13 | B70: 47 | C70: 0 | D70: 0 | E70: 0 | F70: 0 | G70: 0 | H70: 0 | I70: 0 | J70: 0 | K70: 0 | L70: 0 | M70: 0 | N70: 0 | O70: 0 | P70: 0 | Q70: 0 | R70: 0 | S70: 0 | T70: 0 | U70: 0 | V70: 0 | W70: 0 | X70: 0 | Y70: 0 | Z70: 0 | AA70: 0 | AB70: 0 | AC70: 0 | AD70: 0 | AE70: 0 | AF70: 0 | AG70: 0 | AH70: 0 | AI70: 0 | AJ70: 0 | AK70: 0 | AL70: 0 | AM70: 0 | AN70: 0 | AO70: 0 | AP70: 0 | AQ70: 0 | AR70: 0 | AS70: 0 | AT70: 0 | AU70: 0 | AV70: 0 | AW70: 0 | AX70: 0 | AY70: 0 | AZ70: 0 | BA70: 0 | BB70: 0 | BC70: 0
A71: 14 | B71: 48 | C71: 0 | D71: 0 | E71: 0 | F71: 0 | G71: 0 | H71: 0 | I71: 0 | J71: 0 | K71: 0 | L71: 0 | M71: 0 | N71: 0 | O71: 0 | P71: 0 | Q71: 0 | R71: 0 | S71: 0 | T71: 0 | U71: 0 | V71: 0 | W71: 0 | X71: 0 | Y71: 0 | Z71: 0 | AA71: 0 | AB71: 0 | AC71: 0 | AD71: 0 | AE71: 0 | AF71: 0 | AG71: 0 | AH71: 0 | AI71: 0 | AJ71: 0 | AK71: 0 | AL71: 0 | AM71: 0 | AN71: 0 | AO71: 0 | AP71: 0 | AQ71: 0 | AR71: 0 | AS71: 0 | AT71: 0 | AU71: 0 | AV71: 0 | AW71: 0 | AX71: 0 | AY71: 0 | AZ71: 0 | BA71: 0 | BB71: 0 | BC71: 0
A72: 15 | B72: 49 | C72: 0 | D72: 0 | E72: 0 | F72: 0 | G72: 0 | H72: 0 | I72: 0 | J72: 0 | K72: 0 | L72: 0 | M72: 0 | N72: 0 | O72: 0 | P72: 0 | Q72: 0 | R72: 0 | S72: 0 | T72: 0 | U72: 0 | V72: 0 | W72: 0 | X72: 0 | Y72: 0 | Z72: 0 | AA72: 0 | AB72: 0 | AC72: 0 | AD72: 0 | AE72: 0 | AF72: 0 | AG72: 0 | AH72: 0 | AI72: 0 | AJ72: 0 | AK72: 0 | AL72: 0 | AM72: 0 | AN72: 0 | AO72: 0 | AP72: 0 | AQ72: 0 | AR72: 0 | AS72: 0 | AT72: 0 | AU72: 0 | AV72: 0 | AW72: 0 | AX72: 0 | AY72: 0 | AZ72: 0 | BA72: 0 | BB72: 0 | BC72: 0
A73: 16 | B73: 50 | C73: 0 | D73: 0 | E73: 0 | F73: 0 | G73: 0 | H73: 0 | I73: 0 | J73: 0 | K73: 0 | L73: 0 | M73: 0 | N73: 0 | O73: 0 | P73: 0 | Q73: 0 | R73: 0 | S73: 0 | T73: 0 | U73: 0 | V73: 0 | W73: 0 | X73: 0 | Y73: 0 | Z73: 0 | AA73: 0 | AB73: 0 | AC73: 0 | AD73: 0 | AE73: 0 | AF73: 0 | AG73: 0 | AH73: 0 | AI73: 0 | AJ73: 0 | AK73: 0 | AL73: 0 | AM73: 0 | AN73: 0 | AO73: 0 | AP73: 0 | AQ73: 0 | AR73: 0 | AS73: 0 | AT73: 0 | AU73: 0 | AV73: 0 | AW73: 0 | AX73: 0 | AY73: 0 | AZ73: 0 | BA73: 0 | BB73: 0 | BC73: 0
A74: 21 | B74: 53 | C74: 0 | D74: 0 | E74: 0 | F74: 0 | G74: 0 | H74: 0 | I74: 0 | J74: 0 | K74: 0 | L74: 0 | M74: 0 | N74: 0 | O74: 0 | P74: 0 | Q74: 0 | R74: 0 | S74: 0 | T74: 0 | U74: 0 | V74: 0 | W74: 0 | X74: 0 | Y74: 0 | Z74: 0 | AA74: 0 | AB74: 0 | AC74: 0 | AD74: 0 | AE74: 0 | AF74: 0 | AG74: 0 | AH74: 0 | AI74: 0 | AJ74: 0 | AK74: 0 | AL74: 0 | AM74: 0 | AN74: 0 | AO74: 0 | AP74: 0 | AQ74: 0 | AR74: 0 | AS74: 0 | AT74: 0 | AU74: 0 | AV74: 0 | AW74: 0 | AX74: 0 | AY74: 0 | AZ74: 0 | BA74: 0 | BB74: 0 | BC74: 0

Sheet Hintergrund
A1: Art des Ausfalls | B1: Körperteil | C1: Behandlung | D1: Saisonphase | E1: Aktivitätsphase | F1: Unfallhergang | G1: Unfallort
A2: einen Unfall? | B2: Finger | C2: Notfall im Spital | D2: Einzelnem Training | E2: Training - WarmUp | F2: Zusammenprall mit Mitspieler | G2: Volleyball - am Netz
A3: eine Krankheit? | B3: Schulter | C3: Vom Arzt | D3: Einzelnem Spiel | E3: Training - Anfang | F3: Übertritt am Netz | G3: Volleyball - im Feld
A4: Schmerzen ohne Unfall? | B4: Rücken | C4: direkt Physio (ohne Arzt) | D4: Turnier - Anfang | E4: Training - Mitte | F4: ohne Äussereinwirkung | G4: Beachvolleyball - am Netz
B5: Knie | C5: Selbst behandelt | D5: Turnier - Mitte | E5: Training - Ende | F5: durch Ball | G5: Beachvolleyball - im Feld
B6: Sprunggelenk | C6: Keine Behandlung | D6: Turnier - Ende | E6: Spiel - WarmUp | F6: durch den Boden (Nässe, etc.) | G6: Off Court
B7: Welche andere? | D7: Trainingslager - Anfang | E7: Spiel - Anfang | F7: durch einen Gegenstand
D8: Trainingslager - Mitte | E8: Spiel - Mitte | F8: durch Gewichte im Kraftraum
D9: Trainingslager - Ende | E9: Spiel - Ende | F9: Sonstige
D10: Privatem Bereich | E10: Am Weg zur/ vom Training
D11: Sonstiges | E11: Sonstiges

Sheet 31
C1: Woche | D1: =INT(MOD(INT((F1-2)/7)+0.6,52+5/28))+1 -> 31 | E1: =D1+1000 -> 1031 | F1: =Overview!C18 -> 2017-08-01 | G1: - | H1: =F1+6 -> 2017-08-07 | AD1: =Overview!D2 -> Vorname Nachname | AF1: =Overview!N2 -> 2017/2018
B2: Tag | D2: Gewicht | E2: REG | F2: Schlaf-qualität | G2: Schlaf-dauer | H2: Verletzung/ Krankheit | J2: Trainingsbeschreibung | M2: Balltraining-Club | P2: Balltraining-TS/ Nati | S2: iso. Krafttraining | V2: iso. Fitnesstraining | Y2: Wettkampf | AB2: Anderes Training | AF2: Reflexion | AH2: Load/ Tag | AJ2: Anzahl der Spiele | AK2: gespielte Sätze | AL2: J | AM2: Regenerationsmassnahme | AN2: Mental- oder Sonstiges Training
D3: [kg] | E3: [1 - 5] | F3: [1-5] | G3: [Std] | H3: Kommentar | M3: Dauer | N3: RPE | O3: Load | P3: Dauer | Q3: RPE | R3: Load | S3: Dauer | T3: RPE | U3: Load | V3: Dauer | W3: RPE | X3: Load | Y3: Dauer | Z3: RPE | AA3: Load | AB3: Dauer | AC3: RPE | AD3: Load | AL3: [1-5]
B4: Mo | D4: 0 | E4: 0 | F4: 0 | G4: 0 | H4: 0 | O4: =M4*N4 -> 0 | R4: =P4*Q4 -> 0 | U4: =S4*T4 -> 0 | X4: =V4*W4 -> 0 | AA4: =Y4*Z4 -> 0 | AD4: =AB4*AC4 -> 0 | AH4: =SUM(O4:O6,R4:R6,U4:U6,X4:X6,AA4:AA6,AD4:AD6) -> 0
O5: =M5*N5 -> 0 | R5: =P5*Q5 -> 0 | U5: =S5*T5 -> 0 | X5: =V5*W5 -> 0 | AA5: =Y5*Z5 -> 0 | AD5: =AB5*AC5 -> 0
O6: 0 | R6: 0 | U6: 0 | X6: 0 | AA6: 0 | AD6: 0
B7: Di | D7: 0 | E7: 0 | F7: 0 | G7: 0 | H7: 0 | O7: 0 | R7: 0 | U7: 0 | X7: 0 | AA7: 0 | AD7: 0 | AH7: =SUM(O7:O9,R7:R9,U7:U9,X7:X9,AA7:AA9,AD7:AD9) -> 0
O8: 0 | R8: 0 | U8: 0 | X8: 0 | AA8: 0 | AD8: 0
O9: 0 | R9: 0 | U9: 0 | X9: 0 | AA9: 0 | AD9: 0
B10: Mi | D10: 0 | E10: 0 | F10: 0 | G10: 0 | H10: 0 | O10: 0 | R10: 0 | U10: 0 | X10: 0 | AA10: 0 | AD10: 0 | AH10: =SUM(O10:O12,R10:R12,U10:U12,X10:X12,AA10:AA12,AD10:AD12) -> 0
O11: 0 | R11: 0 | U11: 0 | X11: 0 | AA11: 0 | AD11: 0
O12: 0 | R12: 0 | U12: 0 | X12: 0 | AA12: 0 | AD12: 0
B13: Do | D13: 0 | E13: 0 | F13: 0 | G13: 0 | H13: 0 | O13: 0 | R13: 0 | U13: 0 | X13: 0 | AA13: 0 | AD13: 0 | AH13: =SUM(O13:O15,R13:R15,U13:U15,X13:X15,AA13:AA15,AD13:AD15) -> 0
O14: 0 | R14: 0 | U14: 0 | X14: 0 | AA14: 0 | AD14: 0
O15: 0 | R15: 0 | U15: 0 | X15: 0 | AA15: 0 | AD15: 0
B16: Fr | D16: 0 | E16: 0 | F16: 0 | G16: 0 | H16: 0 | O16: 0 | R16: 0 | U16: 0 | X16: 0 | AA16: 0 | AD16: 0 | AH16: =SUM(O16:O18,R16:R18,U16:U18,X16:X18,AA16:AA18,AD16:AD18) -> 0
O17: 0 | R17: 0 | U17: 0 | X17: 0 | AA17: 0 | AD17: 0
O18: 0 | R18: 0 | U18: 0 | X18: 0 | AA18: 0 | AD18: 0
B19: Sa | D19: 0 | E19: 0 | F19: 0 | G19: 0 | H19: 0 | O19: 0 | R19: 0 | U19: 0 | X19: 0 | AA19: 0 | AD19: 0 | AH19: =SUM(O19:O21,R19:R21,U19:U21,X19:X21,AA19:AA21,AD19:AD21) -> 0
O20: 0 | R20: 0 | U20: 0 | X20: 0 | AA20: 0 | AD20: 0
O21: 0 | R21: 0 | U21: 0 | X21: 0 | AA21: 0 | AD21: 0
B22: So | D22: 0 | E22: 0 | F22: 0 | G22: 0 | H22: 0 | O22: 0 | R22: 0 | U22: 0 | X22: 0 | AA22: 0 | AD22: 0 | AH22: =SUM(O22:O24,R22:R24,U22:U24,X22:X24,AA22:AA24,AD22:AD24) -> 0
O23: 0 | R23: 0 | U23: 0 | X23: 0 | AA23: 0 | AD23: 0
O24: 0 | R24: 0 | U24: 0 | X24: 0 | AA24: 0 | AD24: 0
K25: Total | M25: =SUM(M4:M24) -> 0 | O25: =SUM(O4:O24) -> 0 | P25: =SUM(P4:P24) -> 0 | R25: =SUM(R4:R24) -> 0 | S25: =SUM(S4:S24) -> 0 | U25: =SUM(U4:U24) -> 0 | V25: =SUM(V4:V24) -> 0 | X25: =SUM(X4:X24) -> 0 | Y25: =SUM(Y4:Y24) -> 0 | AA25: =SUM(AA4:AA24) -> 0 | AB25: =SUM(AB4:AB24) -> 0 | AD25: =SUM(AD4:AD24) -> 0 | AF25: TOTAL LOAD | AH25: =SUM(AH4:AH24) -> 0
B26: avg | D26: =IF(COUNTA(D4:D24)=0,"",AVERAGE(D4:D24)) -> 0 | E26: =IF(COUNTA(E4:E24)=0,"",AVERAGE(E4:E24)) -> 0 | F26: =IF(COUNTA(F4:F24)=0,"",AVERAGE(F4:F24)) -> 0 | G26: =IF(COUNTA(G4:G24)=0,"",AVERAGE(G4:G24)) -> 0 | H26: =IF(COUNTA(H4:H24)=0,"",COUNTIF(H4:H24,"x")) -> 0 | K26: Zone | M26: 1 | N26: 2 | O26: 3 | P26: 1 | Q26: 2 | R26: 3 | S26: 1 | T26: 2 | U26: 3 | V26: 1 | W26: 2 | X26: 3 | Y26: 1 | Z26: 2 | AA26: 3 | AB26: 1 | AC26: 2 | AD26: 3 | AF26: Mittelwert | AH26: =AVERAGE(AH4:AH24) -> 0
F27: =IF(COUNTA(F4:F24)=0,"",VAR(F4:F24)) -> 0 | G27: =IF(COUNTA(G4:G24)=0,"",STDEV(G4:G24)) -> 0 | H27: Abweichung - Schlafdauer | K27: Einheiten pro Zone (RPE) | M27: =IF(Beanspruchungverteilung!$AT$21="x",COUNTIF(N4:N24,"<3,5"),COUNTIF(N4:N24,"<4,5")) -> 0 | N27: =COUNT(N4:N24)-(M27+O27) -> 0 | O27: =IF(Beanspruchungverteilung!$AT$21="x",COUNTIF(N4:N24,">5,5"),COUNTIF(N4:N24,">6,5")) -> 0 | P27: =IF(Beanspruchungverteilung!$AT$21="x",COUNTIF(Q4:Q24,"<3,5"),COUNTIF(Q4:Q24,"<4,5")) -> 0 | Q27: =COUNT(Q4:Q24)-(P27+R27) -> 0 | R27: =IF(Beanspruchungverteilung!$AT$21="x",COUNTIF(Q4:Q24,">5,5"),COUNTIF(Q4:Q24,">6,5")) -> 0 | S27: =IF(Beanspruchungverteilung!$AT$21="x",COUNTIF(T4:T24,"<3,5"),COUNTIF(T4:T24,"<4,5")) -> 0 | T27: =COUNT(T4:T24)-(S27+U27) -> 0 | U27: =IF(Beanspruchungverteilung!$AT$21="x",COUNTIF(T4:T24,">5,5"),COUNTIF(T4:T24,">6,5")) -> 0 | V27: =IF(Beanspruchungverteilung!$AT$21="x",COUNTIF(W4:W24,"<3,5"),COUNTIF(W4:W24,"<4,5")) -> 0 | W27: =COUNT(W4:W24)-(V27+X27) -> 0 | X27: =IF(Beanspruchungverteilung!$AT$21="x",COUNTIF(W4:W24,">5,5"),COUNTIF(W4:W24,">6,5")) -> 0 | Y27: =IF(Beanspruchungverteilung!$AT$21="x",COUNTIF(Z4:Z24,"<3,5"),COUNTIF(Z4:Z24,"<4,5")) -> 0 | Z27: =COUNT(Z4:Z24)-(Y27+AA27) -> 0 | AA27: =IF(Beanspruchungverteilung!$AT$21="x",COUNTIF(Z4:Z24,">5,5"),COUNTIF(Z4:Z24,">6,5")) -> 0 | AB27: =IF(Beanspruchungverteilung!$AT$21="x",COUNTIF(AC4:AC24,"<3,5"),COUNTIF(AC4:AC24,"<4,5")) -> 0 | AC27: =COUNT(AC4:AC24)-(AB27+AD27) -> 0 | AD27: =IF(Beanspruchungverteilung!$AT$21="x",COUNTIF(AC4:AC24,">5,5"),COUNTIF(AC4:AC24,">6,5")) -> 0 | AF27: Standardabweichung | AH27: =STDEVP(AH4:AH24) -> 0
D28: Foster's Skala | H28: RPE | K28: Zeit pro Zone (RPE) | M28: =IF(Beanspruchungverteilung!$AT$21="x",SUMIF(N4:N24,"<3,5",M4:M24),SUMIF(N4:N24,"<4,5",M4:M24)) -> 0 | N28: =IF(N27=0,0,SUM((M25)-(M28+O28))) -> 0 | O28: =IF(Beanspruchungverteilung!$AT$21="x",SUMIF(N4:N24,">5,5",M4:M24),SUMIF(N4:N24,">6,5",M4:M24)) -> 0 | P28: =IF(Beanspruchungverteilung!$AT$21="x",SUMIF(Q4:Q24,"<3,5",P4:P24),SUMIF(Q4:Q24,"<4,5",P4:P24)) -> 0 | Q28: =IF(Q27=0,0,SUM((P25)-(P28+R28))) -> 0 | R28: =IF(Beanspruchungverteilung!$AT$21="x",SUMIF(Q4:Q24,">5,5",P4:P24),SUMIF(Q4:Q24,">6,5",P4:P24)) -> 0 | S28: =IF(Beanspruchungverteilung!$AT$21="x",SUMIF(T4:T24,"<3,5",S4:S24),SUMIF(T4:T24,"<4,5",S4:S24)) -> 0 | T28: =IF(T27=0,0,SUM((S25)-(S28+U28))) -> 0 | U28: =IF(Beanspruchungverteilung!$AT$21="x",SUMIF(T4:T24,">5,5",S4:S24),SUMIF(T4:T24,">6,5",S4:S24)) -> 0 | V28: =IF(Beanspruchungverteilung!$AT$21="x",SUMIF(W4:W24,"<3,5",V4:V24),SUMIF(W4:W24,"<4,5",V4:V24)) -> 0 | W28: =IF(W27=0,0,SUM((V25)-(V28+X28))) -> 0 | X28: =IF(Beanspruchungverteilung!$AT$21="x",SUMIF(W4:W24,">5,5",V4:V24),SUMIF(W4:W24,">6,5",V4:V24)) -> 0 | Y28: =IF(Beanspruchungverteilung!$AT$21="x",SUMIF(Z4:Z24,"<3,5",Y4:Y24),SUMIF(Z4:Z24,"<4,5",Y4:Y24)) -> 0 | Z28: =IF(Z27=0,0,SUM((Y25)-(Y28+AA28))) -> 0 | AA28: =IF(Beanspruchungverteilung!$AT$21="x",SUMIF(Z4:Z24,">5,5",Y4:Y24),SUMIF(Z4:Z24,">6,5",Y4:Y24)) -> 0 | AB28: =IF(Beanspruchungverteilung!$AT$21="x",SUMIF(AC4:AC24,"<3,5",AB4:AB24),SUMIF(AC4:AC24,"<4,5",AB4:AB24)) -> 0 | AC28: =IF(AC27=0,0,SUM((AB25)-(AB28+AD28))) -> 0 | AD28: =IF(Beanspruchungverteilung!$AT$21="x",SUMIF(AC4:AC24,">5,5",AB4:AB24),SUMIF(AC4:AC24,">6,5",AB4:AB24)) -> 0
D29: Wie in Ruhe | H29: 0 | J29: REG | K29: Wie erholt bist du wenn du in der Früh aufstehst?
D30: Sehr locker | H30: 1
D31: Locker | H31: 2 | J31: 1 | K31: … gar nicht erholt | AF31: Trainingstage | AH31: =IF(SUM(AH4:AH24)=0,"",COUNTIF(AH4:AH24,">0")) ->  | AJ31: Gesundheitsreport
H32: 3 | J32: 2 | K32: … wenig erholt
D33: Etwas hart | H33: 4 | J33: 3 | K33: … erholt | S33: =B4 -> Mo | T33: =AH4 -> 0 | AF33: Trainingseinheiten | AH33: =IF(AH31="","",SUM(M27:AD27)) -> 
D34: Hart | H34: 5 | J34: 4 | K34: … fit | S34: =B7 -> Di | T34: =AH7 -> 0 | AJ34: =IF($AH$31="","",AH31-AJ36-AJ44) ->  | AK34: keine Einschränkungen | AM34: 0
H35: 6 | J35: 5 | K35: … Top fit | S35: =B10 -> Mi | T35: =AH10 -> 0 | AF35: Trainingsstunden | AH35: =IF(AH31="","",SUM(M25,P25,V25,Y25,S25,AB25)/60) -> 
D36: Sehr hart | H36: 7 | S36: =B13 -> Do | T36: =AH13 -> 0 | AJ36: =SUM(AJ37:AJ42) -> 0 | AK36: Einschränkungen wegen Schmerzen
H37: 8 | J37: Anzahl der Spiele | S37: =B16 -> Fr | T37: =AH16 -> 0 | AF37: Training Load | AH37: =IF(AH31="","",SUM(AH25)) ->  | AJ37: =COUNTIF($H$4:$H$24,$AM37) -> 0 | AK37: Finger | AM37: 1
D38: Extrem hart | H38: 9 | S38: =B19 -> Sa | T38: =AH19 -> 0 | AJ38: 0 | AK38: Schulter | AM38: 2
D39: Wie mein härtestes Training | H39: 10 | J39: 1 | K39: … 3 und mehr Sätze | S39: =B22 -> So | T39: =AH22 -> 0 | AF39: Monotonie | AH39: =IF(AH31="","",(AVERAGE(AH4:AH24))/AH27) ->  | AJ39: 0 | AK39: Rücken | AM39: 3
J40: 0.5 | K40: … weniger als 3 Sätze | AJ40: 0 | AK40: Knie | AM40: 4
AF41: Trainingsanstrengung | AH41: =IF(AH31="","",AH37*AH39) ->  | AJ41: 0 | AK41: Sprunggelenk | AM41: 5
D42: échelle de Foster | H42: RPE | J42: gespielte Sätze | AJ42: 0 | AK42: Andere | AM42: 6
D43: Comme au repos | H43: 0 | J43: 1 | K43: … gestartet & durchgespielt | AF43: =AJ2 -> Anzahl der Spiele | AH43: =IF(AH31="","",SUM(AJ4:AJ24)) -> 
D44: très facile | H44: 1 | J44: 0.5 | K44: … ein-/ ausgewechselt, viel gespielt | AJ44: =SUM(AJ45:AJ50) -> 0 | AK44: Ausfall wegen Verletzung
D45: facile | H45: 2 | J45: 0.1 | K45: … ein-/ ausgewechselt, Kurzeinsatz | AF45: =AK2 -> gespielte Sätze | AH45: =IF(AH31="","",SUM(AK4:AK24)) ->  | AJ45: =COUNTIF($H$4:$H$24,$AM45) -> 0 | AK45: Finger | AM45: 11
H46: 3 | AJ46: 0 | AK46: Schulter | AM46: 12
D47: Assez dur | H47: 4 | J47: J | K47: Wie zufrieden bist du mit dem Wettkampf | AF47: =AL2 -> J | AH47: =IF(AH31="","",SUM(AL4:AL24)/AH33) ->  | AJ47: 0 | AK47: Rücken | AM47: 13
D48: dur | H48: 5 | K48: oder Training bzgl. der Qualität? | AJ48: 0 | AK48: Knie | AM48: 14
H49: 6 | J49: 1 | K49: … nicht zufrieden | AF49: Einschränkungen wegen Schmerzen | AH49: =AJ36 -> 0 | AJ49: 0 | AK49: Sprunggelenk | AM49: 15
D50: très dur | H50: 7 | J50: 2 | K50: … eher nicht zufrieden | AJ50: 0 | AK50: Andere | AM50: 16
H51: 8 | J51: 3 | K51: … neutral | AF51: Ausfall wegen Verletzung | AH51: =AJ44 -> 0
D52: extrèmement dur | H52: 9 | J52: 4 | K52: … zufrieden | AF52: eingeschränktes Training | AJ52: =SUM(AJ53:AJ59) -> 0 | AK52: Ausfall wegen Krankheit
D53: Comme mon entrainement le plus dur | H53: 10 | J53: 5 | K53: … sehr zufrieden! | AF53: Ausfall wegen Krankheit | AH53: =AJ52 -> 0 | AJ53: =COUNTIF($H$4:$H$24,$AM53) -> 0 | AK53: Krankheit | AM53: 21
AF54: eingeschränktes Training | AH54: =AJ36 -> 0

Sheet 32
C1: Woche | D1: =INT(MOD(INT((F1-2)/7)+0.6,52+5/28))+1 -> 32 | E1: =D1+1000 -> 1032 | F1: ='31'!F1+7 -> 2017-08-08 | G1: - | H1: =F1+6 -> 2017-08-14 | AD1: =Overview!D2 -> Vorname Nachname | AF1: =Overview!N2 -> 2017/2018
B2: Tag | D2: Gewicht | E2: REG | F2: Schlaf-qualität | G2: Schlaf-dauer | H2: Verletzung/ Erkrankung | J2: Trainingsbeschreibung | M2: Balltraining-Club | P2: Balltraining-TS/ Nati | S2: iso. Krafttraining | V2: iso. Fitnesstraining | Y2: Wettkampf | AB2: Anderes Training | AF2: Reflexion | AH2: Load/ Tag | AJ2: Anzahl der Spiele | AK2: gespielte Sätze | AL2: J | AM2: Regenerationsmassnahme | AN2: Mental- oder Sonstiges Training
D3: [kg] | E3: [1 - 5] | F3: [1-5] | G3: [Std] | H3: Kommentar | M3: Dauer | N3: RPE | O3: Load | P3: Dauer | Q3: RPE | R3: Load | S3: Dauer | T3: RPE | U3: Load | V3: Dauer | W3: RPE | X3: Load | Y3: Dauer | Z3: RPE | AA3: Load | AB3: Dauer | AC3: RPE | AD3: Load | AL3: [1-5]
B4: Mo | D4: 0 | E4: 0 | F4: 0 | G4: 0 | H4: 0 | O4: =M4*N4 -> 0 | R4: =P4*Q4 -> 0 | U4: =S4*T4 -> 0 | X4: =V4*W4 -> 0 | AA4: =Y4*Z4 -> 0 | AD4: =AB4*AC4 -> 0 | AH4: =SUM(O4:O6,R4:R6,U4:U6,X4:X6,AA4:AA6,AD4:AD6) -> 0
O5: =M5*N5 -> 0 | R5: =P5*Q5 -> 0 | U5: =S5*T5 -> 0 | X5: =V5*W5 -> 0 | AA5: =Y5*Z5 -> 0 | AD5: =AB5*AC5 -> 0
O6: 0 | R6: 0 | U6: 0 | X6: 0 | AA6: 0 | AD6: 0
B7: Di | D7: 0 | E7: 0 | F7: 0 | G7: 0 | H7: 0 | O7: 0 | R7: 0 | U7: 0 | X7: 0 | AA7: 0 | AD7: 0 | AH7: =SUM(O7:O9,R7:R9,U7:U9,X7:X9,AA7:AA9,AD7:AD9) -> 0
O8: 0 | R8: 0 | U8: 0 | X8: 0 | AA8: 0 | AD8: 0
O9: 0 | R9: 0 | U9: 0 | X9: 0 | AA9: 0 | AD9: 0
B10: Mi | D10: 0 | E10: 0 | F10: 0 | G10: 0 | H10: 0 | O10: 0 | R10: 0 | U10: 0 | X10: 0 | AA10: 0 | AD10: 0 | AH10: =SUM(O10:O12,R10:R12,U10:U12,X10:X12,AA10:AA12,AD10:AD12) -> 0
O11: 0 | R11: 0 | U11: 0 | X11: 0 | AA11: 0 | AD11: 0
O12: 0 | R12: 0 | U12: 0 | X12: 0 | AA12: 0 | AD12: 0
B13: Do | D13: 0 | E13: 0 | F13: 0 | G13: 0 | H13: 0 | O13: 0 | R13: 0 | U13: 0 | X13: 0 | AA13: 0 | AD13: 0 | AH13: =SUM(O13:O15,R13:R15,U13:U15,X13:X15,AA13:AA15,AD13:AD15) -> 0
O14: 0 | R14: 0 | U14: 0 | X14: 0 | AA14: 0 | AD14: 0
O15: 0 | R15: 0 | U15: 0 | X15: 0 | AA15: 0 | AD15: 0
B16: Fr | D16: 0 | E16: 0 | F16: 0 | G16: 0 | H16: 0 | O16: 0 | R16: 0 | U16: 0 | X16: 0 | AA16: 0 | AD16: 0 | AH16: =SUM(O16:O18,R16:R18,U16:U18,X16:X18,AA16:AA18,AD16:AD18) -> 0
O17: 0 | R17: 0 | U17: 0 | X17: 0 | AA17: 0 | AD17: 0
O18: 0 | R18: 0 | U18: 0 | X18: 0 | AA18: 0 | AD18: 0
B19: Sa | D19: 0 | E19: 0 | F19: 0 | G19: 0 | H19: 0 | O19: 0 | R19: 0 | U19: 0 | X19: 0 | AA19: 0 | AD19: 0 | AH19: =SUM(O19:O21,R19:R21,U19:U21,X19:X21,AA19:AA21,AD19:AD21) -> 0
O20: 0 | R20: 0 | U20: 0 | X20: 0 | AA20: 0 | AD20: 0
O21: 0 | R21: 0 | U21: 0 | X21: 0 | AA21: 0 | AD21: 0
B22: So | D22: 0 | E22: 0 | F22: 0 | G22: 0 | H22: 0 | O22: 0 | R22: 0 | U22: 0 | X22: 0 | AA22: 0 | AD22: 0 | AH22: =SUM(O22:O24,R22:R24,U22:U24,X22:X24,AA22:AA24,AD22:AD24) -> 0
O23: 0 | R23: 0 | U23: 0 | X23: 0 | AA23: 0 | AD23: 0
O24: 0 | R24: 0 | U24: 0 | X24: 0 | AA24: 0 | AD24: 0
K25: Total | M25: =SUM(M4:M24) -> 0 | O25: =SUM(O4:O24) -> 0 | P25: =SUM(P4:P24) -> 0 | R25: =SUM(R4:R24) -> 0 | S25: =SUM(S4:S24) -> 0 | U25: =SUM(U4:U24) -> 0 | V25: =SUM(V4:V24) -> 0 | X25: =SUM(X4:X24) -> 0 | Y25: =SUM(Y4:Y24) -> 0 | AA25: =SUM(AA4:AA24) -> 0 | AB25: =SUM(AB4:AB24) -> 0 | AD25: =SUM(AD4:AD24) -> 0 | AF25: TOTAL LOAD | AH25: =SUM(AH4:AH24) -> 0
B26: avg | D26: =IF(COUNTA(D4:D24)=0,"",AVERAGE(D4:D24)) -> 0 | E26: =IF(COUNTA(E4:E24)=0,"",AVERAGE(E4:E24)) -> 0 | F26: =IF(COUNTA(F4:F24)=0,"",AVERAGE(F4:F24)) -> 0 | G26: =IF(COUNTA(G4:G24)=0,"",AVERAGE(G4:G24)) -> 0 | H26: =IF(COUNTA(H4:H24)=0,"",COUNTIF(H4:H24,"x")) -> 0 | K26: Zone | M26: 1 | N26: 2 | O26: 3 | P26: 1 | Q26: 2 | R26: 3 | S26: 1 | T26: 2 | U26: 3 | V26: 1 | W26: 2 | X26: 3 | Y26: 1 | Z26: 2 | AA26: 3 | AB26: 1 | AC26: 2 | AD26: 3 | AF26: Mittelwert | AH26: =AVERAGE(AH4:AH24) -> 0
F27: =IF(COUNTA(F4:F24)=0,"",VAR(F4:F24)) -> 0 | G27: =IF(COUNTA(G4:G24)=0,"",STDEV(G4:G24)) -> 0 | H27: Abweichung - Schlafdauer | K27: Einheiten pro Zone (RPE) | M27: =IF(Beanspruchungverteilung!$AT$21="x",COUNTIF(N4:N24,"<3,5"),COUNTIF(N4:N24,"<4,5")) -> 0 | N27: =COUNT(N4:N24)-(M27+O27) -> 0 | O27: =IF(Beanspruchungverteilung!$AT$21="x",COUNTIF(N4:N24,">5,5"),COUNTIF(N4:N24,">6,5")) -> 0 | P27: =IF(Beanspruchungverteilung!$AT$21="x",COUNTIF(Q4:Q24,"<3,5"),COUNTIF(Q4:Q24,"<4,5")) -> 0 | Q27: =COUNT(Q4:Q24)-(P27+R27) -> 0 | R27: =IF(Beanspruchungverteilung!$AT$21="x",COUNTIF(Q4:Q24,">5,5"),COUNTIF(Q4:Q24,">6,5")) -> 0 | S27: =IF(Beanspruchungverteilung!$AT$21="x",COUNTIF(T4:T24,"<3,5"),COUNTIF(T4:T24,"<4,5")) -> 0 | T27: =COUNT(T4:T24)-(S27+U27) -> 0 | U27: =IF(Beanspruchungverteilung!$AT$21="x",COUNTIF(T4:T24,">5,5"),COUNTIF(T4:T24,">6,5")) -> 0 | V27: =IF(Beanspruchungverteilung!$AT$21="x",COUNTIF(W4:W24,"<3,5"),COUNTIF(W4:W24,"<4,5")) -> 0 | W27: =COUNT(W4:W24)-(V27+X27) -> 0 | X27: =IF(Beanspruchungverteilung!$AT$21="x",COUNTIF(W4:W24,">5,5"),COUNTIF(W4:W24,">6,5")) -> 0 | Y27: =IF(Beanspruchungverteilung!$AT$21="x",COUNTIF(Z4:Z24,"<3,5"),COUNTIF(Z4:Z24,"<4,5")) -> 0 | Z27: =COUNT(Z4:Z24)-(Y27+AA27) -> 0 | AA27: =IF(Beanspruchungverteilung!$AT$21="x",COUNTIF(Z4:Z24,">5,5"),COUNTIF(Z4:Z24,">6,5")) -> 0 | AB27: =IF(Beanspruchungverteilung!$AT$21="x",COUNTIF(AC4:AC24,"<3,5"),COUNTIF(AC4:AC24,"<4,5")) -> 0 | AC27: =COUNT(AC4:AC24)-(AB27+AD27) -> 0 | AD27: =IF(Beanspruchungverteilung!$AT$21="x",COUNTIF(AC4:AC24,">5,5"),COUNTIF(AC4:AC24,">6,5")) -> 0 | AF27: Standardabweichung | AH27: =STDEVP(AH4:AH24) -> 0
D28: Foster's Skala | H28: RPE | K28: Zeit pro Zone (RPE) | M28: =IF(Beanspruchungverteilung!$AT$21="x",SUMIF(N4:N24,"<3,5",M4:M24),SUMIF(N4:N24,"<4,5",M4:M24)) -> 0 | N28: =IF(N27=0,0,SUM((M25)-(M28+O28))) -> 0 | O28: =IF(Beanspruchungverteilung!$AT$21="x",SUMIF(N4:N24,">5,5",M4:M24),SUMIF(N4:N24,">6,5",M4:M24)) -> 0 | P28: =IF(Beanspruchungverteilung!$AT$21="x",SUMIF(Q4:Q24,"<3,5",P4:P24),SUMIF(Q4:Q24,"<4,5",P4:P24)) -> 0 | Q28: =IF(Q27=0,0,SUM((P25)-(P28+R28))) -> 0 | R28: =IF(Beanspruchungverteilung!$AT$21="x",SUMIF(Q4:Q24,">5,5",P4:P24),SUMIF(Q4:Q24,">6,5",P4:P24)) -> 0 | S28: =IF(Beanspruchungverteilung!$AT$21="x",SUMIF(T4:T24,"<3,5",S4:S24),SUMIF(T4:T24,"<4,5",S4:S24)) -> 0 | T28: =IF(T27=0,0,SUM((S25)-(S28+U28))) -> 0 | U28: =IF(Beanspruchungverteilung!$AT$21="x",SUMIF(T4:T24,">5,5",S4:S24),SUMIF(T4:T24,">6,5",S4:S24)) -> 0 | V28: =IF(Beanspruchungverteilung!$AT$21="x",SUMIF(W4:W24,"<3,5",V4:V24),SUMIF(W4:W24,"<4,5",V4:V24)) -> 0 | W28: =IF(W27=0,0,SUM((V25)-(V28+X28))) -> 0 | X28: =IF(Beanspruchungverteilung!$AT$21="x",SUMIF(W4:W24,">5,5",V4:V24),SUMIF(W4:W24,">6,5",V4:V24)) -> 0 | Y28: =IF(Beanspruchungverteilung!$AT$21="x",SUMIF(Z4:Z24,"<3,5",Y4:Y24),SUMIF(Z4:Z24,"<4,5",Y4:Y24)) -> 0 | Z28: =IF(Z27=0,0,SUM((Y25)-(Y28+AA28))) -> 0 | AA28: =IF(Beanspruchungverteilung!$AT$21="x",SUMIF(Z4:Z24,">5,5",Y4:Y24),SUMIF(Z4:Z24,">6,5",Y4:Y24)) -> 0 | AB28: =IF(Beanspruchungverteilung!$AT$21="x",SUMIF(AC4:AC24,"<3,5",AB4:AB24),SUMIF(AC4:AC24,"<4,5",AB4:AB24)) -> 0 | AC28: =IF(AC27=0,0,SUM((AB25)-(AB28+AD28))) -> 0 | AD28: =IF(Beanspruchungverteilung!$AT$21="x",SUMIF(AC4:AC24,">5,5",AB4:AB24),SUMIF(AC4:AC24,">6,5",AB4:AB24)) -> 0
D29: Wie in Ruhe | H29: 0 | J29: REG | K29: Wie erholt bist du wenn du in der Früh aufstehst?
D30: Sehr locker | H30: 1
D31: Locker | H31: 2 | J31: 1 | K31: … gar nicht erholt | AF31: Trainingstage | AH31: =IF(SUM(AH4:AH24)=0,"",COUNTIF(AH4:AH24,">0")) ->  | AJ31: Gesundheitsreport
H32: 3 | J32: 2 | K32: … wenig erholt
D33: Etwas hart | H33: 4 | J33: 3 | K33: … erholt | S33: =B4 -> Mo | T33: =AH4 -> 0 | AF33: Trainingseinheiten | AH33: =IF(AH31="","",SUM(M27:AD27)) -> 
D34: Hart | H34: 5 | J34: 4 | K34: … fit | S34: =B7 -> Di | T34: =AH7 -> 0 | AJ34: =IF($AH$31="","",AH31-AJ36-AJ44) ->  | AK34: keine Einschränkungen | AM34: 0
H35: 6 | J35: 5 | K35: … Top fit | S35: =B10 -> Mi | T35: =AH10 -> 0 | AF35: Trainingsstunden | AH35: =IF(AH31="","",SUM(M25,P25,V25,Y25,S25,AB25)/60) -> 
D36: Sehr hart | H36: 7 | S36: =B13 -> Do | T36: =AH13 -> 0 | AJ36: =SUM(AJ37:AJ42) -> 0 | AK36: Einschränkungen wegen Schmerzen
H37: 8 | J37: Anzahl der Spiele | S37: =B16 -> Fr | T37: =AH16 -> 0 | AF37: Training Load | AH37: =IF(AH31="","",SUM(AH25)) ->  | AJ37: =COUNTIF($H$4:$H$24,$AM37) -> 0 | AK37: Finger | AM37: 1
D38: Extrem hart | H38: 9 | S38: =B19 -> Sa | T38: =AH19 -> 0 | AJ38: 0 | AK38: Schulter | AM38: 2
D39: Wie mein härtestes Training | H39: 10 | J39: 1 | K39: … 3 und mehr Sätze | S39: =B22 -> So | T39: =AH22 -> 0 | AF39: Monotonie | AH39: =IF(AH31="","",(AVERAGE(AH4:AH24))/AH27) ->  | AJ39: 0 | AK39: Rücken | AM39: 3
J40: 0.5 | K40: … weniger als 3 Sätze | AJ40: 0 | AK40: Knie | AM40: 4
AF41: Trainingsanstrengung | AH41: =IF(AH31="","",AH37*AH39) ->  | AJ41: 0 | AK41: Sprunggelenk | AM41: 5
D42: échelle de Foster | H42: RPE | J42: gespielte Sätze | AJ42: 0 | AK42: Andere | AM42: 6
D43: Comme au repos | H43: 0 | J43: 1 | K43: … gestartet & durchgespielt | AF43: =AJ2 -> Anzahl der Spiele | AH43: =IF(AH31="","",SUM(AJ4:AJ24)) -> 
D44: très facile | H44: 1 | J44: 0.5 | K44: … ein-/ ausgewechselt, viel gespielt | AJ44: =SUM(AJ45:AJ50) -> 0 | AK44: Ausfall wegen Verletzung
D45: facile | H45: 2 | J45: 0.1 | K45: … ein-/ ausgewechselt, Kurzeinsatz | AF45: =AK2 -> gespielte Sätze | AH45: =IF(AH31="","",SUM(AK4:AK24)) ->  | AJ45: =COUNTIF($H$4:$H$24,$AM45) -> 0 | AK45: Finger | AM45: 11
H46: 3 | AJ46: 0 | AK46: Schulter | AM46: 12
D47: Assez dur | H47: 4 | J47: J | K47: Wie zufrieden bist du mit dem Wettkampf | AF47: =AL2 -> J | AH47: =IF(AH31="","",SUM(AL4:AL24)/AH33) ->  | AJ47: 0 | AK47: Rücken | AM47: 13
D48: dur | H48: 5 | K48: oder Training bzgl. der Qualität? | AJ48: 0 | AK48: Knie | AM48: 14
H49: 6 | J49: 1 | K49: … nicht zufrieden | AF49: Einschränkungen wegen Schmerzen | AH49: =AJ36 -> 0 | AJ49: 0 | AK49: Sprunggelenk | AM49: 15
D50: très dur | H50: 7 | J50: 2 | K50: … eher nicht zufrieden | AJ50: 0 | AK50: Andere | AM50: 16
H51: 8 | J51: 3 | K51: … neutral | AF51: Ausfall wegen Verletzung | AH51: =AJ44 -> 0
D52: extrèmement dur | H52: 9 | J52: 4 | K52: … zufrieden | AF52: eingeschränktes Training | AJ52: =SUM(AJ53:AJ59) -> 0 | AK52: Ausfall wegen Krankheit
D53: Comme mon entrainement le plus dur | H53: 10 | J53: 5 | K53: … sehr zufrieden! | AF53: Ausfall wegen Krankheit | AH53: =AJ52 -> 0 | AJ53: =COUNTIF($H$4:$H$24,$AM53) -> 0 | AK53: Krankheit | AM53: 21
AF54: eingeschränktes Training | AH54: =AJ36 -> 0
V136: =W136-1 -> 27 | W136: =X136-1 -> 28 | X136: =Y136-1 -> 29 | Y136: =Z136-1 -> 30 | Z136: =AA136-1 -> 31 | AA136: =D1 -> 32 | AB136: =AA136+1 -> 33 | AC136: =AB136+1 -> 34
AD155: =AC136+1 -> 35 | AE155: =AD155+1 -> 36 | AF155: =AE155+1 -> 37 | AG155: =AF155+1 -> 38 | AH155: =AG155+1 -> 39

Sheet 33
C1: Woche | D1: =INT(MOD(INT((F1-2)/7)+0.6,52+5/28))+1 -> 33 | E1: =D1+1000 -> 1033 | F1: ='32'!F1+7 -> 2017-08-15 | G1: - | H1: =F1+6 -> 2017-08-21 | AD1: =Overview!D2 -> Vorname Nachname | AF1: =Overview!N2 -> 2017/2018
B2: Tag | D2: Gewicht | E2: REG | F2: Schlaf-qualität | G2: Schlaf-dauer | H2: Verletzung/ Erkrankung | J2: Trainingsbeschreibung | M2: Balltraining-Club | P2: Balltraining-TS/ Nati | S2: iso. Krafttraining | V2: iso. Fitnesstraining | Y2: Wettkampf | AB2: Anderes Training | AF2: Reflexion | AH2: Load/ Tag | AJ2: Anzahl der Spiele | AK2: gespielte Sätze | AL2: J | AM2: Regenerationsmassnahme | AN2: Mental- oder Sonstiges Training
D3: [kg] | E3: [1 - 5] | F3: [1-5] | G3: [Std] | H3: Kommentar | M3: Dauer | N3: RPE | O3: Load | P3: Dauer | Q3: RPE | R3: Load | S3: Dauer | T3: RPE | U3: Load | V3: Dauer | W3: RPE | X3: Load | Y3: Dauer | Z3: RPE | AA3: Load | AB3: Dauer | AC3: RPE | AD3: Load | AL3: [1-5]
B4: Mo | D4: 0 | E4: 0 | F4: 0 | G4: 0 | H4: 0 | O4: =M4*N4 -> 0 | R4: =P4*Q4 -> 0 | U4: =S4*T4 -> 0 | X4: =V4*W4 -> 0 | AA4: =Y4*Z4 -> 0 | AD4: =AB4*AC4 -> 0 | AH4: =SUM(O4:O6,R4:R6,U4:U6,X4:X6,AA4:AA6,AD4:AD6) -> 0
O5: =M5*N5 -> 0 | R5: =P5*Q5 -> 0 | U5: =S5*T5 -> 0 | X5: =V5*W5 -> 0 | AA5: =Y5*Z5 -> 0 | AD5: =AB5*AC5 -> 0
O6: 0 | R6: 0 | U6: 0 | X6: 0 | AA6: 0 | AD6: 0
B7: Di | D7: 0 | E7: 0 | F7: 0 | G7: 0 | H7: 0 | O7: 0 | R7: 0 | U7: 0 | X7: 0 | AA7: 0 | AD7: 0 | AH7: =SUM(O7:O9,R7:R9,U7:U9,X7:X9,AA7:AA9,AD7:AD9) -> 0
O8: 0 | R8: 0 | U8: 0 | X8: 0 | AA8: 0 | AD8: 0
O9: 0 | R9: 0 | U9: 0 | X9: 0 | AA9: 0 | AD9: 0
B10: Mi | D10: 0 | E10: 0 | F10: 0 | G10: 0 | H10: 0 | O10: 0 | R10: 0 | U10: 0 | X10: 0 | AA10: 0 | AD10: 0 | AH10: =SUM(O10:O12,R10:R12,U10:U12,X10:X12,AA10:AA12,AD10:AD12) -> 0
O11: 0 | R11: 0 | U11: 0 | X11: 0 | AA11: 0 | AD11: 0
O12: 0 | R12: 0 | U12: 0 | X12: 0 | AA12: 0 | AD12: 0
B13: Do | D13: 0 | E13: 0 | F13: 0 | G13: 0 | H13: 0 | O13: 0 | R13: 0 | U13: 0 | X13: 0 | AA13: 0 | AD13: 0 | AH13: =SUM(O13:O15,R13:R15,U13:U15,X13:X15,AA13:AA15,AD13:AD15) -> 0
O14: 0 | R14: 0 | U14: 0 | X14: 0 | AA14: 0 | AD14: 0
O15: 0 | R15: 0 | U15: 0 | X15: 0 | AA15: 0 | AD15: 0
B16: Fr | D16: 0 | E16: 0 | F16: 0 | G16: 0 | H16: 0 | O16: 0 | R16: 0 | U16: 0 | X16: 0 | AA16: 0 | AD16: 0 | AH16: =SUM(O16:O18,R16:R18,U16:U18,X16:X18,AA16:AA18,AD16:AD18) -> 0
O17: 0 | R17: 0 | U17: 0 | X17: 0 | AA17: 0 | AD17: 0
O18: 0 | R18: 0 | U18: 0 | X18: 0 | AA18: 0 | AD18: 0
B19: Sa | D19: 0 | E19: 0 | F19: 0 | G19: 0 | H19: 0 | O19: 0 | R19: 0 | U19: 0 | X19: 0 | AA19: 0 | AD19: 0 | AH19: =SUM(O19:O21,R19:R21,U19:U21,X19:X21,AA19:AA21,AD19:AD21) -> 0
O20: 0 | R20: 0 | U20: 0 | X20: 0 | AA20: 0 | AD20: 0
O21: 0 | R21: 0 | U21: 0 | X21: 0 | AA21: 0 | AD21: 0
B22: So | D22: 0 | E22: 0 | F22: 0 | G22: 0 | H22: 0 | O22: 0 | R22: 0 | U22: 0 | X22: 0 | AA22: 0 | AD22: 0 | AH22: =SUM(O22:O24,R22:R24,U22:U24,X22:X24,AA22:AA24,AD22:AD24) -> 0
O23: 0 | R23: 0 | U23: 0 | X23: 0 | AA23: 0 | AD23: 0
O24: 0 | R24: 0 | U24: 0 | X24: 0 | AA24: 0 | AD24: 0
K25: Total | M25: =SUM(M4:M24) -> 0 | O25: =SUM(O4:O24) -> 0 | P25: =SUM(P4:P24) -> 0 | R25: =SUM(R4:R24) -> 0 | S25: =SUM(S4:S24) -> 0 | U25: =SUM(U4:U24) -> 0 | V25: =SUM(V4:V24) -> 0 | X25: =SUM(X4:X24) -> 0 | Y25: =SUM(Y4:Y24) -> 0 | AA25: =SUM(AA4:AA24) -> 0 | AB25: =SUM(AB4:AB24) -> 0 | AD25: =SUM(AD4:AD24) -> 0 | AF25: TOTAL LOAD | AH25: =SUM(AH4:AH24) -> 0
B26: avg | D26: =IF(COUNTA(D4:D24)=0,"",AVERAGE(D4:D24)) -> 0 | E26: =IF(COUNTA(E4:E24)=0,"",AVERAGE(E4:E24)) -> 0 | F26: =IF(COUNTA(F4:F24)=0,"",AVERAGE(F4:F24)) -> 0 | G26: =IF(COUNTA(G4:G24)=0,"",AVERAGE(G4:G24)) -> 0 | H26: =IF(COUNTA(H4:H24)=0,"",COUNTIF(H4:H24,"x")) -> 0 | K26: Zone | M26: 1 | N26: 2 | O26: 3 | P26: 1 | Q26: 2 | R26: 3 | S26: 1 | T26: 2 | U26: 3 | V26: 1 | W26: 2 | X26: 3 | Y26: 1 | Z26: 2 | AA26: 3 | AB26: 1 | AC26: 2 | AD26: 3 | AF26: Mittelwert | AH26: =AVERAGE(AH4:AH24) -> 0
F27: =IF(COUNTA(F4:F24)=0,"",VAR(F4:F24)) -> 0 | G27: =IF(COUNTA(G4:G24)=0,"",STDEV(G4:G24)) -> 0 | H27: Abweichung - Schlafdauer | K27: Einheiten pro Zone (RPE) | M27: =IF(Beanspruchungverteilung!$AT$21="x",COUNTIF(N4:N24,"<3,5"),COUNTIF(N4:N24,"<4,5")) -> 0 | N27: =COUNT(N4:N24)-(M27+O27) -> 0 | O27: =IF(Beanspruchungverteilung!$AT$21="x",COUNTIF(N4:N24,">5,5"),COUNTIF(N4:N24,">6,5")) -> 0 | P27: =IF(Beanspruchungverteilung!$AT$21="x",COUNTIF(Q4:Q24,"<3,5"),COUNTIF(Q4:Q24,"<4,5")) -> 0 | Q27: =COUNT(Q4:Q24)-(P27+R27) -> 0 | R27: =IF(Beanspruchungverteilung!$AT$21="x",COUNTIF(Q4:Q24,">5,5"),COUNTIF(Q4:Q24,">6,5")) -> 0 | S27: =IF(Beanspruchungverteilung!$AT$21="x",COUNTIF(T4:T24,"<3,5"),COUNTIF(T4:T24,"<4,5")) -> 0 | T27: =COUNT(T4:T24)-(S27+U27) -> 0 | U27: =IF(Beanspruchungverteilung!$AT$21="x",COUNTIF(T4:T24,">5,5"),COUNTIF(T4:T24,">6,5")) -> 0 | V27: =IF(Beanspruchungverteilung!$AT$21="x",COUNTIF(W4:W24,"<3,5"),COUNTIF(W4:W24,"<4,5")) -> 0 | W27: =COUNT(W4:W24)-(V27+X27) -> 0 | X27: =IF(Beanspruchungverteilung!$AT$21="x",COUNTIF(W4:W24,">5,5"),COUNTIF(W4:W24,">6,5")) -> 0 | Y27: =IF(Beanspruchungverteilung!$AT$21="x",COUNTIF(Z4:Z24,"<3,5"),COUNTIF(Z4:Z24,"<4,5")) -> 0 | Z27: =COUNT(Z4:Z24)-(Y27+AA27) -> 0 | AA27: =IF(Beanspruchungverteilung!$AT$21="x",COUNTIF(Z4:Z24,">5,5"),COUNTIF(Z4:Z24,">6,5")) -> 0 | AB27: =IF(Beanspruchungverteilung!$AT$21="x",COUNTIF(AC4:AC24,"<3,5"),COUNTIF(AC4:AC24,"<4,5")) -> 0 | AC27: =COUNT(AC4:AC24)-(AB27+AD27) -> 0 | AD27: =IF(Beanspruchungverteilung!$AT$21="x",COUNTIF(AC4:AC24,">5,5"),COUNTIF(AC4:AC24,">6,5")) -> 0 | AF27: Standardabweichung | AH27: =STDEVP(AH4:AH24) -> 0
D28: Foster's Skala | H28: RPE | K28: Zeit pro Zone (RPE) | M28: =IF(Beanspruchungverteilung!$AT$21="x",SUMIF(N4:N24,"<3,5",M4:M24),SUMIF(N4:N24,"<4,5",M4:M24)) -> 0 | N28: =IF(N27=0,0,SUM((M25)-(M28+O28))) -> 0 | O28: =IF(Beanspruchungverteilung!$AT$21="x",SUMIF(N4:N24,">5,5",M4:M24),SUMIF(N4:N24,">6,5",M4:M24)) -> 0 | P28: =IF(Beanspruchungverteilung!$AT$21="x",SUMIF(Q4:Q24,"<3,5",P4:P24),SUMIF(Q4:Q24,"<4,5",P4:P24)) -> 0 | Q28: =IF(Q27=0,0,SUM((P25)-(P28+R28))) -> 0 | R28: =IF(Beanspruchungverteilung!$AT$21="x",SUMIF(Q4:Q24,">5,5",P4:P24),SUMIF(Q4:Q24,">6,5",P4:P24)) -> 0 | S28: =IF(Beanspruchungverteilung!$AT$21="x",SUMIF(T4:T24,"<3,5",S4:S24),SUMIF(T4:T24,"<4,5",S4:S24)) -> 0 | T28: =IF(T27=0,0,SUM((S25)-(S28+U28))) -> 0 | U28: =IF(Beanspruchungverteilung!$AT$21="x",SUMIF(T4:T24,">5,5",S4:S24),SUMIF(T4:T24,">6,5",S4:S24)) -> 0 | V28: =IF(Beanspruchungverteilung!$AT$21="x",SUMIF(W4:W24,"<3,5",V4:V24),SUMIF(W4:W24,"<4,5",V4:V24)) -> 0 | W28: =IF(W27=0,0,SUM((V25)-(V28+X28))) -> 0 | X28: =IF(Beanspruchungverteilung!$AT$21="x",SUMIF(W4:W24,">5,5",V4:V24),SUMIF(W4:W24,">6,5",V4:V24)) -> 0 | Y28: =IF(Beanspruchungverteilung!$AT$21="x",SUMIF(Z4:Z24,"<3,5",Y4:Y24),SUMIF(Z4:Z24,"<4,5",Y4:Y24)) -> 0 | Z28: =IF(Z27=0,0,SUM((Y25)-(Y28+AA28))) -> 0 | AA28: =IF(Beanspruchungverteilung!$AT$21="x",SUMIF(Z4:Z24,">5,5",Y4:Y24),SUMIF(Z4:Z24,">6,5",Y4:Y24)) -> 0 | AB28: =IF(Beanspruchungverteilung!$AT$21="x",SUMIF(AC4:AC24,"<3,5",AB4:AB24),SUMIF(AC4:AC24,"<4,5",AB4:AB24)) -> 0 | AC28: =IF(AC27=0,0,SUM((AB25)-(AB28+AD28))) -> 0 | AD28: =IF(Beanspruchungverteilung!$AT$21="x",SUMIF(AC4:AC24,">5,5",AB4:AB24),SUMIF(AC4:AC24,">6,5",AB4:AB24)) -> 0
D29: Wie in Ruhe | H29: 0 | J29: REG | K29: Wie erholt bist du wenn du in der Früh aufstehst?
D30: Sehr locker | H30: 1
D31: Locker | H31: 2 | J31: 1 | K31: … gar nicht erholt | AF31: Trainingstage | AH31: =IF(SUM(AH4:AH24)=0,"",COUNTIF(AH4:AH24,">0")) ->  | AJ31: Gesundheitsreport
H32: 3 | J32: 2 | K32: … wenig erholt
D33: Etwas hart | H33: 4 | J33: 3 | K33: … erholt | S33: =B4 -> Mo | T33: =AH4 -> 0 | AF33: Trainingseinheiten | AH33: =IF(AH31="","",SUM(M27:AD27)) -> 
D34: Hart | H34: 5 | J34: 4 | K34: … fit | S34: =B7 -> Di | T34: =AH7 -> 0 | AJ34: =IF($AH$31="","",AH31-AJ36-AJ44) ->  | AK34: keine Einschränkungen | AM34: 0
H35: 6 | J35: 5 | K35: … Top fit | S35: =B10 -> Mi | T35: =AH10 -> 0 | AF35: Trainingsstunden | AH35: =IF(AH31="","",SUM(M25,P25,V25,Y25,S25,AB25)/60) -> 
D36: Sehr hart | H36: 7 | S36: =B13 -> Do | T36: =AH13 -> 0 | AJ36: =SUM(AJ37:AJ42) -> 0 | AK36: Einschränkungen wegen Schmerzen
H37: 8 | J37: Anzahl der Spiele | S37: =B16 -> Fr | T37: =AH16 -> 0 | AF37: Training Load | AH37: =IF(AH31="","",SUM(AH25)) ->  | AJ37: =COUNTIF($H$4:$H$24,$AM37) -> 0 | AK37: Finger | AM37: 1
D38: Extrem hart | H38: 9 | S38: =B19 -> Sa | T38: =AH19 -> 0 | AJ38: 0 | AK38: Schulter | AM38: 2
D39: Wie mein härtestes Training | H39: 10 | J39: 1 | K39: … 3 und mehr Sätze | S39: =B22 -> So | T39: =AH22 -> 0 | AF39: Monotonie | AH39: =IF(AH31="","",(AVERAGE(AH4:AH24))/AH27) ->  | AJ39: 0 | AK39: Rücken | AM39: 3
J40: 0.5 | K40: … weniger als 3 Sätze | AJ40: 0 | AK40: Knie | AM40: 4
AF41: Trainingsanstrengung | AH41: =IF(AH31="","",AH37*AH39) ->  | AJ41: 0 | AK41: Sprunggelenk | AM41: 5
D42: échelle de Foster | H42: RPE | J42: gespielte Sätze | AJ42: 0 | AK42: Andere | AM42: 6
D43: Comme au repos | H43: 0 | J43: 1 | K43: … gestartet & durchgespielt | AF43: =AJ2 -> Anzahl der Spiele | AH43: =IF(AH31="","",SUM(AJ4:AJ24)) -> 
D44: très facile | H44: 1 | J44: 0.5 | K44: … ein-/ ausgewechselt, viel gespielt | AJ44: =SUM(AJ45:AJ50) -> 0 | AK44: Ausfall wegen Verletzung
D45: facile | H45: 2 | J45: 0.1 | K45: … ein-/ ausgewechselt, Kurzeinsatz | AF45: =AK2 -> gespielte Sätze | AH45: =IF(AH31="","",SUM(AK4:AK24)) ->  | AJ45: =COUNTIF($H$4:$H$24,$AM45) -> 0 | AK45: Finger | AM45: 11
H46: 3 | AJ46: 0 | AK46: Schulter | AM46: 12
D47: Assez dur | H47: 4 | J47: J | K47: Wie zufrieden bist du mit dem Wettkampf | AF47: =AL2 -> J | AH47: =IF(AH31="","",SUM(AL4:AL24)/AH33) ->  | AJ47: 0 | AK47: Rücken | AM47: 13
D48: dur | H48: 5 | K48: oder Training bzgl. der Qualität? | AJ48: 0 | AK48: Knie | AM48: 14
H49: 6 | J49: 1 | K49: … nicht zufrieden | AF49: Einschränkungen wegen Schmerzen | AH49: =AJ36 -> 0 | AJ49: 0 | AK49: Sprunggelenk | AM49: 15
D50: très dur | H50: 7 | J50: 2 | K50: … eher nicht zufrieden | AJ50: 0 | AK50: Andere | AM50: 16
H51: 8 | J51: 3 | K51: … neutral | AF51: Ausfall wegen Verletzung | AH51: =AJ44 -> 0
D52: extrèmement dur | H52: 9 | J52: 4 | K52: … zufrieden | AF52: eingeschränktes Training | AJ52: =SUM(AJ53:AJ59) -> 0 | AK52: Ausfall wegen Krankheit
D53: Comme mon entrainement le plus dur | H53: 10 | J53: 5 | K53: … sehr zufrieden! | AF53: Ausfall wegen Krankheit | AH53: =AJ52 -> 0 | AJ53: =COUNTIF($H$4:$H$24,$AM53) -> 0 | AK53: Krankheit | AM53: 21
AF54: eingeschränktes Training | AH54: =AJ36 -> 0
V134: =W134-1 -> 28 | W134: =X134-1 -> 29 | X134: =Y134-1 -> 30 | Y134: =Z134-1 -> 31 | Z134: =AA134-1 -> 32 | AA134: =D1 -> 33 | AB134: =AA134+1 -> 34 | AC134: =AB134+1 -> 35
AD155: =AC134+1 -> 36 | AE155: =AD155+1 -> 37

Sheet 34
C1: Woche | D1: =INT(MOD(INT((F1-2)/7)+0.6,52+5/28))+1 -> 34 | E1: =D1+1000 -> 1034 | F1: ='33'!F1+7 -> 2017-08-22 | G1: - | H1: =F1+6 -> 2017-08-28 | AD1: =Overview!D2 -> Vorname Nachname | AF1: =Overview!N2 -> 2017/2018
B2: Tag | D2: Gewicht | E2: REG | F2: Schlaf-qualität | G2: Schlaf-dauer | H2: Verletzung/ Erkrankung | J2: Trainingsbeschreibung | M2: Balltraining-Club | P2: Balltraining-TS/ Nati | S2: iso. Krafttraining | V2: iso. Fitnesstraining | Y2: Wettkampf | AB2: Anderes Training | AF2: Reflexion | AH2: Load/ Tag | AJ2: Anzahl der Spiele | AK2: gespielte Sätze | AL2: J | AM2: Regenerationsmassnahme | AN2: Mental- oder Sonstiges Training
D3: [kg] | E3: [1 - 5] | F3: [1-5] | G3: [Std] | H3: Kommentar | M3: Dauer | N3: RPE | O3: Load | P3: Dauer | Q3: RPE | R3: Load | S3: Dauer | T3: RPE | U3: Load | V3: Dauer | W3: RPE | X3: Load | Y3: Dauer | Z3: RPE | AA3: Load | AB3: Dauer | AC3: RPE | AD3: Load | AL3: [1-5]
B4: Mo | D4: 0 | E4: 0 | F4: 0 | G4: 0 | H4: 0 | O4: =M4*N4 -> 0 | R4: =P4*Q4 -> 0 | U4: =S4*T4 -> 0 | X4: =V4*W4 -> 0 | AA4: =Y4*Z4 -> 0 | AD4: =AB4*AC4 -> 0 | AH4: =SUM(O4:O6,R4:R6,U4:U6,X4:X6,AA4:AA6,AD4:AD6) -> 0
O5: =M5*N5 -> 0 | R5: =P5*Q5 -> 0 | U5: =S5*T5 -> 0 | X5: =V5*W5 -> 0 | AA5: =Y5*Z5 -> 0 | AD5: =AB5*AC5 -> 0
O6: 0 | R6: 0 | U6: 0 | X6: 0 | AA6: 0 | AD6: 0
B7: Di | D7: 0 | E7: 0 | F7: 0 | G7: 0 | H7: 0 | O7: 0 | R7: 0 | U7: 0 | X7: 0 | AA7: 0 | AD7: 0 | AH7: =SUM(O7:O9,R7:R9,U7:U9,X7:X9,AA7:AA9,AD7:AD9) -> 0
O8: 0 | R8: 0 | U8: 0 | X8: 0 | AA8: 0 | AD8: 0
O9: 0 | R9: 0 | U9: 0 | X9: 0 | AA9: 0 | AD9: 0
B10: Mi | D10: 0 | E10: 0 | F10: 0 | G10: 0 | H10: 0 | O10: 0 | R10: 0 | U10: 0 | X10: 0 | AA10: 0 | AD10: 0 | AH10: =SUM(O10:O12,R10:R12,U10:U12,X10:X12,AA10:AA12,AD10:AD12) -> 0
O11: 0 | R11: 0 | U11: 0 | X11: 0 | AA11: 0 | AD11: 0
O12: 0 | R12: 0 | U12: 0 | X12: 0 | AA12: 0 | AD12: 0
B13: Do | D13: 0 | E13: 0 | F13: 0 | G13: 0 | H13: 0 | O13: 0 | R13: 0 | U13: 0 | X13: 0 | AA13: 0 | AD13: 0 | AH13: =SUM(O13:O15,R13:R15,U13:U15,X13:X15,AA13:AA15,AD13:AD15) -> 0
O14: 0 | R14: 0 | U14: 0 | X14: 0 | AA14: 0 | AD14: 0
O15: 0 | R15: 0 | U15: 0 | X15: 0 | AA15: 0 | AD15: 0
B16: Fr | D16: 0 | E16: 0 | F16: 0 | G16: 0 | H16: 0 | O16: 0 | R16: 0 | U16: 0 | X16: 0 | AA16: 0 | AD16: 0 | AH16: =SUM(O16:O18,R16:R18,U16:U18,X16:X18,AA16:AA18,AD16:AD18) -> 0
O17: 0 | R17: 0 | U17: 0 | X17: 0 | AA17: 0 | AD17: 0
O18: 0 | R18: 0 | U18: 0 | X18: 0 | AA18: 0 | AD18: 0
B19: Sa | D19: 0 | E19: 0 | F19: 0 | G19: 0 | H19: 0 | O19: 0 | R19: 0 | U19: 0 | X19: 0 | AA19: 0 | AD19: 0 | AH19: =SUM(O19:O21,R19:R21,U19:U21,X19:X21,AA19:AA21,AD19:AD21) -> 0
O20: 0 | R20: 0 | U20: 0 | X20: 0 | AA20: 0 | AD20: 0
O21: 0 | R21: 0 | U21: 0 | X21: 0 | AA21: 0 | AD21: 0
B22: So | D22: 0 | E22: 0 | F22: 0 | G22: 0 | H22: 0 | O22: 0 | R22: 0 | U22: 0 | X22: 0 | AA22: 0 | AD22: 0 | AH22: =SUM(O22:O24,R22:R24,U22:U24,X22:X24,AA22:AA24,AD22:AD24) -> 0
O23: 0 | R23: 0 | U23: 0 | X23: 0 | AA23: 0 | AD23: 0
O24: 0 | R24: 0 | U24: 0 | X24: 0 | AA24: 0 | AD24: 0
K25: Total | M25: =SUM(M4:M24) -> 0 | O25: =SUM(O4:O24) -> 0 | P25: =SUM(P4:P24) -> 0 | R25: =SUM(R4:R24) -> 0 | S25: =SUM(S4:S24) -> 0 | U25: =SUM(U4:U24) -> 0 | V25: =SUM(V4:V24) -> 0 | X25: =SUM(X4:X24) -> 0 | Y25: =SUM(Y4:Y24) -> 0 | AA25: =SUM(AA4:AA24) -> 0 | AB25: =SUM(AB4:AB24) -> 0 | AD25: =SUM(AD4:AD24) -> 0 | AF25: TOTAL LOAD | AH25: =SUM(AH4:AH24) -> 0
B26: avg | D26: =IF(COUNTA(D4:D24)=0,"",AVERAGE(D4:D24)) -> 0 | E26: =IF(COUNTA(E4:E24)=0,"",AVERAGE(E4:E24)) -> 0 | F26: =IF(COUNTA(F4:F24)=0,"",AVERAGE(F4:F24)) -> 0 | G26: =IF(COUNTA(G4:G24)=0,"",AVERAGE(G4:G24)) -> 0 | H26: =IF(COUNTA(H4:H24)=0,"",COUNTIF(H4:H24,"x")) -> 0 | K26: Zone | M26: 1 | N26: 2 | O26: 3 | P26: 1 | Q26: 2 | R26: 3 | S26: 1 | T26: 2 | U26: 3 | V26: 1 | W26: 2 | X26: 3 | Y26: 1 | Z26: 2 | AA26: 3 | AB26: 1 | AC26: 2 | AD26: 3 | AF26: Mittelwert | AH26: =AVERAGE(AH4:AH24) -> 0
F27: =IF(COUNTA(F4:F24)=0,"",VAR(F4:F24)) -> 0 | G27: =IF(COUNTA(G4:G24)=0,"",STDEV(G4:G24)) -> 0 | H27: Abweichung - Schlafdauer | K27: Einheiten pro Zone (RPE) | M27: =IF(Beanspruchungverteilung!$AT$21="x",COUNTIF(N4:N24,"<3,5"),COUNTIF(N4:N24,"<4,5")) -> 0 | N27: =COUNT(N4:N24)-(M27+O27) -> 0 | O27: =IF(Beanspruchungverteilung!$AT$21="x",COUNTIF(N4:N24,">5,5"),COUNTIF(N4:N24,">6,5")) -> 0 | P27: =IF(Beanspruchungverteilung!$AT$21="x",COUNTIF(Q4:Q24,"<3,5"),COUNTIF(Q4:Q24,"<4,5")) -> 0 | Q27: =COUNT(Q4:Q24)-(P27+R27) -> 0 | R27: =IF(Beanspruchungverteilung!$AT$21="x",COUNTIF(Q4:Q24,">5,5"),COUNTIF(Q4:Q24,">6,5")) -> 0 | S27: =IF(Beanspruchungverteilung!$AT$21="x",COUNTIF(T4:T24,"<3,5"),COUNTIF(T4:T24,"<4,5")) -> 0 | T27: =COUNT(T4:T24)-(S27+U27) -> 0 | U27: =IF(Beanspruchungverteilung!$AT$21="x",COUNTIF(T4:T24,">5,5"),COUNTIF(T4:T24,">6,5")) -> 0 | V27: =IF(Beanspruchungverteilung!$AT$21="x",COUNTIF(W4:W24,"<3,5"),COUNTIF(W4:W24,"<4,5")) -> 0 | W27: =COUNT(W4:W24)-(V27+X27) -> 0 | X27: =IF(Beanspruchungverteilung!$AT$21="x",COUNTIF(W4:W24,">5,5"),COUNTIF(W4:W24,">6,5")) -> 0 | Y27: =IF(Beanspruchungverteilung!$AT$21="x",COUNTIF(Z4:Z24,"<3,5"),COUNTIF(Z4:Z24,"<4,5")) -> 0 | Z27: =COUNT(Z4:Z24)-(Y27+AA27) -> 0 | AA27: =IF(Beanspruchungverteilung!$AT$21="x",COUNTIF(Z4:Z24,">5,5"),COUNTIF(Z4:Z24,">6,5")) -> 0 | AB27: =IF(Beanspruchungverteilung!$AT$21="x",COUNTIF(AC4:AC24,"<3,5"),COUNTIF(AC4:AC24,"<4,5")) -> 0 | AC27: =COUNT(AC4:AC24)-(AB27+AD27) -> 0 | AD27: =IF(Beanspruchungverteilung!$AT$21="x",COUNTIF(AC4:AC24,">5,5"),COUNTIF(AC4:AC24,">6,5")) -> 0 | AF27: Standardabweichung | AH27: =STDEVP(AH4:AH24) -> 0
D28: Foster's Skala | H28: RPE | K28: Zeit pro Zone (RPE) | M28: =IF(Beanspruchungverteilung!$AT$21="x",SUMIF(N4:N24,"<3,5",M4:M24),SUMIF(N4:N24,"<4,5",M4:M24)) -> 0 | N28: =IF(N27=0,0,SUM((M25)-(M28+O28))) -> 0 | O28: =IF(Beanspruchungverteilung!$AT$21="x",SUMIF(N4:N24,">5,5",M4:M24),SUMIF(N4:N24,">6,5",M4:M24)) -> 0 | P28: =IF(Beanspruchungverteilung!$AT$21="x",SUMIF(Q4:Q24,"<3,5",P4:P24),SUMIF(Q4:Q24,"<4,5",P4:P24)) -> 0 | Q28: =IF(Q27=0,0,SUM((P25)-(P28+R28))) -> 0 | R28: =IF(Beanspruchungverteilung!$AT$21="x",SUMIF(Q4:Q24,">5,5",P4:P24),SUMIF(Q4:Q24,">6,5",P4:P24)) -> 0 | S28: =IF(Beanspruchungverteilung!$AT$21="x",SUMIF(T4:T24,"<3,5",S4:S24),SUMIF(T4:T24,"<4,5",S4:S24)) -> 0 | T28: =IF(T27=0,0,SUM((S25)-(S28+U28))) -> 0 | U28: =IF(Beanspruchungverteilung!$AT$21="x",SUMIF(T4:T24,">5,5",S4:S24),SUMIF(T4:T24,">6,5",S4:S24)) -> 0 | V28: =IF(Beanspruchungverteilung!$AT$21="x",SUMIF(W4:W24,"<3,5",V4:V24),SUMIF(W4:W24,"<4,5",V4:V24)) -> 0 | W28: =IF(W27=0,0,SUM((V25)-(V28+X28))) -> 0 | X28: =IF(Beanspruchungverteilung!$AT$21="x",SUMIF(W4:W24,">5,5",V4:V24),SUMIF(W4:W24,">6,5",V4:V24)) -> 0 | Y28: =IF(Beanspruchungverteilung!$AT$21="x",SUMIF(Z4:Z24,"<3,5",Y4:Y24),SUMIF(Z4:Z24,"<4,5",Y4:Y24)) -> 0 | Z28: =IF(Z27=0,0,SUM((Y25)-(Y28+AA28))) -> 0 | AA28: =IF(Beanspruchungverteilung!$AT$21="x",SUMIF(Z4:Z24,">5,5",Y4:Y24),SUMIF(Z4:Z24,">6,5",Y4:Y24)) -> 0 | AB28: =IF(Beanspruchungverteilung!$AT$21="x",SUMIF(AC4:AC24,"<3,5",AB4:AB24),SUMIF(AC4:AC24,"<4,5",AB4:AB24)) -> 0 | AC28: =IF(AC27=0,0,SUM((AB25)-(AB28+AD28))) -> 0 | AD28: =IF(Beanspruchungverteilung!$AT$21="x",SUMIF(AC4:AC24,">5,5",AB4:AB24),SUMIF(AC4:AC24,">6,5",AB4:AB24)) -> 0
D29: Wie in Ruhe | H29: 0 | J29: REG | K29: Wie erholt bist du wenn du in der Früh aufstehst?
D30: Sehr locker | H30: 1
D31: Locker | H31: 2 | J31: 1 | K31: … gar nicht erholt | AF31: Trainingstage | AH31: =IF(SUM(AH4:AH24)=0,"",COUNTIF(AH4:AH24,">0")) ->  | AJ31: Gesundheitsreport
H32: 3 | J32: 2 | K32: … wenig erholt
D33: Etwas hart | H33: 4 | J33: 3 | K33: … erholt | S33: =B4 -> Mo | T33: =AH4 -> 0 | AF33: Trainingseinheiten | AH33: =IF(AH31="","",SUM(M27:AD27)) -> 
D34: Hart | H34: 5 | J34: 4 | K34: … fit | S34: =B7 -> Di | T34: =AH7 -> 0 | AJ34: =IF($AH$31="","",AH31-AJ36-AJ44) ->  | AK34: keine Einschränkungen | AM34: 0
H35: 6 | J35: 5 | K35: … Top fit | S35: =B10 -> Mi | T35: =AH10 -> 0 | AF35: Trainingsstunden | AH35: =IF(AH31="","",SUM(M25,P25,V25,Y25,S25,AB25)/60) -> 
D36: Sehr hart | H36: 7 | S36: =B13 -> Do | T36: =AH13 -> 0 | AJ36: =SUM(AJ37:AJ42) -> 0 | AK36: Einschränkungen wegen Schmerzen
H37: 8 | J37: Anzahl der Spiele | S37: =B16 -> Fr | T37: =AH16 -> 0 | AF37: Training Load | AH37: =IF(AH31="","",SUM(AH25)) ->  | AJ37: =COUNTIF($H$4:$H$24,$AM37) -> 0 | AK37: Finger | AM37: 1
D38: Extrem hart | H38: 9 | S38: =B19 -> Sa | T38: =AH19 -> 0 | AJ38: 0 | AK38: Schulter | AM38: 2
D39: Wie mein härtestes Training | H39: 10 | J39: 1 | K39: … 3 und mehr Sätze | S39: =B22 -> So | T39: =AH22 -> 0 | AF39: Monotonie | AH39: =IF(AH31="","",(AVERAGE(AH4:AH24))/AH27) ->  | AJ39: 0 | AK39: Rücken | AM39: 3
J40: 0.5 | K40: … weniger als 3 Sätze | AJ40: 0 | AK40: Knie | AM40: 4
AF41: Trainingsanstrengung | AH41: =IF(AH31="","",AH37*AH39) ->  | AJ41: 0 | AK41: Sprunggelenk | AM41: 5
D42: échelle de Foster | H42: RPE | J42: gespielte Sätze | AJ42: 0 | AK42: Andere | AM42: 6
D43: Comme au repos | H43: 0 | J43: 1 | K43: … gestartet & durchgespielt | AF43: =AJ2 -> Anzahl der Spiele | AH43: =IF(AH31="","",SUM(AJ4:AJ24)) -> 
D44: très facile | H44: 1 | J44: 0.5 | K44: … ein-/ ausgewechselt, viel gespielt | AJ44: =SUM(AJ45:AJ50) -> 0 | AK44: Ausfall wegen Verletzung
D45: facile | H45: 2 | J45: 0.1 | K45: … ein-/ ausgewechselt, Kurzeinsatz | AF45: =AK2 -> gespielte Sätze | AH45: =IF(AH31="","",SUM(AK4:AK24)) ->  | AJ45: =COUNTIF($H$4:$H$24,$AM45) -> 0 | AK45: Finger | AM45: 11
H46: 3 | AJ46: 0 | AK46: Schulter | AM46: 12
D47: Assez dur | H47: 4 | J47: J | K47: Wie zufrieden bist du mit dem Wettkampf | AF47: =AL2 -> J | AH47: =IF(AH31="","",SUM(AL4:AL24)/AH33) ->  | AJ47: 0 | AK47: Rücken | AM47: 13
D48: dur | H48: 5 | K48: oder Training bzgl. der Qualität? | AJ48: 0 | AK48: Knie | AM48: 14
H49: 6 | J49: 1 | K49: … nicht zufrieden | AF49: Einschränkungen wegen Schmerzen | AH49: =AJ36 -> 0 | AJ49: 0 | AK49: Sprunggelenk | AM49: 15
D50: très dur | H50: 7 | J50: 2 | K50: … eher nicht zufrieden | AJ50: 0 | AK50: Andere | AM50: 16
H51: 8 | J51: 3 | K51: … neutral | AF51: Ausfall wegen Verletzung | AH51: =AJ44 -> 0
D52: extrèmement dur | H52: 9 | J52: 4 | K52: … zufrieden | AF52: eingeschränktes Training | AJ52: =SUM(AJ53:AJ59) -> 0 | AK52: Ausfall wegen Krankheit
D53: Comme mon entrainement le plus dur | H53: 10 | J53: 5 | K53: … sehr zufrieden! | AF53: Ausfall wegen Krankheit | AH53: =AJ52 -> 0 | AJ53: =COUNTIF($H$4:$H$24,$AM53) -> 0 | AK53: Krankheit | AM53: 21
AF54: eingeschränktes Training | AH54: =AJ36 -> 0
V134: =W134-1 -> 29 | W134: =X134-1 -> 30 | X134: =Y134-1 -> 31 | Y134: =Z134-1 -> 32 | Z134: =AA134-1 -> 33 | AA134: =D1 -> 34 | AB134: =AA134+1 -> 35 | AC134: =AB134+1 -> 36
AD155: =G1 -> -

Sheet 35
C1: Woche | D1: =INT(MOD(INT((F1-2)/7)+0.6,52+5/28))+1 -> 35 | E1: =D1+1000 -> 1035 | F1: ='34'!F1+7 -> 2017-08-29 | G1: - | H1: =F1+6 -> 2017-09-04 | AD1: =Overview!D2 -> Vorname Nachname | AF1: =Overview!N2 -> 2017/2018
B2: Tag | D2: Gewicht | E2: REG | F2: Schlaf-qualität | G2: Schlaf-dauer | H2: Verletzung/ Erkrankung | J2: Trainingsbeschreibung | M2: Balltraining-Club | P2: Balltraining-TS/ Nati | S2: iso. Krafttraining | V2: iso. Fitnesstraining | Y2: Wettkampf | AB2: Anderes Training | AF2: Reflexion | AH2: Load/ Tag | AJ2: Anzahl der Spiele | AK2: gespielte Sätze | AL2: J | AM2: Regenerationsmassnahme | AN2: Mental- oder Sonstiges Training
D3: [kg] | E3: [1 - 5] | F3: [1-5] | G3: [Std] | H3: Kommentar | M3: Dauer | N3: RPE | O3: Load | P3: Dauer | Q3: RPE | R3: Load | S3: Dauer | T3: RPE | U3: Load | V3: Dauer | W3: RPE | X3: Load | Y3: Dauer | Z3: RPE | AA3: Load | AB3: Dauer | AC3: RPE | AD3: Load | AL3: [1-5]
B4: Mo | D4: 0 | E4: 0 | F4: 0 | G4: 0 | H4: 0 | O4: =M4*N4 -> 0 | R4: =P4*Q4 -> 0 | U4: =S4*T4 -> 0 | X4: =V4*W4 -> 0 | AA4: =Y4*Z4 -> 0 | AD4: =AB4*AC4 -> 0 | AH4: =SUM(O4:O6,R4:R6,U4:U6,X4:X6,AA4:AA6,AD4:AD6) -> 0
O5: =M5*N5 -> 0 | R5: =P5*Q5 -> 0 | U5: =S5*T5 -> 0 | X5: =V5*W5 -> 0 | AA5: =Y5*Z5 -> 0 | AD5: =AB5*AC5 -> 0
O6: 0 | R6: 0 | U6: 0 | X6: 0 | AA6: 0 | AD6: 0
B7: Di | D7: 0 | E7: 0 | F7: 0 | G7: 0 | H7: 0 | O7: 0 | R7: 0 | U7: 0 | X7: 0 | AA7: 0 | AD7: 0 | AH7: =SUM(O7:O9,R7:R9,U7:U9,X7:X9,AA7:AA9,AD7:AD9) -> 0
O8: 0 | R8: 0 | U8: 0 | X8: 0 | AA8: 0 | AD8: 0
O9: 0 | R9: 0 | U9: 0 | X9: 0 | AA9: 0 | AD9: 0
B10: Mi | D10: 0 | E10: 0 | F10: 0 | G10: 0 | H10: 0 | O10: 0 | R10: 0 | U10: 0 | X10: 0 | AA10: 0 | AD10: 0 | AH10: =SUM(O10:O12,R10:R12,U10:U12,X10:X12,AA10:AA12,AD10:AD12) -> 0
O11: 0 | R11: 0 | U11: 0 | X11: 0 | AA11: 0 | AD11: 0
O12: 0 | R12: 0 | U12: 0 | X12: 0 | AA12: 0 | AD12: 0
B13: Do | D13: 0 | E13: 0 | F13: 0 | G13: 0 | H13: 0 | O13: 0 | R13: 0 | U13: 0 | X13: 0 | AA13: 0 | AD13: 0 | AH13: =SUM(O13:O15,R13:R15,U13:U15,X13:X15,AA13:AA15,AD13:AD15) -> 0
O14: 0 | R14: 0 | U14: 0 | X14: 0 | AA14: 0 | AD14: 0
O15: 0 | R15: 0 | U15: 0 | X15: 0 | AA15: 0 | AD15: 0
B16: Fr | D16: 0 | E16: 0 | F16: 0 | G16: 0 | H16: 0 | O16: 0 | R16: 0 | U16: 0 | X16: 0 | AA16: 0 | AD16: 0 | AH16: =SUM(O16:O18,R16:R18,U16:U18,X16:X18,AA16:AA18,AD16:AD18) -> 0
O17: 0 | R17: 0 | U17: 0 | X17: 0 | AA17: 0 | AD17: 0
O18: 0 | R18: 0 | U18: 0 | X18: 0 | AA18: 0 | AD18: 0
B19: Sa | D19: 0 | E19: 0 | F19: 0 | G19: 0 | H19: 0 | O19: 0 | R19: 0 | U19: 0 | X19: 0 | AA19: 0 | AD19: 0 | AH19: =SUM(O19:O21,R19:R21,U19:U21,X19:X21,AA19:AA21,AD19:AD21) -> 0
O20: 0 | R20: 0 | U20: 0 | X20: 0 | AA20: 0 | AD20: 0
O21: 0 | R21: 0 | U21: 0 | X21: 0 | AA21: 0 | AD21: 0
B22: So | D22: 0 | E22: 0 | F22: 0 | G22: 0 | H22: 0 | O22: 0 | R22: 0 | U22: 0 | X22: 0 | AA22: 0 | AD22: 0 | AH22: =SUM(O22:O24,R22:R24,U22:U24,X22:X24,AA22:AA24,AD22:AD24) -> 0
O23: 0 | R23: 0 | U23: 0 | X23: 0 | AA23: 0 | AD23: 0
O24: 0 | R24: 0 | U24: 0 | X24: 0 | AA24: 0 | AD24: 0
K25: Total | M25: =SUM(M4:M24) -> 0 | O25: =SUM(O4:O24) -> 0 | P25: =SUM(P4:P24) -> 0 | R25: =SUM(R4:R24) -> 0 | S25: =SUM(S4:S24) -> 0 | U25: =SUM(U4:U24) -> 0 | V25: =SUM(V4:V24) -> 0 | X25: =SUM(X4:X24) -> 0 | Y25: =SUM(Y4:Y24) -> 0 | AA25: =SUM(AA4:AA24) -> 0 | AB25: =SUM(AB4:AB24) -> 0 | AD25: =SUM(AD4:AD24) -> 0 | AF25: TOTAL LOAD | AH25: =SUM(AH4:AH24) -> 0
B26: avg | D26: =IF(COUNTA(D4:D24)=0,"",AVERAGE(D4:D24)) -> 0 | E26: =IF(COUNTA(E4:E24)=0,"",AVERAGE(E4:E24)) -> 0 | F26: =IF(COUNTA(F4:F24)=0,"",AVERAGE(F4:F24)) -> 0 | G26: =IF(COUNTA(G4:G24)=0,"",AVERAGE(G4:G24)) -> 0 | H26: =IF(COUNTA(H4:H24)=0,"",COUNTIF(H4:H24,"x")) -> 0 | K26: Zone | M26: 1 | N26: 2 | O26: 3 | P26: 1 | Q26: 2 | R26: 3 | S26: 1 | T26: 2 | U26: 3 | V26: 1 | W26: 2 | X26: 3 | Y26: 1 | Z26: 2 | AA26: 3 | AB26: 1 | AC26: 2 | AD26: 3 | AF26: Mittelwert | AH26: =AVERAGE(AH4:AH24) -> 0
F27: =IF(COUNTA(F4:F24)=0,"",VAR(F4:F24)) -> 0 | G27: =IF(COUNTA(G4:G24)=0,"",STDEV(G4:G24)) -> 0 | H27: Abweichung - Schlafdauer | K27: Einheiten pro Zone (RPE) | M27: =IF(Beanspruchungverteilung!$AT$21="x",COUNTIF(N4:N24,"<3,5"),COUNTIF(N4:N24,"<4,5")) -> 0 | N27: =COUNT(N4:N24)-(M27+O27) -> 0 | O27: =IF(Beanspruchungverteilung!$AT$21="x",COUNTIF(N4:N24,">5,5"),COUNTIF(N4:N24,">6,5")) -> 0 | P27: =IF(Beanspruchungverteilung!$AT$21="x",COUNTIF(Q4:Q24,"<3,5"),COUNTIF(Q4:Q24,"<4,5")) -> 0 | Q27: =COUNT(Q4:Q24)-(P27+R27) -> 0 | R27: =IF(Beanspruchungverteilung!$AT$21="x",COUNTIF(Q4:Q24,">5,5"),COUNTIF(Q4:Q24,">6,5")) -> 0 | S27: =IF(Beanspruchungverteilung!$AT$21="x",COUNTIF(T4:T24,"<3,5"),COUNTIF(T4:T24,"<4,5")) -> 0 | T27: =COUNT(T4:T24)-(S27+U27) -> 0 | U27: =IF(Beanspruchungverteilung!$AT$21="x",COUNTIF(T4:T24,">5,5"),COUNTIF(T4:T24,">6,5")) -> 0 | V27: =IF(Beanspruchungverteilung!$AT$21="x",COUNTIF(W4:W24,"<3,5"),COUNTIF(W4:W24,"<4,5")) -> 0 | W27: =COUNT(W4:W24)-(V27+X27) -> 0 | X27: =IF(Beanspruchungverteilung!$AT$21="x",COUNTIF(W4:W24,">5,5"),COUNTIF(W4:W24,">6,5")) -> 0 | Y27: =IF(Beanspruchungverteilung!$AT$21="x",COUNTIF(Z4:Z24,"<3,5"),COUNTIF(Z4:Z24,"<4,5")) -> 0 | Z27: =COUNT(Z4:Z24)-(Y27+AA27) -> 0 | AA27: =IF(Beanspruchungverteilung!$AT$21="x",COUNTIF(Z4:Z24,">5,5"),COUNTIF(Z4:Z24,">6,5")) -> 0 | AB27: =IF(Beanspruchungverteilung!$AT$21="x",COUNTIF(AC4:AC24,"<3,5"),COUNTIF(AC4:AC24,"<4,5")) -> 0 | AC27: =COUNT(AC4:AC24)-(AB27+AD27) -> 0 | AD27: =IF(Beanspruchungverteilung!$AT$21="x",COUNTIF(AC4:AC24,">5,5"),COUNTIF(AC4:AC24,">6,5")) -> 0 | AF27: Standardabweichung | AH27: =STDEVP(AH4:AH24) -> 0
D28: Foster's Skala | H28: RPE | K28: Zeit pro Zone (RPE) | M28: =IF(Beanspruchungverteilung!$AT$21="x",SUMIF(N4:N24,"<3,5",M4:M24),SUMIF(N4:N24,"<4,5",M4:M24)) -> 0 | N28: =IF(N27=0,0,SUM((M25)-(M28+O28))) -> 0 | O28: =IF(Beanspruchungverteilung!$AT$21="x",SUMIF(N4:N24,">5,5",M4:M24),SUMIF(N4:N24,">6,5",M4:M24)) -> 0 | P28: =IF(Beanspruchungverteilung!$AT$21="x",SUMIF(Q4:Q24,"<3,5",P4:P24),SUMIF(Q4:Q24,"<4,5",P4:P24)) -> 0 | Q28: =IF(Q27=0,0,SUM((P25)-(P28+R28))) -> 0 | R28: =IF(Beanspruchungverteilung!$AT$21="x",SUMIF(Q4:Q24,">5,5",P4:P24),SUMIF(Q4:Q24,">6,5",P4:P24)) -> 0 | S28: =IF(Beanspruchungverteilung!$AT$21="x",SUMIF(T4:T24,"<3,5",S4:S24),SUMIF(T4:T24,"<4,5",S4:S24)) -> 0 | T28: =IF(T27=0,0,SUM((S25)-(S28+U28))) -> 0 | U28: =IF(Beanspruchungverteilung!$AT$21="x",SUMIF(T4:T24,">5,5",S4:S24),SUMIF(T4:T24,">6,5",S4:S24)) -> 0 | V28: =IF(Beanspruchungverteilung!$AT$21="x",SUMIF(W4:W24,"<3,5",V4:V24),SUMIF(W4:W24,"<4,5",V4:V24)) -> 0 | W28: =IF(W27=0,0,SUM((V25)-(V28+X28))) -> 0 | X28: =IF(Beanspruchungverteilung!$AT$21="x",SUMIF(W4:W24,">5,5",V4:V24),SUMIF(W4:W24,">6,5",V4:V24)) -> 0 | Y28: =IF(Beanspruchungverteilung!$AT$21="x",SUMIF(Z4:Z24,"<3,5",Y4:Y24),SUMIF(Z4:Z24,"<4,5",Y4:Y24)) -> 0 | Z28: =IF(Z27=0,0,SUM((Y25)-(Y28+AA28))) -> 0 | AA28: =IF(Beanspruchungverteilung!$AT$21="x",SUMIF(Z4:Z24,">5,5",Y4:Y24),SUMIF(Z4:Z24,">6,5",Y4:Y24)) -> 0 | AB28: =IF(Beanspruchungverteilung!$AT$21="x",SUMIF(AC4:AC24,"<3,5",AB4:AB24),SUMIF(AC4:AC24,"<4,5",AB4:AB24)) -> 0 | AC28: =IF(AC27=0,0,SUM((AB25)-(AB28+AD28))) -> 0 | AD28: =IF(Beanspruchungverteilung!$AT$21="x",SUMIF(AC4:AC24,">5,5",AB4:AB24),SUMIF(AC4:AC24,">6,5",AB4:AB24)) -> 0
D29: Wie in Ruhe | H29: 0 | J29: REG | K29: Wie erholt bist du wenn du in der Früh aufstehst?
D30: Sehr locker | H30: 1
D31: Locker | H31: 2 | J31: 1 | K31: … gar nicht erholt | AF31: Trainingstage | AH31: =IF(SUM(AH4:AH24)=0,"",COUNTIF(AH4:AH24,">0")) ->  | AJ31: Gesundheitsreport
H32: 3 | J32: 2 | K32: … wenig erholt
D33: Etwas hart | H33: 4 | J33: 3 | K33: … erholt | S33: =B4 -> Mo | T33: =AH4 -> 0 | AF33: Trainingseinheiten | AH33: =IF(AH31="","",SUM(M27:AD27)) -> 
D34: Hart | H34: 5 | J34: 4 | K34: … fit | S34: =B7 -> Di | T34: =AH7 -> 0 | AJ34: =IF($AH$31="","",AH31-AJ36-AJ44) ->  | AK34: keine Einschränkungen | AM34: 0
H35: 6 | J35: 5 | K35: … Top fit | S35: =B10 -> Mi | T35: =AH10 -> 0 | AF35: Trainingsstunden | AH35: =IF(AH31="","",SUM(M25,P25,V25,Y25,S25,AB25)/60) -> 
D36: Sehr hart | H36: 7 | S36: =B13 -> Do | T36: =AH13 -> 0 | AJ36: =SUM(AJ37:AJ42) -> 0 | AK36: Einschränkungen wegen Schmerzen
H37: 8 | J37: Anzahl der Spiele | S37: =B16 -> Fr | T37: =AH16 -> 0 | AF37: Training Load | AH37: =IF(AH31="","",SUM(AH25)) ->  | AJ37: =COUNTIF($H$4:$H$24,$AM37) -> 0 | AK37: Finger | AM37: 1
D38: Extrem hart | H38: 9 | S38: =B19 -> Sa | T38: =AH19 -> 0 | AJ38: 0 | AK38: Schulter | AM38: 2
D39: Wie mein härtestes Training | H39: 10 | J39: 1 | K39: … 3 und mehr Sätze | S39: =B22 -> So | T39: =AH22 -> 0 | AF39: Monotonie | AH39: =IF(AH31="","",(AVERAGE(AH4:AH24))/AH27) ->  | AJ39: 0 | AK39: Rücken | AM39: 3
J40: 0.5 | K40: … weniger als 3 Sätze | AJ40: 0 | AK40: Knie | AM40: 4
AF41: Trainingsanstrengung | AH41: =IF(AH31="","",AH37*AH39) ->  | AJ41: 0 | AK41: Sprunggelenk | AM41: 5
D42: échelle de Foster | H42: RPE | J42: gespielte Sätze | AJ42: 0 | AK42: Andere | AM42: 6
D43: Comme au repos | H43: 0 | J43: 1 | K43: … gestartet & durchgespielt | AF43: =AJ2 -> Anzahl der Spiele | AH43: =IF(AH31="","",SUM(AJ4:AJ24)) -> 
D44: très facile | H44: 1 | J44: 0.5 | K44: … ein-/ ausgewechselt, viel gespielt | AJ44: =SUM(AJ45:AJ50) -> 0 | AK44: Ausfall wegen Verletzung
D45: facile | H45: 2 | J45: 0.1 | K45: … ein-/ ausgewechselt, Kurzeinsatz | AF45: =AK2 -> gespielte Sätze | AH45: =IF(AH31="","",SUM(AK4:AK24)) ->  | AJ45: =COUNTIF($H$4:$H$24,$AM45) -> 0 | AK45: Finger | AM45: 11
H46: 3 | AJ46: 0 | AK46: Schulter | AM46: 12
D47: Assez dur | H47: 4 | J47: J | K47: Wie zufrieden bist du mit dem Wettkampf | AF47: =AL2 -> J | AH47: =IF(AH31="","",SUM(AL4:AL24)/AH33) ->  | AJ47: 0 | AK47: Rücken | AM47: 13
D48: dur | H48: 5 | K48: oder Training bzgl. der Qualität? | AJ48: 0 | AK48: Knie | AM48: 14
H49: 6 | J49: 1 | K49: … nicht zufrieden | AF49: Einschränkungen wegen Schmerzen | AH49: =AJ36 -> 0 | AJ49: 0 | AK49: Sprunggelenk | AM49: 15
D50: très dur | H50: 7 | J50: 2 | K50: … eher nicht zufrieden | AJ50: 0 | AK50: Andere | AM50: 16
H51: 8 | J51: 3 | K51: … neutral | AF51: Ausfall wegen Verletzung | AH51: =AJ44 -> 0
D52: extrèmement dur | H52: 9 | J52: 4 | K52: … zufrieden | AF52: eingeschränktes Training | AJ52: =SUM(AJ53:AJ59) -> 0 | AK52: Ausfall wegen Krankheit
D53: Comme mon entrainement le plus dur | H53: 10 | J53: 5 | K53: … sehr zufrieden! | AF53: Ausfall wegen Krankheit | AH53: =AJ52 -> 0 | AJ53: =COUNTIF($H$4:$H$24,$AM53) -> 0 | AK53: Krankheit | AM53: 21
AF54: eingeschränktes Training | AH54: =AJ36 -> 0
V134: =W134-1 -> 30 | W134: =X134-1 -> 31 | X134: =Y134-1 -> 32 | Y134: =Z134-1 -> 33 | Z134: =AA134-1 -> 34 | AA134: =D1 -> 35 | AB134: =AA134+1 -> 36 | AC134: =AB134+1 -> 37
AD155: =G1 -> -

Sheet 36
A1: A6 | C1: Woche | D1: =INT(MOD(INT((F1-2)/7)+0.6,52+5/28))+1 -> 36 | E1: =D1+1000 -> 1036 | F1: ='35'!F1+7 -> 2017-09-05 | G1: - | H1: =F1+6 -> 2017-09-11 | AD1: =Overview!D2 -> Vorname Nachname | AF1: =Overview!N2 -> 2017/2018
B2: Tag | D2: Gewicht | E2: REG | F2: Schlaf-qualität | G2: Schlaf-dauer | H2: Verletzung/ Erkrankung | J2: Trainingsbeschreibung | M2: Balltraining-Club | P2: Balltraining-TS/ Nati | S2: iso. Krafttraining | V2: iso. Fitnesstraining | Y2: Wettkampf | AB2: Anderes Training | AF2: Reflexion | AH2: Load/ Tag | AJ2: Anzahl der Spiele | AK2: gespielte Sätze | AL2: J | AM2: Regenerationsmassnahme | AN2: Mental- oder Sonstiges Training
D3: [kg] | E3: [1 - 5] | F3: [1-5] | G3: [Std] | H3: Kommentar | M3: Dauer | N3: RPE | O3: Load | P3: Dauer | Q3: RPE | R3: Load | S3: Dauer | T3: RPE | U3: Load | V3: Dauer | W3: RPE | X3: Load | Y3: Dauer | Z3: RPE | AA3: Load | AB3: Dauer | AC3: RPE | AD3: Load | AL3: [1-5]
B4: Mo | D4: 0 | E4: 0 | F4: 0 | G4: 0 | H4: 0 | O4: =M4*N4 -> 0 | R4: =P4*Q4 -> 0 | U4: =S4*T4 -> 0 | X4: =V4*W4 -> 0 | AA4: =Y4*Z4 -> 0 | AD4: =AB4*AC4 -> 0 | AH4: =SUM(O4:O6,R4:R6,U4:U6,X4:X6,AA4:AA6,AD4:AD6) -> 0
O5: =M5*N5 -> 0 | R5: =P5*Q5 -> 0 | U5: =S5*T5 -> 0 | X5: =V5*W5 -> 0 | AA5: =Y5*Z5 -> 0 | AD5: =AB5*AC5 -> 0
O6: 0 | R6: 0 | U6: 0 | X6: 0 | AA6: 0 | AD6: 0
B7: Di | D7: 0 | E7: 0 | F7: 0 | G7: 0 | H7: 0 | O7: 0 | R7: 0 | U7: 0 | X7: 0 | AA7: 0 | AD7: 0 | AH7: =SUM(O7:O9,R7:R9,U7:U9,X7:X9,AA7:AA9,AD7:AD9) -> 0
O8: 0 | R8: 0 | U8: 0 | X8: 0 | AA8: 0 | AD8: 0
O9: 0 | R9: 0 | U9: 0 | X9: 0 | AA9: 0 | AD9: 0
B10: Mi | D10: 0 | E10: 0 | F10: 0 | G10: 0 | H10: 0 | O10: 0 | R10: 0 | U10: 0 | X10: 0 | AA10: 0 | AD10: 0 | AH10: =SUM(O10:O12,R10:R12,U10:U12,X10:X12,AA10:AA12,AD10:AD12) -> 0
O11: 0 | R11: 0 | U11: 0 | X11: 0 | AA11: 0 | AD11: 0
O12: 0 | R12: 0 | U12: 0 | X12: 0 | AA12: 0 | AD12: 0
B13: Do | D13: 0 | E13: 0 | F13: 0 | G13: 0 | H13: 0 | O13: 0 | R13: 0 | U13: 0 | X13: 0 | AA13: 0 | AD13: 0 | AH13: =SUM(O13:O15,R13:R15,U13:U15,X13:X15,AA13:AA15,AD13:AD15) -> 0
O14: 0 | R14: 0 | U14: 0 | X14: 0 | AA14: 0 | AD14: 0
O15: 0 | R15: 0 | U15: 0 | X15: 0 | AA15: 0 | AD15: 0
B16: Fr | D16: 0 | E16: 0 | F16: 0 | G16: 0 | H16: 0 | O16: 0 | R16: 0 | U16: 0 | X16: 0 | AA16: 0 | AD16: 0 | AH16: =SUM(O16:O18,R16:R18,U16:U18,X16:X18,AA16:AA18,AD16:AD18) -> 0
O17: 0 | R17: 0 | U17: 0 | X17: 0 | AA17: 0 | AD17: 0
O18: 0 | R18: 0 | U18: 0 | X18: 0 | AA18: 0 | AD18: 0
B19: Sa | D19: 0 | E19: 0 | F19: 0 | G19: 0 | H19: 0 | O19: 0 | R19: 0 | U19: 0 | X19: 0 | AA19: 0 | AD19: 0 | AH19: =SUM(O19:O21,R19:R21,U19:U21,X19:X21,AA19:AA21,AD19:AD21) -> 0
O20: 0 | R20: 0 | U20: 0 | X20: 0 | AA20: 0 | AD20: 0
O21: 0 | R21: 0 | U21: 0 | X21: 0 | AA21: 0 | AD21: 0
B22: So | D22: 0 | E22: 0 | F22: 0 | G22: 0 | H22: 0 | O22: 0 | R22: 0 | U22: 0 | X22: 0 | AA22: 0 | AD22: 0 | AH22: =SUM(O22:O24,R22:R24,U22:U24,X22:X24,AA22:AA24,AD22:AD24) -> 0
O23: 0 | R23: 0 | U23: 0 | X23: 0 | AA23: 0 | AD23: 0
O24: 0 | R24: 0 | U24: 0 | X24: 0 | AA24: 0 | AD24: 0
K25: Total | M25: =SUM(M4:M24) -> 0 | O25: =SUM(O4:O24) -> 0 | P25: =SUM(P4:P24) -> 0 | R25: =SUM(R4:R24) -> 0 | S25: =SUM(S4:S24) -> 0 | U25: =SUM(U4:U24) -> 0 | V25: =SUM(V4:V24) -> 0 | X25: =SUM(X4:X24) -> 0 | Y25: =SUM(Y4:Y24) -> 0 | AA25: =SUM(AA4:AA24) -> 0 | AB25: =SUM(AB4:AB24) -> 0 | AD25: =SUM(AD4:AD24) -> 0 | AF25: TOTAL LOAD | AH25: =SUM(AH4:AH24) -> 0
B26: avg | D26: =IF(COUNTA(D4:D24)=0,"",AVERAGE(D4:D24)) -> 0 | E26: =IF(COUNTA(E4:E24)=0,"",AVERAGE(E4:E24)) -> 0 | F26: =IF(COUNTA(F4:F24)=0,"",AVERAGE(F4:F24)) -> 0 | G26: =IF(COUNTA(G4:G24)=0,"",AVERAGE(G4:G24)) -> 0 | H26: =IF(COUNTA(H4:H24)=0,"",COUNTIF(H4:H24,"x")) -> 0 | K26: Zone | M26: 1 | N26: 2 | O26: 3 | P26: 1 | Q26: 2 | R26: 3 | S26: 1 | T26: 2 | U26: 3 | V26: 1 | W26: 2 | X26: 3 | Y26: 1 | Z26: 2 | AA26: 3 | AB26: 1 | AC26: 2 | AD26: 3 | AF26: Mittelwert | AH26: =AVERAGE(AH4:AH24) -> 0
F27: =IF(COUNTA(F4:F24)=0,"",VAR(F4:F24)) -> 0 | G27: =IF(COUNTA(G4:G24)=0,"",STDEV(G4:G24)) -> 0 | H27: Abweichung - Schlafdauer | K27: Einheiten pro Zone (RPE) | M27: =IF(Beanspruchungverteilung!$AT$21="x",COUNTIF(N4:N24,"<3,5"),COUNTIF(N4:N24,"<4,5")) -> 0 | N27: =COUNT(N4:N24)-(M27+O27) -> 0 | O27: =IF(Beanspruchungverteilung!$AT$21="x",COUNTIF(N4:N24,">5,5"),COUNTIF(N4:N24,">6,5")) -> 0 | P27: =IF(Beanspruchungverteilung!$AT$21="x",COUNTIF(Q4:Q24,"<3,5"),COUNTIF(Q4:Q24,"<4,5")) -> 0 | Q27: =COUNT(Q4:Q24)-(P27+R27) -> 0 | R27: =IF(Beanspruchungverteilung!$AT$21="x",COUNTIF(Q4:Q24,">5,5"),COUNTIF(Q4:Q24,">6,5")) -> 0 | S27: =IF(Beanspruchungverteilung!$AT$21="x",COUNTIF(T4:T24,"<3,5"),COUNTIF(T4:T24,"<4,5")) -> 0 | T27: =COUNT(T4:T24)-(S27+U27) -> 0 | U27: =IF(Beanspruchungverteilung!$AT$21="x",COUNTIF(T4:T24,">5,5"),COUNTIF(T4:T24,">6,5")) -> 0 | V27: =IF(Beanspruchungverteilung!$AT$21="x",COUNTIF(W4:W24,"<3,5"),COUNTIF(W4:W24,"<4,5")) -> 0 | W27: =COUNT(W4:W24)-(V27+X27) -> 0 | X27: =IF(Beanspruchungverteilung!$AT$21="x",COUNTIF(W4:W24,">5,5"),COUNTIF(W4:W24,">6,5")) -> 0 | Y27: =IF(Beanspruchungverteilung!$AT$21="x",COUNTIF(Z4:Z24,"<3,5"),COUNTIF(Z4:Z24,"<4,5")) -> 0 | Z27: =COUNT(Z4:Z24)-(Y27+AA27) -> 0 | AA27: =IF(Beanspruchungverteilung!$AT$21="x",COUNTIF(Z4:Z24,">5,5"),COUNTIF(Z4:Z24,">6,5")) -> 0 | AB27: =IF(Beanspruchungverteilung!$AT$21="x",COUNTIF(AC4:AC24,"<3,5"),COUNTIF(AC4:AC24,"<4,5")) -> 0 | AC27: =COUNT(AC4:AC24)-(AB27+AD27) -> 0 | AD27: =IF(Beanspruchungverteilung!$AT$21="x",COUNTIF(AC4:AC24,">5,5"),COUNTIF(AC4:AC24,">6,5")) -> 0 | AF27: Standardabweichung | AH27: =STDEVP(AH4:AH24) -> 0
D28: Foster's Skala | H28: RPE | K28: Zeit pro Zone (RPE) | M28: =IF(Beanspruchungverteilung!$AT$21="x",SUMIF(N4:N24,"<3,5",M4:M24),SUMIF(N4:N24,"<4,5",M4:M24)) -> 0 | N28: =IF(N27=0,0,SUM((M25)-(M28+O28))) -> 0 | O28: =IF(Beanspruchungverteilung!$AT$21="x",SUMIF(N4:N24,">5,5",M4:M24),SUMIF(N4:N24,">6,5",M4:M24)) -> 0 | P28: =IF(Beanspruchungverteilung!$AT$21="x",SUMIF(Q4:Q24,"<3,5",P4:P24),SUMIF(Q4:Q24,"<4,5",P4:P24)) -> 0 | Q28: =IF(Q27=0,0,SUM((P25)-(P28+R28))) -> 0 | R28: =IF(Beanspruchungverteilung!$AT$21="x",SUMIF(Q4:Q24,">5,5",P4:P24),SUMIF(Q4:Q24,">6,5",P4:P24)) -> 0 | S28: =IF(Beanspruchungverteilung!$AT$21="x",SUMIF(T4:T24,"<3,5",S4:S24),SUMIF(T4:T24,"<4,5",S4:S24)) -> 0 | T28: =IF(T27=0,0,SUM((S25)-(S28+U28))) -> 0 | U28: =IF(Beanspruchungverteilung!$AT$21="x",SUMIF(T4:T24,">5,5",S4:S24),SUMIF(T4:T24,">6,5",S4:S24)) -> 0 | V28: =IF(Beanspruchungverteilung!$AT$21="x",SUMIF(W4:W24,"<3,5",V4:V24),SUMIF(W4:W24,"<4,5",V4:V24)) -> 0 | W28: =IF(W27=0,0,SUM((V25)-(V28+X28))) -> 0 | X28: =IF(Beanspruchungverteilung!$AT$21="x",SUMIF(W4:W24,">5,5",V4:V24),SUMIF(W4:W24,">6,5",V4:V24)) -> 0 | Y28: =IF(Beanspruchungverteilung!$AT$21="x",SUMIF(Z4:Z24,"<3,5",Y4:Y24),SUMIF(Z4:Z24,"<4,5",Y4:Y24)) -> 0 | Z28: =IF(Z27=0,0,SUM((Y25)-(Y28+AA28))) -> 0 | AA28: =IF(Beanspruchungverteilung!$AT$21="x",SUMIF(Z4:Z24,">5,5",Y4:Y24),SUMIF(Z4:Z24,">6,5",Y4:Y24)) -> 0 | AB28: =IF(Beanspruchungverteilung!$AT$21="x",SUMIF(AC4:AC24,"<3,5",AB4:AB24),SUMIF(AC4:AC24,"<4,5",AB4:AB24)) -> 0 | AC28: =IF(AC27=0,0,SUM((AB25)-(AB28+AD28))) -> 0 | AD28: =IF(Beanspruchungverteilung!$AT$21="x",SUMIF(AC4:AC24,">5,5",AB4:AB24),SUMIF(AC4:AC24,">6,5",AB4:AB24)) -> 0
D29: Wie in Ruhe | H29: 0 | J29: REG | K29: Wie erholt bist du wenn du in der Früh aufstehst?
D30: Sehr locker | H30: 1
D31: Locker | H31: 2 | J31: 1 | K31: … gar nicht erholt | AF31: Trainingstage | AH31: =IF(SUM(AH4:AH24)=0,"",COUNTIF(AH4:AH24,">0")) ->  | AJ31: Gesundheitsreport
H32: 3 | J32: 2 | K32: … wenig erholt
D33: Etwas hart | H33: 4 | J33: 3 | K33: … erholt | S33: =B4 -> Mo | T33: =AH4 -> 0 | AF33: Trainingseinheiten | AH33: =IF(AH31="","",SUM(M27:AD27)) -> 
D34: Hart | H34: 5 | J34: 4 | K34: … fit | S34: =B7 -> Di | T34: =AH7 -> 0 | AJ34: =IF($AH$31="","",AH31-AJ36-AJ44) ->  | AK34: keine Einschränkungen | AM34: 0
H35: 6 | J35: 5 | K35: … Top fit | S35: =B10 -> Mi | T35: =AH10 -> 0 | AF35: Trainingsstunden | AH35: =IF(AH31="","",SUM(M25,P25,V25,Y25,S25,AB25)/60) -> 
D36: Sehr hart | H36: 7 | S36: =B13 -> Do | T36: =AH13 -> 0 | AJ36: =SUM(AJ37:AJ42) -> 0 | AK36: Einschränkungen wegen Schmerzen
H37: 8 | J37: Anzahl der Spiele | S37: =B16 -> Fr | T37: =AH16 -> 0 | AF37: Training Load | AH37: =IF(AH31="","",SUM(AH25)) ->  | AJ37: =COUNTIF($H$4:$H$24,$AM37) -> 0 | AK37: Finger | AM37: 1
D38: Extrem hart | H38: 9 | S38: =B19 -> Sa | T38: =AH19 -> 0 | AJ38: 0 | AK38: Schulter | AM38: 2
D39: Wie mein härtestes Training | H39: 10 | J39: 1 | K39: … 3 und mehr Sätze | S39: =B22 -> So | T39: =AH22 -> 0 | AF39: Monotonie | AH39: =IF(AH31="","",(AVERAGE(AH4:AH24))/AH27) ->  | AJ39: 0 | AK39: Rücken | AM39: 3
J40: 0.5 | K40: … weniger als 3 Sätze | AJ40: 0 | AK40: Knie | AM40: 4
AF41: Trainingsanstrengung | AH41: =IF(AH31="","",AH37*AH39) ->  | AJ41: 0 | AK41: Sprunggelenk | AM41: 5
D42: échelle de Foster | H42: RPE | J42: gespielte Sätze | AJ42: 0 | AK42: Andere | AM42: 6
D43: Comme au repos | H43: 0 | J43: 1 | K43: … gestartet & durchgespielt | AF43: =AJ2 -> Anzahl der Spiele | AH43: =IF(AH31="","",SUM(AJ4:AJ24)) -> 
D44: très facile | H44: 1 | J44: 0.5 | K44: … ein-/ ausgewechselt, viel gespielt | AJ44: =SUM(AJ45:AJ50) -> 0 | AK44: Ausfall wegen Verletzung
D45: facile | H45: 2 | J45: 0.1 | K45: … ein-/ ausgewechselt, Kurzeinsatz | AF45: =AK2 -> gespielte Sätze | AH45: =IF(AH31="","",SUM(AK4:AK24)) ->  | AJ45: =COUNTIF($H$4:$H$24,$AM45) -> 0 | AK45: Finger | AM45: 11
H46: 3 | AJ46: 0 | AK46: Schulter | AM46: 12
D47: Assez dur | H47: 4 | J47: J | K47: Wie zufrieden bist du mit dem Wettkampf | AF47: =AL2 -> J | AH47: =IF(AH31="","",SUM(AL4:AL24)/AH33) ->  | AJ47: 0 | AK47: Rücken | AM47: 13
D48: dur | H48: 5 | K48: oder Training bzgl. der Qualität? | AJ48: 0 | AK48: Knie | AM48: 14
H49: 6 | J49: 1 | K49: … nicht zufrieden | AF49: Einschränkungen wegen Schmerzen | AH49: =AJ36 -> 0 | AJ49: 0 | AK49: Sprunggelenk | AM49: 15
D50: très dur | H50: 7 | J50: 2 | K50: … eher nicht zufrieden | AJ50: 0 | AK50: Andere | AM50: 16
H51: 8 | J51: 3 | K51: … neutral | AF51: Ausfall wegen Verletzung | AH51: =AJ44 -> 0
D52: extrèmement dur | H52: 9 | J52: 4 | K52: … zufrieden | AF52: eingeschränktes Training | AJ52: =SUM(AJ53:AJ59) -> 0 | AK52: Ausfall wegen Krankheit
D53: Comme mon entrainement le plus dur | H53: 10 | J53: 5 | K53: … sehr zufrieden! | AF53: Ausfall wegen Krankheit | AH53: =AJ52 -> 0 | AJ53: =COUNTIF($H$4:$H$24,$AM53) -> 0 | AK53: Krankheit | AM53: 21
AF54: eingeschränktes Training | AH54: =AJ36 -> 0
V134: =W134-1 -> 29 | W134: 30 | X134: 31 | Y134: 32 | Z134: 33 | AA134: 34 | AB134: 35 | AC134: =D1 -> 36
AD155: =AC134+1 -> 37 | AE155: =AD155+1 -> 38 | AF155: =AE155+1 -> 39

Sheet 37
C1: Woche | D1: =INT(MOD(INT((F1-2)/7)+0.6,52+5/28))+1 -> 37 | E1: =D1+1000 -> 1037 | F1: ='36'!F1+7 -> 2017-09-12 | G1: - | H1: =F1+6 -> 2017-09-18 | AD1: =Overview!D2 -> Vorname Nachname | AF1: =Overview!N2 -> 2017/2018
B2: Tag | D2: Gewicht | E2: REG | F2: Schlaf-qualität | G2: Schlaf-dauer | H2: Verletzung/ Erkrankung | J2: Trainingsbeschreibung | M2: Balltraining-Club | P2: Balltraining-TS/ Nati | S2: iso. Krafttraining | V2: iso. Fitnesstraining | Y2: Wettkampf | AB2: Anderes Training | AF2: Reflexion | AH2: Load/ Tag | AJ2: Anzahl der Spiele | AK2: gespielte Sätze | AL2: J | AM2: Regenerationsmassnahme | AN2: Mental- oder Sonstiges Training
D3: [kg] | E3: [1 - 5] | F3: [1-5] | G3: [Std] | H3: Kommentar | M3: Dauer | N3: RPE | O3: Load | P3: Dauer | Q3: RPE | R3: Load | S3: Dauer | T3: RPE | U3: Load | V3: Dauer | W3: RPE | X3: Load | Y3: Dauer | Z3: RPE | AA3: Load | AB3: Dauer | AC3: RPE | AD3: Load | AL3: [1-5]
B4: Mo | D4: 0 | E4: 0 | F4: 0 | G4: 0 | H4: 0 | O4: =M4*N4 -> 0 | R4: =P4*Q4 -> 0 | U4: =S4*T4 -> 0 | X4: =V4*W4 -> 0 | AA4: =Y4*Z4 -> 0 | AD4: =AB4*AC4 -> 0 | AH4: =SUM(O4:O6,R4:R6,U4:U6,X4:X6,AA4:AA6,AD4:AD6) -> 0
O5: =M5*N5 -> 0 | R5: =P5*Q5 -> 0 | U5: =S5*T5 -> 0 | X5: =V5*W5 -> 0 | AA5: =Y5*Z5 -> 0 | AD5: =AB5*AC5 -> 0
O6: 0 | R6: 0 | U6: 0 | X6: 0 | AA6: 0 | AD6: 0
B7: Di | D7: 0 | E7: 0 | F7: 0 | G7: 0 | H7: 0 | O7: 0 | R7: 0 | U7: 0 | X7: 0 | AA7: 0 | AD7: 0 | AH7: =SUM(O7:O9,R7:R9,U7:U9,X7:X9,AA7:AA9,AD7:AD9) -> 0
O8: 0 | R8: 0 | U8: 0 | X8: 0 | AA8: 0 | AD8: 0
O9: 0 | R9: 0 | U9: 0 | X9: 0 | AA9: 0 | AD9: 0
B10: Mi | D10: 0 | E10: 0 | F10: 0 | G10: 0 | H10: 0 | O10: 0 | R10: 0 | U10: 0 | X10: 0 | AA10: 0 | AD10: 0 | AH10: =SUM(O10:O12,R10:R12,U10:U12,X10:X12,AA10:AA12,AD10:AD12) -> 0
O11: 0 | R11: 0 | U11: 0 | X11: 0 | AA11: 0 | AD11: 0
O12: 0 | R12: 0 | U12: 0 | X12: 0 | AA12: 0 | AD12: 0
B13: Do | D13: 0 | E13: 0 | F13: 0 | G13: 0 | H13: 0 | O13: 0 | R13: 0 | U13: 0 | X13: 0 | AA13: 0 | AD13: 0 | AH13: =SUM(O13:O15,R13:R15,U13:U15,X13:X15,AA13:AA15,AD13:AD15) -> 0
O14: 0 | R14: 0 | U14: 0 | X14: 0 | AA14: 0 | AD14: 0
O15: 0 | R15: 0 | U15: 0 | X15: 0 | AA15: 0 | AD15: 0
B16: Fr | D16: 0 | E16: 0 | F16: 0 | G16: 0 | H16: 0 | O16: 0 | R16: 0 | U16: 0 | X16: 0 | AA16: 0 | AD16: 0 | AH16: =SUM(O16:O18,R16:R18,U16:U18,X16:X18,AA16:AA18,AD16:AD18) -> 0
O17: 0 | R17: 0 | U17: 0 | X17: 0 | AA17: 0 | AD17: 0
O18: 0 | R18: 0 | U18: 0 | X18: 0 | AA18: 0 | AD18: 0
B19: Sa | D19: 0 | E19: 0 | F19: 0 | G19: 0 | H19: 0 | O19: 0 | R19: 0 | U19: 0 | X19: 0 | AA19: 0 | AD19: 0 | AH19: =SUM(O19:O21,R19:R21,U19:U21,X19:X21,AA19:AA21,AD19:AD21) -> 0
O20: 0 | R20: 0 | U20: 0 | X20: 0 | AA20: 0 | AD20: 0
O21: 0 | R21: 0 | U21: 0 | X21: 0 | AA21: 0 | AD21: 0
B22: So | D22: 0 | E22: 0 | F22: 0 | G22: 0 | H22: 0 | O22: 0 | R22: 0 | U22: 0 | X22: 0 | AA22: 0 | AD22: 0 | AH22: =SUM(O22:O24,R22:R24,U22:U24,X22:X24,AA22:AA24,AD22:AD24) -> 0
O23: 0 | R23: 0 | U23: 0 | X23: 0 | AA23: 0 | AD23: 0
O24: 0 | R24: 0 | U24: 0 | X24: 0 | AA24: 0 | AD24: 0
K25: Total | M25: =SUM(M4:M24) -> 0 | O25: =SUM(O4:O24) -> 0 | P25: =SUM(P4:P24) -> 0 | R25: =SUM(R4:R24) -> 0 | S25: =SUM(S4:S24) -> 0 | U25: =SUM(U4:U24) -> 0 | V25: =SUM(V4:V24) -> 0 | X25: =SUM(X4:X24) -> 0 | Y25: =SUM(Y4:Y24) -> 0 | AA25: =SUM(AA4:AA24) -> 0 | AB25: =SUM(AB4:AB24) -> 0 | AD25: =SUM(AD4:AD24) -> 0 | AF25: TOTAL LOAD | AH25: =SUM(AH4:AH24) -> 0
B26: avg | D26: =IF(COUNTA(D4:D24)=0,"",AVERAGE(D4:D24)) -> 0 | E26: =IF(COUNTA(E4:E24)=0,"",AVERAGE(E4:E24)) -> 0 | F26: =IF(COUNTA(F4:F24)=0,"",AVERAGE(F4:F24)) -> 0 | G26: =IF(COUNTA(G4:G24)=0,"",AVERAGE(G4:G24)) -> 0 | H26: =IF(COUNTA(H4:H24)=0,"",COUNTIF(H4:H24,"x")) -> 0 | K26: Zone | M26: 1 | N26: 2 | O26: 3 | P26: 1 | Q26: 2 | R26: 3 | S26: 1 | T26: 2 | U26: 3 | V26: 1 | W26: 2 | X26: 3 | Y26: 1 | Z26: 2 | AA26: 3 | AB26: 1 | AC26: 2 | AD26: 3 | AF26: Mittelwert | AH26: =AVERAGE(AH4:AH24) -> 0
F27: =IF(COUNTA(F4:F24)=0,"",VAR(F4:F24)) -> 0 | G27: =IF(COUNTA(G4:G24)=0,"",STDEV(G4:G24)) -> 0 | H27: Abweichung - Schlafdauer | K27: Einheiten pro Zone (RPE) | M27: =IF(Beanspruchungverteilung!$AT$21="x",COUNTIF(N4:N24,"<3,5"),COUNTIF(N4:N24,"<4,5")) -> 0 | N27: =COUNT(N4:N24)-(M27+O27) -> 0 | O27: =IF(Beanspruchungverteilung!$AT$21="x",COUNTIF(N4:N24,">5,5"),COUNTIF(N4:N24,">6,5")) -> 0 | P27: =IF(Beanspruchungverteilung!$AT$21="x",COUNTIF(Q4:Q24,"<3,5"),COUNTIF(Q4:Q24,"<4,5")) -> 0 | Q27: =COUNT(Q4:Q24)-(P27+R27) -> 0 | R27: =IF(Beanspruchungverteilung!$AT$21="x",COUNTIF(Q4:Q24,">5,5"),COUNTIF(Q4:Q24,">6,5")) -> 0 | S27: =IF(Beanspruchungverteilung!$AT$21="x",COUNTIF(T4:T24,"<3,5"),COUNTIF(T4:T24,"<4,5")) -> 0 | T27: =COUNT(T4:T24)-(S27+U27) -> 0 | U27: =IF(Beanspruchungverteilung!$AT$21="x",COUNTIF(T4:T24,">5,5"),COUNTIF(T4:T24,">6,5")) -> 0 | V27: =IF(Beanspruchungverteilung!$AT$21="x",COUNTIF(W4:W24,"<3,5"),COUNTIF(W4:W24,"<4,5")) -> 0 | W27: =COUNT(W4:W24)-(V27+X27) -> 0 | X27: =IF(Beanspruchungverteilung!$AT$21="x",COUNTIF(W4:W24,">5,5"),COUNTIF(W4:W24,">6,5")) -> 0 | Y27: =IF(Beanspruchungverteilung!$AT$21="x",COUNTIF(Z4:Z24,"<3,5"),COUNTIF(Z4:Z24,"<4,5")) -> 0 | Z27: =COUNT(Z4:Z24)-(Y27+AA27) -> 0 | AA27: =IF(Beanspruchungverteilung!$AT$21="x",COUNTIF(Z4:Z24,">5,5"),COUNTIF(Z4:Z24,">6,5")) -> 0 | AB27: =IF(Beanspruchungverteilung!$AT$21="x",COUNTIF(AC4:AC24,"<3,5"),COUNTIF(AC4:AC24,"<4,5")) -> 0 | AC27: =COUNT(AC4:AC24)-(AB27+AD27) -> 0 | AD27: =IF(Beanspruchungverteilung!$AT$21="x",COUNTIF(AC4:AC24,">5,5"),COUNTIF(AC4:AC24,">6,5")) -> 0 | AF27: Standardabweichung | AH27: =STDEVP(AH4:AH24) -> 0
D28: Foster's Skala | H28: RPE | K28: Zeit pro Zone (RPE) | M28: =IF(Beanspruchungverteilung!$AT$21="x",SUMIF(N4:N24,"<3,5",M4:M24),SUMIF(N4:N24,"<4,5",M4:M24)) -> 0 | N28: =IF(N27=0,0,SUM((M25)-(M28+O28))) -> 0 | O28: =IF(Beanspruchungverteilung!$AT$21="x",SUMIF(N4:N24,">5,5",M4:M24),SUMIF(N4:N24,">6,5",M4:M24)) -> 0 | P28: =IF(Beanspruchungverteilung!$AT$21="x",SUMIF(Q4:Q24,"<3,5",P4:P24),SUMIF(Q4:Q24,"<4,5",P4:P24)) -> 0 | Q28: =IF(Q27=0,0,SUM((P25)-(P28+R28))) -> 0 | R28: =IF(Beanspruchungverteilung!$AT$21="x",SUMIF(Q4:Q24,">5,5",P4:P24),SUMIF(Q4:Q24,">6,5",P4:P24)) -> 0 | S28: =IF(Beanspruchungverteilung!$AT$21="x",SUMIF(T4:T24,"<3,5",S4:S24),SUMIF(T4:T24,"<4,5",S4:S24)) -> 0 | T28: =IF(T27=0,0,SUM((S25)-(S28+U28))) -> 0 | U28: =IF(Beanspruchungverteilung!$AT$21="x",SUMIF(T4:T24,">5,5",S4:S24),SUMIF(T4:T24,">6,5",S4:S24)) -> 0 | V28: =IF(Beanspruchungverteilung!$AT$21="x",SUMIF(W4:W24,"<3,5",V4:V24),SUMIF(W4:W24,"<4,5",V4:V24)) -> 0 | W28: =IF(W27=0,0,SUM((V25)-(V28+X28))) -> 0 | X28: =IF(Beanspruchungverteilung!$AT$21="x",SUMIF(W4:W24,">5,5",V4:V24),SUMIF(W4:W24,">6,5",V4:V24)) -> 0 | Y28: =IF(Beanspruchungverteilung!$AT$21="x",SUMIF(Z4:Z24,"<3,5",Y4:Y24),SUMIF(Z4:Z24,"<4,5",Y4:Y24)) -> 0 | Z28: =IF(Z27=0,0,SUM((Y25)-(Y28+AA28))) -> 0 | AA28: =IF(Beanspruchungverteilung!$AT$21="x",SUMIF(Z4:Z24,">5,5",Y4:Y24),SUMIF(Z4:Z24,">6,5",Y4:Y24)) -> 0 | AB28: =IF(Beanspruchungverteilung!$AT$21="x",SUMIF(AC4:AC24,"<3,5",AB4:AB24),SUMIF(AC4:AC24,"<4,5",AB4:AB24)) -> 0 | AC28: =IF(AC27=0,0,SUM((AB25)-(AB28+AD28))) -> 0 | AD28: =IF(Beanspruchungverteilung!$AT$21="x",SUMIF(AC4:AC24,">5,5",AB4:AB24),SUMIF(AC4:AC24,">6,5",AB4:AB24)) -> 0
D29: Wie in Ruhe | H29: 0 | J29: REG | K29: Wie erholt bist du wenn du in der Früh aufstehst?
D30: Sehr locker | H30: 1
D31: Locker | H31: 2 | J31: 1 | K31: … gar nicht erholt | AF31: Trainingstage | AH31: =IF(SUM(AH4:AH24)=0,"",COUNTIF(AH4:AH24,">0")) ->  | AJ31: Gesundheitsreport
H32: 3 | J32: 2 | K32: … wenig erholt
D33: Etwas hart | H33: 4 | J33: 3 | K33: … erholt | S33: =B4 -> Mo | T33: =AH4 -> 0 | AF33: Trainingseinheiten | AH33: =IF(AH31="","",SUM(M27:AD27)) -> 
D34: Hart | H34: 5 | J34: 4 | K34: … fit | S34: =B7 -> Di | T34: =AH7 -> 0 | AJ34: =IF($AH$31="","",AH31-AJ36-AJ44) ->  | AK34: keine Einschränkungen | AM34: 0
H35: 6 | J35: 5 | K35: … Top fit | S35: =B10 -> Mi | T35: =AH10 -> 0 | AF35: Trainingsstunden | AH35: =IF(AH31="","",SUM(M25,P25,V25,Y25,S25,AB25)/60) -> 
D36: Sehr hart | H36: 7 | S36: =B13 -> Do | T36: =AH13 -> 0 | AJ36: =SUM(AJ37:AJ42) -> 0 | AK36: Einschränkungen wegen Schmerzen
H37: 8 | J37: Anzahl der Spiele | S37: =B16 -> Fr | T37: =AH16 -> 0 | AF37: Training Load | AH37: =IF(AH31="","",SUM(AH25)) ->  | AJ37: =COUNTIF($H$4:$H$24,$AM37) -> 0 | AK37: Finger | AM37: 1
D38: Extrem hart | H38: 9 | S38: =B19 -> Sa | T38: =AH19 -> 0 | AJ38: 0 | AK38: Schulter | AM38: 2
D39: Wie mein härtestes Training | H39: 10 | J39: 1 | K39: … 3 und mehr Sätze | S39: =B22 -> So | T39: =AH22 -> 0 | AF39: Monotonie | AH39: =IF(AH31="","",(AVERAGE(AH4:AH24))/AH27) ->  | AJ39: 0 | AK39: Rücken | AM39: 3
J40: 0.5 | K40: … weniger als 3 Sätze | AJ40: 0 | AK40: Knie | AM40: 4
AF41: Trainingsanstrengung | AH41: =IF(AH31="","",AH37*AH39) ->  | AJ41: 0 | AK41: Sprunggelenk | AM41: 5
D42: échelle de Foster | H42: RPE | J42: gespielte Sätze | AJ42: 0 | AK42: Andere | AM42: 6
D43: Comme au repos | H43: 0 | J43: 1 | K43: … gestartet & durchgespielt | AF43: =AJ2 -> Anzahl der Spiele | AH43: =IF(AH31="","",SUM(AJ4:AJ24)) -> 
D44: très facile | H44: 1 | J44: 0.5 | K44: … ein-/ ausgewechselt, viel gespielt | AJ44: =SUM(AJ45:AJ50) -> 0 | AK44: Ausfall wegen Verletzung
D45: facile | H45: 2 | J45: 0.1 | K45: … ein-/ ausgewechselt, Kurzeinsatz | AF45: =AK2 -> gespielte Sätze | AH45: =IF(AH31="","",SUM(AK4:AK24)) ->  | AJ45: =COUNTIF($H$4:$H$24,$AM45) -> 0 | AK45: Finger | AM45: 11
H46: 3 | AJ46: 0 | AK46: Schulter | AM46: 12
D47: Assez dur | H47: 4 | J47: J | K47: Wie zufrieden bist du mit dem Wettkampf | AF47: =AL2 -> J | AH47: =IF(AH31="","",SUM(AL4:AL24)/AH33) ->  | AJ47: 0 | AK47: Rücken | AM47: 13
D48: dur | H48: 5 | K48: oder Training bzgl. der Qualität? | AJ48: 0 | AK48: Knie | AM48: 14
H49: 6 | J49: 1 | K49: … nicht zufrieden | AF49: Einschränkungen wegen Schmerzen | AH49: =AJ36 -> 0 | AJ49: 0 | AK49: Sprunggelenk | AM49: 15
D50: très dur | H50: 7 | J50: 2 | K50: … eher nicht zufrieden | AJ50: 0 | AK50: Andere | AM50: 16
H51: 8 | J51: 3 | K51: … neutral | AF51: Ausfall wegen Verletzung | AH51: =AJ44 -> 0
D52: extrèmement dur | H52: 9 | J52: 4 | K52: … zufrieden | AF52: eingeschränktes Training | AJ52: =SUM(AJ53:AJ59) -> 0 | AK52: Ausfall wegen Krankheit
D53: Comme mon entrainement le plus dur | H53: 10 | J53: 5 | K53: … sehr zufrieden! | AF53: Ausfall wegen Krankheit | AH53: =AJ52 -> 0 | AJ53: =COUNTIF($H$4:$H$24,$AM53) -> 0 | AK53: Krankheit | AM53: 21
AF54: eingeschränktes Training | AH54: =AJ36 -> 0
V134: =W134-1 -> 30 | W134: 31 | X134: 32 | Y134: 33 | Z134: 34 | AA134: 35 | AB134: 36 | AC134: =D1 -> 37
AD155: =AC134+1 -> 38 | AE155: =AD155+1 -> 39 | AF155: =AE155+1 -> 40

Sheet 38
C1: Woche | D1: =INT(MOD(INT((F1-2)/7)+0.6,52+5/28))+1 -> 38 | E1: =D1+1000 -> 1038 | F1: ='37'!F1+7 -> 2017-09-19 | G1: - | H1: =F1+6 -> 2017-09-25 | AD1: =Overview!D2 -> Vorname Nachname | AF1: =Overview!N2 -> 2017/2018
B2: Tag | D2: Gewicht | E2: REG | F2: Schlaf-qualität | G2: Schlaf-dauer | H2: Verletzung/ Erkrankung | J2: Trainingsbeschreibung | M2: Balltraining-Club | P2: Balltraining-TS/ Nati | S2: iso. Krafttraining | V2: iso. Fitnesstraining | Y2: Wettkampf | AB2: Anderes Training | AF2: Reflexion | AH2: Load/ Tag | AJ2: Anzahl der Spiele | AK2: gespielte Sätze | AL2: J | AM2: Regenerationsmassnahme | AN2: Mental- oder Sonstiges Training
D3: [kg] | E3: [1 - 5] | F3: [1-5] | G3: [Std] | H3: Kommentar | M3: Dauer | N3: RPE | O3: Load | P3: Dauer | Q3: RPE | R3: Load | S3: Dauer | T3: RPE | U3: Load | V3: Dauer | W3: RPE | X3: Load | Y3: Dauer | Z3: RPE | AA3: Load | AB3: Dauer | AC3: RPE | AD3: Load | AL3: [1-5]
B4: Mo | D4: 0 | E4: 0 | F4: 0 | G4: 0 | H4: 0 | O4: =M4*N4 -> 0 | R4: =P4*Q4 -> 0 | U4: =S4*T4 -> 0 | X4: =V4*W4 -> 0 | AA4: =Y4*Z4 -> 0 | AD4: =AB4*AC4 -> 0 | AH4: =SUM(O4:O6,R4:R6,U4:U6,X4:X6,AA4:AA6,AD4:AD6) -> 0
O5: =M5*N5 -> 0 | R5: =P5*Q5 -> 0 | U5: =S5*T5 -> 0 | X5: =V5*W5 -> 0 | AA5: =Y5*Z5 -> 0 | AD5: =AB5*AC5 -> 0
O6: 0 | R6: 0 | U6: 0 | X6: 0 | AA6: 0 | AD6: 0
B7: Di | D7: 0 | E7: 0 | F7: 0 | G7: 0 | H7: 0 | O7: 0 | R7: 0 | U7: 0 | X7: 0 | AA7: 0 | AD7: 0 | AH7: =SUM(O7:O9,R7:R9,U7:U9,X7:X9,AA7:AA9,AD7:AD9) -> 0
O8: 0 | R8: 0 | U8: 0 | X8: 0 | AA8: 0 | AD8: 0
O9: 0 | R9: 0 | U9: 0 | X9: 0 | AA9: 0 | AD9: 0
B10: Mi | D10: 0 | E10: 0 | F10: 0 | G10: 0 | H10: 0 | O10: 0 | R10: 0 | U10: 0 | X10: 0 | AA10: 0 | AD10: 0 | AH10: =SUM(O10:O12,R10:R12,U10:U12,X10:X12,AA10:AA12,AD10:AD12) -> 0
O11: 0 | R11: 0 | U11: 0 | X11: 0 | AA11: 0 | AD11: 0
O12: 0 | R12: 0 | U12: 0 | X12: 0 | AA12: 0 | AD12: 0
B13: Do | D13: 0 | E13: 0 | F13: 0 | G13: 0 | H13: 0 | O13: 0 | R13: 0 | U13: 0 | X13: 0 | AA13: 0 | AD13: 0 | AH13: =SUM(O13:O15,R13:R15,U13:U15,X13:X15,AA13:AA15,AD13:AD15) -> 0
O14: 0 | R14: 0 | U14: 0 | X14: 0 | AA14: 0 | AD14: 0
O15: 0 | R15: 0 | U15: 0 | X15: 0 | AA15: 0 | AD15: 0
B16: Fr | D16: 0 | E16: 0 | F16: 0 | G16: 0 | H16: 0 | O16: 0 | R16: 0 | U16: 0 | X16: 0 | AA16: 0 | AD16: 0 | AH16: =SUM(O16:O18,R16:R18,U16:U18,X16:X18,AA16:AA18,AD16:AD18) -> 0
O17: 0 | R17: 0 | U17: 0 | X17: 0 | AA17: 0 | AD17: 0
O18: 0 | R18: 0 | U18: 0 | X18: 0 | AA18: 0 | AD18: 0
B19: Sa | D19: 0 | E19: 0 | F19: 0 | G19: 0 | H19: 0 | O19: 0 | R19: 0 | U19: 0 | X19: 0 | AA19: 0 | AD19: 0 | AH19: =SUM(O19:O21,R19:R21,U19:U21,X19:X21,AA19:AA21,AD19:AD21) -> 0
O20: 0 | R20: 0 | U20: 0 | X20: 0 | AA20: 0 | AD20: 0
O21: 0 | R21: 0 | U21: 0 | X21: 0 | AA21: 0 | AD21: 0
B22: So | D22: 0 | E22: 0 | F22: 0 | G22: 0 | H22: 0 | O22: 0 | R22: 0 | U22: 0 | X22: 0 | AA22: 0 | AD22: 0 | AH22: =SUM(O22:O24,R22:R24,U22:U24,X22:X24,AA22:AA24,AD22:AD24) -> 0
O23: 0 | R23: 0 | U23: 0 | X23: 0 | AA23: 0 | AD23: 0
O24: 0 | R24: 0 | U24: 0 | X24: 0 | AA24: 0 | AD24: 0
K25: Total | M25: =SUM(M4:M24) -> 0 | O25: =SUM(O4:O24) -> 0 | P25: =SUM(P4:P24) -> 0 | R25: =SUM(R4:R24) -> 0 | S25: =SUM(S4:S24) -> 0 | U25: =SUM(U4:U24) -> 0 | V25: =SUM(V4:V24) -> 0 | X25: =SUM(X4:X24) -> 0 | Y25: =SUM(Y4:Y24) -> 0 | AA25: =SUM(AA4:AA24) -> 0 | AB25: =SUM(AB4:AB24) -> 0 | AD25: =SUM(AD4:AD24) -> 0 | AF25: TOTAL LOAD | AH25: =SUM(AH4:AH24) -> 0
B26: avg | D26: =IF(COUNTA(D4:D24)=0,"",AVERAGE(D4:D24)) -> 0 | E26: =IF(COUNTA(E4:E24)=0,"",AVERAGE(E4:E24)) -> 0 | F26: =IF(COUNTA(F4:F24)=0,"",AVERAGE(F4:F24)) -> 0 | G26: =IF(COUNTA(G4:G24)=0,"",AVERAGE(G4:G24)) -> 0 | H26: =IF(COUNTA(H4:H24)=0,"",COUNTIF(H4:H24,"x")) -> 0 | K26: Zone | M26: 1 | N26: 2 | O26: 3 | P26: 1 | Q26: 2 | R26: 3 | S26: 1 | T26: 2 | U26: 3 | V26: 1 | W26: 2 | X26: 3 | Y26: 1 | Z26: 2 | AA26: 3 | AB26: 1 | AC26: 2 | AD26: 3 | AF26: Mittelwert | AH26: =AVERAGE(AH4:AH24) -> 0
F27: =IF(COUNTA(F4:F24)=0,"",VAR(F4:F24)) -> 0 | G27: =IF(COUNTA(G4:G24)=0,"",STDEV(G4:G24)) -> 0 | H27: Abweichung - Schlafdauer | K27: Einheiten pro Zone (RPE) | M27: =IF(Beanspruchungverteilung!$AT$21="x",COUNTIF(N4:N24,"<3,5"),COUNTIF(N4:N24,"<4,5")) -> 0 | N27: =COUNT(N4:N24)-(M27+O27) -> 0 | O27: =IF(Beanspruchungverteilung!$AT$21="x",COUNTIF(N4:N24,">5,5"),COUNTIF(N4:N24,">6,5")) -> 0 | P27: =IF(Beanspruchungverteilung!$AT$21="x",COUNTIF(Q4:Q24,"<3,5"),COUNTIF(Q4:Q24,"<4,5")) -> 0 | Q27: =COUNT(Q4:Q24)-(P27+R27) -> 0 | R27: =IF(Beanspruchungverteilung!$AT$21="x",COUNTIF(Q4:Q24,">5,5"),COUNTIF(Q4:Q24,">6,5")) -> 0 | S27: =IF(Beanspruchungverteilung!$AT$21="x",COUNTIF(T4:T24,"<3,5"),COUNTIF(T4:T24,"<4,5")) -> 0 | T27: =COUNT(T4:T24)-(S27+U27) -> 0 | U27: =IF(Beanspruchungverteilung!$AT$21="x",COUNTIF(T4:T24,">5,5"),COUNTIF(T4:T24,">6,5")) -> 0 | V27: =IF(Beanspruchungverteilung!$AT$21="x",COUNTIF(W4:W24,"<3,5"),COUNTIF(W4:W24,"<4,5")) -> 0 | W27: =COUNT(W4:W24)-(V27+X27) -> 0 | X27: =IF(Beanspruchungverteilung!$AT$21="x",COUNTIF(W4:W24,">5,5"),COUNTIF(W4:W24,">6,5")) -> 0 | Y27: =IF(Beanspruchungverteilung!$AT$21="x",COUNTIF(Z4:Z24,"<3,5"),COUNTIF(Z4:Z24,"<4,5")) -> 0 | Z27: =COUNT(Z4:Z24)-(Y27+AA27) -> 0 | AA27: =IF(Beanspruchungverteilung!$AT$21="x",COUNTIF(Z4:Z24,">5,5"),COUNTIF(Z4:Z24,">6,5")) -> 0 | AB27: =IF(Beanspruchungverteilung!$AT$21="x",COUNTIF(AC4:AC24,"<3,5"),COUNTIF(AC4:AC24,"<4,5")) -> 0 | AC27: =COUNT(AC4:AC24)-(AB27+AD27) -> 0 | AD27: =IF(Beanspruchungverteilung!$AT$21="x",COUNTIF(AC4:AC24,">5,5"),COUNTIF(AC4:AC24,">6,5")) -> 0 | AF27: Standardabweichung | AH27: =STDEVP(AH4:AH24) -> 0
D28: Foster's Skala | H28: RPE | K28: Zeit pro Zone (RPE) | M28: =IF(Beanspruchungverteilung!$AT$21="x",SUMIF(N4:N24,"<3,5",M4:M24),SUMIF(N4:N24,"<4,5",M4:M24)) -> 0 | N28: =IF(N27=0,0,SUM((M25)-(M28+O28))) -> 0 | O28: =IF(Beanspruchungverteilung!$AT$21="x",SUMIF(N4:N24,">5,5",M4:M24),SUMIF(N4:N24,">6,5",M4:M24)) -> 0 | P28: =IF(Beanspruchungverteilung!$AT$21="x",SUMIF(Q4:Q24,"<3,5",P4:P24),SUMIF(Q4:Q24,"<4,5",P4:P24)) -> 0 | Q28: =IF(Q27=0,0,SUM((P25)-(P28+R28))) -> 0 | R28: =IF(Beanspruchungverteilung!$AT$21="x",SUMIF(Q4:Q24,">5,5",P4:P24),SUMIF(Q4:Q24,">6,5",P4:P24)) -> 0 | S28: =IF(Beanspruchungverteilung!$AT$21="x",SUMIF(T4:T24,"<3,5",S4:S24),SUMIF(T4:T24,"<4,5",S4:S24)) -> 0 | T28: =IF(T27=0,0,SUM((S25)-(S28+U28))) -> 0 | U28: =IF(Beanspruchungverteilung!$AT$21="x",SUMIF(T4:T24,">5,5",S4:S24),SUMIF(T4:T24,">6,5",S4:S24)) -> 0 | V28: =IF(Beanspruchungverteilung!$AT$21="x",SUMIF(W4:W24,"<3,5",V4:V24),SUMIF(W4:W24,"<4,5",V4:V24)) -> 0 | W28: =IF(W27=0,0,SUM((V25)-(V28+X28))) -> 0 | X28: =IF(Beanspruchungverteilung!$AT$21="x",SUMIF(W4:W24,">5,5",V4:V24),SUMIF(W4:W24,">6,5",V4:V24)) -> 0 | Y28: =IF(Beanspruchungverteilung!$AT$21="x",SUMIF(Z4:Z24,"<3,5",Y4:Y24),SUMIF(Z4:Z24,"<4,5",Y4:Y24)) -> 0 | Z28: =IF(Z27=0,0,SUM((Y25)-(Y28+AA28))) -> 0 | AA28: =IF(Beanspruchungverteilung!$AT$21="x",SUMIF(Z4:Z24,">5,5",Y4:Y24),SUMIF(Z4:Z24,">6,5",Y4:Y24)) -> 0 | AB28: =IF(Beanspruchungverteilung!$AT$21="x",SUMIF(AC4:AC24,"<3,5",AB4:AB24),SUMIF(AC4:AC24,"<4,5",AB4:AB24)) -> 0 | AC28: =IF(AC27=0,0,SUM((AB25)-(AB28+AD28))) -> 0 | AD28: =IF(Beanspruchungverteilung!$AT$21="x",SUMIF(AC4:AC24,">5,5",AB4:AB24),SUMIF(AC4:AC24,">6,5",AB4:AB24)) -> 0
D29: Wie in Ruhe | H29: 0 | J29: REG | K29: Wie erholt bist du wenn du in der Früh aufstehst?
D30: Sehr locker | H30: 1
D31: Locker | H31: 2 | J31: 1 | K31: … gar nicht erholt | AF31: Trainingstage | AH31: =IF(SUM(AH4:AH24)=0,"",COUNTIF(AH4:AH24,">0")) ->  | AJ31: Gesundheitsreport
H32: 3 | J32: 2 | K32: … wenig erholt
D33: Etwas hart | H33: 4 | J33: 3 | K33: … erholt | S33: =B4 -> Mo | T33: =AH4 -> 0 | AF33: Trainingseinheiten | AH33: =IF(AH31="","",SUM(M27:AD27)) -> 
D34: Hart | H34: 5 | J34: 4 | K34: … fit | S34: =B7 -> Di | T34: =AH7 -> 0 | AJ34: =IF($AH$31="","",AH31-AJ36-AJ44) ->  | AK34: keine Einschränkungen | AM34: 0
H35: 6 | J35: 5 | K35: … Top fit | S35: =B10 -> Mi | T35: =AH10 -> 0 | AF35: Trainingsstunden | AH35: =IF(AH31="","",SUM(M25,P25,V25,Y25,S25,AB25)/60) -> 
D36: Sehr hart | H36: 7 | S36: =B13 -> Do | T36: =AH13 -> 0 | AJ36: =SUM(AJ37:AJ42) -> 0 | AK36: Einschränkungen wegen Schmerzen
H37: 8 | J37: Anzahl der Spiele | S37: =B16 -> Fr | T37: =AH16 -> 0 | AF37: Training Load | AH37: =IF(AH31="","",SUM(AH25)) ->  | AJ37: =COUNTIF($H$4:$H$24,$AM37) -> 0 | AK37: Finger | AM37: 1
D38: Extrem hart | H38: 9 | S38: =B19 -> Sa | T38: =AH19 -> 0 | AJ38: 0 | AK38: Schulter | AM38: 2
D39: Wie mein härtestes Training | H39: 10 | J39: 1 | K39: … 3 und mehr Sätze | S39: =B22 -> So | T39: =AH22 -> 0 | AF39: Monotonie | AH39: =IF(AH31="","",(AVERAGE(AH4:AH24))/AH27) ->  | AJ39: 0 | AK39: Rücken | AM39: 3
J40: 0.5 | K40: … weniger als 3 Sätze | AJ40: 0 | AK40: Knie | AM40: 4
AF41: Trainingsanstrengung | AH41: =IF(AH31="","",AH37*AH39) ->  | AJ41: 0 | AK41: Sprunggelenk | AM41: 5
D42: échelle de Foster | H42: RPE | J42: gespielte Sätze | AJ42: 0 | AK42: Andere | AM42: 6
D43: Comme au repos | H43: 0 | J43: 1 | K43: … gestartet & durchgespielt | AF43: =AJ2 -> Anzahl der Spiele | AH43: =IF(AH31="","",SUM(AJ4:AJ24)) -> 
D44: très facile | H44: 1 | J44: 0.5 | K44: … ein-/ ausgewechselt, viel gespielt | AJ44: =SUM(AJ45:AJ50) -> 0 | AK44: Ausfall wegen Verletzung
D45: facile | H45: 2 | J45: 0.1 | K45: … ein-/ ausgewechselt, Kurzeinsatz | AF45: =AK2 -> gespielte Sätze | AH45: =IF(AH31="","",SUM(AK4:AK24)) ->  | AJ45: =COUNTIF($H$4:$H$24,$AM45) -> 0 | AK45: Finger | AM45: 11
H46: 3 | AJ46: 0 | AK46: Schulter | AM46: 12
D47: Assez dur | H47: 4 | J47: J | K47: Wie zufrieden bist du mit dem Wettkampf | AF47: =AL2 -> J | AH47: =IF(AH31="","",SUM(AL4:AL24)/AH33) ->  | AJ47: 0 | AK47: Rücken | AM47: 13
D48: dur | H48: 5 | K48: oder Training bzgl. der Qualität? | AJ48: 0 | AK48: Knie | AM48: 14
H49: 6 | J49: 1 | K49: … nicht zufrieden | AF49: Einschränkungen wegen Schmerzen | AH49: =AJ36 -> 0 | AJ49: 0 | AK49: Sprunggelenk | AM49: 15
D50: très dur | H50: 7 | J50: 2 | K50: … eher nicht zufrieden | AJ50: 0 | AK50: Andere | AM50: 16
H51: 8 | J51: 3 | K51: … neutral | AF51: Ausfall wegen Verletzung | AH51: =AJ44 -> 0
D52: extrèmement dur | H52: 9 | J52: 4 | K52: … zufrieden | AF52: eingeschränktes Training | AJ52: =SUM(AJ53:AJ59) -> 0 | AK52: Ausfall wegen Krankheit
D53: Comme mon entrainement le plus dur | H53: 10 | J53: 5 | K53: … sehr zufrieden! | AF53: Ausfall wegen Krankheit | AH53: =AJ52 -> 0 | AJ53: =COUNTIF($H$4:$H$24,$AM53) -> 0 | AK53: Krankheit | AM53: 21
AF54: eingeschränktes Training | AH54: =AJ36 -> 0
V134: =W134-1 -> 31 | W134: 32 | X134: 33 | Y134: 34 | Z134: 35 | AA134: 36 | AB134: 37 | AC134: =D1 -> 38
AD155: =AC134+1 -> 39 | AE155: =AD155+1 -> 40 | AF155: =AE155+1 -> 41

Sheet 39
C1: Woche | D1: =INT(MOD(INT((F1-2)/7)+0.6,52+5/28))+1 -> 39 | E1: =D1+1000 -> 1039 | F1: ='38'!F1+7 -> 2017-09-26 | G1: - | H1: =F1+6 -> 2017-10-02 | AD1: =Overview!D2 -> Vorname Nachname | AF1: =Overview!N2 -> 2017/2018
B2: Tag | D2: Gewicht | E2: REG | F2: Schlaf-qualität | G2: Schlaf-dauer | H2: Verletzung/ Erkrankung | J2: Trainingsbeschreibung | M2: Balltraining-Club | P2: Balltraining-TS/ Nati | S2: iso. Krafttraining | V2: iso. Fitnesstraining | Y2: Wettkampf | AB2: Anderes Training | AF2: Reflexion | AH2: Load/ Tag | AJ2: Anzahl der Spiele | AK2: gespielte Sätze | AL2: J | AM2: Regenerationsmassnahme | AN2: Mental- oder Sonstiges Training
D3: [kg] | E3: [1 - 5] | F3: [1-5] | G3: [Std] | H3: Kommentar | M3: Dauer | N3: RPE | O3: Load | P3: Dauer | Q3: RPE | R3: Load | S3: Dauer | T3: RPE | U3: Load | V3: Dauer | W3: RPE | X3: Load | Y3: Dauer | Z3: RPE | AA3: Load | AB3: Dauer | AC3: RPE | AD3: Load | AL3: [1-5]
B4: Mo | D4: 0 | E4: 0 | F4: 0 | G4: 0 | H4: 0 | O4: =M4*N4 -> 0 | R4: =P4*Q4 -> 0 | U4: =S4*T4 -> 0 | X4: =V4*W4 -> 0 | AA4: =Y4*Z4 -> 0 | AD4: =AB4*AC4 -> 0 | AH4: =SUM(O4:O6,R4:R6,U4:U6,X4:X6,AA4:AA6,AD4:AD6) -> 0
O5: =M5*N5 -> 0 | R5: =P5*Q5 -> 0 | U5: =S5*T5 -> 0 | X5: =V5*W5 -> 0 | AA5: =Y5*Z5 -> 0 | AD5: =AB5*AC5 -> 0
O6: 0 | R6: 0 | U6: 0 | X6: 0 | AA6: 0 | AD6: 0
B7: Di | D7: 0 | E7: 0 | F7: 0 | G7: 0 | H7: 0 | O7: 0 | R7: 0 | U7: 0 | X7: 0 | AA7: 0 | AD7: 0 | AH7: =SUM(O7:O9,R7:R9,U7:U9,X7:X9,AA7:AA9,AD7:AD9) -> 0
O8: 0 | R8: 0 | U8: 0 | X8: 0 | AA8: 0 | AD8: 0
O9: 0 | R9: 0 | U9: 0 | X9: 0 | AA9: 0 | AD9: 0
B10: Mi | D10: 0 | E10: 0 | F10: 0 | G10: 0 | H10: 0 | O10: 0 | R10: 0 | U10: 0 | X10: 0 | AA10: 0 | AD10: 0 | AH10: =SUM(O10:O12,R10:R12,U10:U12,X10:X12,AA10:AA12,AD10:AD12) -> 0
O11: 0 | R11: 0 | U11: 0 | X11: 0 | AA11: 0 | AD11: 0
O12: 0 | R12: 0 | U12: 0 | X12: 0 | AA12: 0 | AD12: 0
B13: Do | D13: 0 | E13: 0 | F13: 0 | G13: 0 | H13: 0 | O13: 0 | R13: 0 | U13: 0 | X13: 0 | AA13: 0 | AD13: 0 | AH13: =SUM(O13:O15,R13:R15,U13:U15,X13:X15,AA13:AA15,AD13:AD15) -> 0
O14: 0 | R14: 0 | U14: 0 | X14: 0 | AA14: 0 | AD14: 0
O15: 0 | R15: 0 | U15: 0 | X15: 0 | AA15: 0 | AD15: 0
B16: Fr | D16: 0 | E16: 0 | F16: 0 | G16: 0 | H16: 0 | O16: 0 | R16: 0 | U16: 0 | X16: 0 | AA16: 0 | AD16: 0 | AH16: =SUM(O16:O18,R16:R18,U16:U18,X16:X18,AA16:AA18,AD16:AD18) -> 0
O17: 0 | R17: 0 | U17: 0 | X17: 0 | AA17: 0 | AD17: 0
O18: 0 | R18: 0 | U18: 0 | X18: 0 | AA18: 0 | AD18: 0
B19: Sa | D19: 0 | E19: 0 | F19: 0 | G19: 0 | H19: 0 | O19: 0 | R19: 0 | U19: 0 | X19: 0 | AA19: 0 | AD19: 0 | AH19: =SUM(O19:O21,R19:R21,U19:U21,X19:X21,AA19:AA21,AD19:AD21) -> 0
O20: 0 | R20: 0 | U20: 0 | X20: 0 | AA20: 0 | AD20: 0
O21: 0 | R21: 0 | U21: 0 | X21: 0 | AA21: 0 | AD21: 0
B22: So | D22: 0 | E22: 0 | F22: 0 | G22: 0 | H22: 0 | O22: 0 | R22: 0 | U22: 0 | X22: 0 | AA22: 0 | AD22: 0 | AH22: =SUM(O22:O24,R22:R24,U22:U24,X22:X24,AA22:AA24,AD22:AD24) -> 0
O23: 0 | R23: 0 | U23: 0 | X23: 0 | AA23: 0 | AD23: 0
O24: 0 | R24: 0 | U24: 0 | X24: 0 | AA24: 0 | AD24: 0
K25: Total | M25: =SUM(M4:M24) -> 0 | O25: =SUM(O4:O24) -> 0 | P25: =SUM(P4:P24) -> 0 | R25: =SUM(R4:R24) -> 0 | S25: =SUM(S4:S24) -> 0 | U25: =SUM(U4:U24) -> 0 | V25: =SUM(V4:V24) -> 0 | X25: =SUM(X4:X24) -> 0 | Y25: =SUM(Y4:Y24) -> 0 | AA25: =SUM(AA4:AA24) -> 0 | AB25: =SUM(AB4:AB24) -> 0 | AD25: =SUM(AD4:AD24) -> 0 | AF25: TOTAL LOAD | AH25: =SUM(AH4:AH24) -> 0
B26: avg | D26: =IF(COUNTA(D4:D24)=0,"",AVERAGE(D4:D24)) -> 0 | E26: =IF(COUNTA(E4:E24)=0,"",AVERAGE(E4:E24)) -> 0 | F26: =IF(COUNTA(F4:F24)=0,"",AVERAGE(F4:F24)) -> 0 | G26: =IF(COUNTA(G4:G24)=0,"",AVERAGE(G4:G24)) -> 0 | H26: =IF(COUNTA(H4:H24)=0,"",COUNTIF(H4:H24,"x")) -> 0 | K26: Zone | M26: 1 | N26: 2 | O26: 3 | P26: 1 | Q26: 2 | R26: 3 | S26: 1 | T26: 2 | U26: 3 | V26: 1 | W26: 2 | X26: 3 | Y26: 1 | Z26: 2 | AA26: 3 | AB26: 1 | AC26: 2 | AD26: 3 | AF26: Mittelwert | AH26: =AVERAGE(AH4:AH24) -> 0
F27: =IF(COUNTA(F4:F24)=0,"",VAR(F4:F24)) -> 0 | G27: =IF(COUNTA(G4:G24)=0,"",STDEV(G4:G24)) -> 0 | H27: Abweichung - Schlafdauer | K27: Einheiten pro Zone (RPE) | M27: =IF(Beanspruchungverteilung!$AT$21="x",COUNTIF(N4:N24,"<3,5"),COUNTIF(N4:N24,"<4,5")) -> 0 | N27: =COUNT(N4:N24)-(M27+O27) -> 0 | O27: =IF(Beanspruchungverteilung!$AT$21="x",COUNTIF(N4:N24,">5,5"),COUNTIF(N4:N24,">6,5")) -> 0 | P27: =IF(Beanspruchungverteilung!$AT$21="x",COUNTIF(Q4:Q24,"<3,5"),COUNTIF(Q4:Q24,"<4,5")) -> 0 | Q27: =COUNT(Q4:Q24)-(P27+R27) -> 0 | R27: =IF(Beanspruchungverteilung!$AT$21="x",COUNTIF(Q4:Q24,">5,5"),COUNTIF(Q4:Q24,">6,5")) -> 0 | S27: =IF(Beanspruchungverteilung!$AT$21="x",COUNTIF(T4:T24,"<3,5"),COUNTIF(T4:T24,"<4,5")) -> 0 | T27: =COUNT(T4:T24)-(S27+U27) -> 0 | U27: =IF(Beanspruchungverteilung!$AT$21="x",COUNTIF(T4:T24,">5,5"),COUNTIF(T4:T24,">6,5")) -> 0 | V27: =IF(Beanspruchungverteilung!$AT$21="x",COUNTIF(W4:W24,"<3,5"),COUNTIF(W4:W24,"<4,5")) -> 0 | W27: =COUNT(W4:W24)-(V27+X27) -> 0 | X27: =IF(Beanspruchungverteilung!$AT$21="x",COUNTIF(W4:W24,">5,5"),COUNTIF(W4:W24,">6,5")) -> 0 | Y27: =IF(Beanspruchungverteilung!$AT$21="x",COUNTIF(Z4:Z24,"<3,5"),COUNTIF(Z4:Z24,"<4,5")) -> 0 | Z27: =COUNT(Z4:Z24)-(Y27+AA27) -> 0 | AA27: =IF(Beanspruchungverteilung!$AT$21="x",COUNTIF(Z4:Z24,">5,5"),COUNTIF(Z4:Z24,">6,5")) -> 0 | AB27: =IF(Beanspruchungverteilung!$AT$21="x",COUNTIF(AC4:AC24,"<3,5"),COUNTIF(AC4:AC24,"<4,5")) -> 0 | AC27: =COUNT(AC4:AC24)-(AB27+AD27) -> 0 | AD27: =IF(Beanspruchungverteilung!$AT$21="x",COUNTIF(AC4:AC24,">5,5"),COUNTIF(AC4:AC24,">6,5")) -> 0 | AF27: Standardabweichung | AH27: =STDEVP(AH4:AH24) -> 0
D28: Foster's Skala | H28: RPE | K28: Zeit pro Zone (RPE) | M28: =IF(Beanspruchungverteilung!$AT$21="x",SUMIF(N4:N24,"<3,5",M4:M24),SUMIF(N4:N24,"<4,5",M4:M24)) -> 0 | N28: =IF(N27=0,0,SUM((M25)-(M28+O28))) -> 0 | O28: =IF(Beanspruchungverteilung!$AT$21="x",SUMIF(N4:N24,">5,5",M4:M24),SUMIF(N4:N24,">6,5",M4:M24)) -> 0 | P28: =IF(Beanspruchungverteilung!$AT$21="x",SUMIF(Q4:Q24,"<3,5",P4:P24),SUMIF(Q4:Q24,"<4,5",P4:P24)) -> 0 | Q28: =IF(Q27=0,0,SUM((P25)-(P28+R28))) -> 0 | R28: =IF(Beanspruchungverteilung!$AT$21="x",SUMIF(Q4:Q24,">5,5",P4:P24),SUMIF(Q4:Q24,">6,5",P4:P24)) -> 0 | S28: =IF(Beanspruchungverteilung!$AT$21="x",SUMIF(T4:T24,"<3,5",S4:S24),SUMIF(T4:T24,"<4,5",S4:S24)) -> 0 | T28: =IF(T27=0,0,SUM((S25)-(S28+U28))) -> 0 | U28: =IF(Beanspruchungverteilung!$AT$21="x",SUMIF(T4:T24,">5,5",S4:S24),SUMIF(T4:T24,">6,5",S4:S24)) -> 0 | V28: =IF(Beanspruchungverteilung!$AT$21="x",SUMIF(W4:W24,"<3,5",V4:V24),SUMIF(W4:W24,"<4,5",V4:V24)) -> 0 | W28: =IF(W27=0,0,SUM((V25)-(V28+X28))) -> 0 | X28: =IF(Beanspruchungverteilung!$AT$21="x",SUMIF(W4:W24,">5,5",V4:V24),SUMIF(W4:W24,">6,5",V4:V24)) -> 0 | Y28: =IF(Beanspruchungverteilung!$AT$21="x",SUMIF(Z4:Z24,"<3,5",Y4:Y24),SUMIF(Z4:Z24,"<4,5",Y4:Y24)) -> 0 | Z28: =IF(Z27=0,0,SUM((Y25)-(Y28+AA28))) -> 0 | AA28: =IF(Beanspruchungverteilung!$AT$21="x",SUMIF(Z4:Z24,">5,5",Y4:Y24),SUMIF(Z4:Z24,">6,5",Y4:Y24)) -> 0 | AB28: =IF(Beanspruchungverteilung!$AT$21="x",SUMIF(AC4:AC24,"<3,5",AB4:AB24),SUMIF(AC4:AC24,"<4,5",AB4:AB24)) -> 0 | AC28: =IF(AC27=0,0,SUM((AB25)-(AB28+AD28))) -> 0 | AD28: =IF(Beanspruchungverteilung!$AT$21="x",SUMIF(AC4:AC24,">5,5",AB4:AB24),SUMIF(AC4:AC24,">6,5",AB4:AB24)) -> 0
D29: Wie in Ruhe | H29: 0 | J29: REG | K29: Wie erholt bist du wenn du in der Früh aufstehst?
D30: Sehr locker | H30: 1
D31: Locker | H31: 2 | J31: 1 | K31: … gar nicht erholt | AF31: Trainingstage | AH31: =IF(SUM(AH4:AH24)=0,"",COUNTIF(AH4:AH24,">0")) ->  | AJ31: Gesundheitsreport
H32: 3 | J32: 2 | K32: … wenig erholt
D33: Etwas hart | H33: 4 | J33: 3 | K33: … erholt | S33: =B4 -> Mo | T33: =AH4 -> 0 | AF33: Trainingseinheiten | AH33: =IF(AH31="","",SUM(M27:AD27)) -> 
D34: Hart | H34: 5 | J34: 4 | K34: … fit | S34: =B7 -> Di | T34: =AH7 -> 0 | AJ34: =IF($AH$31="","",AH31-AJ36-AJ44) ->  | AK34: keine Einschränkungen | AM34: 0
H35: 6 | J35: 5 | K35: … Top fit | S35: =B10 -> Mi | T35: =AH10 -> 0 | AF35: Trainingsstunden | AH35: =IF(AH31="","",SUM(M25,P25,V25,Y25,S25,AB25)/60) -> 
D36: Sehr hart | H36: 7 | S36: =B13 -> Do | T36: =AH13 -> 0 | AJ36: =SUM(AJ37:AJ42) -> 0 | AK36: Einschränkungen wegen Schmerzen
H37: 8 | J37: Anzahl der Spiele | S37: =B16 -> Fr | T37: =AH16 -> 0 | AF37: Training Load | AH37: =IF(AH31="","",SUM(AH25)) ->  | AJ37: =COUNTIF($H$4:$H$24,$AM37) -> 0 | AK37: Finger | AM37: 1
D38: Extrem hart | H38: 9 | S38: =B19 -> Sa | T38: =AH19 -> 0 | AJ38: 0 | AK38: Schulter | AM38: 2
D39: Wie mein härtestes Training | H39: 10 | J39: 1 | K39: … 3 und mehr Sätze | S39: =B22 -> So | T39: =AH22 -> 0 | AF39: Monotonie | AH39: =IF(AH31="","",(AVERAGE(AH4:AH24))/AH27) ->  | AJ39: 0 | AK39: Rücken | AM39: 3
J40: 0.5 | K40: … weniger als 3 Sätze | AJ40: 0 | AK40: Knie | AM40: 4
AF41: Trainingsanstrengung | AH41: =IF(AH31="","",AH37*AH39) ->  | AJ41: 0 | AK41: Sprunggelenk | AM41: 5
D42: échelle de Foster | H42: RPE | J42: gespielte Sätze | AJ42: 0 | AK42: Andere | AM42: 6
D43: Comme au repos | H43: 0 | J43: 1 | K43: … gestartet & durchgespielt | AF43: =AJ2 -> Anzahl der Spiele | AH43: =IF(AH31="","",SUM(AJ4:AJ24)) -> 
D44: très facile | H44: 1 | J44: 0.5 | K44: … ein-/ ausgewechselt, viel gespielt | AJ44: =SUM(AJ45:AJ50) -> 0 | AK44: Ausfall wegen Verletzung
D45: facile | H45: 2 | J45: 0.1 | K45: … ein-/ ausgewechselt, Kurzeinsatz | AF45: =AK2 -> gespielte Sätze | AH45: =IF(AH31="","",SUM(AK4:AK24)) ->  | AJ45: =COUNTIF($H$4:$H$24,$AM45) -> 0 | AK45: Finger | AM45: 11
H46: 3 | AJ46: 0 | AK46: Schulter | AM46: 12
D47: Assez dur | H47: 4 | J47: J | K47: Wie zufrieden bist du mit dem Wettkampf | AF47: =AL2 -> J | AH47: =IF(AH31="","",SUM(AL4:AL24)/AH33) ->  | AJ47: 0 | AK47: Rücken | AM47: 13
D48: dur | H48: 5 | K48: oder Training bzgl. der Qualität? | AJ48: 0 | AK48: Knie | AM48: 14
H49: 6 | J49: 1 | K49: … nicht zufrieden | AF49: Einschränkungen wegen Schmerzen | AH49: =AJ36 -> 0 | AJ49: 0 | AK49: Sprunggelenk | AM49: 15
D50: très dur | H50: 7 | J50: 2 | K50: … eher nicht zufrieden | AJ50: 0 | AK50: Andere | AM50: 16
H51: 8 | J51: 3 | K51: … neutral | AF51: Ausfall wegen Verletzung | AH51: =AJ44 -> 0
D52: extrèmement dur | H52: 9 | J52: 4 | K52: … zufrieden | AF52: eingeschränktes Training | AJ52: =SUM(AJ53:AJ59) -> 0 | AK52: Ausfall wegen Krankheit
D53: Comme mon entrainement le plus dur | H53: 10 | J53: 5 | K53: … sehr zufrieden! | AF53: Ausfall wegen Krankheit | AH53: =AJ52 -> 0 | AJ53: =COUNTIF($H$4:$H$24,$AM53) -> 0 | AK53: Krankheit | AM53: 21
AF54: eingeschränktes Training | AH54: =AJ36 -> 0
V134: =W134-1 -> 32 | W134: 33 | X134: 34 | Y134: 35 | Z134: 36 | AA134: 37 | AB134: =AC134-1 -> 38 | AC134: =D1 -> 39
AD155: =AC134+1 -> 40 | AE155: =AD155+1 -> 41 | AF155: =AE155+1 -> 42

Sheet 40
C1: Woche | D1: =INT(MOD(INT((F1-2)/7)+0.6,52+5/28))+1 -> 40 | E1: =D1+1000 -> 1040 | F1: ='39'!F1+7 -> 2017-10-03 | G1: - | H1: =F1+6 -> 2017-10-09 | AD1: =Overview!D2 -> Vorname Nachname | AF1: =Overview!N2 -> 2017/2018
B2: Tag | D2: Gewicht | E2: REG | F2: Schlaf-qualität | G2: Schlaf-dauer | H2: Verletzung/ Erkrankung | J2: Trainingsbeschreibung | M2: Balltraining-Club | P2: Balltraining-TS/ Nati | S2: iso. Krafttraining | V2: iso. Fitnesstraining | Y2: Wettkampf | AB2: Anderes Training | AF2: Reflexion | AH2: Load/ Tag | AJ2: Anzahl der Spiele | AK2: gespielte Sätze | AL2: J | AM2: Regenerationsmassnahme | AN2: Mental- oder Sonstiges Training
D3: [kg] | E3: [1 - 5] | F3: [1-5] | G3: [Std] | H3: Kommentar | M3: Dauer | N3: RPE | O3: Load | P3: Dauer | Q3: RPE | R3: Load | S3: Dauer | T3: RPE | U3: Load | V3: Dauer | W3: RPE | X3: Load | Y3: Dauer | Z3: RPE | AA3: Load | AB3: Dauer | AC3: RPE | AD3: Load | AL3: [1-5]
B4: Mo | D4: 0 | E4: 0 | F4: 0 | G4: 0 | H4: 0 | O4: =M4*N4 -> 0 | R4: =P4*Q4 -> 0 | U4: =S4*T4 -> 0 | X4: =V4*W4 -> 0 | AA4: =Y4*Z4 -> 0 | AD4: =AB4*AC4 -> 0 | AH4: =SUM(O4:O6,R4:R6,U4:U6,X4:X6,AA4:AA6,AD4:AD6) -> 0
O5: =M5*N5 -> 0 | R5: =P5*Q5 -> 0 | U5: =S5*T5 -> 0 | X5: =V5*W5 -> 0 | AA5: =Y5*Z5 -> 0 | AD5: =AB5*AC5 -> 0
O6: 0 | R6: 0 | U6: 0 | X6: 0 | AA6: 0 | AD6: 0
B7: Di | D7: 0 | E7: 0 | F7: 0 | G7: 0 | H7: 0 | O7: 0 | R7: 0 | U7: 0 | X7: 0 | AA7: 0 | AD7: 0 | AH7: =SUM(O7:O9,R7:R9,U7:U9,X7:X9,AA7:AA9,AD7:AD9) -> 0
O8: 0 | R8: 0 | U8: 0 | X8: 0 | AA8: 0 | AD8: 0
O9: 0 | R9: 0 | U9: 0 | X9: 0 | AA9: 0 | AD9: 0
B10: Mi | D10: 0 | E10: 0 | F10: 0 | G10: 0 | H10: 0 | O10: 0 | R10: 0 | U10: 0 | X10: 0 | AA10: 0 | AD10: 0 | AH10: =SUM(O10:O12,R10:R12,U10:U12,X10:X12,AA10:AA12,AD10:AD12) -> 0
O11: 0 | R11: 0 | U11: 0 | X11: 0 | AA11: 0 | AD11: 0
O12: 0 | R12: 0 | U12: 0 | X12: 0 | AA12: 0 | AD12: 0
B13: Do | D13: 0 | E13: 0 | F13: 0 | G13: 0 | H13: 0 | O13: 0 | R13: 0 | U13: 0 | X13: 0 | AA13: 0 | AD13: 0 | AH13: =SUM(O13:O15,R13:R15,U13:U15,X13:X15,AA13:AA15,AD13:AD15) -> 0
O14: 0 | R14: 0 | U14: 0 | X14: 0 | AA14: 0 | AD14: 0
O15: 0 | R15: 0 | U15: 0 | X15: 0 | AA15: 0 | AD15: 0
B16: Fr | D16: 0 | E16: 0 | F16: 0 | G16: 0 | H16: 0 | O16: 0 | R16: 0 | U16: 0 | X16: 0 | AA16: 0 | AD16: 0 | AH16: =SUM(O16:O18,R16:R18,U16:U18,X16:X18,AA16:AA18,AD16:AD18) -> 0
O17: 0 | R17: 0 | U17: 0 | X17: 0 | AA17: 0 | AD17: 0
O18: 0 | R18: 0 | U18: 0 | X18: 0 | AA18: 0 | AD18: 0
B19: Sa | D19: 0 | E19: 0 | F19: 0 | G19: 0 | H19: 0 | O19: 0 | R19: 0 | U19: 0 | X19: 0 | AA19: 0 | AD19: 0 | AH19: =SUM(O19:O21,R19:R21,U19:U21,X19:X21,AA19:AA21,AD19:AD21) -> 0
O20: 0 | R20: 0 | U20: 0 | X20: 0 | AA20: 0 | AD20: 0
O21: 0 | R21: 0 | U21: 0 | X21: 0 | AA21: 0 | AD21: 0
B22: So | D22: 0 | E22: 0 | F22: 0 | G22: 0 | H22: 0 | O22: 0 | R22: 0 | U22: 0 | X22: 0 | AA22: 0 | AD22: 0 | AH22: =SUM(O22:O24,R22:R24,U22:U24,X22:X24,AA22:AA24,AD22:AD24) -> 0
O23: 0 | R23: 0 | U23: 0 | X23: 0 | AA23: 0 | AD23: 0
O24: 0 | R24: 0 | U24: 0 | X24: 0 | AA24: 0 | AD24: 0
K25: Total | M25: =SUM(M4:M24) -> 0 | O25: =SUM(O4:O24) -> 0 | P25: =SUM(P4:P24) -> 0 | R25: =SUM(R4:R24) -> 0 | S25: =SUM(S4:S24) -> 0 | U25: =SUM(U4:U24) -> 0 | V25: =SUM(V4:V24) -> 0 | X25: =SUM(X4:X24) -> 0 | Y25: =SUM(Y4:Y24) -> 0 | AA25: =SUM(AA4:AA24) -> 0 | AB25: =SUM(AB4:AB24) -> 0 | AD25: =SUM(AD4:AD24) -> 0 | AF25: TOTAL LOAD | AH25: =SUM(AH4:AH24) -> 0
B26: avg | D26: =IF(COUNTA(D4:D24)=0,"",AVERAGE(D4:D24)) -> 0 | E26: =IF(COUNTA(E4:E24)=0,"",AVERAGE(E4:E24)) -> 0 | F26: =IF(COUNTA(F4:F24)=0,"",AVERAGE(F4:F24)) -> 0 | G26: =IF(COUNTA(G4:G24)=0,"",AVERAGE(G4:G24)) -> 0 | H26: =IF(COUNTA(H4:H24)=0,"",COUNTIF(H4:H24,"x")) -> 0 | K26: Zone | M26: 1 | N26: 2 | O26: 3 | P26: 1 | Q26: 2 | R26: 3 | S26: 1 | T26: 2 | U26: 3 | V26: 1 | W26: 2 | X26: 3 | Y26: 1 | Z26: 2 | AA26: 3 | AB26: 1 | AC26: 2 | AD26: 3 | AF26: Mittelwert | AH26: =AVERAGE(AH4:AH24) -> 0
F27: =IF(COUNTA(F4:F24)=0,"",VAR(F4:F24)) -> 0 | G27: =IF(COUNTA(G4:G24)=0,"",STDEV(G4:G24)) -> 0 | H27: Abweichung - Schlafdauer | K27: Einheiten pro Zone (RPE) | M27: =IF(Beanspruchungverteilung!$AT$21="x",COUNTIF(N4:N24,"<3,5"),COUNTIF(N4:N24,"<4,5")) -> 0 | N27: =COUNT(N4:N24)-(M27+O27) -> 0 | O27: =IF(Beanspruchungverteilung!$AT$21="x",COUNTIF(N4:N24,">5,5"),COUNTIF(N4:N24,">6,5")) -> 0 | P27: =IF(Beanspruchungverteilung!$AT$21="x",COUNTIF(Q4:Q24,"<3,5"),COUNTIF(Q4:Q24,"<4,5")) -> 0 | Q27: =COUNT(Q4:Q24)-(P27+R27) -> 0 | R27: =IF(Beanspruchungverteilung!$AT$21="x",COUNTIF(Q4:Q24,">5,5"),COUNTIF(Q4:Q24,">6,5")) -> 0 | S27: =IF(Beanspruchungverteilung!$AT$21="x",COUNTIF(T4:T24,"<3,5"),COUNTIF(T4:T24,"<4,5")) -> 0 | T27: =COUNT(T4:T24)-(S27+U27) -> 0 | U27: =IF(Beanspruchungverteilung!$AT$21="x",COUNTIF(T4:T24,">5,5"),COUNTIF(T4:T24,">6,5")) -> 0 | V27: =IF(Beanspruchungverteilung!$AT$21="x",COUNTIF(W4:W24,"<3,5"),COUNTIF(W4:W24,"<4,5")) -> 0 | W27: =COUNT(W4:W24)-(V27+X27) -> 0 | X27: =IF(Beanspruchungverteilung!$AT$21="x",COUNTIF(W4:W24,">5,5"),COUNTIF(W4:W24,">6,5")) -> 0 | Y27: =IF(Beanspruchungverteilung!$AT$21="x",COUNTIF(Z4:Z24,"<3,5"),COUNTIF(Z4:Z24,"<4,5")) -> 0 | Z27: =COUNT(Z4:Z24)-(Y27+AA27) -> 0 | AA27: =IF(Beanspruchungverteilung!$AT$21="x",COUNTIF(Z4:Z24,">5,5"),COUNTIF(Z4:Z24,">6,5")) -> 0 | AB27: =IF(Beanspruchungverteilung!$AT$21="x",COUNTIF(AC4:AC24,"<3,5"),COUNTIF(AC4:AC24,"<4,5")) -> 0 | AC27: =COUNT(AC4:AC24)-(AB27+AD27) -> 0 | AD27: =IF(Beanspruchungverteilung!$AT$21="x",COUNTIF(AC4:AC24,">5,5"),COUNTIF(AC4:AC24,">6,5")) -> 0 | AF27: Standardabweichung | AH27: =STDEVP(AH4:AH24) -> 0
D28: Foster's Skala | H28: RPE | K28: Zeit pro Zone (RPE) | M28: =IF(Beanspruchungverteilung!$AT$21="x",SUMIF(N4:N24,"<3,5",M4:M24),SUMIF(N4:N24,"<4,5",M4:M24)) -> 0 | N28: =IF(N27=0,0,SUM((M25)-(M28+O28))) -> 0 | O28: =IF(Beanspruchungverteilung!$AT$21="x",SUMIF(N4:N24,">5,5",M4:M24),SUMIF(N4:N24,">6,5",M4:M24)) -> 0 | P28: =IF(Beanspruchungverteilung!$AT$21="x",SUMIF(Q4:Q24,"<3,5",P4:P24),SUMIF(Q4:Q24,"<4,5",P4:P24)) -> 0 | Q28: =IF(Q27=0,0,SUM((P25)-(P28+R28))) -> 0 | R28: =IF(Beanspruchungverteilung!$AT$21="x",SUMIF(Q4:Q24,">5,5",P4:P24),SUMIF(Q4:Q24,">6,5",P4:P24)) -> 0 | S28: =IF(Beanspruchungverteilung!$AT$21="x",SUMIF(T4:T24,"<3,5",S4:S24),SUMIF(T4:T24,"<4,5",S4:S24)) -> 0 | T28: =IF(T27=0,0,SUM((S25)-(S28+U28))) -> 0 | U28: =IF(Beanspruchungverteilung!$AT$21="x",SUMIF(T4:T24,">5,5",S4:S24),SUMIF(T4:T24,">6,5",S4:S24)) -> 0 | V28: =IF(Beanspruchungverteilung!$AT$21="x",SUMIF(W4:W24,"<3,5",V4:V24),SUMIF(W4:W24,"<4,5",V4:V24)) -> 0 | W28: =IF(W27=0,0,SUM((V25)-(V28+X28))) -> 0 | X28: =IF(Beanspruchungverteilung!$AT$21="x",SUMIF(W4:W24,">5,5",V4:V24),SUMIF(W4:W24,">6,5",V4:V24)) -> 0 | Y28: =IF(Beanspruchungverteilung!$AT$21="x",SUMIF(Z4:Z24,"<3,5",Y4:Y24),SUMIF(Z4:Z24,"<4,5",Y4:Y24)) -> 0 | Z28: =IF(Z27=0,0,SUM((Y25)-(Y28+AA28))) -> 0 | AA28: =IF(Beanspruchungverteilung!$AT$21="x",SUMIF(Z4:Z24,">5,5",Y4:Y24),SUMIF(Z4:Z24,">6,5",Y4:Y24)) -> 0 | AB28: =IF(Beanspruchungverteilung!$AT$21="x",SUMIF(AC4:AC24,"<3,5",AB4:AB24),SUMIF(AC4:AC24,"<4,5",AB4:AB24)) -> 0 | AC28: =IF(AC27=0,0,SUM((AB25)-(AB28+AD28))) -> 0 | AD28: =IF(Beanspruchungverteilung!$AT$21="x",SUMIF(AC4:AC24,">5,5",AB4:AB24),SUMIF(AC4:AC24,">6,5",AB4:AB24)) -> 0
D29: Wie in Ruhe | H29: 0 | J29: REG | K29: Wie erholt bist du wenn du in der Früh aufstehst?
D30: Sehr locker | H30: 1
D31: Locker | H31: 2 | J31: 1 | K31: … gar nicht erholt | AF31: Trainingstage | AH31: =IF(SUM(AH4:AH24)=0,"",COUNTIF(AH4:AH24,">0")) ->  | AJ31: Gesundheitsreport
H32: 3 | J32: 2 | K32: … wenig erholt
D33: Etwas hart | H33: 4 | J33: 3 | K33: … erholt | S33: =B4 -> Mo | T33: =AH4 -> 0 | AF33: Trainingseinheiten | AH33: =IF(AH31="","",SUM(M27:AD27)) -> 
D34: Hart | H34: 5 | J34: 4 | K34: … fit | S34: =B7 -> Di | T34: =AH7 -> 0 | AJ34: =IF($AH$31="","",AH31-AJ36-AJ44) ->  | AK34: keine Einschränkungen | AM34: 0
H35: 6 | J35: 5 | K35: … Top fit | S35: =B10 -> Mi | T35: =AH10 -> 0 | AF35: Trainingsstunden | AH35: =IF(AH31="","",SUM(M25,P25,V25,Y25,S25,AB25)/60) -> 
D36: Sehr hart | H36: 7 | S36: =B13 -> Do | T36: =AH13 -> 0 | AJ36: =SUM(AJ37:AJ42) -> 0 | AK36: Einschränkungen wegen Schmerzen
H37: 8 | J37: Anzahl der Spiele | S37: =B16 -> Fr | T37: =AH16 -> 0 | AF37: Training Load | AH37: =IF(AH31="","",SUM(AH25)) ->  | AJ37: =COUNTIF($H$4:$H$24,$AM37) -> 0 | AK37: Finger | AM37: 1
D38: Extrem hart | H38: 9 | S38: =B19 -> Sa | T38: =AH19 -> 0 | AJ38: 0 | AK38: Schulter | AM38: 2
D39: Wie mein härtestes Training | H39: 10 | J39: 1 | K39: … 3 und mehr Sätze | S39: =B22 -> So | T39: =AH22 -> 0 | AF39: Monotonie | AH39: =IF(AH31="","",(AVERAGE(AH4:AH24))/AH27) ->  | AJ39: 0 | AK39: Rücken | AM39: 3
J40: 0.5 | K40: … weniger als 3 Sätze | AJ40: 0 | AK40: Knie | AM40: 4
AF41: Trainingsanstrengung | AH41: =IF(AH31="","",AH37*AH39) ->  | AJ41: 0 | AK41: Sprunggelenk | AM41: 5
D42: échelle de Foster | H42: RPE | J42: gespielte Sätze | AJ42: 0 | AK42: Andere | AM42: 6
D43: Comme au repos | H43: 0 | J43: 1 | K43: … gestartet & durchgespielt | AF43: =AJ2 -> Anzahl der Spiele | AH43: =IF(AH31="","",SUM(AJ4:AJ24)) -> 
D44: très facile | H44: 1 | J44: 0.5 | K44: … ein-/ ausgewechselt, viel gespielt | AJ44: =SUM(AJ45:AJ50) -> 0 | AK44: Ausfall wegen Verletzung
D45: facile | H45: 2 | J45: 0.1 | K45: … ein-/ ausgewechselt, Kurzeinsatz | AF45: =AK2 -> gespielte Sätze | AH45: =IF(AH31="","",SUM(AK4:AK24)) ->  | AJ45: =COUNTIF($H$4:$H$24,$AM45) -> 0 | AK45: Finger | AM45: 11
H46: 3 | AJ46: 0 | AK46: Schulter | AM46: 12
D47: Assez dur | H47: 4 | J47: J | K47: Wie zufrieden bist du mit dem Wettkampf | AF47: =AL2 -> J | AH47: =IF(AH31="","",SUM(AL4:AL24)/AH33) ->  | AJ47: 0 | AK47: Rücken | AM47: 13
D48: dur | H48: 5 | K48: oder Training bzgl. der Qualität? | AJ48: 0 | AK48: Knie | AM48: 14
H49: 6 | J49: 1 | K49: … nicht zufrieden | AF49: Einschränkungen wegen Schmerzen | AH49: =AJ36 -> 0 | AJ49: 0 | AK49: Sprunggelenk | AM49: 15
D50: très dur | H50: 7 | J50: 2 | K50: … eher nicht zufrieden | AJ50: 0 | AK50: Andere | AM50: 16
H51: 8 | J51: 3 | K51: … neutral | AF51: Ausfall wegen Verletzung | AH51: =AJ44 -> 0
D52: extrèmement dur | H52: 9 | J52: 4 | K52: … zufrieden | AF52: eingeschränktes Training | AJ52: =SUM(AJ53:AJ59) -> 0 | AK52: Ausfall wegen Krankheit
D53: Comme mon entrainement le plus dur | H53: 10 | J53: 5 | K53: … sehr zufrieden! | AF53: Ausfall wegen Krankheit | AH53: =AJ52 -> 0 | AJ53: =COUNTIF($H$4:$H$24,$AM53) -> 0 | AK53: Krankheit | AM53: 21
AF54: eingeschränktes Training | AH54: =AJ36 -> 0
V134: =W134-1 -> 33 | W134: 34 | X134: 35 | Y134: 36 | Z134: 37 | AA134: 38 | AB134: 39 | AC134: =D1 -> 40
AD155: =AC134+1 -> 41 | AE155: =AD155+1 -> 42 | AF155: =AE155+1 -> 43

Sheet 41
C1: Woche | D1: =INT(MOD(INT((F1-2)/7)+0.6,52+5/28))+1 -> 41 | E1: =D1+1000 -> 1041 | F1: ='40'!F1+7 -> 2017-10-10 | G1: - | H1: =F1+6 -> 2017-10-16 | AD1: =Overview!D2 -> Vorname Nachname | AF1: =Overview!N2 -> 2017/2018
B2: Tag | D2: Gewicht | E2: REG | F2: Schlaf-qualität | G2: Schlaf-dauer | H2: Verletzung/ Erkrankung | J2: Trainingsbeschreibung | M2: Balltraining-Club | P2: Balltraining-TS/ Nati | S2: iso. Krafttraining | V2: iso. Fitnesstraining | Y2: Wettkampf | AB2: Anderes Training | AF2: Reflexion | AH2: Load/ Tag | AJ2: Anzahl der Spiele | AK2: gespielte Sätze | AL2: J | AM2: Regenerationsmassnahme | AN2: Mental- oder Sonstiges Training
D3: [kg] | E3: [1 - 5] | F3: [1-5] | G3: [Std] | H3: Kommentar | M3: Dauer | N3: RPE | O3: Load | P3: Dauer | Q3: RPE | R3: Load | S3: Dauer | T3: RPE | U3: Load | V3: Dauer | W3: RPE | X3: Load | Y3: Dauer | Z3: RPE | AA3: Load | AB3: Dauer | AC3: RPE | AD3: Load | AL3: [1-5]
B4: Mo | D4: 0 | E4: 0 | F4: 0 | G4: 0 | H4: 0 | O4: =M4*N4 -> 0 | R4: =P4*Q4 -> 0 | U4: =S4*T4 -> 0 | X4: =V4*W4 -> 0 | AA4: =Y4*Z4 -> 0 | AD4: =AB4*AC4 -> 0 | AH4: =SUM(O4:O6,R4:R6,U4:U6,X4:X6,AA4:AA6,AD4:AD6) -> 0
O5: =M5*N5 -> 0 | R5: =P5*Q5 -> 0 | U5: =S5*T5 -> 0 | X5: =V5*W5 -> 0 | AA5: =Y5*Z5 -> 0 | AD5: =AB5*AC5 -> 0
O6: 0 | R6: 0 | U6: 0 | X6: 0 | AA6: 0 | AD6: 0
B7: Di | D7: 0 | E7: 0 | F7: 0 | G7: 0 | H7: 0 | O7: 0 | R7: 0 | U7: 0 | X7: 0 | AA7: 0 | AD7: 0 | AH7: =SUM(O7:O9,R7:R9,U7:U9,X7:X9,AA7:AA9,AD7:AD9) -> 0
O8: 0 | R8: 0 | U8: 0 | X8: 0 | AA8: 0 | AD8: 0
O9: 0 | R9: 0 | U9: 0 | X9: 0 | AA9: 0 | AD9: 0
B10: Mi | D10: 0 | E10: 0 | F10: 0 | G10: 0 | H10: 0 | O10: 0 | R10: 0 | U10: 0 | X10: 0 | AA10: 0 | AD10: 0 | AH10: =SUM(O10:O12,R10:R12,U10:U12,X10:X12,AA10:AA12,AD10:AD12) -> 0
O11: 0 | R11: 0 | U11: 0 | X11: 0 | AA11: 0 | AD11: 0
O12: 0 | R12: 0 | U12: 0 | X12: 0 | AA12: 0 | AD12: 0
B13: Do | D13: 0 | E13: 0 | F13: 0 | G13: 0 | H13: 0 | O13: 0 | R13: 0 | U13: 0 | X13: 0 | AA13: 0 | AD13: 0 | AH13: =SUM(O13:O15,R13:R15,U13:U15,X13:X15,AA13:AA15,AD13:AD15) -> 0
O14: 0 | R14: 0 | U14: 0 | X14: 0 | AA14: 0 | AD14: 0
O15: 0 | R15: 0 | U15: 0 | X15: 0 | AA15: 0 | AD15: 0
B16: Fr | D16: 0 | E16: 0 | F16: 0 | G16: 0 | H16: 0 | O16: 0 | R16: 0 | U16: 0 | X16: 0 | AA16: 0 | AD16: 0 | AH16: =SUM(O16:O18,R16:R18,U16:U18,X16:X18,AA16:AA18,AD16:AD18) -> 0
O17: 0 | R17: 0 | U17: 0 | X17: 0 | AA17: 0 | AD17: 0
O18: 0 | R18: 0 | U18: 0 | X18: 0 | AA18: 0 | AD18: 0
B19: Sa | D19: 0 | E19: 0 | F19: 0 | G19: 0 | H19: 0 | O19: 0 | R19: 0 | U19: 0 | X19: 0 | AA19: 0 | AD19: 0 | AH19: =SUM(O19:O21,R19:R21,U19:U21,X19:X21,AA19:AA21,AD19:AD21) -> 0
O20: 0 | R20: 0 | U20: 0 | X20: 0 | AA20: 0 | AD20: 0
O21: 0 | R21: 0 | U21: 0 | X21: 0 | AA21: 0 | AD21: 0
B22: So | D22: 0 | E22: 0 | F22: 0 | G22: 0 | H22: 0 | O22: 0 | R22: 0 | U22: 0 | X22: 0 | AA22: 0 | AD22: 0 | AH22: =SUM(O22:O24,R22:R24,U22:U24,X22:X24,AA22:AA24,AD22:AD24) -> 0
O23: 0 | R23: 0 | U23: 0 | X23: 0 | AA23: 0 | AD23: 0
O24: 0 | R24: 0 | U24: 0 | X24: 0 | AA24: 0 | AD24: 0
K25: Total | M25: =SUM(M4:M24) -> 0 | O25: =SUM(O4:O24) -> 0 | P25: =SUM(P4:P24) -> 0 | R25: =SUM(R4:R24) -> 0 | S25: =SUM(S4:S24) -> 0 | U25: =SUM(U4:U24) -> 0 | V25: =SUM(V4:V24) -> 0 | X25: =SUM(X4:X24) -> 0 | Y25: =SUM(Y4:Y24) -> 0 | AA25: =SUM(AA4:AA24) -> 0 | AB25: =SUM(AB4:AB24) -> 0 | AD25: =SUM(AD4:AD24) -> 0 | AF25: TOTAL LOAD | AH25: =SUM(AH4:AH24) -> 0
B26: avg | D26: =IF(COUNTA(D4:D24)=0,"",AVERAGE(D4:D24)) -> 0 | E26: =IF(COUNTA(E4:E24)=0,"",AVERAGE(E4:E24)) -> 0 | F26: =IF(COUNTA(F4:F24)=0,"",AVERAGE(F4:F24)) -> 0 | G26: =IF(COUNTA(G4:G24)=0,"",AVERAGE(G4:G24)) -> 0 | H26: =IF(COUNTA(H4:H24)=0,"",COUNTIF(H4:H24,"x")) -> 0 | K26: Zone | M26: 1 | N26: 2 | O26: 3 | P26: 1 | Q26: 2 | R26: 3 | S26: 1 | T26: 2 | U26: 3 | V26: 1 | W26: 2 | X26: 3 | Y26: 1 | Z26: 2 | AA26: 3 | AB26: 1 | AC26: 2 | AD26: 3 | AF26: Mittelwert | AH26: =AVERAGE(AH4:AH24) -> 0
F27: =IF(COUNTA(F4:F24)=0,"",VAR(F4:F24)) -> 0 | G27: =IF(COUNTA(G4:G24)=0,"",STDEV(G4:G24)) -> 0 | H27: Abweichung - Schlafdauer | K27: Einheiten pro Zone (RPE) | M27: =IF(Beanspruchungverteilung!$AT$21="x",COUNTIF(N4:N24,"<3,5"),COUNTIF(N4:N24,"<4,5")) -> 0 | N27: =COUNT(N4:N24)-(M27+O27) -> 0 | O27: =IF(Beanspruchungverteilung!$AT$21="x",COUNTIF(N4:N24,">5,5"),COUNTIF(N4:N24,">6,5")) -> 0 | P27: =IF(Beanspruchungverteilung!$AT$21="x",COUNTIF(Q4:Q24,"<3,5"),COUNTIF(Q4:Q24,"<4,5")) -> 0 | Q27: =COUNT(Q4:Q24)-(P27+R27) -> 0 | R27: =IF(Beanspruchungverteilung!$AT$21="x",COUNTIF(Q4:Q24,">5,5"),COUNTIF(Q4:Q24,">6,5")) -> 0 | S27: =IF(Beanspruchungverteilung!$AT$21="x",COUNTIF(T4:T24,"<3,5"),COUNTIF(T4:T24,"<4,5")) -> 0 | T27: =COUNT(T4:T24)-(S27+U27) -> 0 | U27: =IF(Beanspruchungverteilung!$AT$21="x",COUNTIF(T4:T24,">5,5"),COUNTIF(T4:T24,">6,5")) -> 0 | V27: =IF(Beanspruchungverteilung!$AT$21="x",COUNTIF(W4:W24,"<3,5"),COUNTIF(W4:W24,"<4,5")) -> 0 | W27: =COUNT(W4:W24)-(V27+X27) -> 0 | X27: =IF(Beanspruchungverteilung!$AT$21="x",COUNTIF(W4:W24,">5,5"),COUNTIF(W4:W24,">6,5")) -> 0 | Y27: =IF(Beanspruchungverteilung!$AT$21="x",COUNTIF(Z4:Z24,"<3,5"),COUNTIF(Z4:Z24,"<4,5")) -> 0 | Z27: =COUNT(Z4:Z24)-(Y27+AA27) -> 0 | AA27: =IF(Beanspruchungverteilung!$AT$21="x",COUNTIF(Z4:Z24,">5,5"),COUNTIF(Z4:Z24,">6,5")) -> 0 | AB27: =IF(Beanspruchungverteilung!$AT$21="x",COUNTIF(AC4:AC24,"<3,5"),COUNTIF(AC4:AC24,"<4,5")) -> 0 | AC27: =COUNT(AC4:AC24)-(AB27+AD27) -> 0 | AD27: =IF(Beanspruchungverteilung!$AT$21="x",COUNTIF(AC4:AC24,">5,5"),COUNTIF(AC4:AC24,">6,5")) -> 0 | AF27: Standardabweichung | AH27: =STDEVP(AH4:AH24) -> 0
D28: Foster's Skala | H28: RPE | K28: Zeit pro Zone (RPE) | M28: =IF(Beanspruchungverteilung!$AT$21="x",SUMIF(N4:N24,"<3,5",M4:M24),SUMIF(N4:N24,"<4,5",M4:M24)) -> 0 | N28: =IF(N27=0,0,SUM((M25)-(M28+O28))) -> 0 | O28: =IF(Beanspruchungverteilung!$AT$21="x",SUMIF(N4:N24,">5,5",M4:M24),SUMIF(N4:N24,">6,5",M4:M24)) -> 0 | P28: =IF(Beanspruchungverteilung!$AT$21="x",SUMIF(Q4:Q24,"<3,5",P4:P24),SUMIF(Q4:Q24,"<4,5",P4:P24)) -> 0 | Q28: =IF(Q27=0,0,SUM((P25)-(P28+R28))) -> 0 | R28: =IF(Beanspruchungverteilung!$AT$21="x",SUMIF(Q4:Q24,">5,5",P4:P24),SUMIF(Q4:Q24,">6,5",P4:P24)) -> 0 | S28: =IF(Beanspruchungverteilung!$AT$21="x",SUMIF(T4:T24,"<3,5",S4:S24),SUMIF(T4:T24,"<4,5",S4:S24)) -> 0 | T28: =IF(T27=0,0,SUM((S25)-(S28+U28))) -> 0 | U28: =IF(Beanspruchungverteilung!$AT$21="x",SUMIF(T4:T24,">5,5",S4:S24),SUMIF(T4:T24,">6,5",S4:S24)) -> 0 | V28: =IF(Beanspruchungverteilung!$AT$21="x",SUMIF(W4:W24,"<3,5",V4:V24),SUMIF(W4:W24,"<4,5",V4:V24)) -> 0 | W28: =IF(W27=0,0,SUM((V25)-(V28+X28))) -> 0 | X28: =IF(Beanspruchungverteilung!$AT$21="x",SUMIF(W4:W24,">5,5",V4:V24),SUMIF(W4:W24,">6,5",V4:V24)) -> 0 | Y28: =IF(Beanspruchungverteilung!$AT$21="x",SUMIF(Z4:Z24,"<3,5",Y4:Y24),SUMIF(Z4:Z24,"<4,5",Y4:Y24)) -> 0 | Z28: =IF(Z27=0,0,SUM((Y25)-(Y28+AA28))) -> 0 | AA28: =IF(Beanspruchungverteilung!$AT$21="x",SUMIF(Z4:Z24,">5,5",Y4:Y24),SUMIF(Z4:Z24,">6,5",Y4:Y24)) -> 0 | AB28: =IF(Beanspruchungverteilung!$AT$21="x",SUMIF(AC4:AC24,"<3,5",AB4:AB24),SUMIF(AC4:AC24,"<4,5",AB4:AB24)) -> 0 | AC28: =IF(AC27=0,0,SUM((AB25)-(AB28+AD28))) -> 0 | AD28: =IF(Beanspruchungverteilung!$AT$21="x",SUMIF(AC4:AC24,">5,5",AB4:AB24),SUMIF(AC4:AC24,">6,5",AB4:AB24)) -> 0
D29: Wie in Ruhe | H29: 0 | J29: REG | K29: Wie erholt bist du wenn du in der Früh aufstehst?
D30: Sehr locker | H30: 1
D31: Locker | H31: 2 | J31: 1 | K31: … gar nicht erholt | AF31: Trainingstage | AH31: =IF(SUM(AH4:AH24)=0,"",COUNTIF(AH4:AH24,">0")) ->  | AJ31: Gesundheitsreport
H32: 3 | J32: 2 | K32: … wenig erholt
D33: Etwas hart | H33: 4 | J33: 3 | K33: … erholt | S33: =B4 -> Mo | T33: =AH4 -> 0 | AF33: Trainingseinheiten | AH33: =IF(AH31="","",SUM(M27:AD27)) -> 
D34: Hart | H34: 5 | J34: 4 | K34: … fit | S34: =B7 -> Di | T34: =AH7 -> 0 | AJ34: =IF($AH$31="","",AH31-AJ36-AJ44) ->  | AK34: keine Einschränkungen | AM34: 0
H35: 6 | J35: 5 | K35: … Top fit | S35: =B10 -> Mi | T35: =AH10 -> 0 | AF35: Trainingsstunden | AH35: =IF(AH31="","",SUM(M25,P25,V25,Y25,S25,AB25)/60) -> 
D36: Sehr hart | H36: 7 | S36: =B13 -> Do | T36: =AH13 -> 0 | AJ36: =SUM(AJ37:AJ42) -> 0 | AK36: Einschränkungen wegen Schmerzen
H37: 8 | J37: Anzahl der Spiele | S37: =B16 -> Fr | T37: =AH16 -> 0 | AF37: Training Load | AH37: =IF(AH31="","",SUM(AH25)) ->  | AJ37: =COUNTIF($H$4:$H$24,$AM37) -> 0 | AK37: Finger | AM37: 1
D38: Extrem hart | H38: 9 | S38: =B19 -> Sa | T38: =AH19 -> 0 | AJ38: 0 | AK38: Schulter | AM38: 2
D39: Wie mein härtestes Training | H39: 10 | J39: 1 | K39: … 3 und mehr Sätze | S39: =B22 -> So | T39: =AH22 -> 0 | AF39: Monotonie | AH39: =IF(AH31="","",(AVERAGE(AH4:AH24))/AH27) ->  | AJ39: 0 | AK39: Rücken | AM39: 3
J40: 0.5 | K40: … weniger als 3 Sätze | AJ40: 0 | AK40: Knie | AM40: 4
AF41: Trainingsanstrengung | AH41: =IF(AH31="","",AH37*AH39) ->  | AJ41: 0 | AK41: Sprunggelenk | AM41: 5
D42: échelle de Foster | H42: RPE | J42: gespielte Sätze | AJ42: 0 | AK42: Andere | AM42: 6
D43: Comme au repos | H43: 0 | J43: 1 | K43: … gestartet & durchgespielt | AF43: =AJ2 -> Anzahl der Spiele | AH43: =IF(AH31="","",SUM(AJ4:AJ24)) -> 
D44: très facile | H44: 1 | J44: 0.5 | K44: … ein-/ ausgewechselt, viel gespielt | AJ44: =SUM(AJ45:AJ50) -> 0 | AK44: Ausfall wegen Verletzung
D45: facile | H45: 2 | J45: 0.1 | K45: … ein-/ ausgewechselt, Kurzeinsatz | AF45: =AK2 -> gespielte Sätze | AH45: =IF(AH31="","",SUM(AK4:AK24)) ->  | AJ45: =COUNTIF($H$4:$H$24,$AM45) -> 0 | AK45: Finger | AM45: 11
H46: 3 | AJ46: 0 | AK46: Schulter | AM46: 12
D47: Assez dur | H47: 4 | J47: J | K47: Wie zufrieden bist du mit dem Wettkampf | AF47: =AL2 -> J | AH47: =IF(AH31="","",SUM(AL4:AL24)/AH33) ->  | AJ47: 0 | AK47: Rücken | AM47: 13
D48: dur | H48: 5 | K48: oder Training bzgl. der Qualität? | AJ48: 0 | AK48: Knie | AM48: 14
H49: 6 | J49: 1 | K49: … nicht zufrieden | AF49: Einschränkungen wegen Schmerzen | AH49: =AJ36 -> 0 | AJ49: 0 | AK49: Sprunggelenk | AM49: 15
D50: très dur | H50: 7 | J50: 2 | K50: … eher nicht zufrieden | AJ50: 0 | AK50: Andere | AM50: 16
H51: 8 | J51: 3 | K51: … neutral | AF51: Ausfall wegen Verletzung | AH51: =AJ44 -> 0
D52: extrèmement dur | H52: 9 | J52: 4 | K52: … zufrieden | AF52: eingeschränktes Training | AJ52: =SUM(AJ53:AJ59) -> 0 | AK52: Ausfall wegen Krankheit
D53: Comme mon entrainement le plus dur | H53: 10 | J53: 5 | K53: … sehr zufrieden! | AF53: Ausfall wegen Krankheit | AH53: =AJ52 -> 0 | AJ53: =COUNTIF($H$4:$H$24,$AM53) -> 0 | AK53: Krankheit | AM53: 21
AF54: eingeschränktes Training | AH54: =AJ36 -> 0
V134: =W134-1 -> 34 | W134: 35 | X134: 36 | Y134: 37 | Z134: 38 | AA134: 39 | AB134: 40 | AC134: =D1 -> 41
AD155: =AC134+1 -> 42 | AE155: =AD155+1 -> 43 | AF155: =AE155+1 -> 44

Sheet 42
C1: Woche | D1: =INT(MOD(INT((F1-2)/7)+0.6,52+5/28))+1 -> 42 | E1: =D1+1000 -> 1042 | F1: ='41'!F1+7 -> 2017-10-17 | G1: - | H1: =F1+6 -> 2017-10-23 | AD1: =Overview!D2 -> Vorname Nachname | AF1: =Overview!N2 -> 2017/2018
B2: Tag | D2: Gewicht | E2: REG | F2: Schlaf-qualität | G2: Schlaf-dauer | H2: Verletzung/ Erkrankung | J2: Trainingsbeschreibung | M2: Balltraining-Club | P2: Balltraining-TS/ Nati | S2: iso. Krafttraining | V2: iso. Fitnesstraining | Y2: Wettkampf | AB2: Anderes Training | AF2: Reflexion | AH2: Load/ Tag | AJ2: Anzahl der Spiele | AK2: gespielte Sätze | AL2: J | AM2: Regenerationsmassnahme | AN2: Mental- oder Sonstiges Training
D3: [kg] | E3: [1 - 5] | F3: [1-5] | G3: [Std] | H3: Kommentar | M3: Dauer | N3: RPE | O3: Load | P3: Dauer | Q3: RPE | R3: Load | S3: Dauer | T3: RPE | U3: Load | V3: Dauer | W3: RPE | X3: Load | Y3: Dauer | Z3: RPE | AA3: Load | AB3: Dauer | AC3: RPE | AD3: Load | AL3: [1-5]
B4: Mo | D4: 0 | E4: 0 | F4: 0 | G4: 0 | H4: 0 | O4: =M4*N4 -> 0 | R4: =P4*Q4 -> 0 | U4: =S4*T4 -> 0 | X4: =V4*W4 -> 0 | AA4: =Y4*Z4 -> 0 | AD4: =AB4*AC4 -> 0 | AH4: =SUM(O4:O6,R4:R6,U4:U6,X4:X6,AA4:AA6,AD4:AD6) -> 0
O5: =M5*N5 -> 0 | R5: =P5*Q5 -> 0 | U5: =S5*T5 -> 0 | X5: =V5*W5 -> 0 | AA5: =Y5*Z5 -> 0 | AD5: =AB5*AC5 -> 0
O6: 0 | R6: 0 | U6: 0 | X6: 0 | AA6: 0 | AD6: 0
B7: Di | D7: 0 | E7: 0 | F7: 0 | G7: 0 | H7: 0 | O7: 0 | R7: 0 | U7: 0 | X7: 0 | AA7: 0 | AD7: 0 | AH7: =SUM(O7:O9,R7:R9,U7:U9,X7:X9,AA7:AA9,AD7:AD9) -> 0
O8: 0 | R8: 0 | U8: 0 | X8: 0 | AA8: 0 | AD8: 0
O9: 0 | R9: 0 | U9: 0 | X9: 0 | AA9: 0 | AD9: 0
B10: Mi | D10: 0 | E10: 0 | F10: 0 | G10: 0 | H10: 0 | O10: 0 | R10: 0 | U10: 0 | X10: 0 | AA10: 0 | AD10: 0 | AH10: =SUM(O10:O12,R10:R12,U10:U12,X10:X12,AA10:AA12,AD10:AD12) -> 0
O11: 0 | R11: 0 | U11: 0 | X11: 0 | AA11: 0 | AD11: 0
O12: 0 | R12: 0 | U12: 0 | X12: 0 | AA12: 0 | AD12: 0
B13: Do | D13: 0 | E13: 0 | F13: 0 | G13: 0 | H13: 0 | O13: 0 | R13: 0 | U13: 0 | X13: 0 | AA13: 0 | AD13: 0 | AH13: =SUM(O13:O15,R13:R15,U13:U15,X13:X15,AA13:AA15,AD13:AD15) -> 0
O14: 0 | R14: 0 | U14: 0 | X14: 0 | AA14: 0 | AD14: 0
O15: 0 | R15: 0 | U15: 0 | X15: 0 | AA15: 0 | AD15: 0
B16: Fr | D16: 0 | E16: 0 | F16: 0 | G16: 0 | H16: 0 | O16: 0 | R16: 0 | U16: 0 | X16: 0 | AA16: 0 | AD16: 0 | AH16: =SUM(O16:O18,R16:R18,U16:U18,X16:X18,AA16:AA18,AD16:AD18) -> 0
O17: 0 | R17: 0 | U17: 0 | X17: 0 | AA17: 0 | AD17: 0
O18: 0 | R18: 0 | U18: 0 | X18: 0 | AA18: 0 | AD18: 0
B19: Sa | D19: 0 | E19: 0 | F19: 0 | G19: 0 | H19: 0 | O19: 0 | R19: 0 | U19: 0 | X19: 0 | AA19: 0 | AD19: 0 | AH19: =SUM(O19:O21,R19:R21,U19:U21,X19:X21,AA19:AA21,AD19:AD21) -> 0
O20: 0 | R20: 0 | U20: 0 | X20: 0 | AA20: 0 | AD20: 0
O21: 0 | R21: 0 | U21: 0 | X21: 0 | AA21: 0 | AD21: 0
B22: So | D22: 0 | E22: 0 | F22: 0 | G22: 0 | H22: 0 | O22: 0 | R22: 0 | U22: 0 | X22: 0 | AA22: 0 | AD22: 0 | AH22: =SUM(O22:O24,R22:R24,U22:U24,X22:X24,AA22:AA24,AD22:AD24) -> 0
O23: 0 | R23: 0 | U23: 0 | X23: 0 | AA23: 0 | AD23: 0
O24: 0 | R24: 0 | U24: 0 | X24: 0 | AA24: 0 | AD24: 0
K25: Total | M25: =SUM(M4:M24) -> 0 | O25: =SUM(O4:O24) -> 0 | P25: =SUM(P4:P24) -> 0 | R25: =SUM(R4:R24) -> 0 | S25: =SUM(S4:S24) -> 0 | U25: =SUM(U4:U24) -> 0 | V25: =SUM(V4:V24) -> 0 | X25: =SUM(X4:X24) -> 0 | Y25: =SUM(Y4:Y24) -> 0 | AA25: =SUM(AA4:AA24) -> 0 | AB25: =SUM(AB4:AB24) -> 0 | AD25: =SUM(AD4:AD24) -> 0 | AF25: TOTAL LOAD | AH25: =SUM(AH4:AH24) -> 0
B26: avg | D26: =IF(COUNTA(D4:D24)=0,"",AVERAGE(D4:D24)) -> 0 | E26: =IF(COUNTA(E4:E24)=0,"",AVERAGE(E4:E24)) -> 0 | F26: =IF(COUNTA(F4:F24)=0,"",AVERAGE(F4:F24)) -> 0 | G26: =IF(COUNTA(G4:G24)=0,"",AVERAGE(G4:G24)) -> 0 | H26: =IF(COUNTA(H4:H24)=0,"",COUNTIF(H4:H24,"x")) -> 0 | K26: Zone | M26: 1 | N26: 2 | O26: 3 | P26: 1 | Q26: 2 | R26: 3 | S26: 1 | T26: 2 | U26: 3 | V26: 1 | W26: 2 | X26: 3 | Y26: 1 | Z26: 2 | AA26: 3 | AB26: 1 | AC26: 2 | AD26: 3 | AF26: Mittelwert | AH26: =AVERAGE(AH4:AH24) -> 0
F27: =IF(COUNTA(F4:F24)=0,"",VAR(F4:F24)) -> 0 | G27: =IF(COUNTA(G4:G24)=0,"",STDEV(G4:G24)) -> 0 | H27: Abweichung - Schlafdauer | K27: Einheiten pro Zone (RPE) | M27: =IF(Beanspruchungverteilung!$AT$21="x",COUNTIF(N4:N24,"<3,5"),COUNTIF(N4:N24,"<4,5")) -> 0 | N27: =COUNT(N4:N24)-(M27+O27) -> 0 | O27: =IF(Beanspruchungverteilung!$AT$21="x",COUNTIF(N4:N24,">5,5"),COUNTIF(N4:N24,">6,5")) -> 0 | P27: =IF(Beanspruchungverteilung!$AT$21="x",COUNTIF(Q4:Q24,"<3,5"),COUNTIF(Q4:Q24,"<4,5")) -> 0 | Q27: =COUNT(Q4:Q24)-(P27+R27) -> 0 | R27: =IF(Beanspruchungverteilung!$AT$21="x",COUNTIF(Q4:Q24,">5,5"),COUNTIF(Q4:Q24,">6,5")) -> 0 | S27: =IF(Beanspruchungverteilung!$AT$21="x",COUNTIF(T4:T24,"<3,5"),COUNTIF(T4:T24,"<4,5")) -> 0 | T27: =COUNT(T4:T24)-(S27+U27) -> 0 | U27: =IF(Beanspruchungverteilung!$AT$21="x",COUNTIF(T4:T24,">5,5"),COUNTIF(T4:T24,">6,5")) -> 0 | V27: =IF(Beanspruchungverteilung!$AT$21="x",COUNTIF(W4:W24,"<3,5"),COUNTIF(W4:W24,"<4,5")) -> 0 | W27: =COUNT(W4:W24)-(V27+X27) -> 0 | X27: =IF(Beanspruchungverteilung!$AT$21="x",COUNTIF(W4:W24,">5,5"),COUNTIF(W4:W24,">6,5")) -> 0 | Y27: =IF(Beanspruchungverteilung!$AT$21="x",COUNTIF(Z4:Z24,"<3,5"),COUNTIF(Z4:Z24,"<4,5")) -> 0 | Z27: =COUNT(Z4:Z24)-(Y27+AA27) -> 0 | AA27: =IF(Beanspruchungverteilung!$AT$21="x",COUNTIF(Z4:Z24,">5,5"),COUNTIF(Z4:Z24,">6,5")) -> 0 | AB27: =IF(Beanspruchungverteilung!$AT$21="x",COUNTIF(AC4:AC24,"<3,5"),COUNTIF(AC4:AC24,"<4,5")) -> 0 | AC27: =COUNT(AC4:AC24)-(AB27+AD27) -> 0 | AD27: =IF(Beanspruchungverteilung!$AT$21="x",COUNTIF(AC4:AC24,">5,5"),COUNTIF(AC4:AC24,">6,5")) -> 0 | AF27: Standardabweichung | AH27: =STDEVP(AH4:AH24) -> 0
D28: Foster's Skala | H28: RPE | K28: Zeit pro Zone (RPE) | M28: =IF(Beanspruchungverteilung!$AT$21="x",SUMIF(N4:N24,"<3,5",M4:M24),SUMIF(N4:N24,"<4,5",M4:M24)) -> 0 | N28: =IF(N27=0,0,SUM((M25)-(M28+O28))) -> 0 | O28: =IF(Beanspruchungverteilung!$AT$21="x",SUMIF(N4:N24,">5,5",M4:M24),SUMIF(N4:N24,">6,5",M4:M24)) -> 0 | P28: =IF(Beanspruchungverteilung!$AT$21="x",SUMIF(Q4:Q24,"<3,5",P4:P24),SUMIF(Q4:Q24,"<4,5",P4:P24)) -> 0 | Q28: =IF(Q27=0,0,SUM((P25)-(P28+R28))) -> 0 | R28: =IF(Beanspruchungverteilung!$AT$21="x",SUMIF(Q4:Q24,">5,5",P4:P24),SUMIF(Q4:Q24,">6,5",P4:P24)) -> 0 | S28: =IF(Beanspruchungverteilung!$AT$21="x",SUMIF(T4:T24,"<3,5",S4:S24),SUMIF(T4:T24,"<4,5",S4:S24)) -> 0 | T28: =IF(T27=0,0,SUM((S25)-(S28+U28))) -> 0 | U28: =IF(Beanspruchungverteilung!$AT$21="x",SUMIF(T4:T24,">5,5",S4:S24),SUMIF(T4:T24,">6,5",S4:S24)) -> 0 | V28: =IF(Beanspruchungverteilung!$AT$21="x",SUMIF(W4:W24,"<3,5",V4:V24),SUMIF(W4:W24,"<4,5",V4:V24)) -> 0 | W28: =IF(W27=0,0,SUM((V25)-(V28+X28))) -> 0 | X28: =IF(Beanspruchungverteilung!$AT$21="x",SUMIF(W4:W24,">5,5",V4:V24),SUMIF(W4:W24,">6,5",V4:V24)) -> 0 | Y28: =IF(Beanspruchungverteilung!$AT$21="x",SUMIF(Z4:Z24,"<3,5",Y4:Y24),SUMIF(Z4:Z24,"<4,5",Y4:Y24)) -> 0 | Z28: =IF(Z27=0,0,SUM((Y25)-(Y28+AA28))) -> 0 | AA28: =IF(Beanspruchungverteilung!$AT$21="x",SUMIF(Z4:Z24,">5,5",Y4:Y24),SUMIF(Z4:Z24,">6,5",Y4:Y24)) -> 0 | AB28: =IF(Beanspruchungverteilung!$AT$21="x",SUMIF(AC4:AC24,"<3,5",AB4:AB24),SUMIF(AC4:AC24,"<4,5",AB4:AB24)) -> 0 | AC28: =IF(AC27=0,0,SUM((AB25)-(AB28+AD28))) -> 0 | AD28: =IF(Beanspruchungverteilung!$AT$21="x",SUMIF(AC4:AC24,">5,5",AB4:AB24),SUMIF(AC4:AC24,">6,5",AB4:AB24)) -> 0
D29: Wie in Ruhe | H29: 0 | J29: REG | K29: Wie erholt bist du wenn du in der Früh aufstehst?
D30: Sehr locker | H30: 1
D31: Locker | H31: 2 | J31: 1 | K31: … gar nicht erholt | AF31: Trainingstage | AH31: =IF(SUM(AH4:AH24)=0,"",COUNTIF(AH4:AH24,">0")) ->  | AJ31: Gesundheitsreport
H32: 3 | J32: 2 | K32: … wenig erholt
D33: Etwas hart | H33: 4 | J33: 3 | K33: … erholt | S33: =B4 -> Mo | T33: =AH4 -> 0 | AF33: Trainingseinheiten | AH33: =IF(AH31="","",SUM(M27:AD27)) -> 
D34: Hart | H34: 5 | J34: 4 | K34: … fit | S34: =B7 -> Di | T34: =AH7 -> 0 | AJ34: =IF($AH$31="","",AH31-AJ36-AJ44) ->  | AK34: keine Einschränkungen | AM34: 0
H35: 6 | J35: 5 | K35: … Top fit | S35: =B10 -> Mi | T35: =AH10 -> 0 | AF35: Trainingsstunden | AH35: =IF(AH31="","",SUM(M25,P25,V25,Y25,S25,AB25)/60) -> 
D36: Sehr hart | H36: 7 | S36: =B13 -> Do | T36: =AH13 -> 0 | AJ36: =SUM(AJ37:AJ42) -> 0 | AK36: Einschränkungen wegen Schmerzen
H37: 8 | J37: Anzahl der Spiele | S37: =B16 -> Fr | T37: =AH16 -> 0 | AF37: Training Load | AH37: =IF(AH31="","",SUM(AH25)) ->  | AJ37: =COUNTIF($H$4:$H$24,$AM37) -> 0 | AK37: Finger | AM37: 1
D38: Extrem hart | H38: 9 | S38: =B19 -> Sa | T38: =AH19 -> 0 | AJ38: 0 | AK38: Schulter | AM38: 2
D39: Wie mein härtestes Training | H39: 10 | J39: 1 | K39: … 3 und mehr Sätze | S39: =B22 -> So | T39: =AH22 -> 0 | AF39: Monotonie | AH39: =IF(AH31="","",(AVERAGE(AH4:AH24))/AH27) ->  | AJ39: 0 | AK39: Rücken | AM39: 3
J40: 0.5 | K40: … weniger als 3 Sätze | AJ40: 0 | AK40: Knie | AM40: 4
AF41: Trainingsanstrengung | AH41: =IF(AH31="","",AH37*AH39) ->  | AJ41: 0 | AK41: Sprunggelenk | AM41: 5
D42: échelle de Foster | H42: RPE | J42: gespielte Sätze | AJ42: 0 | AK42: Andere | AM42: 6
D43: Comme au repos | H43: 0 | J43: 1 | K43: … gestartet & durchgespielt | AF43: =AJ2 -> Anzahl der Spiele | AH43: =IF(AH31="","",SUM(AJ4:AJ24)) -> 
D44: très facile | H44: 1 | J44: 0.5 | K44: … ein-/ ausgewechselt, viel gespielt | AJ44: =SUM(AJ45:AJ50) -> 0 | AK44: Ausfall wegen Verletzung
D45: facile | H45: 2 | J45: 0.1 | K45: … ein-/ ausgewechselt, Kurzeinsatz | AF45: =AK2 -> gespielte Sätze | AH45: =IF(AH31="","",SUM(AK4:AK24)) ->  | AJ45: =COUNTIF($H$4:$H$24,$AM45) -> 0 | AK45: Finger | AM45: 11
H46: 3 | AJ46: 0 | AK46: Schulter | AM46: 12
D47: Assez dur | H47: 4 | J47: J | K47: Wie zufrieden bist du mit dem Wettkampf | AF47: =AL2 -> J | AH47: =IF(AH31="","",SUM(AL4:AL24)/AH33) ->  | AJ47: 0 | AK47: Rücken | AM47: 13
D48: dur | H48: 5 | K48: oder Training bzgl. der Qualität? | AJ48: 0 | AK48: Knie | AM48: 14
H49: 6 | J49: 1 | K49: … nicht zufrieden | AF49: Einschränkungen wegen Schmerzen | AH49: =AJ36 -> 0 | AJ49: 0 | AK49: Sprunggelenk | AM49: 15
D50: très dur | H50: 7 | J50: 2 | K50: … eher nicht zufrieden | AJ50: 0 | AK50: Andere | AM50: 16
H51: 8 | J51: 3 | K51: … neutral | AF51: Ausfall wegen Verletzung | AH51: =AJ44 -> 0
D52: extrèmement dur | H52: 9 | J52: 4 | K52: … zufrieden | AF52: eingeschränktes Training | AJ52: =SUM(AJ53:AJ59) -> 0 | AK52: Ausfall wegen Krankheit
D53: Comme mon entrainement le plus dur | H53: 10 | J53: 5 | K53: … sehr zufrieden! | AF53: Ausfall wegen Krankheit | AH53: =AJ52 -> 0 | AJ53: =COUNTIF($H$4:$H$24,$AM53) -> 0 | AK53: Krankheit | AM53: 21
AF54: eingeschränktes Training | AH54: =AJ36 -> 0
V134: =W134-1 -> 35 | W134: 36 | X134: 37 | Y134: 38 | Z134: 39 | AA134: 40 | AB134: 41 | AC134: =D1 -> 42
AD155: =AC134+1 -> 43 | AE155: =AD155+1 -> 44 | AF155: =AE155+1 -> 45

Sheet 43
C1: Woche | D1: =INT(MOD(INT((F1-2)/7)+0.6,52+5/28))+1 -> 43 | E1: =D1+1000 -> 1043 | F1: ='42'!F1+7 -> 2017-10-24 | G1: - | H1: =F1+6 -> 2017-10-30 | AD1: =Overview!D2 -> Vorname Nachname | AF1: =Overview!N2 -> 2017/2018
B2: Tag | D2: Gewicht | E2: REG | F2: Schlaf-qualität | G2: Schlaf-dauer | H2: Verletzung/ Erkrankung | J2: Trainingsbeschreibung | M2: Balltraining-Club | P2: Balltraining-TS/ Nati | S2: iso. Krafttraining | V2: iso. Fitnesstraining | Y2: Wettkampf | AB2: Anderes Training | AF2: Reflexion | AH2: Load/ Tag | AJ2: Anzahl der Spiele | AK2: gespielte Sätze | AL2: J | AM2: Regenerationsmassnahme | AN2: Mental- oder Sonstiges Training
D3: [kg] | E3: [1 - 5] | F3: [1-5] | G3: [Std] | H3: Kommentar | M3: Dauer | N3: RPE | O3: Load | P3: Dauer | Q3: RPE | R3: Load | S3: Dauer | T3: RPE | U3: Load | V3: Dauer | W3: RPE | X3: Load | Y3: Dauer | Z3: RPE | AA3: Load | AB3: Dauer | AC3: RPE | AD3: Load | AL3: [1-5]
B4: Mo | D4: 0 | E4: 0 | F4: 0 | G4: 0 | H4: 0 | O4: =M4*N4 -> 0 | R4: =P4*Q4 -> 0 | U4: =S4*T4 -> 0 | X4: =V4*W4 -> 0 | AA4: =Y4*Z4 -> 0 | AD4: =AB4*AC4 -> 0 | AH4: =SUM(O4:O6,R4:R6,U4:U6,X4:X6,AA4:AA6,AD4:AD6) -> 0
O5: =M5*N5 -> 0 | R5: =P5*Q5 -> 0 | U5: =S5*T5 -> 0 | X5: =V5*W5 -> 0 | AA5: =Y5*Z5 -> 0 | AD5: =AB5*AC5 -> 0
O6: 0 | R6: 0 | U6: 0 | X6: 0 | AA6: 0 | AD6: 0
B7: Di | D7: 0 | E7: 0 | F7: 0 | G7: 0 | H7: 0 | O7: 0 | R7: 0 | U7: 0 | X7: 0 | AA7: 0 | AD7: 0 | AH7: =SUM(O7:O9,R7:R9,U7:U9,X7:X9,AA7:AA9,AD7:AD9) -> 0
O8: 0 | R8: 0 | U8: 0 | X8: 0 | AA8: 0 | AD8: 0
O9: 0 | R9: 0 | U9: 0 | X9: 0 | AA9: 0 | AD9: 0
B10: Mi | D10: 0 | E10: 0 | F10: 0 | G10: 0 | H10: 0 | O10: 0 | R10: 0 | U10: 0 | X10: 0 | AA10: 0 | AD10: 0 | AH10: =SUM(O10:O12,R10:R12,U10:U12,X10:X12,AA10:AA12,AD10:AD12) -> 0
O11: 0 | R11: 0 | U11: 0 | X11: 0 | AA11: 0 | AD11: 0
O12: 0 | R12: 0 | U12: 0 | X12: 0 | AA12: 0 | AD12: 0
B13: Do | D13: 0 | E13: 0 | F13: 0 | G13: 0 | H13: 0 | O13: 0 | R13: 0 | U13: 0 | X13: 0 | AA13: 0 | AD13: 0 | AH13: =SUM(O13:O15,R13:R15,U13:U15,X13:X15,AA13:AA15,AD13:AD15) -> 0
O14: 0 | R14: 0 | U14: 0 | X14: 0 | AA14: 0 | AD14: 0
O15: 0 | R15: 0 | U15: 0 | X15: 0 | AA15: 0 | AD15: 0
B16: Fr | D16: 0 | E16: 0 | F16: 0 | G16: 0 | H16: 0 | O16: 0 | R16: 0 | U16: 0 | X16: 0 | AA16: 0 | AD16: 0 | AH16: =SUM(O16:O18,R16:R18,U16:U18,X16:X18,AA16:AA18,AD16:AD18) -> 0
O17: 0 | R17: 0 | U17: 0 | X17: 0 | AA17: 0 | AD17: 0
O18: 0 | R18: 0 | U18: 0 | X18: 0 | AA18: 0 | AD18: 0
B19: Sa | D19: 0 | E19: 0 | F19: 0 | G19: 0 | H19: 0 | O19: 0 | R19: 0 | U19: 0 | X19: 0 | AA19: 0 | AD19: 0 | AH19: =SUM(O19:O21,R19:R21,U19:U21,X19:X21,AA19:AA21,AD19:AD21) -> 0
O20: 0 | R20: 0 | U20: 0 | X20: 0 | AA20: 0 | AD20: 0
O21: 0 | R21: 0 | U21: 0 | X21: 0 | AA21: 0 | AD21: 0
B22: So | D22: 0 | E22: 0 | F22: 0 | G22: 0 | H22: 0 | O22: 0 | R22: 0 | U22: 0 | X22: 0 | AA22: 0 | AD22: 0 | AH22: =SUM(O22:O24,R22:R24,U22:U24,X22:X24,AA22:AA24,AD22:AD24) -> 0
O23: 0 | R23: 0 | U23: 0 | X23: 0 | AA23: 0 | AD23: 0
O24: 0 | R24: 0 | U24: 0 | X24: 0 | AA24: 0 | AD24: 0
K25: Total | M25: =SUM(M4:M24) -> 0 | O25: =SUM(O4:O24) -> 0 | P25: =SUM(P4:P24) -> 0 | R25: =SUM(R4:R24) -> 0 | S25: =SUM(S4:S24) -> 0 | U25: =SUM(U4:U24) -> 0 | V25: =SUM(V4:V24) -> 0 | X25: =SUM(X4:X24) -> 0 | Y25: =SUM(Y4:Y24) -> 0 | AA25: =SUM(AA4:AA24) -> 0 | AB25: =SUM(AB4:AB24) -> 0 | AD25: =SUM(AD4:AD24) -> 0 | AF25: TOTAL LOAD | AH25: =SUM(AH4:AH24) -> 0
B26: avg | D26: =IF(COUNTA(D4:D24)=0,"",AVERAGE(D4:D24)) -> 0 | E26: =IF(COUNTA(E4:E24)=0,"",AVERAGE(E4:E24)) -> 0 | F26: =IF(COUNTA(F4:F24)=0,"",AVERAGE(F4:F24)) -> 0 | G26: =IF(COUNTA(G4:G24)=0,"",AVERAGE(G4:G24)) -> 0 | H26: =IF(COUNTA(H4:H24)=0,"",COUNTIF(H4:H24,"x")) -> 0 | K26: Zone | M26: 1 | N26: 2 | O26: 3 | P26: 1 | Q26: 2 | R26: 3 | S26: 1 | T26: 2 | U26: 3 | V26: 1 | W26: 2 | X26: 3 | Y26: 1 | Z26: 2 | AA26: 3 | AB26: 1 | AC26: 2 | AD26: 3 | AF26: Mittelwert | AH26: =AVERAGE(AH4:AH24) -> 0
F27: =IF(COUNTA(F4:F24)=0,"",VAR(F4:F24)) -> 0 | G27: =IF(COUNTA(G4:G24)=0,"",STDEV(G4:G24)) -> 0 | H27: Abweichung - Schlafdauer | K27: Einheiten pro Zone (RPE) | M27: =IF(Beanspruchungverteilung!$AT$21="x",COUNTIF(N4:N24,"<3,5"),COUNTIF(N4:N24,"<4,5")) -> 0 | N27: =COUNT(N4:N24)-(M27+O27) -> 0 | O27: =IF(Beanspruchungverteilung!$AT$21="x",COUNTIF(N4:N24,">5,5"),COUNTIF(N4:N24,">6,5")) -> 0 | P27: =IF(Beanspruchungverteilung!$AT$21="x",COUNTIF(Q4:Q24,"<3,5"),COUNTIF(Q4:Q24,"<4,5")) -> 0 | Q27: =COUNT(Q4:Q24)-(P27+R27) -> 0 | R27: =IF(Beanspruchungverteilung!$AT$21="x",COUNTIF(Q4:Q24,">5,5"),COUNTIF(Q4:Q24,">6,5")) -> 0 | S27: =IF(Beanspruchungverteilung!$AT$21="x",COUNTIF(T4:T24,"<3,5"),COUNTIF(T4:T24,"<4,5")) -> 0 | T27: =COUNT(T4:T24)-(S27+U27) -> 0 | U27: =IF(Beanspruchungverteilung!$AT$21="x",COUNTIF(T4:T24,">5,5"),COUNTIF(T4:T24,">6,5")) -> 0 | V27: =IF(Beanspruchungverteilung!$AT$21="x",COUNTIF(W4:W24,"<3,5"),COUNTIF(W4:W24,"<4,5")) -> 0 | W27: =COUNT(W4:W24)-(V27+X27) -> 0 | X27: =IF(Beanspruchungverteilung!$AT$21="x",COUNTIF(W4:W24,">5,5"),COUNTIF(W4:W24,">6,5")) -> 0 | Y27: =IF(Beanspruchungverteilung!$AT$21="x",COUNTIF(Z4:Z24,"<3,5"),COUNTIF(Z4:Z24,"<4,5")) -> 0 | Z27: =COUNT(Z4:Z24)-(Y27+AA27) -> 0 | AA27: =IF(Beanspruchungverteilung!$AT$21="x",COUNTIF(Z4:Z24,">5,5"),COUNTIF(Z4:Z24,">6,5")) -> 0 | AB27: =IF(Beanspruchungverteilung!$AT$21="x",COUNTIF(AC4:AC24,"<3,5"),COUNTIF(AC4:AC24,"<4,5")) -> 0 | AC27: =COUNT(AC4:AC24)-(AB27+AD27) -> 0 | AD27: =IF(Beanspruchungverteilung!$AT$21="x",COUNTIF(AC4:AC24,">5,5"),COUNTIF(AC4:AC24,">6,5")) -> 0 | AF27: Standardabweichung | AH27: =STDEVP(AH4:AH24) -> 0
D28: Foster's Skala | H28: RPE | K28: Zeit pro Zone (RPE) | M28: =IF(Beanspruchungverteilung!$AT$21="x",SUMIF(N4:N24,"<3,5",M4:M24),SUMIF(N4:N24,"<4,5",M4:M24)) -> 0 | N28: =IF(N27=0,0,SUM((M25)-(M28+O28))) -> 0 | O28: =IF(Beanspruchungverteilung!$AT$21="x",SUMIF(N4:N24,">5,5",M4:M24),SUMIF(N4:N24,">6,5",M4:M24)) -> 0 | P28: =IF(Beanspruchungverteilung!$AT$21="x",SUMIF(Q4:Q24,"<3,5",P4:P24),SUMIF(Q4:Q24,"<4,5",P4:P24)) -> 0 | Q28: =IF(Q27=0,0,SUM((P25)-(P28+R28))) -> 0 | R28: =IF(Beanspruchungverteilung!$AT$21="x",SUMIF(Q4:Q24,">5,5",P4:P24),SUMIF(Q4:Q24,">6,5",P4:P24)) -> 0 | S28: =IF(Beanspruchungverteilung!$AT$21="x",SUMIF(T4:T24,"<3,5",S4:S24),SUMIF(T4:T24,"<4,5",S4:S24)) -> 0 | T28: =IF(T27=0,0,SUM((S25)-(S28+U28))) -> 0 | U28: =IF(Beanspruchungverteilung!$AT$21="x",SUMIF(T4:T24,">5,5",S4:S24),SUMIF(T4:T24,">6,5",S4:S24)) -> 0 | V28: =IF(Beanspruchungverteilung!$AT$21="x",SUMIF(W4:W24,"<3,5",V4:V24),SUMIF(W4:W24,"<4,5",V4:V24)) -> 0 | W28: =IF(W27=0,0,SUM((V25)-(V28+X28))) -> 0 | X28: =IF(Beanspruchungverteilung!$AT$21="x",SUMIF(W4:W24,">5,5",V4:V24),SUMIF(W4:W24,">6,5",V4:V24)) -> 0 | Y28: =IF(Beanspruchungverteilung!$AT$21="x",SUMIF(Z4:Z24,"<3,5",Y4:Y24),SUMIF(Z4:Z24,"<4,5",Y4:Y24)) -> 0 | Z28: =IF(Z27=0,0,SUM((Y25)-(Y28+AA28))) -> 0 | AA28: =IF(Beanspruchungverteilung!$AT$21="x",SUMIF(Z4:Z24,">5,5",Y4:Y24),SUMIF(Z4:Z24,">6,5",Y4:Y24)) -> 0 | AB28: =IF(Beanspruchungverteilung!$AT$21="x",SUMIF(AC4:AC24,"<3,5",AB4:AB24),SUMIF(AC4:AC24,"<4,5",AB4:AB24)) -> 0 | AC28: =IF(AC27=0,0,SUM((AB25)-(AB28+AD28))) -> 0 | AD28: =IF(Beanspruchungverteilung!$AT$21="x",SUMIF(AC4:AC24,">5,5",AB4:AB24),SUMIF(AC4:AC24,">6,5",AB4:AB24)) -> 0
D29: Wie in Ruhe | H29: 0 | J29: REG | K29: Wie erholt bist du wenn du in der Früh aufstehst?
D30: Sehr locker | H30: 1
D31: Locker | H31: 2 | J31: 1 | K31: … gar nicht erholt | AF31: Trainingstage | AH31: =IF(SUM(AH4:AH24)=0,"",COUNTIF(AH4:AH24,">0")) ->  | AJ31: Gesundheitsreport
H32: 3 | J32: 2 | K32: … wenig erholt
D33: Etwas hart | H33: 4 | J33: 3 | K33: … erholt | S33: =B4 -> Mo | T33: =AH4 -> 0 | AF33: Trainingseinheiten | AH33: =IF(AH31="","",SUM(M27:AD27)) -> 
D34: Hart | H34: 5 | J34: 4 | K34: … fit | S34: =B7 -> Di | T34: =AH7 -> 0 | AJ34: =IF($AH$31="","",AH31-AJ36-AJ44) ->  | AK34: keine Einschränkungen | AM34: 0
H35: 6 | J35: 5 | K35: … Top fit | S35: =B10 -> Mi | T35: =AH10 -> 0 | AF35: Trainingsstunden | AH35: =IF(AH31="","",SUM(M25,P25,V25,Y25,S25,AB25)/60) -> 
D36: Sehr hart | H36: 7 | S36: =B13 -> Do | T36: =AH13 -> 0 | AJ36: =SUM(AJ37:AJ42) -> 0 | AK36: Einschränkungen wegen Schmerzen
H37: 8 | J37: Anzahl der Spiele | S37: =B16 -> Fr | T37: =AH16 -> 0 | AF37: Training Load | AH37: =IF(AH31="","",SUM(AH25)) ->  | AJ37: =COUNTIF($H$4:$H$24,$AM37) -> 0 | AK37: Finger | AM37: 1
D38: Extrem hart | H38: 9 | S38: =B19 -> Sa | T38: =AH19 -> 0 | AJ38: 0 | AK38: Schulter | AM38: 2
D39: Wie mein härtestes Training | H39: 10 | J39: 1 | K39: … 3 und mehr Sätze | S39: =B22 -> So | T39: =AH22 -> 0 | AF39: Monotonie | AH39: =IF(AH31="","",(AVERAGE(AH4:AH24))/AH27) ->  | AJ39: 0 | AK39: Rücken | AM39: 3
J40: 0.5 | K40: … weniger als 3 Sätze | AJ40: 0 | AK40: Knie | AM40: 4
AF41: Trainingsanstrengung | AH41: =IF(AH31="","",AH37*AH39) ->  | AJ41: 0 | AK41: Sprunggelenk | AM41: 5
D42: échelle de Foster | H42: RPE | J42: gespielte Sätze | AJ42: 0 | AK42: Andere | AM42: 6
D43: Comme au repos | H43: 0 | J43: 1 | K43: … gestartet & durchgespielt | AF43: =AJ2 -> Anzahl der Spiele | AH43: =IF(AH31="","",SUM(AJ4:AJ24)) -> 
D44: très facile | H44: 1 | J44: 0.5 | K44: … ein-/ ausgewechselt, viel gespielt | AJ44: =SUM(AJ45:AJ50) -> 0 | AK44: Ausfall wegen Verletzung
D45: facile | H45: 2 | J45: 0.1 | K45: … ein-/ ausgewechselt, Kurzeinsatz | AF45: =AK2 -> gespielte Sätze | AH45: =IF(AH31="","",SUM(AK4:AK24)) ->  | AJ45: =COUNTIF($H$4:$H$24,$AM45) -> 0 | AK45: Finger | AM45: 11
H46: 3 | AJ46: 0 | AK46: Schulter | AM46: 12
D47: Assez dur | H47: 4 | J47: J | K47: Wie zufrieden bist du mit dem Wettkampf | AF47: =AL2 -> J | AH47: =IF(AH31="","",SUM(AL4:AL24)/AH33) ->  | AJ47: 0 | AK47: Rücken | AM47: 13
D48: dur | H48: 5 | K48: oder Training bzgl. der Qualität? | AJ48: 0 | AK48: Knie | AM48: 14
H49: 6 | J49: 1 | K49: … nicht zufrieden | AF49: Einschränkungen wegen Schmerzen | AH49: =AJ36 -> 0 | AJ49: 0 | AK49: Sprunggelenk | AM49: 15
D50: très dur | H50: 7 | J50: 2 | K50: … eher nicht zufrieden | AJ50: 0 | AK50: Andere | AM50: 16
H51: 8 | J51: 3 | K51: … neutral | AF51: Ausfall wegen Verletzung | AH51: =AJ44 -> 0
D52: extrèmement dur | H52: 9 | J52: 4 | K52: … zufrieden | AF52: eingeschränktes Training | AJ52: =SUM(AJ53:AJ59) -> 0 | AK52: Ausfall wegen Krankheit
D53: Comme mon entrainement le plus dur | H53: 10 | J53: 5 | K53: … sehr zufrieden! | AF53: Ausfall wegen Krankheit | AH53: =AJ52 -> 0 | AJ53: =COUNTIF($H$4:$H$24,$AM53) -> 0 | AK53: Krankheit | AM53: 21
AF54: eingeschränktes Training | AH54: =AJ36 -> 0
V134: =W134-1 -> 36 | W134: 37 | X134: 38 | Y134: 39 | Z134: 40 | AA134: 41 | AB134: 42 | AC134: =D1 -> 43
AD155: =AC134+1 -> 44 | AE155: =AD155+1 -> 45 | AF155: =AE155+1 -> 46

Sheet 44
C1: Woche | D1: =INT(MOD(INT((F1-2)/7)+0.6,52+5/28))+1 -> 44 | E1: =D1+1000 -> 1044 | F1: ='43'!F1+7 -> 2017-10-31 | G1: - | H1: =F1+6 -> 2017-11-06 | AD1: =Overview!D2 -> Vorname Nachname | AF1: =Overview!N2 -> 2017/2018
B2: Tag | D2: Gewicht | E2: REG | F2: Schlaf-qualität | G2: Schlaf-dauer | H2: Verletzung/ Erkrankung | J2: Trainingsbeschreibung | M2: Balltraining-Club | P2: Balltraining-TS/ Nati | S2: iso. Krafttraining | V2: iso. Fitnesstraining | Y2: Wettkampf | AB2: Anderes Training | AF2: Reflexion | AH2: Load/ Tag | AJ2: Anzahl der Spiele | AK2: gespielte Sätze | AL2: J | AM2: Regenerationsmassnahme | AN2: Mental- oder Sonstiges Training
D3: [kg] | E3: [1 - 5] | F3: [1-5] | G3: [Std] | H3: Kommentar | M3: Dauer | N3: RPE | O3: Load | P3: Dauer | Q3: RPE | R3: Load | S3: Dauer | T3: RPE | U3: Load | V3: Dauer | W3: RPE | X3: Load | Y3: Dauer | Z3: RPE | AA3: Load | AB3: Dauer | AC3: RPE | AD3: Load | AL3: [1-5]
B4: Mo | D4: 0 | E4: 0 | F4: 0 | G4: 0 | H4: 0 | O4: =M4*N4 -> 0 | R4: =P4*Q4 -> 0 | U4: =S4*T4 -> 0 | X4: =V4*W4 -> 0 | AA4: =Y4*Z4 -> 0 | AD4: =AB4*AC4 -> 0 | AH4: =SUM(O4:O6,R4:R6,U4:U6,X4:X6,AA4:AA6,AD4:AD6) -> 0
O5: =M5*N5 -> 0 | R5: =P5*Q5 -> 0 | U5: =S5*T5 -> 0 | X5: =V5*W5 -> 0 | AA5: =Y5*Z5 -> 0 | AD5: =AB5*AC5 -> 0
O6: 0 | R6: 0 | U6: 0 | X6: 0 | AA6: 0 | AD6: 0
B7: Di | D7: 0 | E7: 0 | F7: 0 | G7: 0 | H7: 0 | O7: 0 | R7: 0 | U7: 0 | X7: 0 | AA7: 0 | AD7: 0 | AH7: =SUM(O7:O9,R7:R9,U7:U9,X7:X9,AA7:AA9,AD7:AD9) -> 0
O8: 0 | R8: 0 | U8: 0 | X8: 0 | AA8: 0 | AD8: 0
O9: 0 | R9: 0 | U9: 0 | X9: 0 | AA9: 0 | AD9: 0
B10: Mi | D10: 0 | E10: 0 | F10: 0 | G10: 0 | H10: 0 | O10: 0 | R10: 0 | U10: 0 | X10: 0 | AA10: 0 | AD10: 0 | AH10: =SUM(O10:O12,R10:R12,U10:U12,X10:X12,AA10:AA12,AD10:AD12) -> 0
O11: 0 | R11: 0 | U11: 0 | X11: 0 | AA11: 0 | AD11: 0
O12: 0 | R12: 0 | U12: 0 | X12: 0 | AA12: 0 | AD12: 0
B13: Do | D13: 0 | E13: 0 | F13: 0 | G13: 0 | H13: 0 | O13: 0 | R13: 0 | U13: 0 | X13: 0 | AA13: 0 | AD13: 0 | AH13: =SUM(O13:O15,R13:R15,U13:U15,X13:X15,AA13:AA15,AD13:AD15) -> 0
O14: 0 | R14: 0 | U14: 0 | X14: 0 | AA14: 0 | AD14: 0
O15: 0 | R15: 0 | U15: 0 | X15: 0 | AA15: 0 | AD15: 0
B16: Fr | D16: 0 | E16: 0 | F16: 0 | G16: 0 | H16: 0 | O16: 0 | R16: 0 | U16: 0 | X16: 0 | AA16: 0 | AD16: 0 | AH16: =SUM(O16:O18,R16:R18,U16:U18,X16:X18,AA16:AA18,AD16:AD18) -> 0
O17: 0 | R17: 0 | U17: 0 | X17: 0 | AA17: 0 | AD17: 0
O18: 0 | R18: 0 | U18: 0 | X18: 0 | AA18: 0 | AD18: 0
B19: Sa | D19: 0 | E19: 0 | F19: 0 | G19: 0 | H19: 0 | O19: 0 | R19: 0 | U19: 0 | X19: 0 | AA19: 0 | AD19: 0 | AH19: =SUM(O19:O21,R19:R21,U19:U21,X19:X21,AA19:AA21,AD19:AD21) -> 0
O20: 0 | R20: 0 | U20: 0 | X20: 0 | AA20: 0 | AD20: 0
O21: 0 | R21: 0 | U21: 0 | X21: 0 | AA21: 0 | AD21: 0
B22: So | D22: 0 | E22: 0 | F22: 0 | G22: 0 | H22: 0 | O22: 0 | R22: 0 | U22: 0 | X22: 0 | AA22: 0 | AD22: 0 | AH22: =SUM(O22:O24,R22:R24,U22:U24,X22:X24,AA22:AA24,AD22:AD24) -> 0
O23: 0 | R23: 0 | U23: 0 | X23: 0 | AA23: 0 | AD23: 0
O24: 0 | R24: 0 | U24: 0 | X24: 0 | AA24: 0 | AD24: 0
K25: Total | M25: =SUM(M4:M24) -> 0 | O25: =SUM(O4:O24) -> 0 | P25: =SUM(P4:P24) -> 0 | R25: =SUM(R4:R24) -> 0 | S25: =SUM(S4:S24) -> 0 | U25: =SUM(U4:U24) -> 0 | V25: =SUM(V4:V24) -> 0 | X25: =SUM(X4:X24) -> 0 | Y25: =SUM(Y4:Y24) -> 0 | AA25: =SUM(AA4:AA24) -> 0 | AB25: =SUM(AB4:AB24) -> 0 | AD25: =SUM(AD4:AD24) -> 0 | AF25: TOTAL LOAD | AH25: =SUM(AH4:AH24) -> 0
B26: avg | D26: =IF(COUNTA(D4:D24)=0,"",AVERAGE(D4:D24)) -> 0 | E26: =IF(COUNTA(E4:E24)=0,"",AVERAGE(E4:E24)) -> 0 | F26: =IF(COUNTA(F4:F24)=0,"",AVERAGE(F4:F24)) -> 0 | G26: =IF(COUNTA(G4:G24)=0,"",AVERAGE(G4:G24)) -> 0 | H26: =IF(COUNTA(H4:H24)=0,"",COUNTIF(H4:H24,"x")) -> 0 | K26: Zone | M26: 1 | N26: 2 | O26: 3 | P26: 1 | Q26: 2 | R26: 3 | S26: 1 | T26: 2 | U26: 3 | V26: 1 | W26: 2 | X26: 3 | Y26: 1 | Z26: 2 | AA26: 3 | AB26: 1 | AC26: 2 | AD26: 3 | AF26: Mittelwert | AH26: =AVERAGE(AH4:AH24) -> 0
F27: =IF(COUNTA(F4:F24)=0,"",VAR(F4:F24)) -> 0 | G27: =IF(COUNTA(G4:G24)=0,"",STDEV(G4:G24)) -> 0 | H27: Abweichung - Schlafdauer | K27: Einheiten pro Zone (RPE) | M27: =IF(Beanspruchungverteilung!$AT$21="x",COUNTIF(N4:N24,"<3,5"),COUNTIF(N4:N24,"<4,5")) -> 0 | N27: =COUNT(N4:N24)-(M27+O27) -> 0 | O27: =IF(Beanspruchungverteilung!$AT$21="x",COUNTIF(N4:N24,">5,5"),COUNTIF(N4:N24,">6,5")) -> 0 | P27: =IF(Beanspruchungverteilung!$AT$21="x",COUNTIF(Q4:Q24,"<3,5"),COUNTIF(Q4:Q24,"<4,5")) -> 0 | Q27: =COUNT(Q4:Q24)-(P27+R27) -> 0 | R27: =IF(Beanspruchungverteilung!$AT$21="x",COUNTIF(Q4:Q24,">5,5"),COUNTIF(Q4:Q24,">6,5")) -> 0 | S27: =IF(Beanspruchungverteilung!$AT$21="x",COUNTIF(T4:T24,"<3,5"),COUNTIF(T4:T24,"<4,5")) -> 0 | T27: =COUNT(T4:T24)-(S27+U27) -> 0 | U27: =IF(Beanspruchungverteilung!$AT$21="x",COUNTIF(T4:T24,">5,5"),COUNTIF(T4:T24,">6,5")) -> 0 | V27: =IF(Beanspruchungverteilung!$AT$21="x",COUNTIF(W4:W24,"<3,5"),COUNTIF(W4:W24,"<4,5")) -> 0 | W27: =COUNT(W4:W24)-(V27+X27) -> 0 | X27: =IF(Beanspruchungverteilung!$AT$21="x",COUNTIF(W4:W24,">5,5"),COUNTIF(W4:W24,">6,5")) -> 0 | Y27: =IF(Beanspruchungverteilung!$AT$21="x",COUNTIF(Z4:Z24,"<3,5"),COUNTIF(Z4:Z24,"<4,5")) -> 0 | Z27: =COUNT(Z4:Z24)-(Y27+AA27) -> 0 | AA27: =IF(Beanspruchungverteilung!$AT$21="x",COUNTIF(Z4:Z24,">5,5"),COUNTIF(Z4:Z24,">6,5")) -> 0 | AB27: =IF(Beanspruchungverteilung!$AT$21="x",COUNTIF(AC4:AC24,"<3,5"),COUNTIF(AC4:AC24,"<4,5")) -> 0 | AC27: =COUNT(AC4:AC24)-(AB27+AD27) -> 0 | AD27: =IF(Beanspruchungverteilung!$AT$21="x",COUNTIF(AC4:AC24,">5,5"),COUNTIF(AC4:AC24,">6,5")) -> 0 | AF27: Standardabweichung | AH27: =STDEVP(AH4:AH24) -> 0
D28: Foster's Skala | H28: RPE | K28: Zeit pro Zone (RPE) | M28: =IF(Beanspruchungverteilung!$AT$21="x",SUMIF(N4:N24,"<3,5",M4:M24),SUMIF(N4:N24,"<4,5",M4:M24)) -> 0 | N28: =IF(N27=0,0,SUM((M25)-(M28+O28))) -> 0 | O28: =IF(Beanspruchungverteilung!$AT$21="x",SUMIF(N4:N24,">5,5",M4:M24),SUMIF(N4:N24,">6,5",M4:M24)) -> 0 | P28: =IF(Beanspruchungverteilung!$AT$21="x",SUMIF(Q4:Q24,"<3,5",P4:P24),SUMIF(Q4:Q24,"<4,5",P4:P24)) -> 0 | Q28: =IF(Q27=0,0,SUM((P25)-(P28+R28))) -> 0 | R28: =IF(Beanspruchungverteilung!$AT$21="x",SUMIF(Q4:Q24,">5,5",P4:P24),SUMIF(Q4:Q24,">6,5",P4:P24)) -> 0 | S28: =IF(Beanspruchungverteilung!$AT$21="x",SUMIF(T4:T24,"<3,5",S4:S24),SUMIF(T4:T24,"<4,5",S4:S24)) -> 0 | T28: =IF(T27=0,0,SUM((S25)-(S28+U28))) -> 0 | U28: =IF(Beanspruchungverteilung!$AT$21="x",SUMIF(T4:T24,">5,5",S4:S24),SUMIF(T4:T24,">6,5",S4:S24)) -> 0 | V28: =IF(Beanspruchungverteilung!$AT$21="x",SUMIF(W4:W24,"<3,5",V4:V24),SUMIF(W4:W24,"<4,5",V4:V24)) -> 0 | W28: =IF(W27=0,0,SUM((V25)-(V28+X28))) -> 0 | X28: =IF(Beanspruchungverteilung!$AT$21="x",SUMIF(W4:W24,">5,5",V4:V24),SUMIF(W4:W24,">6,5",V4:V24)) -> 0 | Y28: =IF(Beanspruchungverteilung!$AT$21="x",SUMIF(Z4:Z24,"<3,5",Y4:Y24),SUMIF(Z4:Z24,"<4,5",Y4:Y24)) -> 0 | Z28: =IF(Z27=0,0,SUM((Y25)-(Y28+AA28))) -> 0 | AA28: =IF(Beanspruchungverteilung!$AT$21="x",SUMIF(Z4:Z24,">5,5",Y4:Y24),SUMIF(Z4:Z24,">6,5",Y4:Y24)) -> 0 | AB28: =IF(Beanspruchungverteilung!$AT$21="x",SUMIF(AC4:AC24,"<3,5",AB4:AB24),SUMIF(AC4:AC24,"<4,5",AB4:AB24)) -> 0 | AC28: =IF(AC27=0,0,SUM((AB25)-(AB28+AD28))) -> 0 | AD28: =IF(Beanspruchungverteilung!$AT$21="x",SUMIF(AC4:AC24,">5,5",AB4:AB24),SUMIF(AC4:AC24,">6,5",AB4:AB24)) -> 0
D29: Wie in Ruhe | H29: 0 | J29: REG | K29: Wie erholt bist du wenn du in der Früh aufstehst?
D30: Sehr locker | H30: 1
D31: Locker | H31: 2 | J31: 1 | K31: … gar nicht erholt | AF31: Trainingstage | AH31: =IF(SUM(AH4:AH24)=0,"",COUNTIF(AH4:AH24,">0")) ->  | AJ31: Gesundheitsreport
H32: 3 | J32: 2 | K32: … wenig erholt
D33: Etwas hart | H33: 4 | J33: 3 | K33: … erholt | S33: =B4 -> Mo | T33: =AH4 -> 0 | AF33: Trainingseinheiten | AH33: =IF(AH31="","",SUM(M27:AD27)) -> 
D34: Hart | H34: 5 | J34: 4 | K34: … fit | S34: =B7 -> Di | T34: =AH7 -> 0 | AJ34: =IF($AH$31="","",AH31-AJ36-AJ44) ->  | AK34: keine Einschränkungen | AM34: 0
H35: 6 | J35: 5 | K35: … Top fit | S35: =B10 -> Mi | T35: =AH10 -> 0 | AF35: Trainingsstunden | AH35: =IF(AH31="","",SUM(M25,P25,V25,Y25,S25,AB25)/60) -> 
D36: Sehr hart | H36: 7 | S36: =B13 -> Do | T36: =AH13 -> 0 | AJ36: =SUM(AJ37:AJ42) -> 0 | AK36: Einschränkungen wegen Schmerzen
H37: 8 | J37: Anzahl der Spiele | S37: =B16 -> Fr | T37: =AH16 -> 0 | AF37: Training Load | AH37: =IF(AH31="","",SUM(AH25)) ->  | AJ37: =COUNTIF($H$4:$H$24,$AM37) -> 0 | AK37: Finger | AM37: 1
D38: Extrem hart | H38: 9 | S38: =B19 -> Sa | T38: =AH19 -> 0 | AJ38: 0 | AK38: Schulter | AM38: 2
D39: Wie mein härtestes Training | H39: 10 | J39: 1 | K39: … 3 und mehr Sätze | S39: =B22 -> So | T39: =AH22 -> 0 | AF39: Monotonie | AH39: =IF(AH31="","",(AVERAGE(AH4:AH24))/AH27) ->  | AJ39: 0 | AK39: Rücken | AM39: 3
J40: 0.5 | K40: … weniger als 3 Sätze | AJ40: 0 | AK40: Knie | AM40: 4
AF41: Trainingsanstrengung | AH41: =IF(AH31="","",AH37*AH39) ->  | AJ41: 0 | AK41: Sprunggelenk | AM41: 5
D42: échelle de Foster | H42: RPE | J42: gespielte Sätze | AJ42: 0 | AK42: Andere | AM42: 6
D43: Comme au repos | H43: 0 | J43: 1 | K43: … gestartet & durchgespielt | AF43: =AJ2 -> Anzahl der Spiele | AH43: =IF(AH31="","",SUM(AJ4:AJ24)) -> 
D44: très facile | H44: 1 | J44: 0.5 | K44: … ein-/ ausgewechselt, viel gespielt | AJ44: =SUM(AJ45:AJ50) -> 0 | AK44: Ausfall wegen Verletzung
D45: facile | H45: 2 | J45: 0.1 | K45: … ein-/ ausgewechselt, Kurzeinsatz | AF45: =AK2 -> gespielte Sätze | AH45: =IF(AH31="","",SUM(AK4:AK24)) ->  | AJ45: =COUNTIF($H$4:$H$24,$AM45) -> 0 | AK45: Finger | AM45: 11
H46: 3 | AJ46: 0 | AK46: Schulter | AM46: 12
D47: Assez dur | H47: 4 | J47: J | K47: Wie zufrieden bist du mit dem Wettkampf | AF47: =AL2 -> J | AH47: =IF(AH31="","",SUM(AL4:AL24)/AH33) ->  | AJ47: 0 | AK47: Rücken | AM47: 13
D48: dur | H48: 5 | K48: oder Training bzgl. der Qualität? | AJ48: 0 | AK48: Knie | AM48: 14
H49: 6 | J49: 1 | K49: … nicht zufrieden | AF49: Einschränkungen wegen Schmerzen | AH49: =AJ36 -> 0 | AJ49: 0 | AK49: Sprunggelenk | AM49: 15
D50: très dur | H50: 7 | J50: 2 | K50: … eher nicht zufrieden | AJ50: 0 | AK50: Andere | AM50: 16
H51: 8 | J51: 3 | K51: … neutral | AF51: Ausfall wegen Verletzung | AH51: =AJ44 -> 0
D52: extrèmement dur | H52: 9 | J52: 4 | K52: … zufrieden | AF52: eingeschränktes Training | AJ52: =SUM(AJ53:AJ59) -> 0 | AK52: Ausfall wegen Krankheit
D53: Comme mon entrainement le plus dur | H53: 10 | J53: 5 | K53: … sehr zufrieden! | AF53: Ausfall wegen Krankheit | AH53: =AJ52 -> 0 | AJ53: =COUNTIF($H$4:$H$24,$AM53) -> 0 | AK53: Krankheit | AM53: 21
AF54: eingeschränktes Training | AH54: =AJ36 -> 0
V134: =W134-1 -> 37 | W134: 38 | X134: 39 | Y134: 40 | Z134: 41 | AA134: 42 | AB134: 43 | AC134: =D1 -> 44
AD155: =AC134+1 -> 45 | AE155: =AD155+1 -> 46 | AF155: =AE155+1 -> 47

Sheet 45
C1: Woche | D1: =INT(MOD(INT((F1-2)/7)+0.6,52+5/28))+1 -> 45 | E1: =D1+1000 -> 1045 | F1: ='44'!F1+7 -> 2017-11-07 | G1: - | H1: =F1+6 -> 2017-11-13 | AD1: =Overview!D2 -> Vorname Nachname | AF1: =Overview!N2 -> 2017/2018
B2: Tag | D2: Gewicht | E2: REG | F2: Schlaf-qualität | G2: Schlaf-dauer | H2: Verletzung/ Erkrankung | J2: Trainingsbeschreibung | M2: Balltraining-Club | P2: Balltraining-TS/ Nati | S2: iso. Krafttraining | V2: iso. Fitnesstraining | Y2: Wettkampf | AB2: Anderes Training | AF2: Reflexion | AH2: Load/ Tag | AJ2: Anzahl der Spiele | AK2: gespielte Sätze | AL2: J | AM2: Regenerationsmassnahme | AN2: Mental- oder Sonstiges Training
D3: [kg] | E3: [1 - 5] | F3: [1-5] | G3: [Std] | H3: Kommentar | M3: Dauer | N3: RPE | O3: Load | P3: Dauer | Q3: RPE | R3: Load | S3: Dauer | T3: RPE | U3: Load | V3: Dauer | W3: RPE | X3: Load | Y3: Dauer | Z3: RPE | AA3: Load | AB3: Dauer | AC3: RPE | AD3: Load | AL3: [1-5]
B4: Mo | D4: 0 | E4: 0 | F4: 0 | G4: 0 | H4: 0 | O4: =M4*N4 -> 0 | R4: =P4*Q4 -> 0 | U4: =S4*T4 -> 0 | X4: =V4*W4 -> 0 | AA4: =Y4*Z4 -> 0 | AD4: =AB4*AC4 -> 0 | AH4: =SUM(O4:O6,R4:R6,U4:U6,X4:X6,AA4:AA6,AD4:AD6) -> 0
O5: =M5*N5 -> 0 | R5: =P5*Q5 -> 0 | U5: =S5*T5 -> 0 | X5: =V5*W5 -> 0 | AA5: =Y5*Z5 -> 0 | AD5: =AB5*AC5 -> 0
O6: 0 | R6: 0 | U6: 0 | X6: 0 | AA6: 0 | AD6: 0
B7: Di | D7: 0 | E7: 0 | F7: 0 | G7: 0 | H7: 0 | O7: 0 | R7: 0 | U7: 0 | X7: 0 | AA7: 0 | AD7: 0 | AH7: =SUM(O7:O9,R7:R9,U7:U9,X7:X9,AA7:AA9,AD7:AD9) -> 0
O8: 0 | R8: 0 | U8: 0 | X8: 0 | AA8: 0 | AD8: 0
O9: 0 | R9: 0 | U9: 0 | X9: 0 | AA9: 0 | AD9: 0
B10: Mi | D10: 0 | E10: 0 | F10: 0 | G10: 0 | H10: 0 | O10: 0 | R10: 0 | U10: 0 | X10: 0 | AA10: 0 | AD10: 0 | AH10: =SUM(O10:O12,R10:R12,U10:U12,X10:X12,AA10:AA12,AD10:AD12) -> 0
O11: 0 | R11: 0 | U11: 0 | X11: 0 | AA11: 0 | AD11: 0
O12: 0 | R12: 0 | U12: 0 | X12: 0 | AA12: 0 | AD12: 0
B13: Do | D13: 0 | E13: 0 | F13: 0 | G13: 0 | H13: 0 | O13: 0 | R13: 0 | U13: 0 | X13: 0 | AA13: 0 | AD13: 0 | AH13: =SUM(O13:O15,R13:R15,U13:U15,X13:X15,AA13:AA15,AD13:AD15) -> 0
O14: 0 | R14: 0 | U14: 0 | X14: 0 | AA14: 0 | AD14: 0
O15: 0 | R15: 0 | U15: 0 | X15: 0 | AA15: 0 | AD15: 0
B16: Fr | D16: 0 | E16: 0 | F16: 0 | G16: 0 | H16: 0 | O16: 0 | R16: 0 | U16: 0 | X16: 0 | AA16: 0 | AD16: 0 | AH16: =SUM(O16:O18,R16:R18,U16:U18,X16:X18,AA16:AA18,AD16:AD18) -> 0
O17: 0 | R17: 0 | U17: 0 | X17: 0 | AA17: 0 | AD17: 0
O18: 0 | R18: 0 | U18: 0 | X18: 0 | AA18: 0 | AD18: 0
B19: Sa | D19: 0 | E19: 0 | F19: 0 | G19: 0 | H19: 0 | O19: 0 | R19: 0 | U19: 0 | X19: 0 | AA19: 0 | AD19: 0 | AH19: =SUM(O19:O21,R19:R21,U19:U21,X19:X21,AA19:AA21,AD19:AD21) -> 0
O20: 0 | R20: 0 | U20: 0 | X20: 0 | AA20: 0 | AD20: 0
O21: 0 | R21: 0 | U21: 0 | X21: 0 | AA21: 0 | AD21: 0
B22: So | D22: 0 | E22: 0 | F22: 0 | G22: 0 | H22: 0 | O22: 0 | R22: 0 | U22: 0 | X22: 0 | AA22: 0 | AD22: 0 | AH22: =SUM(O22:O24,R22:R24,U22:U24,X22:X24,AA22:AA24,AD22:AD24) -> 0
O23: 0 | R23: 0 | U23: 0 | X23: 0 | AA23: 0 | AD23: 0
O24: 0 | R24: 0 | U24: 0 | X24: 0 | AA24: 0 | AD24: 0
K25: Total | M25: =SUM(M4:M24) -> 0 | O25: =SUM(O4:O24) -> 0 | P25: =SUM(P4:P24) -> 0 | R25: =SUM(R4:R24) -> 0 | S25: =SUM(S4:S24) -> 0 | U25: =SUM(U4:U24) -> 0 | V25: =SUM(V4:V24) -> 0 | X25: =SUM(X4:X24) -> 0 | Y25: =SUM(Y4:Y24) -> 0 | AA25: =SUM(AA4:AA24) -> 0 | AB25: =SUM(AB4:AB24) -> 0 | AD25: =SUM(AD4:AD24) -> 0 | AF25: TOTAL LOAD | AH25: =SUM(AH4:AH24) -> 0
B26: avg | D26: =IF(COUNTA(D4:D24)=0,"",AVERAGE(D4:D24)) -> 0 | E26: =IF(COUNTA(E4:E24)=0,"",AVERAGE(E4:E24)) -> 0 | F26: =IF(COUNTA(F4:F24)=0,"",AVERAGE(F4:F24)) -> 0 | G26: =IF(COUNTA(G4:G24)=0,"",AVERAGE(G4:G24)) -> 0 | H26: =IF(COUNTA(H4:H24)=0,"",COUNTIF(H4:H24,"x")) -> 0 | K26: Zone | M26: 1 | N26: 2 | O26: 3 | P26: 1 | Q26: 2 | R26: 3 | S26: 1 | T26: 2 | U26: 3 | V26: 1 | W26: 2 | X26: 3 | Y26: 1 | Z26: 2 | AA26: 3 | AB26: 1 | AC26: 2 | AD26: 3 | AF26: Mittelwert | AH26: =AVERAGE(AH4:AH24) -> 0
F27: =IF(COUNTA(F4:F24)=0,"",VAR(F4:F24)) -> 0 | G27: =IF(COUNTA(G4:G24)=0,"",STDEV(G4:G24)) -> 0 | H27: Abweichung - Schlafdauer | K27: Einheiten pro Zone (RPE) | M27: =IF(Beanspruchungverteilung!$AT$21="x",COUNTIF(N4:N24,"<3,5"),COUNTIF(N4:N24,"<4,5")) -> 0 | N27: =COUNT(N4:N24)-(M27+O27) -> 0 | O27: =IF(Beanspruchungverteilung!$AT$21="x",COUNTIF(N4:N24,">5,5"),COUNTIF(N4:N24,">6,5")) -> 0 | P27: =IF(Beanspruchungverteilung!$AT$21="x",COUNTIF(Q4:Q24,"<3,5"),COUNTIF(Q4:Q24,"<4,5")) -> 0 | Q27: =COUNT(Q4:Q24)-(P27+R27) -> 0 | R27: =IF(Beanspruchungverteilung!$AT$21="x",COUNTIF(Q4:Q24,">5,5"),COUNTIF(Q4:Q24,">6,5")) -> 0 | S27: =IF(Beanspruchungverteilung!$AT$21="x",COUNTIF(T4:T24,"<3,5"),COUNTIF(T4:T24,"<4,5")) -> 0 | T27: =COUNT(T4:T24)-(S27+U27) -> 0 | U27: =IF(Beanspruchungverteilung!$AT$21="x",COUNTIF(T4:T24,">5,5"),COUNTIF(T4:T24,">6,5")) -> 0 | V27: =IF(Beanspruchungverteilung!$AT$21="x",COUNTIF(W4:W24,"<3,5"),COUNTIF(W4:W24,"<4,5")) -> 0 | W27: =COUNT(W4:W24)-(V27+X27) -> 0 | X27: =IF(Beanspruchungverteilung!$AT$21="x",COUNTIF(W4:W24,">5,5"),COUNTIF(W4:W24,">6,5")) -> 0 | Y27: =IF(Beanspruchungverteilung!$AT$21="x",COUNTIF(Z4:Z24,"<3,5"),COUNTIF(Z4:Z24,"<4,5")) -> 0 | Z27: =COUNT(Z4:Z24)-(Y27+AA27) -> 0 | AA27: =IF(Beanspruchungverteilung!$AT$21="x",COUNTIF(Z4:Z24,">5,5"),COUNTIF(Z4:Z24,">6,5")) -> 0 | AB27: =IF(Beanspruchungverteilung!$AT$21="x",COUNTIF(AC4:AC24,"<3,5"),COUNTIF(AC4:AC24,"<4,5")) -> 0 | AC27: =COUNT(AC4:AC24)-(AB27+AD27) -> 0 | AD27: =IF(Beanspruchungverteilung!$AT$21="x",COUNTIF(AC4:AC24,">5,5"),COUNTIF(AC4:AC24,">6,5")) -> 0 | AF27: Standardabweichung | AH27: =STDEVP(AH4:AH24) -> 0
D28: Foster's Skala | H28: RPE | K28: Zeit pro Zone (RPE) | M28: =IF(Beanspruchungverteilung!$AT$21="x",SUMIF(N4:N24,"<3,5",M4:M24),SUMIF(N4:N24,"<4,5",M4:M24)) -> 0 | N28: =IF(N27=0,0,SUM((M25)-(M28+O28))) -> 0 | O28: =IF(Beanspruchungverteilung!$AT$21="x",SUMIF(N4:N24,">5,5",M4:M24),SUMIF(N4:N24,">6,5",M4:M24)) -> 0 | P28: =IF(Beanspruchungverteilung!$AT$21="x",SUMIF(Q4:Q24,"<3,5",P4:P24),SUMIF(Q4:Q24,"<4,5",P4:P24)) -> 0 | Q28: =IF(Q27=0,0,SUM((P25)-(P28+R28))) -> 0 | R28: =IF(Beanspruchungverteilung!$AT$21="x",SUMIF(Q4:Q24,">5,5",P4:P24),SUMIF(Q4:Q24,">6,5",P4:P24)) -> 0 | S28: =IF(Beanspruchungverteilung!$AT$21="x",SUMIF(T4:T24,"<3,5",S4:S24),SUMIF(T4:T24,"<4,5",S4:S24)) -> 0 | T28: =IF(T27=0,0,SUM((S25)-(S28+U28))) -> 0 | U28: =IF(Beanspruchungverteilung!$AT$21="x",SUMIF(T4:T24,">5,5",S4:S24),SUMIF(T4:T24,">6,5",S4:S24)) -> 0 | V28: =IF(Beanspruchungverteilung!$AT$21="x",SUMIF(W4:W24,"<3,5",V4:V24),SUMIF(W4:W24,"<4,5",V4:V24)) -> 0 | W28: =IF(W27=0,0,SUM((V25)-(V28+X28))) -> 0 | X28: =IF(Beanspruchungverteilung!$AT$21="x",SUMIF(W4:W24,">5,5",V4:V24),SUMIF(W4:W24,">6,5",V4:V24)) -> 0 | Y28: =IF(Beanspruchungverteilung!$AT$21="x",SUMIF(Z4:Z24,"<3,5",Y4:Y24),SUMIF(Z4:Z24,"<4,5",Y4:Y24)) -> 0 | Z28: =IF(Z27=0,0,SUM((Y25)-(Y28+AA28))) -> 0 | AA28: =IF(Beanspruchungverteilung!$AT$21="x",SUMIF(Z4:Z24,">5,5",Y4:Y24),SUMIF(Z4:Z24,">6,5",Y4:Y24)) -> 0 | AB28: =IF(Beanspruchungverteilung!$AT$21="x",SUMIF(AC4:AC24,"<3,5",AB4:AB24),SUMIF(AC4:AC24,"<4,5",AB4:AB24)) -> 0 | AC28: =IF(AC27=0,0,SUM((AB25)-(AB28+AD28))) -> 0 | AD28: =IF(Beanspruchungverteilung!$AT$21="x",SUMIF(AC4:AC24,">5,5",AB4:AB24),SUMIF(AC4:AC24,">6,5",AB4:AB24)) -> 0
D29: Wie in Ruhe | H29: 0 | J29: REG | K29: Wie erholt bist du wenn du in der Früh aufstehst?
D30: Sehr locker | H30: 1
D31: Locker | H31: 2 | J31: 1 | K31: … gar nicht erholt | AF31: Trainingstage | AH31: =IF(SUM(AH4:AH24)=0,"",COUNTIF(AH4:AH24,">0")) ->  | AJ31: Gesundheitsreport
H32: 3 | J32: 2 | K32: … wenig erholt
D33: Etwas hart | H33: 4 | J33: 3 | K33: … erholt | S33: =B4 -> Mo | T33: =AH4 -> 0 | AF33: Trainingseinheiten | AH33: =IF(AH31="","",SUM(M27:AD27)) -> 
D34: Hart | H34: 5 | J34: 4 | K34: … fit | S34: =B7 -> Di | T34: =AH7 -> 0 | AJ34: =IF($AH$31="","",AH31-AJ36-AJ44) ->  | AK34: keine Einschränkungen | AM34: 0
H35: 6 | J35: 5 | K35: … Top fit | S35: =B10 -> Mi | T35: =AH10 -> 0 | AF35: Trainingsstunden | AH35: =IF(AH31="","",SUM(M25,P25,V25,Y25,S25,AB25)/60) -> 
D36: Sehr hart | H36: 7 | S36: =B13 -> Do | T36: =AH13 -> 0 | AJ36: =SUM(AJ37:AJ42) -> 0 | AK36: Einschränkungen wegen Schmerzen
H37: 8 | J37: Anzahl der Spiele | S37: =B16 -> Fr | T37: =AH16 -> 0 | AF37: Training Load | AH37: =IF(AH31="","",SUM(AH25)) ->  | AJ37: =COUNTIF($H$4:$H$24,$AM37) -> 0 | AK37: Finger | AM37: 1
D38: Extrem hart | H38: 9 | S38: =B19 -> Sa | T38: =AH19 -> 0 | AJ38: 0 | AK38: Schulter | AM38: 2
D39: Wie mein härtestes Training | H39: 10 | J39: 1 | K39: … 3 und mehr Sätze | S39: =B22 -> So | T39: =AH22 -> 0 | AF39: Monotonie | AH39: =IF(AH31="","",(AVERAGE(AH4:AH24))/AH27) ->  | AJ39: 0 | AK39: Rücken | AM39: 3
J40: 0.5 | K40: … weniger als 3 Sätze | AJ40: 0 | AK40: Knie | AM40: 4
AF41: Trainingsanstrengung | AH41: =IF(AH31="","",AH37*AH39) ->  | AJ41: 0 | AK41: Sprunggelenk | AM41: 5
D42: échelle de Foster | H42: RPE | J42: gespielte Sätze | AJ42: 0 | AK42: Andere | AM42: 6
D43: Comme au repos | H43: 0 | J43: 1 | K43: … gestartet & durchgespielt | AF43: =AJ2 -> Anzahl der Spiele | AH43: =IF(AH31="","",SUM(AJ4:AJ24)) -> 
D44: très facile | H44: 1 | J44: 0.5 | K44: … ein-/ ausgewechselt, viel gespielt | AJ44: =SUM(AJ45:AJ50) -> 0 | AK44: Ausfall wegen Verletzung
D45: facile | H45: 2 | J45: 0.1 | K45: … ein-/ ausgewechselt, Kurzeinsatz | AF45: =AK2 -> gespielte Sätze | AH45: =IF(AH31="","",SUM(AK4:AK24)) ->  | AJ45: =COUNTIF($H$4:$H$24,$AM45) -> 0 | AK45: Finger | AM45: 11
H46: 3 | AJ46: 0 | AK46: Schulter | AM46: 12
D47: Assez dur | H47: 4 | J47: J | K47: Wie zufrieden bist du mit dem Wettkampf | AF47: =AL2 -> J | AH47: =IF(AH31="","",SUM(AL4:AL24)/AH33) ->  | AJ47: 0 | AK47: Rücken | AM47: 13
D48: dur | H48: 5 | K48: oder Training bzgl. der Qualität? | AJ48: 0 | AK48: Knie | AM48: 14
H49: 6 | J49: 1 | K49: … nicht zufrieden | AF49: Einschränkungen wegen Schmerzen | AH49: =AJ36 -> 0 | AJ49: 0 | AK49: Sprunggelenk | AM49: 15
D50: très dur | H50: 7 | J50: 2 | K50: … eher nicht zufrieden | AJ50: 0 | AK50: Andere | AM50: 16
H51: 8 | J51: 3 | K51: … neutral | AF51: Ausfall wegen Verletzung | AH51: =AJ44 -> 0
D52: extrèmement dur | H52: 9 | J52: 4 | K52: … zufrieden | AF52: eingeschränktes Training | AJ52: =SUM(AJ53:AJ59) -> 0 | AK52: Ausfall wegen Krankheit
D53: Comme mon entrainement le plus dur | H53: 10 | J53: 5 | K53: … sehr zufrieden! | AF53: Ausfall wegen Krankheit | AH53: =AJ52 -> 0 | AJ53: =COUNTIF($H$4:$H$24,$AM53) -> 0 | AK53: Krankheit | AM53: 21
AF54: eingeschränktes Training | AH54: =AJ36 -> 0
V134: =W134-1 -> 38 | W134: 39 | X134: 40 | Y134: 41 | Z134: 42 | AA134: 43 | AB134: 44 | AC134: =D1 -> 45
AD155: =AC134+1 -> 46 | AE155: =AD155+1 -> 47 | AF155: =AE155+1 -> 48

Sheet 46
C1: Woche | D1: =INT(MOD(INT((F1-2)/7)+0.6,52+5/28))+1 -> 46 | E1: =D1+1000 -> 1046 | F1: ='45'!F1+7 -> 2017-11-14 | G1: - | H1: =F1+6 -> 2017-11-20 | AD1: =Overview!D2 -> Vorname Nachname | AF1: =Overview!N2 -> 2017/2018
B2: Tag | D2: Gewicht | E2: REG | F2: Schlaf-qualität | G2: Schlaf-dauer | H2: Verletzung/ Erkrankung | J2: Trainingsbeschreibung | M2: Balltraining-Club | P2: Balltraining-TS/ Nati | S2: iso. Krafttraining | V2: iso. Fitnesstraining | Y2: Wettkampf | AB2: Anderes Training | AF2: Reflexion | AH2: Load/ Tag | AJ2: Anzahl der Spiele | AK2: gespielte Sätze | AL2: J | AM2: Regenerationsmassnahme | AN2: Mental- oder Sonstiges Training
D3: [kg] | E3: [1 - 5] | F3: [1-5] | G3: [Std] | H3: Kommentar | M3: Dauer | N3: RPE | O3: Load | P3: Dauer | Q3: RPE | R3: Load | S3: Dauer | T3: RPE | U3: Load | V3: Dauer | W3: RPE | X3: Load | Y3: Dauer | Z3: RPE | AA3: Load | AB3: Dauer | AC3: RPE | AD3: Load | AL3: [1-5]
B4: Mo | D4: 0 | E4: 0 | F4: 0 | G4: 0 | H4: 0 | O4: =M4*N4 -> 0 | R4: =P4*Q4 -> 0 | U4: =S4*T4 -> 0 | X4: =V4*W4 -> 0 | AA4: =Y4*Z4 -> 0 | AD4: =AB4*AC4 -> 0 | AH4: =SUM(O4:O6,R4:R6,U4:U6,X4:X6,AA4:AA6,AD4:AD6) -> 0
O5: =M5*N5 -> 0 | R5: =P5*Q5 -> 0 | U5: =S5*T5 -> 0 | X5: =V5*W5 -> 0 | AA5: =Y5*Z5 -> 0 | AD5: =AB5*AC5 -> 0
O6: 0 | R6: 0 | U6: 0 | X6: 0 | AA6: 0 | AD6: 0
B7: Di | D7: 0 | E7: 0 | F7: 0 | G7: 0 | H7: 0 | O7: 0 | R7: 0 | U7: 0 | X7: 0 | AA7: 0 | AD7: 0 | AH7: =SUM(O7:O9,R7:R9,U7:U9,X7:X9,AA7:AA9,AD7:AD9) -> 0
O8: 0 | R8: 0 | U8: 0 | X8: 0 | AA8: 0 | AD8: 0
O9: 0 | R9: 0 | U9: 0 | X9: 0 | AA9: 0 | AD9: 0
B10: Mi | D10: 0 | E10: 0 | F10: 0 | G10: 0 | H10: 0 | O10: 0 | R10: 0 | U10: 0 | X10: 0 | AA10: 0 | AD10: 0 | AH10: =SUM(O10:O12,R10:R12,U10:U12,X10:X12,AA10:AA12,AD10:AD12) -> 0
O11: 0 | R11: 0 | U11: 0 | X11: 0 | AA11: 0 | AD11: 0
O12: 0 | R12: 0 | U12: 0 | X12: 0 | AA12: 0 | AD12: 0
B13: Do | D13: 0 | E13: 0 | F13: 0 | G13: 0 | H13: 0 | O13: 0 | R13: 0 | U13: 0 | X13: 0 | AA13: 0 | AD13: 0 | AH13: =SUM(O13:O15,R13:R15,U13:U15,X13:X15,AA13:AA15,AD13:AD15) -> 0
O14: 0 | R14: 0 | U14: 0 | X14: 0 | AA14: 0 | AD14: 0
O15: 0 | R15: 0 | U15: 0 | X15: 0 | AA15: 0 | AD15: 0
B16: Fr | D16: 0 | E16: 0 | F16: 0 | G16: 0 | H16: 0 | O16: 0 | R16: 0 | U16: 0 | X16: 0 | AA16: 0 | AD16: 0 | AH16: =SUM(O16:O18,R16:R18,U16:U18,X16:X18,AA16:AA18,AD16:AD18) -> 0
O17: 0 | R17: 0 | U17: 0 | X17: 0 | AA17: 0 | AD17: 0
O18: 0 | R18: 0 | U18: 0 | X18: 0 | AA18: 0 | AD18: 0
B19: Sa | D19: 0 | E19: 0 | F19: 0 | G19: 0 | H19: 0 | O19: 0 | R19: 0 | U19: 0 | X19: 0 | AA19: 0 | AD19: 0 | AH19: =SUM(O19:O21,R19:R21,U19:U21,X19:X21,AA19:AA21,AD19:AD21) -> 0
O20: 0 | R20: 0 | U20: 0 | X20: 0 | AA20: 0 | AD20: 0
O21: 0 | R21: 0 | U21: 0 | X21: 0 | AA21: 0 | AD21: 0
B22: So | D22: 0 | E22: 0 | F22: 0 | G22: 0 | H22: 0 | O22: 0 | R22: 0 | U22: 0 | X22: 0 | AA22: 0 | AD22: 0 | AH22: =SUM(O22:O24,R22:R24,U22:U24,X22:X24,AA22:AA24,AD22:AD24) -> 0
O23: 0 | R23: 0 | U23: 0 | X23: 0 | AA23: 0 | AD23: 0
O24: 0 | R24: 0 | U24: 0 | X24: 0 | AA24: 0 | AD24: 0
K25: Total | M25: =SUM(M4:M24) -> 0 | O25: =SUM(O4:O24) -> 0 | P25: =SUM(P4:P24) -> 0 | R25: =SUM(R4:R24) -> 0 | S25: =SUM(S4:S24) -> 0 | U25: =SUM(U4:U24) -> 0 | V25: =SUM(V4:V24) -> 0 | X25: =SUM(X4:X24) -> 0 | Y25: =SUM(Y4:Y24) -> 0 | AA25: =SUM(AA4:AA24) -> 0 | AB25: =SUM(AB4:AB24) -> 0 | AD25: =SUM(AD4:AD24) -> 0 | AF25: TOTAL LOAD | AH25: =SUM(AH4:AH24) -> 0
B26: avg | D26: =IF(COUNTA(D4:D24)=0,"",AVERAGE(D4:D24)) -> 0 | E26: =IF(COUNTA(E4:E24)=0,"",AVERAGE(E4:E24)) -> 0 | F26: =IF(COUNTA(F4:F24)=0,"",AVERAGE(F4:F24)) -> 0 | G26: =IF(COUNTA(G4:G24)=0,"",AVERAGE(G4:G24)) -> 0 | H26: =IF(COUNTA(H4:H24)=0,"",COUNTIF(H4:H24,"x")) -> 0 | K26: Zone | M26: 1 | N26: 2 | O26: 3 | P26: 1 | Q26: 2 | R26: 3 | S26: 1 | T26: 2 | U26: 3 | V26: 1 | W26: 2 | X26: 3 | Y26: 1 | Z26: 2 | AA26: 3 | AB26: 1 | AC26: 2 | AD26: 3 | AF26: Mittelwert | AH26: =AVERAGE(AH4:AH24) -> 0
F27: =IF(COUNTA(F4:F24)=0,"",VAR(F4:F24)) -> 0 | G27: =IF(COUNTA(G4:G24)=0,"",STDEV(G4:G24)) -> 0 | H27: Abweichung - Schlafdauer | K27: Einheiten pro Zone (RPE) | M27: =IF(Beanspruchungverteilung!$AT$21="x",COUNTIF(N4:N24,"<3,5"),COUNTIF(N4:N24,"<4,5")) -> 0 | N27: =COUNT(N4:N24)-(M27+O27) -> 0 | O27: =IF(Beanspruchungverteilung!$AT$21="x",COUNTIF(N4:N24,">5,5"),COUNTIF(N4:N24,">6,5")) -> 0 | P27: =IF(Beanspruchungverteilung!$AT$21="x",COUNTIF(Q4:Q24,"<3,5"),COUNTIF(Q4:Q24,"<4,5")) -> 0 | Q27: =COUNT(Q4:Q24)-(P27+R27) -> 0 | R27: =IF(Beanspruchungverteilung!$AT$21="x",COUNTIF(Q4:Q24,">5,5"),COUNTIF(Q4:Q24,">6,5")) -> 0 | S27: =IF(Beanspruchungverteilung!$AT$21="x",COUNTIF(T4:T24,"<3,5"),COUNTIF(T4:T24,"<4,5")) -> 0 | T27: =COUNT(T4:T24)-(S27+U27) -> 0 | U27: =IF(Beanspruchungverteilung!$AT$21="x",COUNTIF(T4:T24,">5,5"),COUNTIF(T4:T24,">6,5")) -> 0 | V27: =IF(Beanspruchungverteilung!$AT$21="x",COUNTIF(W4:W24,"<3,5"),COUNTIF(W4:W24,"<4,5")) -> 0 | W27: =COUNT(W4:W24)-(V27+X27) -> 0 | X27: =IF(Beanspruchungverteilung!$AT$21="x",COUNTIF(W4:W24,">5,5"),COUNTIF(W4:W24,">6,5")) -> 0 | Y27: =IF(Beanspruchungverteilung!$AT$21="x",COUNTIF(Z4:Z24,"<3,5"),COUNTIF(Z4:Z24,"<4,5")) -> 0 | Z27: =COUNT(Z4:Z24)-(Y27+AA27) -> 0 | AA27: =IF(Beanspruchungverteilung!$AT$21="x",COUNTIF(Z4:Z24,">5,5"),COUNTIF(Z4:Z24,">6,5")) -> 0 | AB27: =IF(Beanspruchungverteilung!$AT$21="x",COUNTIF(AC4:AC24,"<3,5"),COUNTIF(AC4:AC24,"<4,5")) -> 0 | AC27: =COUNT(AC4:AC24)-(AB27+AD27) -> 0 | AD27: =IF(Beanspruchungverteilung!$AT$21="x",COUNTIF(AC4:AC24,">5,5"),COUNTIF(AC4:AC24,">6,5")) -> 0 | AF27: Standardabweichung | AH27: =STDEVP(AH4:AH24) -> 0
D28: Foster's Skala | H28: RPE | K28: Zeit pro Zone (RPE) | M28: =IF(Beanspruchungverteilung!$AT$21="x",SUMIF(N4:N24,"<3,5",M4:M24),SUMIF(N4:N24,"<4,5",M4:M24)) -> 0 | N28: =IF(N27=0,0,SUM((M25)-(M28+O28))) -> 0 | O28: =IF(Beanspruchungverteilung!$AT$21="x",SUMIF(N4:N24,">5,5",M4:M24),SUMIF(N4:N24,">6,5",M4:M24)) -> 0 | P28: =IF(Beanspruchungverteilung!$AT$21="x",SUMIF(Q4:Q24,"<3,5",P4:P24),SUMIF(Q4:Q24,"<4,5",P4:P24)) -> 0 | Q28: =IF(Q27=0,0,SUM((P25)-(P28+R28))) -> 0 | R28: =IF(Beanspruchungverteilung!$AT$21="x",SUMIF(Q4:Q24,">5,5",P4:P24),SUMIF(Q4:Q24,">6,5",P4:P24)) -> 0 | S28: =IF(Beanspruchungverteilung!$AT$21="x",SUMIF(T4:T24,"<3,5",S4:S24),SUMIF(T4:T24,"<4,5",S4:S24)) -> 0 | T28: =IF(T27=0,0,SUM((S25)-(S28+U28))) -> 0 | U28: =IF(Beanspruchungverteilung!$AT$21="x",SUMIF(T4:T24,">5,5",S4:S24),SUMIF(T4:T24,">6,5",S4:S24)) -> 0 | V28: =IF(Beanspruchungverteilung!$AT$21="x",SUMIF(W4:W24,"<3,5",V4:V24),SUMIF(W4:W24,"<4,5",V4:V24)) -> 0 | W28: =IF(W27=0,0,SUM((V25)-(V28+X28))) -> 0 | X28: =IF(Beanspruchungverteilung!$AT$21="x",SUMIF(W4:W24,">5,5",V4:V24),SUMIF(W4:W24,">6,5",V4:V24)) -> 0 | Y28: =IF(Beanspruchungverteilung!$AT$21="x",SUMIF(Z4:Z24,"<3,5",Y4:Y24),SUMIF(Z4:Z24,"<4,5",Y4:Y24)) -> 0 | Z28: =IF(Z27=0,0,SUM((Y25)-(Y28+AA28))) -> 0 | AA28: =IF(Beanspruchungverteilung!$AT$21="x",SUMIF(Z4:Z24,">5,5",Y4:Y24),SUMIF(Z4:Z24,">6,5",Y4:Y24)) -> 0 | AB28: =IF(Beanspruchungverteilung!$AT$21="x",SUMIF(AC4:AC24,"<3,5",AB4:AB24),SUMIF(AC4:AC24,"<4,5",AB4:AB24)) -> 0 | AC28: =IF(AC27=0,0,SUM((AB25)-(AB28+AD28))) -> 0 | AD28: =IF(Beanspruchungverteilung!$AT$21="x",SUMIF(AC4:AC24,">5,5",AB4:AB24),SUMIF(AC4:AC24,">6,5",AB4:AB24)) -> 0
D29: Wie in Ruhe | H29: 0 | J29: REG | K29: Wie erholt bist du wenn du in der Früh aufstehst?
D30: Sehr locker | H30: 1
D31: Locker | H31: 2 | J31: 1 | K31: … gar nicht erholt | AF31: Trainingstage | AH31: =IF(SUM(AH4:AH24)=0,"",COUNTIF(AH4:AH24,">0")) ->  | AJ31: Gesundheitsreport
H32: 3 | J32: 2 | K32: … wenig erholt
D33: Etwas hart | H33: 4 | J33: 3 | K33: … erholt | S33: =B4 -> Mo | T33: =AH4 -> 0 | AF33: Trainingseinheiten | AH33: =IF(AH31="","",SUM(M27:AD27)) -> 
D34: Hart | H34: 5 | J34: 4 | K34: … fit | S34: =B7 -> Di | T34: =AH7 -> 0 | AJ34: =IF($AH$31="","",AH31-AJ36-AJ44) ->  | AK34: keine Einschränkungen | AM34: 0
H35: 6 | J35: 5 | K35: … Top fit | S35: =B10 -> Mi | T35: =AH10 -> 0 | AF35: Trainingsstunden | AH35: =IF(AH31="","",SUM(M25,P25,V25,Y25,S25,AB25)/60) -> 
D36: Sehr hart | H36: 7 | S36: =B13 -> Do | T36: =AH13 -> 0 | AJ36: =SUM(AJ37:AJ42) -> 0 | AK36: Einschränkungen wegen Schmerzen
H37: 8 | J37: Anzahl der Spiele | S37: =B16 -> Fr | T37: =AH16 -> 0 | AF37: Training Load | AH37: =IF(AH31="","",SUM(AH25)) ->  | AJ37: =COUNTIF($H$4:$H$24,$AM37) -> 0 | AK37: Finger | AM37: 1
D38: Extrem hart | H38: 9 | S38: =B19 -> Sa | T38: =AH19 -> 0 | AJ38: 0 | AK38: Schulter | AM38: 2
D39: Wie mein härtestes Training | H39: 10 | J39: 1 | K39: … 3 und mehr Sätze | S39: =B22 -> So | T39: =AH22 -> 0 | AF39: Monotonie | AH39: =IF(AH31="","",(AVERAGE(AH4:AH24))/AH27) ->  | AJ39: 0 | AK39: Rücken | AM39: 3
J40: 0.5 | K40: … weniger als 3 Sätze | AJ40: 0 | AK40: Knie | AM40: 4
AF41: Trainingsanstrengung | AH41: =IF(AH31="","",AH37*AH39) ->  | AJ41: 0 | AK41: Sprunggelenk | AM41: 5
D42: échelle de Foster | H42: RPE | J42: gespielte Sätze | AJ42: 0 | AK42: Andere | AM42: 6
D43: Comme au repos | H43: 0 | J43: 1 | K43: … gestartet & durchgespielt | AF43: =AJ2 -> Anzahl der Spiele | AH43: =IF(AH31="","",SUM(AJ4:AJ24)) -> 
D44: très facile | H44: 1 | J44: 0.5 | K44: … ein-/ ausgewechselt, viel gespielt | AJ44: =SUM(AJ45:AJ50) -> 0 | AK44: Ausfall wegen Verletzung
D45: facile | H45: 2 | J45: 0.1 | K45: … ein-/ ausgewechselt, Kurzeinsatz | AF45: =AK2 -> gespielte Sätze | AH45: =IF(AH31="","",SUM(AK4:AK24)) ->  | AJ45: =COUNTIF($H$4:$H$24,$AM45) -> 0 | AK45: Finger | AM45: 11
H46: 3 | AJ46: 0 | AK46: Schulter | AM46: 12
D47: Assez dur | H47: 4 | J47: J | K47: Wie zufrieden bist du mit dem Wettkampf | AF47: =AL2 -> J | AH47: =IF(AH31="","",SUM(AL4:AL24)/AH33) ->  | AJ47: 0 | AK47: Rücken | AM47: 13
D48: dur | H48: 5 | K48: oder Training bzgl. der Qualität? | AJ48: 0 | AK48: Knie | AM48: 14
H49: 6 | J49: 1 | K49: … nicht zufrieden | AF49: Einschränkungen wegen Schmerzen | AH49: =AJ36 -> 0 | AJ49: 0 | AK49: Sprunggelenk | AM49: 15
D50: très dur | H50: 7 | J50: 2 | K50: … eher nicht zufrieden | AJ50: 0 | AK50: Andere | AM50: 16
H51: 8 | J51: 3 | K51: … neutral | AF51: Ausfall wegen Verletzung | AH51: =AJ44 -> 0
D52: extrèmement dur | H52: 9 | J52: 4 | K52: … zufrieden | AF52: eingeschränktes Training | AJ52: =SUM(AJ53:AJ59) -> 0 | AK52: Ausfall wegen Krankheit
D53: Comme mon entrainement le plus dur | H53: 10 | J53: 5 | K53: … sehr zufrieden! | AF53: Ausfall wegen Krankheit | AH53: =AJ52 -> 0 | AJ53: =COUNTIF($H$4:$H$24,$AM53) -> 0 | AK53: Krankheit | AM53: 21
AF54: eingeschränktes Training | AH54: =AJ36 -> 0
V134: =W134-1 -> 39 | W134: 40 | X134: 41 | Y134: 42 | Z134: 43 | AA134: 44 | AB134: 45 | AC134: =D1 -> 46
AD155: =AC134+1 -> 47 | AE155: =AD155+1 -> 48 | AF155: =AE155+1 -> 49

Sheet 47
C1: Woche | D1: =INT(MOD(INT((F1-2)/7)+0.6,52+5/28))+1 -> 47 | E1: =D1+1000 -> 1047 | F1: ='46'!F1+7 -> 2017-11-21 | G1: - | H1: =F1+6 -> 2017-11-27 | AD1: =Overview!D2 -> Vorname Nachname | AF1: =Overview!N2 -> 2017/2018
B2: Tag | D2: Gewicht | E2: REG | F2: Schlaf-qualität | G2: Schlaf-dauer | H2: Verletzung/ Erkrankung | J2: Trainingsbeschreibung | M2: Balltraining-Club | P2: Balltraining-TS/ Nati | S2: iso. Krafttraining | V2: iso. Fitnesstraining | Y2: Wettkampf | AB2: Anderes Training | AF2: Reflexion | AH2: Load/ Tag | AJ2: Anzahl der Spiele | AK2: gespielte Sätze | AL2: J | AM2: Regenerationsmassnahme | AN2: Mental- oder Sonstiges Training
D3: [kg] | E3: [1 - 5] | F3: [1-5] | G3: [Std] | H3: Kommentar | M3: Dauer | N3: RPE | O3: Load | P3: Dauer | Q3: RPE | R3: Load | S3: Dauer | T3: RPE | U3: Load | V3: Dauer | W3: RPE | X3: Load | Y3: Dauer | Z3: RPE | AA3: Load | AB3: Dauer | AC3: RPE | AD3: Load | AL3: [1-5]
B4: Mo | D4: 0 | E4: 0 | F4: 0 | G4: 0 | H4: 0 | O4: =M4*N4 -> 0 | R4: =P4*Q4 -> 0 | U4: =S4*T4 -> 0 | X4: =V4*W4 -> 0 | AA4: =Y4*Z4 -> 0 | AD4: =AB4*AC4 -> 0 | AH4: =SUM(O4:O6,R4:R6,U4:U6,X4:X6,AA4:AA6,AD4:AD6) -> 0
O5: =M5*N5 -> 0 | R5: =P5*Q5 -> 0 | U5: =S5*T5 -> 0 | X5: =V5*W5 -> 0 | AA5: =Y5*Z5 -> 0 | AD5: =AB5*AC5 -> 0
O6: 0 | R6: 0 | U6: 0 | X6: 0 | AA6: 0 | AD6: 0
B7: Di | D7: 0 | E7: 0 | F7: 0 | G7: 0 | H7: 0 | O7: 0 | R7: 0 | U7: 0 | X7: 0 | AA7: 0 | AD7: 0 | AH7: =SUM(O7:O9,R7:R9,U7:U9,X7:X9,AA7:AA9,AD7:AD9) -> 0
O8: 0 | R8: 0 | U8: 0 | X8: 0 | AA8: 0 | AD8: 0
O9: 0 | R9: 0 | U9: 0 | X9: 0 | AA9: 0 | AD9: 0
B10: Mi | D10: 0 | E10: 0 | F10: 0 | G10: 0 | H10: 0 | O10: 0 | R10: 0 | U10: 0 | X10: 0 | AA10: 0 | AD10: 0 | AH10: =SUM(O10:O12,R10:R12,U10:U12,X10:X12,AA10:AA12,AD10:AD12) -> 0
O11: 0 | R11: 0 | U11: 0 | X11: 0 | AA11: 0 | AD11: 0
O12: 0 | R12: 0 | U12: 0 | X12: 0 | AA12: 0 | AD12: 0
B13: Do | D13: 0 | E13: 0 | F13: 0 | G13: 0 | H13: 0 | O13: 0 | R13: 0 | U13: 0 | X13: 0 | AA13: 0 | AD13: 0 | AH13: =SUM(O13:O15,R13:R15,U13:U15,X13:X15,AA13:AA15,AD13:AD15) -> 0
O14: 0 | R14: 0 | U14: 0 | X14: 0 | AA14: 0 | AD14: 0
O15: 0 | R15: 0 | U15: 0 | X15: 0 | AA15: 0 | AD15: 0
B16: Fr | D16: 0 | E16: 0 | F16: 0 | G16: 0 | H16: 0 | O16: 0 | R16: 0 | U16: 0 | X16: 0 | AA16: 0 | AD16: 0 | AH16: =SUM(O16:O18,R16:R18,U16:U18,X16:X18,AA16:AA18,AD16:AD18) -> 0
O17: 0 | R17: 0 | U17: 0 | X17: 0 | AA17: 0 | AD17: 0
O18: 0 | R18: 0 | U18: 0 | X18: 0 | AA18: 0 | AD18: 0
B19: Sa | D19: 0 | E19: 0 | F19: 0 | G19: 0 | H19: 0 | O19: 0 | R19: 0 | U19: 0 | X19: 0 | AA19: 0 | AD19: 0 | AH19: =SUM(O19:O21,R19:R21,U19:U21,X19:X21,AA19:AA21,AD19:AD21) -> 0
O20: 0 | R20: 0 | U20: 0 | X20: 0 | AA20: 0 | AD20: 0
O21: 0 | R21: 0 | U21: 0 | X21: 0 | AA21: 0 | AD21: 0
B22: So | D22: 0 | E22: 0 | F22: 0 | G22: 0 | H22: 0 | O22: 0 | R22: 0 | U22: 0 | X22: 0 | AA22: 0 | AD22: 0 | AH22: =SUM(O22:O24,R22:R24,U22:U24,X22:X24,AA22:AA24,AD22:AD24) -> 0
O23: 0 | R23: 0 | U23: 0 | X23: 0 | AA23: 0 | AD23: 0
O24: 0 | R24: 0 | U24: 0 | X24: 0 | AA24: 0 | AD24: 0
K25: Total | M25: =SUM(M4:M24) -> 0 | O25: =SUM(O4:O24) -> 0 | P25: =SUM(P4:P24) -> 0 | R25: =SUM(R4:R24) -> 0 | S25: =SUM(S4:S24) -> 0 | U25: =SUM(U4:U24) -> 0 | V25: =SUM(V4:V24) -> 0 | X25: =SUM(X4:X24) -> 0 | Y25: =SUM(Y4:Y24) -> 0 | AA25: =SUM(AA4:AA24) -> 0 | AB25: =SUM(AB4:AB24) -> 0 | AD25: =SUM(AD4:AD24) -> 0 | AF25: TOTAL LOAD | AH25: =SUM(AH4:AH24) -> 0
B26: avg | D26: =IF(COUNTA(D4:D24)=0,"",AVERAGE(D4:D24)) -> 0 | E26: =IF(COUNTA(E4:E24)=0,"",AVERAGE(E4:E24)) -> 0 | F26: =IF(COUNTA(F4:F24)=0,"",AVERAGE(F4:F24)) -> 0 | G26: =IF(COUNTA(G4:G24)=0,"",AVERAGE(G4:G24)) -> 0 | H26: =IF(COUNTA(H4:H24)=0,"",COUNTIF(H4:H24,"x")) -> 0 | K26: Zone | M26: 1 | N26: 2 | O26: 3 | P26: 1 | Q26: 2 | R26: 3 | S26: 1 | T26: 2 | U26: 3 | V26: 1 | W26: 2 | X26: 3 | Y26: 1 | Z26: 2 | AA26: 3 | AB26: 1 | AC26: 2 | AD26: 3 | AF26: Mittelwert | AH26: =AVERAGE(AH4:AH24) -> 0
F27: =IF(COUNTA(F4:F24)=0,"",VAR(F4:F24)) -> 0 | G27: =IF(COUNTA(G4:G24)=0,"",STDEV(G4:G24)) -> 0 | H27: Abweichung - Schlafdauer | K27: Einheiten pro Zone (RPE) | M27: =IF(Beanspruchungverteilung!$AT$21="x",COUNTIF(N4:N24,"<3,5"),COUNTIF(N4:N24,"<4,5")) -> 0 | N27: =COUNT(N4:N24)-(M27+O27) -> 0 | O27: =IF(Beanspruchungverteilung!$AT$21="x",COUNTIF(N4:N24,">5,5"),COUNTIF(N4:N24,">6,5")) -> 0 | P27: =IF(Beanspruchungverteilung!$AT$21="x",COUNTIF(Q4:Q24,"<3,5"),COUNTIF(Q4:Q24,"<4,5")) -> 0 | Q27: =COUNT(Q4:Q24)-(P27+R27) -> 0 | R27: =IF(Beanspruchungverteilung!$AT$21="x",COUNTIF(Q4:Q24,">5,5"),COUNTIF(Q4:Q24,">6,5")) -> 0 | S27: =IF(Beanspruchungverteilung!$AT$21="x",COUNTIF(T4:T24,"<3,5"),COUNTIF(T4:T24,"<4,5")) -> 0 | T27: =COUNT(T4:T24)-(S27+U27) -> 0 | U27: =IF(Beanspruchungverteilung!$AT$21="x",COUNTIF(T4:T24,">5,5"),COUNTIF(T4:T24,">6,5")) -> 0 | V27: =IF(Beanspruchungverteilung!$AT$21="x",COUNTIF(W4:W24,"<3,5"),COUNTIF(W4:W24,"<4,5")) -> 0 | W27: =COUNT(W4:W24)-(V27+X27) -> 0 | X27: =IF(Beanspruchungverteilung!$AT$21="x",COUNTIF(W4:W24,">5,5"),COUNTIF(W4:W24,">6,5")) -> 0 | Y27: =IF(Beanspruchungverteilung!$AT$21="x",COUNTIF(Z4:Z24,"<3,5"),COUNTIF(Z4:Z24,"<4,5")) -> 0 | Z27: =COUNT(Z4:Z24)-(Y27+AA27) -> 0 | AA27: =IF(Beanspruchungverteilung!$AT$21="x",COUNTIF(Z4:Z24,">5,5"),COUNTIF(Z4:Z24,">6,5")) -> 0 | AB27: =IF(Beanspruchungverteilung!$AT$21="x",COUNTIF(AC4:AC24,"<3,5"),COUNTIF(AC4:AC24,"<4,5")) -> 0 | AC27: =COUNT(AC4:AC24)-(AB27+AD27) -> 0 | AD27: =IF(Beanspruchungverteilung!$AT$21="x",COUNTIF(AC4:AC24,">5,5"),COUNTIF(AC4:AC24,">6,5")) -> 0 | AF27: Standardabweichung | AH27: =STDEVP(AH4:AH24) -> 0
D28: Foster's Skala | H28: RPE | K28: Zeit pro Zone (RPE) | M28: =IF(Beanspruchungverteilung!$AT$21="x",SUMIF(N4:N24,"<3,5",M4:M24),SUMIF(N4:N24,"<4,5",M4:M24)) -> 0 | N28: =IF(N27=0,0,SUM((M25)-(M28+O28))) -> 0 | O28: =IF(Beanspruchungverteilung!$AT$21="x",SUMIF(N4:N24,">5,5",M4:M24),SUMIF(N4:N24,">6,5",M4:M24)) -> 0 | P28: =IF(Beanspruchungverteilung!$AT$21="x",SUMIF(Q4:Q24,"<3,5",P4:P24),SUMIF(Q4:Q24,"<4,5",P4:P24)) -> 0 | Q28: =IF(Q27=0,0,SUM((P25)-(P28+R28))) -> 0 | R28: =IF(Beanspruchungverteilung!$AT$21="x",SUMIF(Q4:Q24,">5,5",P4:P24),SUMIF(Q4:Q24,">6,5",P4:P24)) -> 0 | S28: =IF(Beanspruchungverteilung!$AT$21="x",SUMIF(T4:T24,"<3,5",S4:S24),SUMIF(T4:T24,"<4,5",S4:S24)) -> 0 | T28: =IF(T27=0,0,SUM((S25)-(S28+U28))) -> 0 | U28: =IF(Beanspruchungverteilung!$AT$21="x",SUMIF(T4:T24,">5,5",S4:S24),SUMIF(T4:T24,">6,5",S4:S24)) -> 0 | V28: =IF(Beanspruchungverteilung!$AT$21="x",SUMIF(W4:W24,"<3,5",V4:V24),SUMIF(W4:W24,"<4,5",V4:V24)) -> 0 | W28: =IF(W27=0,0,SUM((V25)-(V28+X28))) -> 0 | X28: =IF(Beanspruchungverteilung!$AT$21="x",SUMIF(W4:W24,">5,5",V4:V24),SUMIF(W4:W24,">6,5",V4:V24)) -> 0 | Y28: =IF(Beanspruchungverteilung!$AT$21="x",SUMIF(Z4:Z24,"<3,5",Y4:Y24),SUMIF(Z4:Z24,"<4,5",Y4:Y24)) -> 0 | Z28: =IF(Z27=0,0,SUM((Y25)-(Y28+AA28))) -> 0 | AA28: =IF(Beanspruchungverteilung!$AT$21="x",SUMIF(Z4:Z24,">5,5",Y4:Y24),SUMIF(Z4:Z24,">6,5",Y4:Y24)) -> 0 | AB28: =IF(Beanspruchungverteilung!$AT$21="x",SUMIF(AC4:AC24,"<3,5",AB4:AB24),SUMIF(AC4:AC24,"<4,5",AB4:AB24)) -> 0 | AC28: =IF(AC27=0,0,SUM((AB25)-(AB28+AD28))) -> 0 | AD28: =IF(Beanspruchungverteilung!$AT$21="x",SUMIF(AC4:AC24,">5,5",AB4:AB24),SUMIF(AC4:AC24,">6,5",AB4:AB24)) -> 0
D29: Wie in Ruhe | H29: 0 | J29: REG | K29: Wie erholt bist du wenn du in der Früh aufstehst?
D30: Sehr locker | H30: 1
D31: Locker | H31: 2 | J31: 1 | K31: … gar nicht erholt | AF31: Trainingstage | AH31: =IF(SUM(AH4:AH24)=0,"",COUNTIF(AH4:AH24,">0")) ->  | AJ31: Gesundheitsreport
H32: 3 | J32: 2 | K32: … wenig erholt
D33: Etwas hart | H33: 4 | J33: 3 | K33: … erholt | S33: =B4 -> Mo | T33: =AH4 -> 0 | AF33: Trainingseinheiten | AH33: =IF(AH31="","",SUM(M27:AD27)) -> 
D34: Hart | H34: 5 | J34: 4 | K34: … fit | S34: =B7 -> Di | T34: =AH7 -> 0 | AJ34: =IF($AH$31="","",AH31-AJ36-AJ44) ->  | AK34: keine Einschränkungen | AM34: 0
H35: 6 | J35: 5 | K35: … Top fit | S35: =B10 -> Mi | T35: =AH10 -> 0 | AF35: Trainingsstunden | AH35: =IF(AH31="","",SUM(M25,P25,V25,Y25,S25,AB25)/60) -> 
D36: Sehr hart | H36: 7 | S36: =B13 -> Do | T36: =AH13 -> 0 | AJ36: =SUM(AJ37:AJ42) -> 0 | AK36: Einschränkungen wegen Schmerzen
H37: 8 | J37: Anzahl der Spiele | S37: =B16 -> Fr | T37: =AH16 -> 0 | AF37: Training Load | AH37: =IF(AH31="","",SUM(AH25)) ->  | AJ37: =COUNTIF($H$4:$H$24,$AM37) -> 0 | AK37: Finger | AM37: 1
D38: Extrem hart | H38: 9 | S38: =B19 -> Sa | T38: =AH19 -> 0 | AJ38: 0 | AK38: Schulter | AM38: 2
D39: Wie mein härtestes Training | H39: 10 | J39: 1 | K39: … 3 und mehr Sätze | S39: =B22 -> So | T39: =AH22 -> 0 | AF39: Monotonie | AH39: =IF(AH31="","",(AVERAGE(AH4:AH24))/AH27) ->  | AJ39: 0 | AK39: Rücken | AM39: 3
J40: 0.5 | K40: … weniger als 3 Sätze | AJ40: 0 | AK40: Knie | AM40: 4
AF41: Trainingsanstrengung | AH41: =IF(AH31="","",AH37*AH39) ->  | AJ41: 0 | AK41: Sprunggelenk | AM41: 5
D42: échelle de Foster | H42: RPE | J42: gespielte Sätze | AJ42: 0 | AK42: Andere | AM42: 6
D43: Comme au repos | H43: 0 | J43: 1 | K43: … gestartet & durchgespielt | AF43: =AJ2 -> Anzahl der Spiele | AH43: =IF(AH31="","",SUM(AJ4:AJ24)) -> 
D44: très facile | H44: 1 | J44: 0.5 | K44: … ein-/ ausgewechselt, viel gespielt | AJ44: =SUM(AJ45:AJ50) -> 0 | AK44: Ausfall wegen Verletzung
